Workbook

Sheet Control Panel
A1: 1 | B1: Dominion Energy | F1: DEFICIENCY
B2: =F11&" - "&F16 -> Utah - DEC 2023 Adjusted Avg Results CET | F2: =Report!K13 -> 71516221.88
B3: ="12 Months Ended"&" : "& TEXT(F12,"mmm-yyyy") -> 12 Months Ended : Dec-2023 | F3: ROE
B4: ="Capital Structure"&" : "&F69 -> Capital Structure : AVG CAP STR DEC 23 | F4: =+Report!J79 -> 0.06357809694
C5: Original Filing | F5: 70511689
C6: Update | F6: =F2-F5 -> 1004532.875
B9: REPORT CHECK: MUST BE (0) ======> | C9: =IF((SUM(Report!F13:H74)-SUM(Report!I13:I74))<1,"0","ERROR") -> 0 | H9: Dec 2021 Unadjusted Avg Results | J9: DEC 2021 Adjusted Avg Results | L9: DEC 2022 Adjusted Avg Results | N9: DEC 2023 Adjusted Avg Results | P9: DEC 2023 Adjusted Avg Results CET | S9: Line #
E10: =F10&" - "&"A" -> 5 - A | F10: 5 | H10: 1 | I10: =H10&" - "&"A" -> 1 - A | J10: 2 | K10: =J10&" - "&"A" -> 2 - A | L10: 3 | M10: =L10&" - "&"A" -> 3 - A | N10: 4 | O10: =N10&" - "&"A" -> 4 - A | P10: 5 | Q10: =P10&" - "&"A" -> 5 - A | S10: 1
B11: Jurisdiction | F11: =HLOOKUP($F$10,Scenarios,S11,FALSE) -> Utah | H11: Utah | J11: Utah | L11: Utah | N11: Utah | P11: Utah | S11: =S10+1 -> 2
B12: Scenario Title 1 | F12: =HLOOKUP($F$10,Scenarios,S12,FALSE) -> 2023-12-31 | H12: 2021-12-31 | J12: 2021-12-31 | L12: 2022-12-31 | N12: 2023-12-31 | P12: 2023-12-31 | S12: =S11+1 -> 3
S13: 4
S14: 5
S15: 6
B16: Scenario Title 2 | F16: =HLOOKUP($F$10,Scenarios,S16,FALSE) -> DEC 2023 Adjusted Avg Results CET | H16: =+H9 -> Dec 2021 Unadjusted Avg Results | J16: =+J9 -> DEC 2021 Adjusted Avg Results | L16: =+L9 -> DEC 2022 Adjusted Avg Results | N16: =+N9 -> DEC 2023 Adjusted Avg Results | P16: =+P9 -> DEC 2023 Adjusted Avg Results CET | S16: 7
B17: Required Inputs and Factors | S17: 8
S18: 9
B19: Return On Equity | F19: =HLOOKUP($F$10,Scenarios,S19,FALSE) -> 0.103 | H19: 0.095 | J19: 0.095 | L19: 0.103 | N19: 0.103 | P19: 0.103 | S19: 10
S20: 11
B21: Lead-Lag Factor | F21: =HLOOKUP($F$10,Scenarios,S21,FALSE) -> 8.35 | H21: -0.905 | J21: -0.905 | L21: 8.35 | N21: 8.35 | P21: 8.35 | S21: 12
B22: Bad Debt Ratio | F22: =HLOOKUP($F$10,Scenarios,S22,FALSE) -> 0.001976853039 | H22: =+'Utah Bad Debt'!$G$17 -> 0.001976853039 | J22: =+'Utah Bad Debt'!$G$17 -> 0.001976853039 | L22: ='Utah Bad Debt'!$G$17 -> 0.001976853039 | N22: ='Utah Bad Debt'!$G$17 -> 0.001976853039 | P22: ='Utah Bad Debt'!$G$17 -> 0.001976853039 | S22: =S21+1 -> 13
S23: =S22+1 -> 14
S24: 15
B25: Adjustments | C25: Go To Adjustment | S25: 16
S26: 17
A27: 1 | B27: =+F27 -> AVG RB DEC 2023 | C27: RATE BASE | E27: =HLOOKUP($E$10,Scenarios,S27,FALSE) -> Y | F27: =HLOOKUP($F$10,Scenarios,S27,FALSE) -> AVG RB DEC 2023 | H27: AVG RB DEC 2021 | I27: Y | J27: AVG RB DEC 2021 | K27: Y | L27: AVG RB DEC 2022 | M27: Y | N27: AVG RB DEC 2023 | O27: Y | P27: AVG RB DEC 2023 | Q27: Y | S27: 18
A28: =+A27+1 -> 2 | B28: Expense Dec 2023 | C28: Expense Adjustment | E28: Y | F28: Expense Dec 2023 | H28: Expense Dec 2021 | I28: N | J28: Expense Dec 2021 | K28: N | L28: Expense Dec 2022 | M28: Y | N28: Expense Dec 2023 | O28: Y | P28: Expense Dec 2023 | Q28: Y | S28: 19
A29: =+A28+1 -> 3 | B29: =+F29 -> AVG Projected Rev 2023 with CET | C29: REVENUE ADJUSTMENT | E29: Y | F29: AVG Projected Rev 2023 with CET | H29: Booked Rev DEC 2021 | I29: Y | J29: Booked Rev DEC 2021 | K29: Y | L29: AVG Projected Rev 2022 with CET | M29: Y | N29: AVG Proj Rev 2023 | O29: Y | P29: AVG Projected Rev 2023 with CET | Q29: Y | S29: 20
A30: =+A29+1 -> 4 | B30: Underground Storage | C30: Underground Storage | E30: Y | F30: Underground Storage | H30: Underground Storage | I30: Y | J30: Underground Storage | K30: Y | L30: Underground Storage | M30: Y | N30: Underground Storage | O30: Y | P30: Underground Storage | Q30: Y | S30: 21
A31: 5 | B31: Wexpro | C31: Wexpro | E31: Y | F31: Wexpro | H31: Wexpro | I31: Y | J31: Wexpro | K31: Y | L31: Wexpro | M31: Y | N31: Wexpro | O31: Y | P31: Wexpro | Q31: Y | S31: 22
A32: 6 | B32: =+F32 -> Energy Efficiency & STEP 2023 | C32: Energy Efficiency | E32: =HLOOKUP($E$10,Scenarios,S32,FALSE) -> Y | F32: Energy Efficiency & STEP 2023 | H32: Energy Efficiency & STEP 2021 | I32: Y | J32: Energy Efficiency & STEP 2021 | K32: Y | L32: Energy Efficiency & STEP 2022 | M32: Y | N32: Energy Efficiency & STEP 2023 | O32: Y | P32: Energy Efficiency & STEP 2023 | Q32: Y | S32: 23
A33: 7 | B33: Utah Bad Debt 2023 | C33: Utah Bad Debt | E33: Y | F33: Utah Bad Debt 2023 | H33: Utah Bad Debt 2021 | I33: N | J33: Utah Bad Debt 2021 | K33: Y | L33: Utah Bad Debt 2022 | M33: Y | N33: Utah Bad Debt 2023 | O33: Y | P33: Utah Bad Debt 2023 | Q33: Y | S33: 24
A34: 8 | B34: Incentives 2023 | C34: Incentives | E34: Y | F34: Incentives 2023 | H34: Incentives 2021 | I34: N | J34: Incentives 2021 | K34: Y | L34: Incentives 2022 | M34: Y | N34: Incentives 2023 | O34: Y | P34: Incentives 2023 | Q34: Y | S34: 25
A35: 9 | B35: Sporting Events DEC 2023 | C35: Sporting Events | E35: Y | F35: Sporting Events DEC 2023 | H35: Sporting Events DEC 2021 | I35: N | J35: Sporting Events DEC 2021 | K35: Y | L35: Sporting Events DEC 2022 | M35: Y | N35: Sporting Events DEC 2023 | O35: Y | P35: Sporting Events DEC 2023 | Q35: Y | S35: 26
A36: 10 | B36: Advertising DEC 2023 | C36: Advertising | E36: Y | F36: Advertising DEC 2023 | H36: Advertising DEC 2021 | I36: N | J36: Advertising DEC 2021 | K36: Y | L36: Advertising DEC 2022 | M36: Y | N36: Advertising DEC 2023 | O36: Y | P36: Advertising DEC 2023 | Q36: Y | S36: 27
A37: 11 | B37: Don & Membership DEC 2023 | C37: Donations | E37: Y | F37: Don & Membership DEC 2023 | H37: Don & Membership DEC 2021 | I37: N | J37: Don & Membership DEC 2021 | K37: Y | L37: Don & Membership DEC 2022 | M37: Y | N37: Don & Membership DEC 2023 | O37: Y | P37: Don & Membership DEC 2023 | Q37: Y | S37: 28
A38: 12 | B38: Reserve Accrual Dec 2023 | C38: RESERVE ACCRUAL | E38: Y | F38: Reserve Accrual Dec 2023 | H38: Reserve Accrual Dec 2021 | I38: N | J38: Reserve Accrual Dec 2021 | K38: Y | L38: Reserve Accrual Dec 2022 | M38: Y | N38: Reserve Accrual Dec 2023 | O38: Y | P38: Reserve Accrual Dec 2023 | Q38: Y | S38: 29
A39: 13 | B39: Pipeline Integrity 2023 | C39: Pipeline Integrity | E39: Y | F39: Pipeline Integrity 2023 | H39: Pipeline Integrity 2021 | I39: N | J39: Pipeline Integrity 2021 | K39: N | L39: Pipeline Integrity 2022 | M39: Y | N39: Pipeline Integrity 2023 | O39: Y | P39: Pipeline Integrity 2023 | Q39: Y | S39: 30
A40: 14 | B40: =F40 -> 2023 EDIT Adjustment | C40: Edit Amort 2020 | E40: Y | F40: 2023 EDIT Adjustment | H40: 2023 EDIT Adjustment | I40: N | J40: 2023 EDIT Adjustment | K40: N | L40: 2022 EDIT Adjustment | M40: Y | N40: 2023 EDIT Adjustment | O40: Y | P40: 2023 EDIT Adjustment | Q40: Y | S40: 31
A41: 15 | B41: =F41 -> Envision Tomorrow - Savings | C41: Envision Tomorrow Savings | E41: Y | F41: Envision Tomorrow - Savings | H41: Envision Tomorrow - Savings | I41: N | J41: Envision Tomorrow - Savings | K41: N | L41: Envision Tomorrow - Savings | M41: Y | N41: Envision Tomorrow - Savings | O41: Y | P41: Envision Tomorrow - Savings | Q41: Y | S41: 32
A42: 16 | B42: Pension 2023 | C42: Pension | E42: Y | F42: Pension 2023 | H42: Pension 2021 | I42: Y | J42: Pension 2021 | K42: Y | L42: Pension 2022 | M42: Y | N42: Pension 2023 | O42: Y | P42: Pension 2023 | Q42: Y | S42: 33
A43: 17 | B43: Optional Adjustment 1 | C43: Optional Adjustment 1 | E43: Y | F43: Optional Adjustment 1 | H43: Optional Adjustment 1 | I43: N | J43: Optional Adjustment 1 | K43: N | L43: Optional Adjustment 1 | M43: N | N43: Optional Adjustment 1 | O43: Y | P43: Optional Adjustment 1 | Q43: Y | S43: 34
A44: 18 | B44: Optional Adjustment 2 | C44: Optional Adjustment 2 | E44: Y | F44: Optional Adjustment 2 | H44: Optional Adjustment 2 | I44: N | J44: Optional Adjustment 2 | K44: N | L44: Optional Adjustment 2 | M44: N | N44: Optional Adjustment 2 | O44: Y | P44: Optional Adjustment 2 | Q44: Y | S44: 35
A45: 19 | B45: Optional Adjustment 3 | C45: Optional Adjustment 3 | E45: Y | F45: Optional Adjustment 3 | H45: Optional Adjustment 3 | I45: N | J45: Optional Adjustment 3 | K45: N | L45: Optional Adjustment 3 | M45: N | N45: Optional Adjustment 3 | O45: Y | P45: Optional Adjustment 3 | Q45: Y | S45: 36
A46: 20 | B46: Optional Adjustment 4 | C46: Optional Adjustment 4 | E46: Y | F46: Optional Adjustment 4 | H46: Optional Adjustment 4 | I46: N | J46: Optional Adjustment 4 | K46: N | L46: Optional Adjustment 4 | M46: N | N46: Optional Adjustment 4 | O46: Y | P46: Optional Adjustment 4 | Q46: Y | S46: 37
A47: 21 | B47: Optional Adjustment 5 | C47: Optional Adjustment 5 | E47: Y | F47: Optional Adjustment 5 | H47: Optional Adjustment 5 | I47: N | J47: Optional Adjustment 5 | K47: N | L47: Optional Adjustment 5 | M47: N | N47: Optional Adjustment 5 | O47: Y | P47: Optional Adjustment 5 | Q47: Y | S47: 38
A48: 22 | B48: Optional Adjustment 6 | C48: Optional Adjustment 6 | E48: Y | F48: Optional Adjustment 6 | H48: Optional Adjustment 6 | I48: N | J48: Optional Adjustment 6 | K48: N | L48: Optional Adjustment 6 | M48: N | N48: Optional Adjustment 6 | O48: Y | P48: Optional Adjustment 6 | Q48: Y | S48: 39
A49: 23 | B49: Optional Adjustment 7 | C49: Optional Adjustment 7 | E49: Y | F49: Optional Adjustment 7 | H49: Optional Adjustment 7 | I49: N | J49: Optional Adjustment 7 | K49: N | L49: Optional Adjustment 7 | M49: N | N49: Optional Adjustment 7 | O49: Y | P49: Optional Adjustment 7 | Q49: Y | S49: 40
A50: 24 | B50: Optional Adjustment 8 | C50: Optional Adjustment 8 | E50: Y | F50: Optional Adjustment 8 | H50: Optional Adjustment 8 | I50: N | J50: Optional Adjustment 8 | K50: N | L50: Optional Adjustment 8 | M50: N | N50: Optional Adjustment 8 | O50: Y | P50: Optional Adjustment 8 | Q50: Y | S50: 41
A51: 25 | B51: Optional Adjustment 9 | C51: Optional Adjustment 9 | E51: Y | F51: Optional Adjustment 9 | H51: Optional Adjustment 9 | I51: N | J51: Optional Adjustment 9 | K51: N | L51: Optional Adjustment 9 | M51: N | N51: Optional Adjustment 9 | O51: Y | P51: Optional Adjustment 9 | Q51: Y | S51: 42
A52: 26 | B52: Optional Adjustment 10 | C52: Optional Adjustment 10 | E52: Y | F52: Optional Adjustment 10 | H52: Optional Adjustment 10 | I52: N | J52: Optional Adjustment 10 | K52: N | L52: Optional Adjustment 10 | M52: N | N52: Optional Adjustment 10 | O52: Y | P52: Optional Adjustment 10 | Q52: Y | S52: 43
A53: 27 | B53: Optional Adjustment 11 | C53: Optional Adjustment 11 | E53: Y | F53: Optional Adjustment 11 | H53: Optional Adjustment 11 | I53: N | J53: Optional Adjustment 11 | K53: N | L53: Optional Adjustment 11 | M53: N | N53: Optional Adjustment 11 | O53: Y | P53: Optional Adjustment 11 | Q53: Y | S53: 44
A54: 28 | B54: =F54 -> Optional Adjustment 12 | C54: Optional Adjustment 12 | E54: =HLOOKUP($E$10,Scenarios,S54,FALSE) -> Y | F54: =HLOOKUP($F$10,Scenarios,S54,FALSE) -> Optional Adjustment 12 | H54: Optional Adjustment 12 | I54: N | J54: Optional Adjustment 12 | K54: N | L54: Optional Adjustment 12 | M54: N | N54: Optional Adjustment 12 | O54: Y | P54: Optional Adjustment 12 | Q54: Y | S54: 45
A55: 29 | B55: Optional Adjustment 13 | C55: Optional Adjustment 13 | E55: Y | F55: Optional Adjustment 13 | H55: Optional Adjustment 13 | I55: N | J55: Optional Adjustment 13 | K55: N | L55: Optional Adjustment 13 | M55: N | N55: Optional Adjustment 13 | O55: Y | P55: Optional Adjustment 13 | Q55: Y | S55: 46
A56: 30 | B56: Optional Adjustment 14 | C56: Optional Adjustment 14 | E56: Y | F56: Optional Adjustment 14 | H56: Optional Adjustment 14 | I56: N | J56: Optional Adjustment 14 | K56: N | L56: Optional Adjustment 14 | M56: N | N56: Optional Adjustment 14 | O56: Y | P56: Optional Adjustment 14 | Q56: Y | S56: 47
A57: 31 | B57: Optional Adjustment 15 | C57: Optional Adjustment 15 | E57: Y | F57: Optional Adjustment 15 | H57: Optional Adjustment 15 | I57: N | J57: Optional Adjustment 15 | K57: N | L57: Optional Adjustment 15 | M57: N | N57: Optional Adjustment 15 | O57: Y | P57: Optional Adjustment 15 | Q57: Y | S57: 48
A58: 32 | B58: Optional Adjustment 16 | C58: Optional Adjustment 16 | E58: Y | F58: Optional Adjustment 16 | H58: Optional Adjustment 16 | I58: N | J58: Optional Adjustment 16 | K58: N | L58: Optional Adjustment 16 | M58: N | N58: Optional Adjustment 16 | O58: Y | P58: Optional Adjustment 16 | Q58: Y | S58: 49
A59: 33 | B59: Optional Adjustment 17 | C59: Optional Adjustment 17 | E59: Y | F59: Optional Adjustment 17 | H59: Optional Adjustment 17 | I59: N | J59: Optional Adjustment 17 | K59: N | L59: Optional Adjustment 17 | M59: N | N59: Optional Adjustment 17 | O59: Y | P59: Optional Adjustment 17 | Q59: Y | S59: 50
A60: 34 | B60: Optional Adjustment 18 | C60: Optional Adjustment 18 | E60: Y | F60: Optional Adjustment 18 | H60: Optional Adjustment 18 | I60: N | J60: Optional Adjustment 18 | K60: N | L60: Optional Adjustment 18 | M60: N | N60: Optional Adjustment 18 | O60: Y | P60: Optional Adjustment 18 | Q60: Y | S60: 51
A61: 35 | B61: Optional Adjustment 19 | C61: Optional Adjustment 19 | E61: Y | F61: Optional Adjustment 19 | H61: Optional Adjustment 19 | I61: N | J61: Optional Adjustment 19 | K61: N | L61: Optional Adjustment 19 | M61: N | N61: Optional Adjustment 19 | O61: Y | P61: Optional Adjustment 19 | Q61: Y | S61: 52
A62: 36 | B62: Optional Adjustment 20 | C62: Optional Adjustment 20 | E62: Y | F62: Optional Adjustment 20 | H62: Optional Adjustment 20 | I62: N | J62: Optional Adjustment 20 | K62: N | L62: Optional Adjustment 20 | M62: N | N62: Optional Adjustment 20 | O62: Y | P62: Optional Adjustment 20 | Q62: Y | S62: 53
A63: 37 | B63: Optional Adjustment 21 | C63: Optional Adjustment 21 | E63: Y | F63: Optional Adjustment 21 | H63: Optional Adjustment 21 | I63: N | J63: Optional Adjustment 21 | K63: N | L63: Optional Adjustment 21 | M63: N | N63: Optional Adjustment 21 | O63: Y | P63: Optional Adjustment 21 | Q63: Y | S63: 54
A64: 38 | B64: Optional Adjustment 22 | C64: Optional Adjustment 22 | E64: Y | F64: Optional Adjustment 22 | H64: Optional Adjustment 22 | I64: N | J64: Optional Adjustment 22 | K64: N | L64: Optional Adjustment 22 | M64: N | N64: Optional Adjustment 22 | O64: Y | P64: Optional Adjustment 22 | Q64: Y | S64: 55
A65: 39 | B65: LNG O&M 2023 | C65: LNG O&M | E65: Y | F65: LNG O&M 2023 | H65: LNG O&M 2022 | I65: N | J65: LNG O&M 2022 | K65: N | L65: LNG O&M 2022 | M65: N | N65: LNG O&M 2023 | O65: Y | P65: LNG O&M 2023 | Q65: Y | S65: 56
A66: 40 | B66: Labor Adjustment-ROO | C66: Labor Adjustment ROO | E66: N | F66: Labor Adjustment-ROO | H66: Labor Adjustment-ROO | I66: N | J66: Labor Adjustment-ROO | K66: Y | L66: Labor Adjustment-ROO | M66: N | N66: Labor Adjustment-ROO | O66: N | P66: Labor Adjustment-ROO | Q66: N | S66: 57
A67: 41 | S67: 58
A68: =+A67+1 -> 42 | S68: =S67+1 -> 59
A69: 43 | B69: =+F69 -> AVG CAP STR DEC 23 | C69: Capital Structure | F69: =HLOOKUP($F$10,Scenarios,S69,FALSE) -> AVG CAP STR DEC 23 | H69: AVG CAP STR DEC 21 | J69: AVG CAP STR DEC 21 | L69: AVG CAP STR DEC 22 | N69: AVG CAP STR DEC 23 | P69: AVG CAP STR DEC 23 | S69: 60
A70: 44

Sheet Report
A1: ='Control Panel'!$B$1 -> Dominion Energy
A2: ='Control Panel'!$B$2 -> Utah - DEC 2023 Adjusted Avg Results CET
A3: ='Control Panel'!$B$3 -> 12 Months Ended : Dec-2023 | F3: =+'Control Panel'!$B$3 -> 12 Months Ended : Dec-2023
A4: =+'Control Panel'!B19 -> Return On Equity | D4: =+'Control Panel'!F19 -> 0.103
B5: (A) | F5: (B) | G5: (C) | H5: (D) | I5: (E) | J5: (F) | K5: (G) | L5: (H)
F6: =+'ROR-Model'!F7 -> Historical | H6: =+'ROR-Model'!H7 -> Imputed | I6: =+'ROR-Model'!I7 -> Adjusted | J6: =+'ROR-Model'!W9 -> Utah | L6: =+J6 -> Utah
E7: CHECKS MUST BE (0) | F7: =+'ROR-Model'!F8 -> 12 Months | G7: Adjustments | H7: =+'ROR-Model'!H8 -> Tax | I7: =+'ROR-Model'!I8 -> System | J7: Jurisdiction | L7: Jurisdiction | M7: CHECKS MUST BE (0)
B8: Description | F8: 2021-12-31 | G8: Total | H8: =+'ROR-Model'!H9 -> Adjustment | I8: =+'ROR-Model'!I9 -> Total | J8: DNG Related | K8: Deficiency | L8: Total
A10: 1 | B10: NET INCOME SUMMARY
A12: =+A10+1 -> 2 | B12: Utility Operating Revenue
A13: =+A12+1 -> 3 | D13: System Distribution Non-Gas Revenue | E13: =+F13+G13+H13-I13 -> 0 | F13: =+'ROR-Model'!F363+'ROR-Model'!F365 -> 434367536 | G13: =+'ROR-Model'!G363+'ROR-Model'!G365 -> 12559759.94 | H13: =+'ROR-Model'!H363+'ROR-Model'!H365 -> 0 | I13: =+'ROR-Model'!I363+'ROR-Model'!I365 -> 446927295.9 | J13: ='ROR-Model'!W368 -> 433402503.8 | K13: =+K44*Taxes!L47 -> 71516221.88 | L13: =SUM(J13:K13) -> 504918725.7 | M13: =+N13-I13 -> 0 | N13: =SUM(F13:H13) -> 446927295.9
A14: 4 | D14: System Supplier Non-Gas Revenue | E14: 0 | F14: =+'ROR-Model'!F364 -> 80993824.61 | G14: =+'ROR-Model'!G364 -> 10520230.92 | H14: =+'ROR-Model'!H364 -> 0 | I14: =+'ROR-Model'!I364 -> 91514055.54 | L14: =SUM(J14:K14) -> 0 | M14: =+N14-I14 -> 0 | N14: =SUM(F14:H14) -> 91514055.54
A15: 5 | D15: System Commodity Revenue | E15: 0 | F15: =+'ROR-Model'!F366 -> 458716918.5 | G15: =+'ROR-Model'!G366 -> 161470813.1 | H15: =+'ROR-Model'!H366 -> 0 | I15: =+'ROR-Model'!I366 -> 620187731.7 | L15: =SUM(J15:K15) -> 0 | M15: 0 | N15: 620187731.7
A16: 6 | D16: Pass-Through Related Other Revenue | E16: 0 | F16: ='ROR-Model'!F501+'ROR-Model'!F505 -> 20530313.36 | G16: ='ROR-Model'!G501+'ROR-Model'!G505 -> 0 | H16: ='ROR-Model'!H501+'ROR-Model'!H505 -> 0 | I16: ='ROR-Model'!I501+'ROR-Model'!I505 -> 20530313.36 | L16: =SUM(J16:K16) -> 0 | M16: 0 | N16: 20530313.36
A17: 7 | D17: General Related Other Revenue | E17: 0 | F17: ='ROR-Model'!F502+'ROR-Model'!F506 -> 4368944.666 | G17: ='ROR-Model'!G502+'ROR-Model'!G506 -> 4927225.62 | H17: ='ROR-Model'!H502+'ROR-Model'!H506 -> 0 | I17: ='ROR-Model'!I502+'ROR-Model'!I506 -> 9296170.285 | J17: ='ROR-Model'!W509 -> 9152593.783 | L17: =SUM(J17:K17) -> 9152593.783 | M17: 0 | N17: 9296170.285
A18: 8 | C18: Total Utility Operating Revenue | E18: 0 | F18: =SUM(F13:F17) -> 998977537.2 | G18: 189478029.6 | H18: 0 | I18: =SUM(I13:I17) -> 1188455567 | J18: 442555097.6 | K18: 71516221.88 | L18: 514071319.5 | M18: 0 | N18: 1188455567
M19: 0 | N19: 0
A20: =+A18+1 -> 9 | B20: Utility Operating Expenses | M20: 0 | N20: 0
A21: =+A20+1 -> 10 | C21: Gas Purchase Expenses | M21: 0 | N21: 0
A22: =+A21+1 -> 11 | D22: Utah | E22: =+F22+G22+H22-I22 -> 0 | F22: ='ROR-Model'!F633+'ROR-Model'!F636 -> 541899657.9 | G22: ='ROR-Model'!G633+'ROR-Model'!G636 -> 167141552.4 | H22: ='ROR-Model'!H633+'ROR-Model'!H636 -> 0 | I22: ='ROR-Model'!I633+'ROR-Model'!I636 -> 709041210.3 | L22: =SUM(J22:K22) -> 0 | M22: 0 | N22: 709041210.3
A23: =+A22+1 -> 12 | D23: Wyoming | E23: =+F23+G23+H23-I23 -> 0 | F23: ='ROR-Model'!F635+'ROR-Model'!F637 -> 18341398.58 | G23: ='ROR-Model'!G635+'ROR-Model'!G637 -> 4849491.7 | H23: ='ROR-Model'!H635+'ROR-Model'!H637 -> 0 | I23: ='ROR-Model'!I635+'ROR-Model'!I637 -> 23190890.28 | L23: =SUM(J23:K23) -> 0 | M23: 0 | N23: 23190890.28
A24: =+A23+1 -> 13 | D24: Total | E24: =+F24+G24+H24-I24 -> 0 | F24: =SUM(F22:F23) -> 560241056.5 | G24: 171991044.1 | H24: 0 | I24: 732232100.6 | J24: 0 | K24: 0 | L24: 0 | M24: 0 | N24: 732232100.6
E25: =+F25+G25+H25-I25 -> 0 | M25: 0 | N25: =SUM(F25:H25) -> 0
A26: =A24+1 -> 14 | C26: O&M Expenses | M26: 0 | N26: 0
A27: =+A26+1 -> 15 | D27: Production | E27: =+F27+G27+H27-I27 -> 0 | F27: ='ROR-Model'!F650 -> -276657.02 | G27: ='ROR-Model'!G650 -> -272566.976 | H27: ='ROR-Model'!H650 -> 0 | I27: ='ROR-Model'!I650 -> -549223.996 | J27: ='ROR-Model'!W650 -> -530551.0142 | L27: =SUM(J27:K27) -> -530551.0142 | M27: 0 | N27: -549223.996
A28: 16 | D28: Distribution | E28: 0 | F28: ='ROR-Model'!F753 -> 68107473.2 | G28: ='ROR-Model'!G753 -> 11172998.44 | H28: ='ROR-Model'!H753 -> 0 | I28: ='ROR-Model'!I753 -> 79280471.64 | J28: ='ROR-Model'!W753 -> 76349544.68 | L28: =SUM(J28:K28) -> 76349544.68 | M28: 0 | N28: 79280471.64
A29: 17 | D29: Customer Accounts | E29: 0 | F29: ='ROR-Model'!F806 -> 11942386.31 | G29: ='ROR-Model'!G806 -> 1973468.053 | H29: ='ROR-Model'!H806 -> 0 | I29: ='ROR-Model'!I806 -> 13915854.36 | J29: ='ROR-Model'!W806 -> 13516609.11 | K29: =+K13*'Control Panel'!F22 -> 141377.0606 | L29: =SUM(J29:K29) -> 13657986.17 | M29: 0 | N29: 13915854.36
A30: 18 | D30: Customer Service & Information | E30: 0 | F30: ='ROR-Model'!F834 -> 27940617.46 | G30: ='ROR-Model'!G834 -> -24908377.09 | H30: ='ROR-Model'!H834 -> 0 | I30: ='ROR-Model'!I834 -> 3032240.367 | J30: ='ROR-Model'!W834 -> 2946549.076 | L30: =SUM(J30:K30) -> 2946549.076 | M30: 0 | N30: 3032240.367
A31: 19 | D31: Administrative & General | E31: 0 | F31: ='ROR-Model'!F902 -> 36872211.19 | G31: ='ROR-Model'!G902 -> 10070812.93 | H31: ='ROR-Model'!H902 -> 0 | I31: ='ROR-Model'!I902 -> 46943024.12 | J31: ='ROR-Model'!W902 -> 45067357.14 | L31: =SUM(J31:K31) -> 45067357.14 | M31: 0 | N31: 46943024.12
A32: 20 | D32: Total O&M Expense | E32: 0 | F32: =SUM(F27:F31) -> 144586031.1 | G32: -1963664.648 | H32: 0 | I32: 142622366.5 | J32: 137349509 | K32: 141377.0606 | L32: 137490886.1 | M32: 0 | N32: 142622366.5
M33: 0 | N33: 0
A34: =+A32+1 -> 21 | C34: Other Operating Expenses | M34: 0 | N34: 0
A35: =+A34+1 -> 22 | D35: Depreciation, Depletion, Amortization | E35: =+F35+G35+H35-I35 -> 0 | F35: ='ROR-Model'!F926 -> 83771049.62 | G35: ='ROR-Model'!G926 -> 27836088.23 | H35: ='ROR-Model'!H926 -> 0 | I35: ='ROR-Model'!I926 -> 111607137.8 | J35: ='ROR-Model'!W926 -> 107784165.6 | L35: =SUM(J35:K35) -> 107784165.6 | M35: 0 | N35: 111607137.8
A36: =+A35+1 -> 23 | D36: Taxes Other Than Income Taxes | E36: =+F36+G36+H36-I36 -> 0 | F36: ='ROR-Model'!F934 -> 27727203.7 | G36: ='ROR-Model'!G934 -> 8002877.252 | H36: ='ROR-Model'!H934 -> 0 | I36: ='ROR-Model'!I934 -> 35730080.95 | J36: ='ROR-Model'!W934 -> 34317492.71 | L36: =SUM(J36:K36) -> 34317492.71 | M36: 0 | N36: 35730080.95
A37: =+A36+1 -> 24 | D37: Income Taxes | E37: =+F37+G37+H37-I37 -> 0 | F37: ='ROR-Model'!F936+'ROR-Model'!F938+'ROR-Model'!F940+'ROR-Model'!F942 -> 32781784.32 | G37: ='ROR-Model'!G936+'ROR-Model'!G938+'ROR-Model'!G940+'ROR-Model'!G942 -> -4040311.532 | H37: ='ROR-Model'!H936+'ROR-Model'!H938+'ROR-Model'!H940+'ROR-Model'!H942 -> 34023.21317 | I37: ='ROR-Model'!I936+'ROR-Model'!I938+'ROR-Model'!I940+'ROR-Model'!I942 -> 28775496 | J37: ='ROR-Model'!W936 -> 28378906.58 | K37: =(K13-K29)*Taxes!L41 -> 17596476.74 | L37: =SUM(J37:K37) -> 45975383.32 | M37: 0 | N37: 28775496
A38: =+A37+1 -> 25 | D38: Total Other Operating Expenses | E38: =+F38+G38+H38-I38 -> 0 | F38: =SUM(F35:F37) -> 144280037.6 | G38: 31798653.95 | H38: 34023.21317 | I38: =SUM(I35:I37) -> 176112714.8 | J38: 170480564.9 | K38: 17596476.74 | L38: 188077041.6 | M38: 0 | N38: 176112714.8
M39: 0 | N39: 0
M40: 0 | N40: 0
A41: =+A38+1 -> 26 | C41: Total Utility Operating Expenses | E41: =+F41+G41+H41-I41 -> 0 | F41: =+F24+F32+F38 -> 849107125.3 | G41: =+G24+G32+G38 -> 201826033.4 | H41: 34023.21317 | I41: =+I24+I32+I38 -> 1050967182 | J41: 307830073.9 | K41: 17737853.8 | L41: 325567927.7 | M41: 0 | N41: 1050967182
M42: 0 | N42: 0
M43: 0 | N43: 0
A44: =+A41+1 -> 27 | B44: NET OPERATING INCOME | E44: =+F44+G44+H44-I44 -> 0 | F44: =+F18-F41 -> 149870411.9 | G44: =+G18-G41 -> -12348003.74 | H44: =+H18-H41 -> -34023.21317 | I44: =+I18-I41 -> 137488384.9 | J44: =+J18-J41 -> 134725023.7 | K44: =+L44-J44 -> 53778368.07 | L44: =L74*L77 -> 188503391.8 | M44: 0 | N44: 137488384.9
M45: 0
A47: =+A44+1 -> 28 | B47: RATE BASE SUMMARY
A49: =+A47+1 -> 29 | B49: Net Utility Plant
A50: =+A49+1 -> 30 | C50: 101 | D50: Gas Plant In Service | E50: =+F50+G50+H50-I50 -> 0 | F50: ='ROR-Model'!F1123 -> 3460855332 | G50: ='ROR-Model'!G1123 -> 851496580 | H50: ='ROR-Model'!H1123 -> 0 | I50: ='ROR-Model'!I1123 -> 4312351912 | J50: ='ROR-Model'!W1123 -> 4161554886 | L50: =SUM(J50:K50) -> 4161554886 | M50: =+N50-I50 -> 0 | N50: =SUM(F50:H50) -> 4312351912
A51: 31 | C51: 105 | D51: Gas Plant Held For Future Use | E51: 0 | F51: ='ROR-Model'!F1127 -> 0 | G51: ='ROR-Model'!G1127 -> 5036.83 | H51: ='ROR-Model'!H1127 -> 0 | I51: ='ROR-Model'!I1127 -> 5036.83 | J51: ='ROR-Model'!W1127 -> 5036.83 | L51: 5036.83 | M51: 0 | N51: 5036.83
A52: 32 | C52: 106 | D52: Completed Construction Not Classified | E52: 0 | F52: ='ROR-Model'!F1134 -> 228556799.5 | G52: ='ROR-Model'!G1134 -> -228556799.5 | H52: ='ROR-Model'!H1134 -> 0 | I52: ='ROR-Model'!I1134 -> 0 | J52: ='ROR-Model'!W1134 -> 0 | L52: 0 | M52: 0 | N52: 0
A53: 33 | C53: 108 | D53: Accumulated Depreciation | E53: 0 | F53: ='ROR-Model'!F1141 -> -900591326.2 | G53: ='ROR-Model'!G1141 -> -108906362.2 | H53: ='ROR-Model'!H1141 -> 0 | I53: ='ROR-Model'!I1141 -> -1009497688 | J53: ='ROR-Model'!W1141 -> -962649660.2 | L53: -962649660.2 | M53: 0 | N53: -1009497688
A54: 34 | C54: 111 | D54: Accumulated Amort & Depletion | E54: 0 | F54: ='ROR-Model'!F1148 -> -6297165.96 | G54: ='ROR-Model'!G1148 -> 387467.4296 | H54: ='ROR-Model'!H1148 -> 0 | I54: ='ROR-Model'!I1148 -> -5909698.53 | J54: ='ROR-Model'!W1148 -> -5700388.633 | L54: -5700388.633 | M54: 0 | N54: -5909698.53
A55: 35 | C55: 254 | D55: Other Regulatory Liabilities ARC | F55: ='ROR-Model'!F1155 -> -425226096.1 | G55: ='ROR-Model'!G1155 -> -9685275.825 | H55: ='ROR-Model'!H1155 -> 0 | I55: ='ROR-Model'!I1155 -> -434911371.9 | J55: ='ROR-Model'!W1155 -> -419901396.5 | L55: -419901396.5
A56: 36 | C56: Total Net Utility Plant | E56: 0 | F56: =SUM(F50:F55) -> 2357297543 | G56: =SUM(G50:G55) -> 504740646.7 | H56: =SUM(H50:H55) -> 0 | I56: =SUM(I50:I55) -> 2862038190 | J56: =SUM(J50:J55) -> 2773308477 | K56: =SUM(K50:K54) -> 0 | L56: =SUM(L50:L55) -> 2773308477 | M56: 0 | N56: 2862038190
M57: 0
A58: =+A56+1 -> 37 | B58: Other Rate Base Accounts | M58: 0
A59: =+A58+1 -> 38 | C59: 154 | D59: Materials & Supplies | E59: =+F59+G59+H59-I59 -> 0 | F59: ='ROR-Model'!F1173 -> 20939896.84 | G59: ='ROR-Model'!G1173 -> 1239113.312 | H59: ='ROR-Model'!H1173 -> 0 | I59: ='ROR-Model'!I1173 -> 22179010.15 | J59: ='ROR-Model'!W1173 -> 22179010.15 | L59: =SUM(J59:K59) -> 22179010.15 | M59: 0 | N59: =SUM(F59:H59) -> 22179010.15
A60: 39 | C60: 164-1 | D60: Gas Stored Underground | E60: 0 | F60: ='ROR-Model'!F1177 -> 44932895.7 | G60: ='ROR-Model'!G1177 -> -44932895.7 | H60: ='ROR-Model'!H1177 -> 0 | I60: ='ROR-Model'!I1177 -> 0 | J60: ='ROR-Model'!W1177 -> 0 | L60: 0 | M60: 0 | N60: 0
A61: 40 | C61: 165 | D61: Prepayments | E61: 0 | F61: ='ROR-Model'!F1182 -> 3911968.42 | G61: ='ROR-Model'!G1182 -> 4478204.775 | H61: ='ROR-Model'!H1182 -> 0 | I61: ='ROR-Model'!I1182 -> 8390173.195 | J61: ='ROR-Model'!W1182 -> 8263697.554 | L61: 8263697.554 | M61: 0 | N61: 8390173.195
A62: 41 | C62: 190008 | D62: Accum Deferred Income Tax Federal | E62: 0 | F62: =+'ROR-Model'!F1189 -> 47392886.54 | G62: =+'ROR-Model'!G1189 -> 0 | H62: ='ROR-Model'!H1189 -> 0 | I62: =+'ROR-Model'!I1189 -> 47392886.54 | J62: =+'ROR-Model'!W1189 -> 45860653.9 | L62: 45860653.9 | M62: 0 | N62: 47392886.54
A63: 42 | C63: 190009 | D63: Accum Deferred Income Tax State | E63: 0 | F63: =+'ROR-Model'!F1196 -> 11091091.1 | G63: =+'ROR-Model'!G1196 -> 0 | H63: ='ROR-Model'!H1196 -> 0 | I63: =+'ROR-Model'!I1196 -> 11091091.1 | J63: =+'ROR-Model'!W1196 -> 10732511.3 | L63: 10732511.3 | M63: 0 | N63: 11091091.1
A64: 43 | C64: 235-1 | D64: Customer Deposits | E64: 0 | F64: ='ROR-Model'!F1201 -> -3941159.83 | G64: ='ROR-Model'!G1201 -> -181566.0183 | H64: ='ROR-Model'!H1201 -> 0 | I64: ='ROR-Model'!I1201 -> -4122725.848 | J64: ='ROR-Model'!W1201 -> -3993927.901 | L64: -3993927.901 | M64: 0 | N64: -4122725.848
A65: 44 | C65: 252 | D65: Contributions in Aid of Construction | E65: 0 | F65: =+'ROR-Model'!F1206 -> 0 | G65: ='ROR-Model'!G1206 -> 0 | H65: ='ROR-Model'!H1206 -> 0 | I65: ='ROR-Model'!I1206 -> 0 | J65: ='ROR-Model'!W1206 -> 0 | L65: 0 | M65: 0 | N65: 0
A66: 45 | C66: 253-1 | D66: Unclaimed Customer Deposits | E66: 0 | F66: ='ROR-Model'!F1210 -> -102616.4 | G66: ='ROR-Model'!G1210 -> -4203.269167 | H66: ='ROR-Model'!H1210 -> 0 | I66: ='ROR-Model'!I1210 -> -106819.6692 | J66: ='ROR-Model'!W1210 -> -103366.1428 | L66: -103366.1428 | M66: 0 | N66: -106819.6692
A67: 46 | C67: 255 | D67: Deferred Investment Tax Credits | E67: 0 | F67: ='ROR-Model'!F1217 -> 0 | G67: ='ROR-Model'!G1217 -> 0 | H67: ='ROR-Model'!H1217 -> 0 | I67: ='ROR-Model'!I1217 -> 0 | J67: ='ROR-Model'!W1217 -> 0 | L67: 0 | M67: 0 | N67: 0
A68: 47 | C68: 282 | D68: Accum Deferred Income Taxes | E68: 0 | F68: ='ROR-Model'!F1224+'ROR-Model'!F1231 -> -346936156.5 | G68: ='ROR-Model'!G1224+'ROR-Model'!G1231 -> 25217712.18 | H68: ='ROR-Model'!H1224+'ROR-Model'!H1231 -> 0 | I68: ='ROR-Model'!I1224+'ROR-Model'!I1231 -> -321718444.3 | J68: ='ROR-Model'!W1224+'ROR-Model'!W1231 -> -313280432.5 | L68: -313280432.5 | M68: 0 | N68: -321718444.3
A69: 48 | C69: 186-7 | D69: Deferred Pension Asset | E69: =+F69+G69+H69-I69 -> -2.980232239e-08 | F69: ='ROR-Model'!F1235 -> 135902646.7 | G69: ='ROR-Model'!G1235 -> -135902646.7 | H69: ='ROR-Model'!H1235 -> 0 | I69: ='ROR-Model'!I1235 -> 0 | J69: ='ROR-Model'!W1235 -> 0 | L69: =SUM(J69:K69) -> 0
A70: 49 | D70: Working Capital - Cash | F70: ='ROR-Model'!F1275 -> 17390722.49 | G70: ='ROR-Model'!G1275 -> 3980317.923 | H70: ='ROR-Model'!H1275 -> 778.3392602 | I70: ='ROR-Model'!I1275 -> 21371818.75 | J70: ='ROR-Model'!W1275 -> 20796924.49 | L70: =SUM(J70:K70) -> 20796924.49 | M70: 0 | N70: 21371818.75
A71: 50 | C71: Total Other Rate Base Accounts | F71: =SUM(F59:F70) -> -69417824.93 | G71: =SUM(G59:G70) -> -146105963.5 | H71: 778.3392602 | I71: =SUM(I59:I70) -> -215523010.1 | J71: =SUM(J59:J70) -> -209544929.1 | K71: 0 | L71: -209544929.1 | M71: 0 | N71: -215523010.1
M72: 0 | N72: 0
M73: 0 | N73: 0
A74: =+A71+1 -> 51 | B74: TOTAL RATE BASE | F74: =+F56+F71 -> 2287879718 | G74: =+G56+G71 -> 358634683.2 | H74: =+H56+H71 -> 778.3392602 | I74: =+I56+I71 -> 2646515179 | J74: =+J56+J71 -> 2563763548 | L74: =+L56+L71 -> 2563763548 | M74: 0 | N74: 2646515179
M75: 0
E76: =SUM(E13:E74) -> -2.980232239e-08 | M76: 0 | N76: =SUM(F76:H76) -> 0
A77: =+A74+1 -> 52 | B77: RETURN ON RATE BASE | F77: =F44/F74 -> 0.06550624611 | I77: =I44/I74 -> 0.05195072599 | J77: =J44/J74 -> 0.05254970718 | L77: ='Capital Str'!F10 -> 0.07352604414 | M77: =+N77-I77 -> 0.01355552012 | N77: =SUM(F77:H77) -> 0.06550624611
N78: =SUM(F78:H78) -> 0
A79: =+A77+1 -> 53 | B79: RETURN ON EQUITY | F79: =(F77-'Capital Str'!$F$7)/'Capital Str'!$D$9 -> 0.08792798333 | I79: =(I77-'Capital Str'!$F$7)/'Capital Str'!$D$9 -> 0.06245240095 | J79: =(J77-'Capital Str'!$F$7)/'Capital Str'!$D$9 -> 0.06357809694 | L79: ='Capital Str'!E9 -> 0.103 | M79: =+N79-I79 -> 0.02547558238 | N79: =SUM(F79:H79) -> 0.08792798333

Sheet Adjustments
A1: ='Control Panel'!$B$1 -> Dominion Energy | F1: =IF(F8="Y",1,0) -> 1 | G1: =IF(G8="Y",1,0) -> 1 | H1: =IF(H8="Y",1,0) -> 1 | I1: 1 | J1: 1 | K1: 1 | L1: 1 | M1: 1 | N1: 1 | O1: 1 | P1: 1 | Q1: 1 | R1: =IF(R8="Y",1,0) -> 1 | S1: =IF(S8="Y",1,0) -> 1 | T1: 1 | U1: =IF(U8="Y",1,0) -> 1 | V1: 1 | W1: 1 | X1: 1 | Y1: 1 | Z1: 1 | AA1: 1 | AB1: 1 | AC1: 1 | AD1: 1 | AE1: 1 | AF1: 1 | AG1: 1 | AH1: 1 | AI1: 1 | AJ1: 1 | AK1: 1 | AL1: 1 | AM1: 1 | AN1: 1 | AO1: 1 | AP1: 1 | AQ1: 1 | AR1: 1 | AS1: 0
A2: ='Control Panel'!$B$2 -> Utah - DEC 2023 Adjusted Avg Results CET
A3: ='Control Panel'!$B$3 -> 12 Months Ended : Dec-2023
A4: FILLED AND EXTERNAL PARTY ADJUSTMENTS
F6: 1 | G6: =+F6+1 -> 2 | H6: =+G6+1 -> 3 | I6: =+H6+1 -> 4 | J6: =+I6+1 -> 5 | K6: =+J6+1 -> 6 | L6: 7 | M6: 8 | N6: 9 | O6: 10 | P6: 11 | Q6: 12 | R6: 13 | S6: 14 | T6: =+S6+1 -> 15 | U6: 16 | V6: =+U6+1 -> 17 | W6: =+V6+1 -> 18 | X6: =+W6+1 -> 19 | Y6: =+X6+1 -> 20 | Z6: =+Y6+1 -> 21 | AA6: =+Z6+1 -> 22 | AB6: =+AA6+1 -> 23 | AC6: =+AB6+1 -> 24 | AD6: =+AC6+1 -> 25 | AE6: =+AD6+1 -> 26 | AF6: =+AE6+1 -> 27 | AG6: =+AF6+1 -> 28 | AH6: =+AG6+1 -> 29 | AI6: =+AH6+1 -> 30 | AJ6: =+AI6+1 -> 31 | AK6: =+AJ6+1 -> 32 | AL6: =+AK6+1 -> 33 | AM6: =+AL6+1 -> 34 | AN6: =+AM6+1 -> 35 | AO6: =+AN6+1 -> 36 | AP6: =+AO6+1 -> 37 | AQ6: =+AP6+1 -> 38 | AR6: =+AQ6+1 -> 39 | AS6: =+AR6+1 -> 40
F8: =VLOOKUP(F$6,'Control Panel'!$A$8:$F$83,5) -> Y | G8: =VLOOKUP(G$6,'Control Panel'!$A$8:$F$83,5) -> Y | H8: =VLOOKUP(H$6,'Control Panel'!$A$8:$F$83,5) -> Y | I8: =VLOOKUP(I$6,'Control Panel'!$A$8:$F$83,5) -> Y | J8: =VLOOKUP(J$6,'Control Panel'!$A$8:$F$83,5) -> Y | K8: =VLOOKUP(K$6,'Control Panel'!$A$8:$F$83,5) -> Y | L8: =VLOOKUP(L$6,'Control Panel'!$A$8:$F$83,5) -> Y | M8: =VLOOKUP(M$6,'Control Panel'!$A$8:$F$83,5) -> Y | N8: =VLOOKUP(N$6,'Control Panel'!$A$8:$F$83,5) -> Y | O8: =VLOOKUP(O$6,'Control Panel'!$A$8:$F$83,5) -> Y | P8: =VLOOKUP(P$6,'Control Panel'!$A$8:$F$83,5) -> Y | Q8: =VLOOKUP(Q$6,'Control Panel'!$A$8:$F$83,5) -> Y | R8: =VLOOKUP(R$6,'Control Panel'!$A$8:$F$83,5) -> Y | S8: =VLOOKUP(S$6,'Control Panel'!$A$8:$F$83,5) -> Y | T8: =VLOOKUP(T$6,'Control Panel'!$A$8:$F$83,5) -> Y | U8: =VLOOKUP(U$6,'Control Panel'!$A$8:$F$83,5) -> Y | V8: =VLOOKUP(V$6,'Control Panel'!$A$8:$F$83,5) -> Y | W8: =VLOOKUP(W$6,'Control Panel'!$A$8:$F$83,5) -> Y | X8: =VLOOKUP(X$6,'Control Panel'!$A$8:$F$83,5) -> Y | Y8: =VLOOKUP(Y$6,'Control Panel'!$A$8:$F$83,5) -> Y | Z8: =VLOOKUP(Z$6,'Control Panel'!$A$8:$F$83,5) -> Y | AA8: =VLOOKUP(AA$6,'Control Panel'!$A$8:$F$83,5) -> Y | AB8: =VLOOKUP(AB$6,'Control Panel'!$A$8:$F$83,5) -> Y | AC8: =VLOOKUP(AC$6,'Control Panel'!$A$8:$F$83,5) -> Y | AD8: =VLOOKUP(AD$6,'Control Panel'!$A$8:$F$83,5) -> Y | AE8: =VLOOKUP(AE$6,'Control Panel'!$A$8:$F$83,5) -> Y | AF8: =VLOOKUP(AF$6,'Control Panel'!$A$8:$F$83,5) -> Y | AG8: =VLOOKUP(AG$6,'Control Panel'!$A$8:$F$83,5) -> Y | AH8: =VLOOKUP(AH$6,'Control Panel'!$A$8:$F$83,5) -> Y | AI8: =VLOOKUP(AI$6,'Control Panel'!$A$8:$F$83,5) -> Y | AJ8: =VLOOKUP(AJ$6,'Control Panel'!$A$8:$F$83,5) -> Y | AK8: =VLOOKUP(AK$6,'Control Panel'!$A$8:$F$83,5) -> Y | AL8: =VLOOKUP(AL$6,'Control Panel'!$A$8:$F$83,5) -> Y | AM8: =VLOOKUP(AM$6,'Control Panel'!$A$8:$F$83,5) -> Y | AN8: =VLOOKUP(AN$6,'Control Panel'!$A$8:$F$83,5) -> Y | AO8: =VLOOKUP(AO$6,'Control Panel'!$A$8:$F$83,5) -> Y | AP8: =VLOOKUP(AP$6,'Control Panel'!$A$8:$F$83,5) -> Y | AQ8: =VLOOKUP(AQ$6,'Control Panel'!$A$8:$F$83,5) -> Y | AR8: =VLOOKUP(AR$6,'Control Panel'!$A$8:$F$83,5) -> Y | AS8: =VLOOKUP(AS$6,'Control Panel'!$A$8:$F$83,5) -> N
A9: FERC Acct | C9: Description | F9: =VLOOKUP(F$6,Adjustments,2) -> AVG RB DEC 2023 | G9: Expense Dec 2023 | H9: AVG Projected Rev 2023 with CET | I9: Underground Storage | J9: Wexpro | K9: Energy Efficiency & STEP 2023 | L9: Utah Bad Debt 2023 | M9: Incentives 2023 | N9: Sporting Events DEC 2023 | O9: Advertising DEC 2023 | P9: Don & Membership DEC 2023 | Q9: Reserve Accrual Dec 2023 | R9: Pipeline Integrity 2023 | S9: 2023 EDIT Adjustment | T9: Envision Tomorrow - Savings | U9: Pension 2023 | V9: Optional Adjustment 1 | W9: Optional Adjustment 2 | X9: Optional Adjustment 3 | Y9: Optional Adjustment 4 | Z9: Optional Adjustment 5 | AA9: Optional Adjustment 6 | AB9: Optional Adjustment 7 | AC9: Optional Adjustment 8 | AD9: Optional Adjustment 9 | AE9: Optional Adjustment 10 | AF9: Optional Adjustment 11 | AG9: Optional Adjustment 12 | AH9: Optional Adjustment 13 | AI9: Optional Adjustment 14 | AJ9: Optional Adjustment 15 | AK9: Optional Adjustment 16 | AL9: Optional Adjustment 17 | AM9: Optional Adjustment 18 | AN9: Optional Adjustment 19 | AO9: Optional Adjustment 20 | AP9: Optional Adjustment 21 | AQ9: Optional Adjustment 22 | AR9: LNG O&M 2023 | AS9: Labor Adjustment-ROO | AT9: TOTAL QGC ADJUSTMENTS | AV9: RESULTING TOTAL | AW9: CHECKS MUST BE (0)
A10: UTILITY OPERATING REVENUE
A11: TARIFF DTH SALES AND REVENUE
A15: Utah
B16: GS-R | C16: Distribution Non-Gas Rev | H16: =H1*Revenue!$S$15 -> 38227886.61 | K16: 0 | S16: ='EDIT Amort Adj'!G16*$S$1 -> 0 | T16: ='Envision Tomorrow Savings'!G16*$T$1 -> 0 | U16: =Pension!G16*$U$1 -> 0 | V16: ='Optional Adjustment 1'!G16*$V$1 -> 0 | W16: ='Optional Adjustment 2'!G16*$W$1 -> 0 | X16: ='Optional Adjustment 3'!G16*$X$1 -> 0 | Y16: ='Optional Adjustment 4'!G16*$Y$1 -> 0 | Z16: ='Optional Adjustment 5'!G16*$Z$1 -> 0 | AA16: ='Optional Adjustment 6'!G16*$AA$1 -> 0 | AB16: ='Optional Adjustment 7'!G16*$AB$1 -> 0 | AC16: ='Optional Adjustment 8'!G16*$AC$1 -> 0 | AD16: ='Optional Adjustment 9'!G16*$AD$1 -> 0 | AE16: ='Optional Adjustment 10'!G16*$AE$1 -> 0 | AF16: ='Optional Adjustment 11'!G16*$AF$1 -> 0 | AG16: ='Optional Adjustment 12'!G16*$AG$1 -> 0 | AH16: ='Optional Adjustment 13'!G16*$AH$1 -> 0 | AI16: ='Optional Adjustment 14'!G16*$AI$1 -> 0 | AJ16: ='Optional Adjustment 15'!G16*$AJ$1 -> 0 | AK16: ='Optional Adjustment 16'!G16*$AK$1 -> 0 | AL16: ='Optional Adjustment 17'!G16*$AL$1 -> 0 | AM16: ='Optional Adjustment 18'!G16*$AM$1 -> 0 | AN16: ='Optional Adjustment 19'!G16*$AN$1 -> 0 | AO16: ='Optional Adjustment 20'!G16*$AO$1 -> 0 | AP16: ='Optional Adjustment 21'!G16*$AP$1 -> 0 | AQ16: ='Optional Adjustment 22'!G16*$AQ$1 -> 0 | AR16: ='LNG O&M'!G16*$AR$1 -> 0 | AT16: =SUM(F16:AS16) -> 38227886.61 | AV16: =SUM(AT16:AT16) -> 38227886.61 | AW16: =+AV16-'ROR-Model'!G16 -> 0
AW17: =+AV17-'ROR-Model'!G17 -> 0
C18: Supplier Non-Gas Revenue | H18: =H1*Revenue!$S$17 -> 11442132.55 | S18: ='EDIT Amort Adj'!G18*$S$1 -> 0 | T18: ='Envision Tomorrow Savings'!G18*$T$1 -> 0 | U18: =Pension!G18*$U$1 -> 0 | V18: ='Optional Adjustment 1'!G18*$V$1 -> 0 | W18: ='Optional Adjustment 2'!G18*$W$1 -> 0 | X18: ='Optional Adjustment 3'!G18*$X$1 -> 0 | Y18: ='Optional Adjustment 4'!G18*$Y$1 -> 0 | Z18: ='Optional Adjustment 5'!G18*$Z$1 -> 0 | AA18: ='Optional Adjustment 6'!G18*$AA$1 -> 0 | AB18: ='Optional Adjustment 7'!G18*$AB$1 -> 0 | AC18: ='Optional Adjustment 8'!G18*$AC$1 -> 0 | AD18: ='Optional Adjustment 9'!G18*$AD$1 -> 0 | AE18: ='Optional Adjustment 10'!G18*$AE$1 -> 0 | AF18: ='Optional Adjustment 11'!G18*$AF$1 -> 0 | AG18: ='Optional Adjustment 12'!G18*$AG$1 -> 0 | AH18: ='Optional Adjustment 13'!G18*$AH$1 -> 0 | AI18: ='Optional Adjustment 14'!G18*$AI$1 -> 0 | AJ18: ='Optional Adjustment 15'!G18*$AJ$1 -> 0 | AK18: ='Optional Adjustment 16'!G18*$AK$1 -> 0 | AL18: ='Optional Adjustment 17'!G18*$AL$1 -> 0 | AM18: ='Optional Adjustment 18'!G18*$AM$1 -> 0 | AN18: ='Optional Adjustment 19'!G18*$AN$1 -> 0 | AO18: ='Optional Adjustment 20'!G18*$AO$1 -> 0 | AP18: ='Optional Adjustment 21'!G18*$AP$1 -> 0 | AQ18: ='Optional Adjustment 22'!G18*$AQ$1 -> 0 | AR18: ='LNG O&M'!G18*$AR$1 -> 0 | AT18: =SUM(F18:AS18) -> 11442132.55 | AV18: =SUM(AT18:AT18) -> 11442132.55 | AW18: =+AV18-'ROR-Model'!G18 -> 0
AW19: =+AV19-'ROR-Model'!G19 -> 0
C20: Commodity Revenue | H20: =H1*Revenue!$S$19 -> 154327042.7 | S20: ='EDIT Amort Adj'!G20*$S$1 -> 0 | T20: ='Envision Tomorrow Savings'!G20*$T$1 -> 0 | U20: =Pension!G20*$U$1 -> 0 | V20: ='Optional Adjustment 1'!G20*$V$1 -> 0 | W20: ='Optional Adjustment 2'!G20*$W$1 -> 0 | X20: ='Optional Adjustment 3'!G20*$X$1 -> 0 | Y20: ='Optional Adjustment 4'!G20*$Y$1 -> 0 | Z20: ='Optional Adjustment 5'!G20*$Z$1 -> 0 | AA20: ='Optional Adjustment 6'!G20*$AA$1 -> 0 | AB20: ='Optional Adjustment 7'!G20*$AB$1 -> 0 | AC20: ='Optional Adjustment 8'!G20*$AC$1 -> 0 | AD20: ='Optional Adjustment 9'!G20*$AD$1 -> 0 | AE20: ='Optional Adjustment 10'!G20*$AE$1 -> 0 | AF20: ='Optional Adjustment 11'!G20*$AF$1 -> 0 | AG20: ='Optional Adjustment 12'!G20*$AG$1 -> 0 | AH20: ='Optional Adjustment 13'!G20*$AH$1 -> 0 | AI20: ='Optional Adjustment 14'!G20*$AI$1 -> 0 | AJ20: ='Optional Adjustment 15'!G20*$AJ$1 -> 0 | AK20: ='Optional Adjustment 16'!G20*$AK$1 -> 0 | AL20: ='Optional Adjustment 17'!G20*$AL$1 -> 0 | AM20: ='Optional Adjustment 18'!G20*$AM$1 -> 0 | AN20: ='Optional Adjustment 19'!G20*$AN$1 -> 0 | AO20: ='Optional Adjustment 20'!G20*$AO$1 -> 0 | AP20: ='Optional Adjustment 21'!G20*$AP$1 -> 0 | AQ20: ='Optional Adjustment 22'!G20*$AQ$1 -> 0 | AR20: ='LNG O&M'!G20*$AR$1 -> 0 | AT20: =SUM(F20:AS20) -> 154327042.7 | AV20: =SUM(AT20:AT20) -> 154327042.7 | AW20: =+AV20-'ROR-Model'!G20 -> 0
C21: Total Revenue | F21: =SUM(F16:F20) -> 0 | H21: =H1*SUM(H16:H20) -> 203997061.9 | I21: =SUM(I16:I20) -> 0 | J21: =SUM(J16:J20) -> 0 | K21: 0 | L21: 0 | M21: 0 | N21: 0 | O21: 0 | P21: 0 | Q21: =SUM(Q16:Q20) -> 0 | R21: 0 | S21: =SUM(S16:S20) -> 0 | T21: 0 | U21: 0 | V21: =SUM(V16:V20) -> 0 | W21: 0 | X21: 0 | Y21: 0 | Z21: 0 | AA21: 0 | AB21: 0 | AC21: 0 | AD21: 0 | AE21: 0 | AF21: =SUM(AF16:AF20) -> 0 | AG21: 0 | AH21: 0 | AI21: 0 | AJ21: =SUM(AJ16:AJ20) -> 0 | AK21: 0 | AL21: 0 | AM21: 0 | AN21: 0 | AO21: =SUM(AO16:AO20) -> 0 | AP21: 0 | AQ21: 0 | AR21: =SUM(AR16:AR20) -> 0 | AT21: =SUM(F21:AS21) -> 203997061.9 | AV21: =SUM(AT21:AT21) -> 203997061.9 | AW21: =+AV21-'ROR-Model'!G21 -> 0
AW22: =+AV22-'ROR-Model'!G22 -> 0
C23: Total Dth | H23: =H1*Revenue!$S$22 -> 10521204.31 | AT23: =SUM(F23:AS23) -> 10521204.31 | AV23: =SUM(AT23:AT23) -> 10521204.31 | AW23: =+AV23-'ROR-Model'!G23 -> 0
AW24: =+AV24-'ROR-Model'!G24 -> 0
B25: GS-C | C25: Distribution Non-Gas Rev | H25: =H1*Revenue!$S$24 -> 0 | S25: ='EDIT Amort Adj'!G25*$S$1 -> 0 | T25: ='Envision Tomorrow Savings'!G25*$T$1 -> 0 | U25: =Pension!G25*$U$1 -> 0 | V25: ='Optional Adjustment 1'!G25*$V$1 -> 0 | W25: ='Optional Adjustment 2'!G25*$W$1 -> 0 | X25: ='Optional Adjustment 3'!G25*$X$1 -> 0 | Y25: ='Optional Adjustment 4'!G25*$Y$1 -> 0 | Z25: ='Optional Adjustment 5'!G25*$Z$1 -> 0 | AA25: ='Optional Adjustment 6'!G25*$AA$1 -> 0 | AB25: ='Optional Adjustment 7'!G25*$AB$1 -> 0 | AC25: ='Optional Adjustment 8'!G25*$AC$1 -> 0 | AD25: ='Optional Adjustment 9'!G25*$AD$1 -> 0 | AE25: ='Optional Adjustment 10'!G25*$AE$1 -> 0 | AF25: ='Optional Adjustment 11'!G25*$AF$1 -> 0 | AG25: ='Optional Adjustment 12'!G25*$AG$1 -> 0 | AH25: ='Optional Adjustment 13'!G25*$AH$1 -> 0 | AI25: ='Optional Adjustment 14'!G25*$AI$1 -> 0 | AJ25: ='Optional Adjustment 15'!G25*$AJ$1 -> 0 | AK25: ='Optional Adjustment 16'!G25*$AK$1 -> 0 | AL25: ='Optional Adjustment 17'!G25*$AL$1 -> 0 | AM25: ='Optional Adjustment 18'!G25*$AM$1 -> 0 | AN25: ='Optional Adjustment 19'!G25*$AN$1 -> 0 | AO25: ='Optional Adjustment 20'!G25*$AO$1 -> 0 | AP25: ='Optional Adjustment 21'!G25*$AP$1 -> 0 | AQ25: ='Optional Adjustment 22'!G25*$AQ$1 -> 0 | AR25: ='LNG O&M'!G25*$AR$1 -> 0 | AT25: =SUM(F25:AS25) -> 0 | AV25: =SUM(AT25:AT25) -> 0 | AW25: =+AV25-'ROR-Model'!G25 -> 0
AW26: =+AV26-'ROR-Model'!G26 -> 0
C27: Supplier Non-Gas Revenue | H27: =H1*Revenue!$S$26 -> 0 | S27: ='EDIT Amort Adj'!G27*$S$1 -> 0 | T27: ='Envision Tomorrow Savings'!G27*$T$1 -> 0 | U27: =Pension!G27*$U$1 -> 0 | V27: ='Optional Adjustment 1'!G27*$V$1 -> 0 | W27: ='Optional Adjustment 2'!G27*$W$1 -> 0 | X27: ='Optional Adjustment 3'!G27*$X$1 -> 0 | Y27: ='Optional Adjustment 4'!G27*$Y$1 -> 0 | Z27: ='Optional Adjustment 5'!G27*$Z$1 -> 0 | AA27: ='Optional Adjustment 6'!G27*$AA$1 -> 0 | AB27: ='Optional Adjustment 7'!G27*$AB$1 -> 0 | AC27: ='Optional Adjustment 8'!G27*$AC$1 -> 0 | AD27: ='Optional Adjustment 9'!G27*$AD$1 -> 0 | AE27: ='Optional Adjustment 10'!G27*$AE$1 -> 0 | AF27: ='Optional Adjustment 11'!G27*$AF$1 -> 0 | AG27: ='Optional Adjustment 12'!G27*$AG$1 -> 0 | AH27: ='Optional Adjustment 13'!G27*$AH$1 -> 0 | AI27: ='Optional Adjustment 14'!G27*$AI$1 -> 0 | AJ27: ='Optional Adjustment 15'!G27*$AJ$1 -> 0 | AK27: ='Optional Adjustment 16'!G27*$AK$1 -> 0 | AL27: ='Optional Adjustment 17'!G27*$AL$1 -> 0 | AM27: ='Optional Adjustment 18'!G27*$AM$1 -> 0 | AN27: ='Optional Adjustment 19'!G27*$AN$1 -> 0 | AO27: ='Optional Adjustment 20'!G27*$AO$1 -> 0 | AP27: ='Optional Adjustment 21'!G27*$AP$1 -> 0 | AQ27: ='Optional Adjustment 22'!G27*$AQ$1 -> 0 | AR27: ='LNG O&M'!G27*$AR$1 -> 0 | AT27: =SUM(F27:AS27) -> 0 | AV27: =SUM(AT27:AT27) -> 0 | AW27: =+AV27-'ROR-Model'!G27 -> 0
AW28: =+AV28-'ROR-Model'!G28 -> 0
C29: Commodity Revenue | H29: =H1*Revenue!$S$28 -> 0 | S29: ='EDIT Amort Adj'!G29*$S$1 -> 0 | T29: ='Envision Tomorrow Savings'!G29*$T$1 -> 0 | U29: =Pension!G29*$U$1 -> 0 | V29: ='Optional Adjustment 1'!G29*$V$1 -> 0 | W29: ='Optional Adjustment 2'!G29*$W$1 -> 0 | X29: ='Optional Adjustment 3'!G29*$X$1 -> 0 | Y29: ='Optional Adjustment 4'!G29*$Y$1 -> 0 | Z29: ='Optional Adjustment 5'!G29*$Z$1 -> 0 | AA29: ='Optional Adjustment 6'!G29*$AA$1 -> 0 | AB29: ='Optional Adjustment 7'!G29*$AB$1 -> 0 | AC29: ='Optional Adjustment 8'!G29*$AC$1 -> 0 | AD29: ='Optional Adjustment 9'!G29*$AD$1 -> 0 | AE29: ='Optional Adjustment 10'!G29*$AE$1 -> 0 | AF29: ='Optional Adjustment 11'!G29*$AF$1 -> 0 | AG29: ='Optional Adjustment 12'!G29*$AG$1 -> 0 | AH29: ='Optional Adjustment 13'!G29*$AH$1 -> 0 | AI29: ='Optional Adjustment 14'!G29*$AI$1 -> 0 | AJ29: ='Optional Adjustment 15'!G29*$AJ$1 -> 0 | AK29: ='Optional Adjustment 16'!G29*$AK$1 -> 0 | AL29: ='Optional Adjustment 17'!G29*$AL$1 -> 0 | AM29: ='Optional Adjustment 18'!G29*$AM$1 -> 0 | AN29: ='Optional Adjustment 19'!G29*$AN$1 -> 0 | AO29: ='Optional Adjustment 20'!G29*$AO$1 -> 0 | AP29: ='Optional Adjustment 21'!G29*$AP$1 -> 0 | AQ29: ='Optional Adjustment 22'!G29*$AQ$1 -> 0 | AR29: ='LNG O&M'!G29*$AR$1 -> 0 | AT29: =SUM(F29:AS29) -> 0 | AV29: =SUM(AT29:AT29) -> 0 | AW29: =+AV29-'ROR-Model'!G29 -> 0
C30: Total Revenue | F30: =SUM(F25:F29) -> 0 | H30: =H1*SUM(H25:H29) -> 0 | I30: =SUM(I25:I29) -> 0 | J30: =SUM(J25:J29) -> 0 | K30: 0 | L30: 0 | M30: 0 | N30: 0 | O30: 0 | P30: 0 | Q30: =SUM(Q25:Q29) -> 0 | R30: 0 | S30: =SUM(S25:S29) -> 0 | T30: 0 | U30: 0 | V30: =SUM(V25:V29) -> 0 | W30: 0 | X30: 0 | Y30: 0 | Z30: 0 | AA30: 0 | AB30: 0 | AC30: 0 | AD30: 0 | AE30: 0 | AF30: =SUM(AF25:AF29) -> 0 | AG30: 0 | AH30: 0 | AI30: 0 | AJ30: =SUM(AJ25:AJ29) -> 0 | AK30: 0 | AL30: 0 | AM30: 0 | AN30: 0 | AO30: =SUM(AO25:AO29) -> 0 | AP30: 0 | AQ30: 0 | AR30: =SUM(AR25:AR29) -> 0 | AT30: =SUM(F30:AS30) -> 0 | AV30: =SUM(AT30:AT30) -> 0 | AW30: =+AV30-'ROR-Model'!G30 -> 0
AW31: =+AV31-'ROR-Model'!G31 -> 0
C32: Total Dth | H32: =H1*Revenue!$S$31 -> 0 | AT32: =SUM(F32:AS32) -> 0 | AV32: =SUM(AT32:AT32) -> 0 | AW32: =+AV32-'ROR-Model'!G32 -> 0
AW33: =+AV33-'ROR-Model'!G33 -> 0
B34: GSS | C34: Distribution Non-Gas Rev | H34: =H1*Revenue!$S$33 -> 0 | S34: ='EDIT Amort Adj'!G34*$S$1 -> 0 | T34: ='Envision Tomorrow Savings'!G34*$T$1 -> 0 | U34: =Pension!G34*$U$1 -> 0 | V34: ='Optional Adjustment 1'!G34*$V$1 -> 0 | W34: ='Optional Adjustment 2'!G34*$W$1 -> 0 | X34: ='Optional Adjustment 3'!G34*$X$1 -> 0 | Y34: ='Optional Adjustment 4'!G34*$Y$1 -> 0 | Z34: ='Optional Adjustment 5'!G34*$Z$1 -> 0 | AA34: ='Optional Adjustment 6'!G34*$AA$1 -> 0 | AB34: ='Optional Adjustment 7'!G34*$AB$1 -> 0 | AC34: ='Optional Adjustment 8'!G34*$AC$1 -> 0 | AD34: ='Optional Adjustment 9'!G34*$AD$1 -> 0 | AE34: ='Optional Adjustment 10'!G34*$AE$1 -> 0 | AF34: ='Optional Adjustment 11'!G34*$AF$1 -> 0 | AG34: ='Optional Adjustment 12'!G34*$AG$1 -> 0 | AH34: ='Optional Adjustment 13'!G34*$AH$1 -> 0 | AI34: ='Optional Adjustment 14'!G34*$AI$1 -> 0 | AJ34: ='Optional Adjustment 15'!G34*$AJ$1 -> 0 | AK34: ='Optional Adjustment 16'!G34*$AK$1 -> 0 | AL34: ='Optional Adjustment 17'!G34*$AL$1 -> 0 | AM34: ='Optional Adjustment 18'!G34*$AM$1 -> 0 | AN34: ='Optional Adjustment 19'!G34*$AN$1 -> 0 | AO34: ='Optional Adjustment 20'!G34*$AO$1 -> 0 | AP34: ='Optional Adjustment 21'!G34*$AP$1 -> 0 | AQ34: ='Optional Adjustment 22'!G34*$AQ$1 -> 0 | AR34: ='LNG O&M'!G34*$AR$1 -> 0 | AT34: =SUM(F34:AS34) -> 0 | AV34: =SUM(AT34:AT34) -> 0 | AW34: =+AV34-'ROR-Model'!G34 -> 0
AW35: =+AV35-'ROR-Model'!G35 -> 0
C36: Supplier Non-Gas Revenue | H36: =H1*Revenue!$S$35 -> 0 | S36: ='EDIT Amort Adj'!G36*$S$1 -> 0 | T36: ='Envision Tomorrow Savings'!G36*$T$1 -> 0 | U36: =Pension!G36*$U$1 -> 0 | V36: ='Optional Adjustment 1'!G36*$V$1 -> 0 | W36: ='Optional Adjustment 2'!G36*$W$1 -> 0 | X36: ='Optional Adjustment 3'!G36*$X$1 -> 0 | Y36: ='Optional Adjustment 4'!G36*$Y$1 -> 0 | Z36: ='Optional Adjustment 5'!G36*$Z$1 -> 0 | AA36: ='Optional Adjustment 6'!G36*$AA$1 -> 0 | AB36: ='Optional Adjustment 7'!G36*$AB$1 -> 0 | AC36: ='Optional Adjustment 8'!G36*$AC$1 -> 0 | AD36: ='Optional Adjustment 9'!G36*$AD$1 -> 0 | AE36: ='Optional Adjustment 10'!G36*$AE$1 -> 0 | AF36: ='Optional Adjustment 11'!G36*$AF$1 -> 0 | AG36: ='Optional Adjustment 12'!G36*$AG$1 -> 0 | AH36: ='Optional Adjustment 13'!G36*$AH$1 -> 0 | AI36: ='Optional Adjustment 14'!G36*$AI$1 -> 0 | AJ36: ='Optional Adjustment 15'!G36*$AJ$1 -> 0 | AK36: ='Optional Adjustment 16'!G36*$AK$1 -> 0 | AL36: ='Optional Adjustment 17'!G36*$AL$1 -> 0 | AM36: ='Optional Adjustment 18'!G36*$AM$1 -> 0 | AN36: ='Optional Adjustment 19'!G36*$AN$1 -> 0 | AO36: ='Optional Adjustment 20'!G36*$AO$1 -> 0 | AP36: ='Optional Adjustment 21'!G36*$AP$1 -> 0 | AQ36: ='Optional Adjustment 22'!G36*$AQ$1 -> 0 | AR36: ='LNG O&M'!G36*$AR$1 -> 0 | AT36: =SUM(F36:AS36) -> 0 | AV36: =SUM(AT36:AT36) -> 0 | AW36: =+AV36-'ROR-Model'!G36 -> 0
AW37: =+AV37-'ROR-Model'!G37 -> 0
C38: Commodity Revenue | H38: =H1*Revenue!$S$37 -> 0 | S38: ='EDIT Amort Adj'!G38*$S$1 -> 0 | T38: ='Envision Tomorrow Savings'!G38*$T$1 -> 0 | U38: =Pension!G38*$U$1 -> 0 | V38: ='Optional Adjustment 1'!G38*$V$1 -> 0 | W38: ='Optional Adjustment 2'!G38*$W$1 -> 0 | X38: ='Optional Adjustment 3'!G38*$X$1 -> 0 | Y38: ='Optional Adjustment 4'!G38*$Y$1 -> 0 | Z38: ='Optional Adjustment 5'!G38*$Z$1 -> 0 | AA38: ='Optional Adjustment 6'!G38*$AA$1 -> 0 | AB38: ='Optional Adjustment 7'!G38*$AB$1 -> 0 | AC38: ='Optional Adjustment 8'!G38*$AC$1 -> 0 | AD38: ='Optional Adjustment 9'!G38*$AD$1 -> 0 | AE38: ='Optional Adjustment 10'!G38*$AE$1 -> 0 | AF38: ='Optional Adjustment 11'!G38*$AF$1 -> 0 | AG38: ='Optional Adjustment 12'!G38*$AG$1 -> 0 | AH38: ='Optional Adjustment 13'!G38*$AH$1 -> 0 | AI38: ='Optional Adjustment 14'!G38*$AI$1 -> 0 | AJ38: ='Optional Adjustment 15'!G38*$AJ$1 -> 0 | AK38: ='Optional Adjustment 16'!G38*$AK$1 -> 0 | AL38: ='Optional Adjustment 17'!G38*$AL$1 -> 0 | AM38: ='Optional Adjustment 18'!G38*$AM$1 -> 0 | AN38: ='Optional Adjustment 19'!G38*$AN$1 -> 0 | AO38: ='Optional Adjustment 20'!G38*$AO$1 -> 0 | AP38: ='Optional Adjustment 21'!G38*$AP$1 -> 0 | AQ38: ='Optional Adjustment 22'!G38*$AQ$1 -> 0 | AR38: ='LNG O&M'!G38*$AR$1 -> 0 | AT38: =SUM(F38:AS38) -> 0 | AV38: =SUM(AT38:AT38) -> 0 | AW38: =+AV38-'ROR-Model'!G38 -> 0
C39: Total Revenue | F39: =SUM(F34:F38) -> 0 | H39: =H1*SUM(H34:H38) -> 0 | I39: =SUM(I34:I38) -> 0 | J39: =SUM(J34:J38) -> 0 | K39: 0 | L39: 0 | M39: 0 | N39: 0 | O39: 0 | P39: 0 | Q39: =SUM(Q34:Q38) -> 0 | R39: 0 | S39: =SUM(S34:S38) -> 0 | T39: 0 | U39: 0 | V39: =SUM(V34:V38) -> 0 | W39: 0 | X39: 0 | Y39: 0 | Z39: 0 | AA39: 0 | AB39: 0 | AC39: 0 | AD39: 0 | AE39: 0 | AF39: =SUM(AF34:AF38) -> 0 | AG39: 0 | AH39: 0 | AI39: 0 | AJ39: =SUM(AJ34:AJ38) -> 0 | AK39: 0 | AL39: 0 | AM39: 0 | AN39: 0 | AO39: =SUM(AO34:AO38) -> 0 | AP39: 0 | AQ39: 0 | AR39: =SUM(AR34:AR38) -> 0 | AT39: =SUM(F39:AS39) -> 0 | AV39: =SUM(AT39:AT39) -> 0 | AW39: =+AV39-'ROR-Model'!G39 -> 0
AW40: =+AV40-'ROR-Model'!G40 -> 0
C41: Total Dth | H41: =H1*Revenue!$S$40 -> 0 | AT41: =SUM(F41:AS41) -> 0 | AV41: =SUM(AT41:AT41) -> 0 | AW41: =+AV41-'ROR-Model'!G41 -> 0
AW42: =+AV42-'ROR-Model'!G42 -> 0
B43: F1_FS_F1A_F1B | C43: Distribution Non-Gas Rev | H43: =H1*Revenue!$S$42 -> -45020.74209 | S43: ='EDIT Amort Adj'!G43*$S$1 -> 0 | T43: ='Envision Tomorrow Savings'!G43*$T$1 -> 0 | U43: =Pension!G43*$U$1 -> 0 | V43: ='Optional Adjustment 1'!G43*$V$1 -> 0 | W43: ='Optional Adjustment 2'!G43*$W$1 -> 0 | X43: ='Optional Adjustment 3'!G43*$X$1 -> 0 | Y43: ='Optional Adjustment 4'!G43*$Y$1 -> 0 | Z43: ='Optional Adjustment 5'!G43*$Z$1 -> 0 | AA43: ='Optional Adjustment 6'!G43*$AA$1 -> 0 | AB43: ='Optional Adjustment 7'!G43*$AB$1 -> 0 | AC43: ='Optional Adjustment 8'!G43*$AC$1 -> 0 | AD43: ='Optional Adjustment 9'!G43*$AD$1 -> 0 | AE43: ='Optional Adjustment 10'!G43*$AE$1 -> 0 | AF43: ='Optional Adjustment 11'!G43*$AF$1 -> 0 | AG43: ='Optional Adjustment 12'!G43*$AG$1 -> 0 | AH43: ='Optional Adjustment 13'!G43*$AH$1 -> 0 | AI43: ='Optional Adjustment 14'!G43*$AI$1 -> 0 | AJ43: ='Optional Adjustment 15'!G43*$AJ$1 -> 0 | AK43: ='Optional Adjustment 16'!G43*$AK$1 -> 0 | AL43: ='Optional Adjustment 17'!G43*$AL$1 -> 0 | AM43: ='Optional Adjustment 18'!G43*$AM$1 -> 0 | AN43: ='Optional Adjustment 19'!G43*$AN$1 -> 0 | AO43: ='Optional Adjustment 20'!G43*$AO$1 -> 0 | AP43: ='Optional Adjustment 21'!G43*$AP$1 -> 0 | AQ43: ='Optional Adjustment 22'!G43*$AQ$1 -> 0 | AR43: ='LNG O&M'!G43*$AR$1 -> 0 | AT43: =SUM(F43:AS43) -> -45020.74209 | AV43: =SUM(AT43:AT43) -> -45020.74209 | AW43: =+AV43-'ROR-Model'!G43 -> 0
AW44: =+AV44-'ROR-Model'!G44 -> 0
C45: Supplier Non-Gas Revenue | H45: =H1*Revenue!$S$44 -> 98994.60555 | S45: ='EDIT Amort Adj'!G45*$S$1 -> 0 | T45: ='Envision Tomorrow Savings'!G45*$T$1 -> 0 | U45: =Pension!G45*$U$1 -> 0 | V45: ='Optional Adjustment 1'!G45*$V$1 -> 0 | W45: ='Optional Adjustment 2'!G45*$W$1 -> 0 | X45: ='Optional Adjustment 3'!G45*$X$1 -> 0 | Y45: ='Optional Adjustment 4'!G45*$Y$1 -> 0 | Z45: ='Optional Adjustment 5'!G45*$Z$1 -> 0 | AA45: ='Optional Adjustment 6'!G45*$AA$1 -> 0 | AB45: ='Optional Adjustment 7'!G45*$AB$1 -> 0 | AC45: ='Optional Adjustment 8'!G45*$AC$1 -> 0 | AD45: ='Optional Adjustment 9'!G45*$AD$1 -> 0 | AE45: ='Optional Adjustment 10'!G45*$AE$1 -> 0 | AF45: ='Optional Adjustment 11'!G45*$AF$1 -> 0 | AG45: ='Optional Adjustment 12'!G45*$AG$1 -> 0 | AH45: ='Optional Adjustment 13'!G45*$AH$1 -> 0 | AI45: ='Optional Adjustment 14'!G45*$AI$1 -> 0 | AJ45: ='Optional Adjustment 15'!G45*$AJ$1 -> 0 | AK45: ='Optional Adjustment 16'!G45*$AK$1 -> 0 | AL45: ='Optional Adjustment 17'!G45*$AL$1 -> 0 | AM45: ='Optional Adjustment 18'!G45*$AM$1 -> 0 | AN45: ='Optional Adjustment 19'!G45*$AN$1 -> 0 | AO45: ='Optional Adjustment 20'!G45*$AO$1 -> 0 | AP45: ='Optional Adjustment 21'!G45*$AP$1 -> 0 | AQ45: ='Optional Adjustment 22'!G45*$AQ$1 -> 0 | AR45: ='LNG O&M'!G45*$AR$1 -> 0 | AT45: =SUM(F45:AS45) -> 98994.60555 | AV45: =SUM(AT45:AT45) -> 98994.60555 | AW45: =+AV45-'ROR-Model'!G45 -> 0
AW46: =+AV46-'ROR-Model'!G46 -> 0
C47: Commodity Revenue | H47: =H1*Revenue!$S$46 -> 2534725.952 | S47: ='EDIT Amort Adj'!G47*$S$1 -> 0 | T47: ='Envision Tomorrow Savings'!G47*$T$1 -> 0 | U47: =Pension!G47*$U$1 -> 0 | V47: ='Optional Adjustment 1'!G47*$V$1 -> 0 | W47: ='Optional Adjustment 2'!G47*$W$1 -> 0 | X47: ='Optional Adjustment 3'!G47*$X$1 -> 0 | Y47: ='Optional Adjustment 4'!G47*$Y$1 -> 0 | Z47: ='Optional Adjustment 5'!G47*$Z$1 -> 0 | AA47: ='Optional Adjustment 6'!G47*$AA$1 -> 0 | AB47: ='Optional Adjustment 7'!G47*$AB$1 -> 0 | AC47: ='Optional Adjustment 8'!G47*$AC$1 -> 0 | AD47: ='Optional Adjustment 9'!G47*$AD$1 -> 0 | AE47: ='Optional Adjustment 10'!G47*$AE$1 -> 0 | AF47: ='Optional Adjustment 11'!G47*$AF$1 -> 0 | AG47: ='Optional Adjustment 12'!G47*$AG$1 -> 0 | AH47: ='Optional Adjustment 13'!G47*$AH$1 -> 0 | AI47: ='Optional Adjustment 14'!G47*$AI$1 -> 0 | AJ47: ='Optional Adjustment 15'!G47*$AJ$1 -> 0 | AK47: ='Optional Adjustment 16'!G47*$AK$1 -> 0 | AL47: ='Optional Adjustment 17'!G47*$AL$1 -> 0 | AM47: ='Optional Adjustment 18'!G47*$AM$1 -> 0 | AN47: ='Optional Adjustment 19'!G47*$AN$1 -> 0 | AO47: ='Optional Adjustment 20'!G47*$AO$1 -> 0 | AP47: ='Optional Adjustment 21'!G47*$AP$1 -> 0 | AQ47: ='Optional Adjustment 22'!G47*$AQ$1 -> 0 | AR47: ='LNG O&M'!G47*$AR$1 -> 0 | AT47: =SUM(F47:AS47) -> 2534725.952 | AV47: =SUM(AT47:AT47) -> 2534725.952 | AW47: =+AV47-'ROR-Model'!G47 -> 0
C48: Total Revenue | F48: =SUM(F43:F47) -> 0 | H48: =H1*SUM(H43:H47) -> 2588699.815 | I48: =SUM(I43:I47) -> 0 | J48: =SUM(J43:J47) -> 0 | K48: 0 | L48: 0 | M48: 0 | N48: 0 | O48: 0 | P48: 0 | Q48: =SUM(Q43:Q47) -> 0 | R48: 0 | S48: =SUM(S43:S47) -> 0 | T48: 0 | U48: 0 | V48: =SUM(V43:V47) -> 0 | W48: 0 | X48: 0 | Y48: 0 | Z48: 0 | AA48: 0 | AB48: 0 | AC48: 0 | AD48: 0 | AE48: 0 | AF48: =SUM(AF43:AF47) -> 0 | AG48: 0 | AH48: 0 | AI48: 0 | AJ48: =SUM(AJ43:AJ47) -> 0 | AK48: 0 | AL48: 0 | AM48: 0 | AN48: 0 | AO48: =SUM(AO43:AO47) -> 0 | AP48: 0 | AQ48: 0 | AR48: =SUM(AR43:AR47) -> 0 | AT48: =SUM(AT43:AT47) -> 2588699.815 | AV48: =SUM(AV43:AV47) -> 2588699.815 | AW48: =+AV48-'ROR-Model'!G48 -> 0
AW49: =+AV49-'ROR-Model'!G49 -> 0
C50: Total Dth | H50: =H1*Revenue!$S$49 -> -5866.115 | AT50: =SUM(F50:AS50) -> -5866.115 | AV50: =SUM(AT50:AT50) -> -5866.115 | AW50: =+AV50-'ROR-Model'!G50 -> 0
AW51: =+AV51-'ROR-Model'!G51 -> 0
B52: F-3 | C52: Distribution Non-Gas Rev | H52: =H1*Revenue!$S$51 -> 0 | S52: ='EDIT Amort Adj'!G52*$S$1 -> 0 | T52: ='Envision Tomorrow Savings'!G52*$T$1 -> 0 | U52: =Pension!G52*$U$1 -> 0 | V52: ='Optional Adjustment 1'!G52*$V$1 -> 0 | W52: ='Optional Adjustment 2'!G52*$W$1 -> 0 | X52: ='Optional Adjustment 3'!G52*$X$1 -> 0 | Y52: ='Optional Adjustment 4'!G52*$Y$1 -> 0 | Z52: ='Optional Adjustment 5'!G52*$Z$1 -> 0 | AA52: ='Optional Adjustment 6'!G52*$AA$1 -> 0 | AB52: ='Optional Adjustment 7'!G52*$AB$1 -> 0 | AC52: ='Optional Adjustment 8'!G52*$AC$1 -> 0 | AD52: ='Optional Adjustment 9'!G52*$AD$1 -> 0 | AE52: ='Optional Adjustment 10'!G52*$AE$1 -> 0 | AF52: ='Optional Adjustment 11'!G52*$AF$1 -> 0 | AG52: ='Optional Adjustment 12'!G52*$AG$1 -> 0 | AH52: ='Optional Adjustment 13'!G52*$AH$1 -> 0 | AI52: ='Optional Adjustment 14'!G52*$AI$1 -> 0 | AJ52: ='Optional Adjustment 15'!G52*$AJ$1 -> 0 | AK52: ='Optional Adjustment 16'!G52*$AK$1 -> 0 | AL52: ='Optional Adjustment 17'!G52*$AL$1 -> 0 | AM52: ='Optional Adjustment 18'!G52*$AM$1 -> 0 | AN52: ='Optional Adjustment 19'!G52*$AN$1 -> 0 | AO52: ='Optional Adjustment 20'!G52*$AO$1 -> 0 | AP52: ='Optional Adjustment 21'!G52*$AP$1 -> 0 | AQ52: ='Optional Adjustment 22'!G52*$AQ$1 -> 0 | AR52: ='LNG O&M'!G52*$AR$1 -> 0 | AT52: =SUM(F52:AS52) -> 0 | AV52: =SUM(AT52:AT52) -> 0 | AW52: =+AV52-'ROR-Model'!G52 -> 0
C53: Supplier Non-Gas Revenue | S53: ='EDIT Amort Adj'!G53*$S$1 -> 0 | T53: ='Envision Tomorrow Savings'!G53*$T$1 -> 0 | U53: =Pension!G53*$U$1 -> 0 | V53: ='Optional Adjustment 1'!G53*$V$1 -> 0 | W53: ='Optional Adjustment 2'!G53*$W$1 -> 0 | X53: ='Optional Adjustment 3'!G53*$X$1 -> 0 | Y53: ='Optional Adjustment 4'!G53*$Y$1 -> 0 | Z53: ='Optional Adjustment 5'!G53*$Z$1 -> 0 | AA53: ='Optional Adjustment 6'!G53*$AA$1 -> 0 | AB53: ='Optional Adjustment 7'!G53*$AB$1 -> 0 | AC53: ='Optional Adjustment 8'!G53*$AC$1 -> 0 | AD53: ='Optional Adjustment 9'!G53*$AD$1 -> 0 | AE53: ='Optional Adjustment 10'!G53*$AE$1 -> 0 | AF53: ='Optional Adjustment 11'!G53*$AF$1 -> 0 | AG53: ='Optional Adjustment 12'!G53*$AG$1 -> 0 | AH53: ='Optional Adjustment 13'!G53*$AH$1 -> 0 | AI53: ='Optional Adjustment 14'!G53*$AI$1 -> 0 | AJ53: ='Optional Adjustment 15'!G53*$AJ$1 -> 0 | AK53: ='Optional Adjustment 16'!G53*$AK$1 -> 0 | AL53: ='Optional Adjustment 17'!G53*$AL$1 -> 0 | AM53: ='Optional Adjustment 18'!G53*$AM$1 -> 0 | AN53: ='Optional Adjustment 19'!G53*$AN$1 -> 0 | AO53: ='Optional Adjustment 20'!G53*$AO$1 -> 0 | AP53: ='Optional Adjustment 21'!G53*$AP$1 -> 0 | AQ53: ='Optional Adjustment 22'!G53*$AQ$1 -> 0 | AR53: ='LNG O&M'!G53*$AR$1 -> 0 | AT53: =SUM(F53:AS53) -> 0 | AV53: =SUM(AT53:AT53) -> 0 | AW53: =+AV53-'ROR-Model'!G53 -> 0
C54: Supplier Non-Gas Demand Revenue | H54: =H1*Revenue!$S$53 -> 0 | S54: ='EDIT Amort Adj'!G54*$S$1 -> 0 | T54: ='Envision Tomorrow Savings'!G54*$T$1 -> 0 | U54: =Pension!G54*$U$1 -> 0 | V54: ='Optional Adjustment 1'!G54*$V$1 -> 0 | W54: ='Optional Adjustment 2'!G54*$W$1 -> 0 | X54: ='Optional Adjustment 3'!G54*$X$1 -> 0 | Y54: ='Optional Adjustment 4'!G54*$Y$1 -> 0 | Z54: ='Optional Adjustment 5'!G54*$Z$1 -> 0 | AA54: ='Optional Adjustment 6'!G54*$AA$1 -> 0 | AB54: ='Optional Adjustment 7'!G54*$AB$1 -> 0 | AC54: ='Optional Adjustment 8'!G54*$AC$1 -> 0 | AD54: ='Optional Adjustment 9'!G54*$AD$1 -> 0 | AE54: ='Optional Adjustment 10'!G54*$AE$1 -> 0 | AF54: ='Optional Adjustment 11'!G54*$AF$1 -> 0 | AG54: ='Optional Adjustment 12'!G54*$AG$1 -> 0 | AH54: ='Optional Adjustment 13'!G54*$AH$1 -> 0 | AI54: ='Optional Adjustment 14'!G54*$AI$1 -> 0 | AJ54: ='Optional Adjustment 15'!G54*$AJ$1 -> 0 | AK54: ='Optional Adjustment 16'!G54*$AK$1 -> 0 | AL54: ='Optional Adjustment 17'!G54*$AL$1 -> 0 | AM54: ='Optional Adjustment 18'!G54*$AM$1 -> 0 | AN54: ='Optional Adjustment 19'!G54*$AN$1 -> 0 | AO54: ='Optional Adjustment 20'!G54*$AO$1 -> 0 | AP54: ='Optional Adjustment 21'!G54*$AP$1 -> 0 | AQ54: ='Optional Adjustment 22'!G54*$AQ$1 -> 0 | AR54: ='LNG O&M'!G54*$AR$1 -> 0 | AT54: =SUM(F54:AS54) -> 0 | AV54: =SUM(AT54:AT54) -> 0 | AW54: =+AV54-'ROR-Model'!G54 -> 0
C55: Commodity Tariff Revenue | S55: ='EDIT Amort Adj'!G55*$S$1 -> 0 | T55: ='Envision Tomorrow Savings'!G55*$T$1 -> 0 | U55: =Pension!G55*$U$1 -> 0 | V55: ='Optional Adjustment 1'!G55*$V$1 -> 0 | W55: ='Optional Adjustment 2'!G55*$W$1 -> 0 | X55: ='Optional Adjustment 3'!G55*$X$1 -> 0 | Y55: ='Optional Adjustment 4'!G55*$Y$1 -> 0 | Z55: ='Optional Adjustment 5'!G55*$Z$1 -> 0 | AA55: ='Optional Adjustment 6'!G55*$AA$1 -> 0 | AB55: ='Optional Adjustment 7'!G55*$AB$1 -> 0 | AC55: ='Optional Adjustment 8'!G55*$AC$1 -> 0 | AD55: ='Optional Adjustment 9'!G55*$AD$1 -> 0 | AE55: ='Optional Adjustment 10'!G55*$AE$1 -> 0 | AF55: ='Optional Adjustment 11'!G55*$AF$1 -> 0 | AG55: ='Optional Adjustment 12'!G55*$AG$1 -> 0 | AH55: ='Optional Adjustment 13'!G55*$AH$1 -> 0 | AI55: ='Optional Adjustment 14'!G55*$AI$1 -> 0 | AJ55: ='Optional Adjustment 15'!G55*$AJ$1 -> 0 | AK55: ='Optional Adjustment 16'!G55*$AK$1 -> 0 | AL55: ='Optional Adjustment 17'!G55*$AL$1 -> 0 | AM55: ='Optional Adjustment 18'!G55*$AM$1 -> 0 | AN55: ='Optional Adjustment 19'!G55*$AN$1 -> 0 | AO55: ='Optional Adjustment 20'!G55*$AO$1 -> 0 | AP55: ='Optional Adjustment 21'!G55*$AP$1 -> 0 | AQ55: ='Optional Adjustment 22'!G55*$AQ$1 -> 0 | AR55: ='LNG O&M'!G55*$AR$1 -> 0 | AT55: =SUM(F55:AS55) -> 0 | AV55: =SUM(AT55:AT55) -> 0 | AW55: =+AV55-'ROR-Model'!G55 -> 0
C56: Commodity Demand Revenue | H56: =H1*Revenue!$S$55 -> 0 | S56: ='EDIT Amort Adj'!G56*$S$1 -> 0 | T56: ='Envision Tomorrow Savings'!G56*$T$1 -> 0 | U56: =Pension!G56*$U$1 -> 0 | V56: ='Optional Adjustment 1'!G56*$V$1 -> 0 | W56: ='Optional Adjustment 2'!G56*$W$1 -> 0 | X56: ='Optional Adjustment 3'!G56*$X$1 -> 0 | Y56: ='Optional Adjustment 4'!G56*$Y$1 -> 0 | Z56: ='Optional Adjustment 5'!G56*$Z$1 -> 0 | AA56: ='Optional Adjustment 6'!G56*$AA$1 -> 0 | AB56: ='Optional Adjustment 7'!G56*$AB$1 -> 0 | AC56: ='Optional Adjustment 8'!G56*$AC$1 -> 0 | AD56: ='Optional Adjustment 9'!G56*$AD$1 -> 0 | AE56: ='Optional Adjustment 10'!G56*$AE$1 -> 0 | AF56: ='Optional Adjustment 11'!G56*$AF$1 -> 0 | AG56: ='Optional Adjustment 12'!G56*$AG$1 -> 0 | AH56: ='Optional Adjustment 13'!G56*$AH$1 -> 0 | AI56: ='Optional Adjustment 14'!G56*$AI$1 -> 0 | AJ56: ='Optional Adjustment 15'!G56*$AJ$1 -> 0 | AK56: ='Optional Adjustment 16'!G56*$AK$1 -> 0 | AL56: ='Optional Adjustment 17'!G56*$AL$1 -> 0 | AM56: ='Optional Adjustment 18'!G56*$AM$1 -> 0 | AN56: ='Optional Adjustment 19'!G56*$AN$1 -> 0 | AO56: ='Optional Adjustment 20'!G56*$AO$1 -> 0 | AP56: ='Optional Adjustment 21'!G56*$AP$1 -> 0 | AQ56: ='Optional Adjustment 22'!G56*$AQ$1 -> 0 | AR56: ='LNG O&M'!G56*$AR$1 -> 0 | AT56: =SUM(F56:AS56) -> 0 | AV56: =SUM(AT56:AT56) -> 0 | AW56: =+AV56-'ROR-Model'!G56 -> 0
C57: Total Revenue | F57: =SUM(F52:F56) -> 0 | H57: =H1*SUM(H52:H56) -> 0 | I57: =SUM(I52:I56) -> 0 | J57: =SUM(J52:J56) -> 0 | K57: 0 | L57: 0 | M57: 0 | N57: 0 | O57: 0 | P57: 0 | Q57: =SUM(Q52:Q56) -> 0 | R57: 0 | S57: =SUM(S52:S56) -> 0 | T57: 0 | U57: 0 | V57: =SUM(V52:V56) -> 0 | W57: 0 | X57: 0 | Y57: 0 | Z57: 0 | AA57: 0 | AB57: 0 | AC57: 0 | AD57: 0 | AE57: 0 | AF57: =SUM(AF52:AF56) -> 0 | AG57: 0 | AH57: 0 | AI57: 0 | AJ57: =SUM(AJ52:AJ56) -> 0 | AK57: 0 | AL57: 0 | AM57: 0 | AN57: 0 | AO57: =SUM(AO52:AO56) -> 0 | AP57: 0 | AQ57: 0 | AR57: =SUM(AR52:AR56) -> 0 | AT57: =SUM(AT52:AT56) -> 0 | AV57: =SUM(AV52:AV56) -> 0 | AW57: =+AV57-'ROR-Model'!G57 -> 0
AW58: =+AV58-'ROR-Model'!G58 -> 0
C59: Total Sales Dth | H59: =H1*Revenue!$S$58 -> 0 | AT59: =SUM(F59:AS59) -> 0 | AV59: =SUM(AT59:AT59) -> 0 | AW59: =+AV59-'ROR-Model'!G59 -> 0
AW60: =+AV60-'ROR-Model'!G60 -> 0
B61: NGV | C61: Distribution Non-Gas Rev | H61: =H1*Revenue!$S$60 -> 327515.112 | S61: ='EDIT Amort Adj'!G61*$S$1 -> 0 | T61: ='Envision Tomorrow Savings'!G61*$T$1 -> 0 | U61: =Pension!G61*$U$1 -> 0 | V61: ='Optional Adjustment 1'!G61*$V$1 -> 0 | W61: ='Optional Adjustment 2'!G61*$W$1 -> 0 | X61: ='Optional Adjustment 3'!G61*$X$1 -> 0 | Y61: ='Optional Adjustment 4'!G61*$Y$1 -> 0 | Z61: ='Optional Adjustment 5'!G61*$Z$1 -> 0 | AA61: ='Optional Adjustment 6'!G61*$AA$1 -> 0 | AB61: ='Optional Adjustment 7'!G61*$AB$1 -> 0 | AC61: ='Optional Adjustment 8'!G61*$AC$1 -> 0 | AD61: ='Optional Adjustment 9'!G61*$AD$1 -> 0 | AE61: ='Optional Adjustment 10'!G61*$AE$1 -> 0 | AF61: ='Optional Adjustment 11'!G61*$AF$1 -> 0 | AG61: ='Optional Adjustment 12'!G61*$AG$1 -> 0 | AH61: ='Optional Adjustment 13'!G61*$AH$1 -> 0 | AI61: ='Optional Adjustment 14'!G61*$AI$1 -> 0 | AJ61: ='Optional Adjustment 15'!G61*$AJ$1 -> 0 | AK61: ='Optional Adjustment 16'!G61*$AK$1 -> 0 | AL61: ='Optional Adjustment 17'!G61*$AL$1 -> 0 | AM61: ='Optional Adjustment 18'!G61*$AM$1 -> 0 | AN61: ='Optional Adjustment 19'!G61*$AN$1 -> 0 | AO61: ='Optional Adjustment 20'!G61*$AO$1 -> 0 | AP61: ='Optional Adjustment 21'!G61*$AP$1 -> 0 | AQ61: ='Optional Adjustment 22'!G61*$AQ$1 -> 0 | AR61: ='LNG O&M'!G61*$AR$1 -> 0 | AT61: =SUM(F61:AS61) -> 327515.112 | AV61: =SUM(AT61:AT61) -> 327515.112 | AW61: =+AV61-'ROR-Model'!G61 -> 0
AW62: =+AV62-'ROR-Model'!G62 -> 0
C63: Supplier Non-Gas Revenue | H63: =H1*Revenue!$S$62 -> 87986.36619 | S63: ='EDIT Amort Adj'!G63*$S$1 -> 0 | T63: ='Envision Tomorrow Savings'!G63*$T$1 -> 0 | U63: =Pension!G63*$U$1 -> 0 | V63: ='Optional Adjustment 1'!G63*$V$1 -> 0 | W63: ='Optional Adjustment 2'!G63*$W$1 -> 0 | X63: ='Optional Adjustment 3'!G63*$X$1 -> 0 | Y63: ='Optional Adjustment 4'!G63*$Y$1 -> 0 | Z63: ='Optional Adjustment 5'!G63*$Z$1 -> 0 | AA63: ='Optional Adjustment 6'!G63*$AA$1 -> 0 | AB63: ='Optional Adjustment 7'!G63*$AB$1 -> 0 | AC63: ='Optional Adjustment 8'!G63*$AC$1 -> 0 | AD63: ='Optional Adjustment 9'!G63*$AD$1 -> 0 | AE63: ='Optional Adjustment 10'!G63*$AE$1 -> 0 | AF63: ='Optional Adjustment 11'!G63*$AF$1 -> 0 | AG63: ='Optional Adjustment 12'!G63*$AG$1 -> 0 | AH63: ='Optional Adjustment 13'!G63*$AH$1 -> 0 | AI63: ='Optional Adjustment 14'!G63*$AI$1 -> 0 | AJ63: ='Optional Adjustment 15'!G63*$AJ$1 -> 0 | AK63: ='Optional Adjustment 16'!G63*$AK$1 -> 0 | AL63: ='Optional Adjustment 17'!G63*$AL$1 -> 0 | AM63: ='Optional Adjustment 18'!G63*$AM$1 -> 0 | AN63: ='Optional Adjustment 19'!G63*$AN$1 -> 0 | AO63: ='Optional Adjustment 20'!G63*$AO$1 -> 0 | AP63: ='Optional Adjustment 21'!G63*$AP$1 -> 0 | AQ63: ='Optional Adjustment 22'!G63*$AQ$1 -> 0 | AR63: ='LNG O&M'!G63*$AR$1 -> 0 | AT63: =SUM(F63:AS63) -> 87986.36619 | AV63: =SUM(AT63:AT63) -> 87986.36619 | AW63: =+AV63-'ROR-Model'!G63 -> 0
AW64: =+AV64-'ROR-Model'!G64 -> 0
C65: Commodity Revenue | H65: =H1*Revenue!$S$64 -> 547798.8029 | S65: ='EDIT Amort Adj'!G65*$S$1 -> 0 | T65: ='Envision Tomorrow Savings'!G65*$T$1 -> 0 | U65: =Pension!G65*$U$1 -> 0 | V65: ='Optional Adjustment 1'!G65*$V$1 -> 0 | W65: ='Optional Adjustment 2'!G65*$W$1 -> 0 | X65: ='Optional Adjustment 3'!G65*$X$1 -> 0 | Y65: ='Optional Adjustment 4'!G65*$Y$1 -> 0 | Z65: ='Optional Adjustment 5'!G65*$Z$1 -> 0 | AA65: ='Optional Adjustment 6'!G65*$AA$1 -> 0 | AB65: ='Optional Adjustment 7'!G65*$AB$1 -> 0 | AC65: ='Optional Adjustment 8'!G65*$AC$1 -> 0 | AD65: ='Optional Adjustment 9'!G65*$AD$1 -> 0 | AE65: ='Optional Adjustment 10'!G65*$AE$1 -> 0 | AF65: ='Optional Adjustment 11'!G65*$AF$1 -> 0 | AG65: ='Optional Adjustment 12'!G65*$AG$1 -> 0 | AH65: ='Optional Adjustment 13'!G65*$AH$1 -> 0 | AI65: ='Optional Adjustment 14'!G65*$AI$1 -> 0 | AJ65: ='Optional Adjustment 15'!G65*$AJ$1 -> 0 | AK65: ='Optional Adjustment 16'!G65*$AK$1 -> 0 | AL65: ='Optional Adjustment 17'!G65*$AL$1 -> 0 | AM65: ='Optional Adjustment 18'!G65*$AM$1 -> 0 | AN65: ='Optional Adjustment 19'!G65*$AN$1 -> 0 | AO65: ='Optional Adjustment 20'!G65*$AO$1 -> 0 | AP65: ='Optional Adjustment 21'!G65*$AP$1 -> 0 | AQ65: ='Optional Adjustment 22'!G65*$AQ$1 -> 0 | AR65: ='LNG O&M'!G65*$AR$1 -> 0 | AT65: =SUM(F65:AS65) -> 547798.8029 | AV65: =SUM(AT65:AT65) -> 547798.8029 | AW65: =+AV65-'ROR-Model'!G65 -> 0
C66: Total Revenue | F66: =SUM(F61:F65) -> 0 | H66: =H1*SUM(H61:H65) -> 963300.2811 | I66: =SUM(I61:I65) -> 0 | J66: =SUM(J61:J65) -> 0 | K66: 0 | L66: 0 | M66: 0 | N66: 0 | O66: 0 | P66: 0 | Q66: =SUM(Q61:Q65) -> 0 | R66: 0 | S66: =SUM(S61:S65) -> 0 | T66: 0 | U66: 0 | V66: =SUM(V61:V65) -> 0 | W66: 0 | X66: 0 | Y66: 0 | Z66: 0 | AA66: 0 | AB66: 0 | AC66: 0 | AD66: 0 | AE66: 0 | AF66: =SUM(AF61:AF65) -> 0 | AG66: 0 | AH66: 0 | AI66: 0 | AJ66: =SUM(AJ61:AJ65) -> 0 | AK66: 0 | AL66: 0 | AM66: 0 | AN66: 0 | AO66: =SUM(AO61:AO65) -> 0 | AP66: 0 | AQ66: 0 | AR66: =SUM(AR61:AR65) -> 0 | AT66: =SUM(AT61:AT65) -> 963300.2811 | AV66: =SUM(AV61:AV65) -> 963300.2811 | AW66: =+AV66-'ROR-Model'!G66 -> 0
AW67: =+AV67-'ROR-Model'!G67 -> 0
C68: Total Dth | H68: =H1*Revenue!$S$67 -> -1885.909 | AT68: =SUM(F68:AS68) -> -1885.909 | AV68: =SUM(AT68:AT68) -> -1885.909 | AW68: =+AV68-'ROR-Model'!G68 -> 0
AW69: =+AV69-'ROR-Model'!G69 -> 0
B70: F-4 | C70: Distribution Non-Gas Rev | S70: ='EDIT Amort Adj'!G70*$S$1 -> 0 | T70: ='Envision Tomorrow Savings'!G70*$T$1 -> 0 | U70: =Pension!G70*$U$1 -> 0 | V70: ='Optional Adjustment 1'!G70*$V$1 -> 0 | W70: ='Optional Adjustment 2'!G70*$W$1 -> 0 | X70: ='Optional Adjustment 3'!G70*$X$1 -> 0 | Y70: ='Optional Adjustment 4'!G70*$Y$1 -> 0 | Z70: ='Optional Adjustment 5'!G70*$Z$1 -> 0 | AA70: ='Optional Adjustment 6'!G70*$AA$1 -> 0 | AB70: ='Optional Adjustment 7'!G70*$AB$1 -> 0 | AC70: ='Optional Adjustment 8'!G70*$AC$1 -> 0 | AD70: ='Optional Adjustment 9'!G70*$AD$1 -> 0 | AE70: ='Optional Adjustment 10'!G70*$AE$1 -> 0 | AF70: ='Optional Adjustment 11'!G70*$AF$1 -> 0 | AG70: ='Optional Adjustment 12'!G70*$AG$1 -> 0 | AH70: ='Optional Adjustment 13'!G70*$AH$1 -> 0 | AI70: ='Optional Adjustment 14'!G70*$AI$1 -> 0 | AJ70: ='Optional Adjustment 15'!G70*$AJ$1 -> 0 | AK70: ='Optional Adjustment 16'!G70*$AK$1 -> 0 | AL70: ='Optional Adjustment 17'!G70*$AL$1 -> 0 | AM70: ='Optional Adjustment 18'!G70*$AM$1 -> 0 | AN70: ='Optional Adjustment 19'!G70*$AN$1 -> 0 | AO70: ='Optional Adjustment 20'!G70*$AO$1 -> 0 | AP70: ='Optional Adjustment 21'!G70*$AP$1 -> 0 | AQ70: ='Optional Adjustment 22'!G70*$AQ$1 -> 0 | AR70: ='LNG O&M'!G70*$AR$1 -> 0 | AT70: =SUM(F70:AS70) -> 0 | AV70: =SUM(AT70:AT70) -> 0 | AW70: =+AV70-'ROR-Model'!G70 -> 0
AW71: =+AV71-'ROR-Model'!G71 -> 0
C72: Supplier Non-Gas Revenue | S72: ='EDIT Amort Adj'!G72*$S$1 -> 0 | T72: ='Envision Tomorrow Savings'!G72*$T$1 -> 0 | U72: =Pension!G72*$U$1 -> 0 | V72: ='Optional Adjustment 1'!G72*$V$1 -> 0 | W72: ='Optional Adjustment 2'!G72*$W$1 -> 0 | X72: ='Optional Adjustment 3'!G72*$X$1 -> 0 | Y72: ='Optional Adjustment 4'!G72*$Y$1 -> 0 | Z72: ='Optional Adjustment 5'!G72*$Z$1 -> 0 | AA72: ='Optional Adjustment 6'!G72*$AA$1 -> 0 | AB72: ='Optional Adjustment 7'!G72*$AB$1 -> 0 | AC72: ='Optional Adjustment 8'!G72*$AC$1 -> 0 | AD72: ='Optional Adjustment 9'!G72*$AD$1 -> 0 | AE72: ='Optional Adjustment 10'!G72*$AE$1 -> 0 | AF72: ='Optional Adjustment 11'!G72*$AF$1 -> 0 | AG72: ='Optional Adjustment 12'!G72*$AG$1 -> 0 | AH72: ='Optional Adjustment 13'!G72*$AH$1 -> 0 | AI72: ='Optional Adjustment 14'!G72*$AI$1 -> 0 | AJ72: ='Optional Adjustment 15'!G72*$AJ$1 -> 0 | AK72: ='Optional Adjustment 16'!G72*$AK$1 -> 0 | AL72: ='Optional Adjustment 17'!G72*$AL$1 -> 0 | AM72: ='Optional Adjustment 18'!G72*$AM$1 -> 0 | AN72: ='Optional Adjustment 19'!G72*$AN$1 -> 0 | AO72: ='Optional Adjustment 20'!G72*$AO$1 -> 0 | AP72: ='Optional Adjustment 21'!G72*$AP$1 -> 0 | AQ72: ='Optional Adjustment 22'!G72*$AQ$1 -> 0 | AR72: ='LNG O&M'!G72*$AR$1 -> 0 | AT72: =SUM(F72:AS72) -> 0 | AV72: =SUM(AT72:AT72) -> 0 | AW72: =+AV72-'ROR-Model'!G72 -> 0
AW73: =+AV73-'ROR-Model'!G73 -> 0
C74: Commodity Revenue | S74: ='EDIT Amort Adj'!G74*$S$1 -> 0 | T74: ='Envision Tomorrow Savings'!G74*$T$1 -> 0 | U74: =Pension!G74*$U$1 -> 0 | V74: ='Optional Adjustment 1'!G74*$V$1 -> 0 | W74: ='Optional Adjustment 2'!G74*$W$1 -> 0 | X74: ='Optional Adjustment 3'!G74*$X$1 -> 0 | Y74: ='Optional Adjustment 4'!G74*$Y$1 -> 0 | Z74: ='Optional Adjustment 5'!G74*$Z$1 -> 0 | AA74: ='Optional Adjustment 6'!G74*$AA$1 -> 0 | AB74: ='Optional Adjustment 7'!G74*$AB$1 -> 0 | AC74: ='Optional Adjustment 8'!G74*$AC$1 -> 0 | AD74: ='Optional Adjustment 9'!G74*$AD$1 -> 0 | AE74: ='Optional Adjustment 10'!G74*$AE$1 -> 0 | AF74: ='Optional Adjustment 11'!G74*$AF$1 -> 0 | AG74: ='Optional Adjustment 12'!G74*$AG$1 -> 0 | AH74: ='Optional Adjustment 13'!G74*$AH$1 -> 0 | AI74: ='Optional Adjustment 14'!G74*$AI$1 -> 0 | AJ74: ='Optional Adjustment 15'!G74*$AJ$1 -> 0 | AK74: ='Optional Adjustment 16'!G74*$AK$1 -> 0 | AL74: ='Optional Adjustment 17'!G74*$AL$1 -> 0 | AM74: ='Optional Adjustment 18'!G74*$AM$1 -> 0 | AN74: ='Optional Adjustment 19'!G74*$AN$1 -> 0 | AO74: ='Optional Adjustment 20'!G74*$AO$1 -> 0 | AP74: ='Optional Adjustment 21'!G74*$AP$1 -> 0 | AQ74: ='Optional Adjustment 22'!G74*$AQ$1 -> 0 | AR74: ='LNG O&M'!G74*$AR$1 -> 0 | AT74: =SUM(F74:AS74) -> 0 | AV74: =SUM(AT74:AT74) -> 0 | AW74: =+AV74-'ROR-Model'!G74 -> 0
C75: Total Revenue | F75: =SUM(F70:F74) -> 0 | H75: =H1*SUM(H70:H74) -> 0 | I75: =SUM(I70:I74) -> 0 | J75: =SUM(J70:J74) -> 0 | K75: 0 | L75: 0 | M75: 0 | N75: 0 | O75: 0 | P75: 0 | Q75: =SUM(Q70:Q74) -> 0 | R75: 0 | S75: =SUM(S70:S74) -> 0 | T75: 0 | U75: 0 | V75: =SUM(V70:V74) -> 0 | W75: 0 | X75: 0 | Y75: 0 | Z75: 0 | AA75: 0 | AB75: 0 | AC75: 0 | AD75: 0 | AE75: 0 | AF75: =SUM(AF70:AF74) -> 0 | AG75: 0 | AH75: 0 | AI75: 0 | AJ75: =SUM(AJ70:AJ74) -> 0 | AK75: 0 | AL75: 0 | AM75: 0 | AN75: 0 | AO75: =SUM(AO70:AO74) -> 0 | AP75: 0 | AQ75: 0 | AR75: =SUM(AR70:AR74) -> 0 | AT75: =SUM(AT70:AT74) -> 0 | AV75: =SUM(AV70:AV74) -> 0 | AW75: =+AV75-'ROR-Model'!G75 -> 0
AW76: =+AV76-'ROR-Model'!G76 -> 0
C77: Total Dth | H77: =H1*Revenue!$S$76 -> 0 | AT77: =SUM(F77:AS77) -> 0 | AV77: =SUM(AT77:AT77) -> 0 | AW77: =+AV77-'ROR-Model'!G77 -> 0
AW78: =+AV78-'ROR-Model'!G78 -> 0
B79: I-2 | C79: Distribution Non-Gas Rev | H79: =H1*Revenue!$S$78 -> 0 | S79: ='EDIT Amort Adj'!G79*$S$1 -> 0 | T79: ='Envision Tomorrow Savings'!G79*$T$1 -> 0 | U79: =Pension!G79*$U$1 -> 0 | V79: ='Optional Adjustment 1'!G79*$V$1 -> 0 | W79: ='Optional Adjustment 2'!G79*$W$1 -> 0 | X79: ='Optional Adjustment 3'!G79*$X$1 -> 0 | Y79: ='Optional Adjustment 4'!G79*$Y$1 -> 0 | Z79: ='Optional Adjustment 5'!G79*$Z$1 -> 0 | AA79: ='Optional Adjustment 6'!G79*$AA$1 -> 0 | AB79: ='Optional Adjustment 7'!G79*$AB$1 -> 0 | AC79: ='Optional Adjustment 8'!G79*$AC$1 -> 0 | AD79: ='Optional Adjustment 9'!G79*$AD$1 -> 0 | AE79: ='Optional Adjustment 10'!G79*$AE$1 -> 0 | AF79: ='Optional Adjustment 11'!G79*$AF$1 -> 0 | AG79: ='Optional Adjustment 12'!G79*$AG$1 -> 0 | AH79: ='Optional Adjustment 13'!G79*$AH$1 -> 0 | AI79: ='Optional Adjustment 14'!G79*$AI$1 -> 0 | AJ79: ='Optional Adjustment 15'!G79*$AJ$1 -> 0 | AK79: ='Optional Adjustment 16'!G79*$AK$1 -> 0 | AL79: ='Optional Adjustment 17'!G79*$AL$1 -> 0 | AM79: ='Optional Adjustment 18'!G79*$AM$1 -> 0 | AN79: ='Optional Adjustment 19'!G79*$AN$1 -> 0 | AO79: ='Optional Adjustment 20'!G79*$AO$1 -> 0 | AP79: ='Optional Adjustment 21'!G79*$AP$1 -> 0 | AQ79: ='Optional Adjustment 22'!G79*$AQ$1 -> 0 | AR79: ='LNG O&M'!G79*$AR$1 -> 0 | AT79: =SUM(F79:AS79) -> 0 | AV79: =SUM(AT79:AT79) -> 0 | AW79: =+AV79-'ROR-Model'!G79 -> 0
AW80: =+AV80-'ROR-Model'!G80 -> 0
C81: Supplier Non-Gas Revenue | H81: =H1*Revenue!$S$80 -> 0 | S81: ='EDIT Amort Adj'!G81*$S$1 -> 0 | T81: ='Envision Tomorrow Savings'!G81*$T$1 -> 0 | U81: =Pension!G81*$U$1 -> 0 | V81: ='Optional Adjustment 1'!G81*$V$1 -> 0 | W81: ='Optional Adjustment 2'!G81*$W$1 -> 0 | X81: ='Optional Adjustment 3'!G81*$X$1 -> 0 | Y81: ='Optional Adjustment 4'!G81*$Y$1 -> 0 | Z81: ='Optional Adjustment 5'!G81*$Z$1 -> 0 | AA81: ='Optional Adjustment 6'!G81*$AA$1 -> 0 | AB81: ='Optional Adjustment 7'!G81*$AB$1 -> 0 | AC81: ='Optional Adjustment 8'!G81*$AC$1 -> 0 | AD81: ='Optional Adjustment 9'!G81*$AD$1 -> 0 | AE81: ='Optional Adjustment 10'!G81*$AE$1 -> 0 | AF81: ='Optional Adjustment 11'!G81*$AF$1 -> 0 | AG81: ='Optional Adjustment 12'!G81*$AG$1 -> 0 | AH81: ='Optional Adjustment 13'!G81*$AH$1 -> 0 | AI81: ='Optional Adjustment 14'!G81*$AI$1 -> 0 | AJ81: ='Optional Adjustment 15'!G81*$AJ$1 -> 0 | AK81: ='Optional Adjustment 16'!G81*$AK$1 -> 0 | AL81: ='Optional Adjustment 17'!G81*$AL$1 -> 0 | AM81: ='Optional Adjustment 18'!G81*$AM$1 -> 0 | AN81: ='Optional Adjustment 19'!G81*$AN$1 -> 0 | AO81: ='Optional Adjustment 20'!G81*$AO$1 -> 0 | AP81: ='Optional Adjustment 21'!G81*$AP$1 -> 0 | AQ81: ='Optional Adjustment 22'!G81*$AQ$1 -> 0 | AR81: ='LNG O&M'!G81*$AR$1 -> 0 | AT81: =SUM(F81:AS81) -> 0 | AV81: =SUM(AT81:AT81) -> 0 | AW81: =+AV81-'ROR-Model'!G81 -> 0
AW82: =+AV82-'ROR-Model'!G82 -> 0
C83: Commodity Revenue | H83: =H1*Revenue!$S$82 -> 0 | S83: ='EDIT Amort Adj'!G83*$S$1 -> 0 | T83: ='Envision Tomorrow Savings'!G83*$T$1 -> 0 | U83: =Pension!G83*$U$1 -> 0 | V83: ='Optional Adjustment 1'!G83*$V$1 -> 0 | W83: ='Optional Adjustment 2'!G83*$W$1 -> 0 | X83: ='Optional Adjustment 3'!G83*$X$1 -> 0 | Y83: ='Optional Adjustment 4'!G83*$Y$1 -> 0 | Z83: ='Optional Adjustment 5'!G83*$Z$1 -> 0 | AA83: ='Optional Adjustment 6'!G83*$AA$1 -> 0 | AB83: ='Optional Adjustment 7'!G83*$AB$1 -> 0 | AC83: ='Optional Adjustment 8'!G83*$AC$1 -> 0 | AD83: ='Optional Adjustment 9'!G83*$AD$1 -> 0 | AE83: ='Optional Adjustment 10'!G83*$AE$1 -> 0 | AF83: ='Optional Adjustment 11'!G83*$AF$1 -> 0 | AG83: ='Optional Adjustment 12'!G83*$AG$1 -> 0 | AH83: ='Optional Adjustment 13'!G83*$AH$1 -> 0 | AI83: ='Optional Adjustment 14'!G83*$AI$1 -> 0 | AJ83: ='Optional Adjustment 15'!G83*$AJ$1 -> 0 | AK83: ='Optional Adjustment 16'!G83*$AK$1 -> 0 | AL83: ='Optional Adjustment 17'!G83*$AL$1 -> 0 | AM83: ='Optional Adjustment 18'!G83*$AM$1 -> 0 | AN83: ='Optional Adjustment 19'!G83*$AN$1 -> 0 | AO83: ='Optional Adjustment 20'!G83*$AO$1 -> 0 | AP83: ='Optional Adjustment 21'!G83*$AP$1 -> 0 | AQ83: ='Optional Adjustment 22'!G83*$AQ$1 -> 0 | AR83: ='LNG O&M'!G83*$AR$1 -> 0 | AT83: =SUM(F83:AS83) -> 0 | AV83: =SUM(AT83:AT83) -> 0 | AW83: =+AV83-'ROR-Model'!G83 -> 0
C84: Total Revenue | F84: =SUM(F79:F83) -> 0 | H84: =H1*SUM(H79:H83) -> 0 | I84: =SUM(I79:I83) -> 0 | J84: =SUM(J79:J83) -> 0 | K84: 0 | L84: 0 | M84: 0 | N84: 0 | O84: 0 | P84: 0 | Q84: =SUM(Q79:Q83) -> 0 | R84: 0 | S84: =SUM(S79:S83) -> 0 | T84: 0 | U84: 0 | V84: =SUM(V79:V83) -> 0 | W84: 0 | X84: 0 | Y84: 0 | Z84: 0 | AA84: 0 | AB84: 0 | AC84: 0 | AD84: 0 | AE84: 0 | AF84: =SUM(AF79:AF83) -> 0 | AG84: 0 | AH84: 0 | AI84: 0 | AJ84: =SUM(AJ79:AJ83) -> 0 | AK84: 0 | AL84: 0 | AM84: 0 | AN84: 0 | AO84: =SUM(AO79:AO83) -> 0 | AP84: 0 | AQ84: 0 | AR84: =SUM(AR79:AR83) -> 0 | AT84: =SUM(AT79:AT83) -> 0 | AV84: =SUM(AV79:AV83) -> 0 | AW84: =+AV84-'ROR-Model'!G84 -> 0
AW85: =+AV85-'ROR-Model'!G85 -> 0
C86: Total Dth | H86: =H1*Revenue!$S$85 -> 0 | AT86: =SUM(F86:AS86) -> 0 | AV86: =SUM(AT86:AT86) -> 0 | AW86: =+AV86-'ROR-Model'!G86 -> 0
AW87: =+AV87-'ROR-Model'!G87 -> 0
B88: I-4 | C88: Distribution Non-Gas Rev | H88: =H1*Revenue!$S$87 -> 0 | S88: ='EDIT Amort Adj'!G88*$S$1 -> 0 | T88: ='Envision Tomorrow Savings'!G88*$T$1 -> 0 | U88: =Pension!G88*$U$1 -> 0 | V88: ='Optional Adjustment 1'!G88*$V$1 -> 0 | W88: ='Optional Adjustment 2'!G88*$W$1 -> 0 | X88: ='Optional Adjustment 3'!G88*$X$1 -> 0 | Y88: ='Optional Adjustment 4'!G88*$Y$1 -> 0 | Z88: ='Optional Adjustment 5'!G88*$Z$1 -> 0 | AA88: ='Optional Adjustment 6'!G88*$AA$1 -> 0 | AB88: ='Optional Adjustment 7'!G88*$AB$1 -> 0 | AC88: ='Optional Adjustment 8'!G88*$AC$1 -> 0 | AD88: ='Optional Adjustment 9'!G88*$AD$1 -> 0 | AE88: ='Optional Adjustment 10'!G88*$AE$1 -> 0 | AF88: ='Optional Adjustment 11'!G88*$AF$1 -> 0 | AG88: ='Optional Adjustment 12'!G88*$AG$1 -> 0 | AH88: ='Optional Adjustment 13'!G88*$AH$1 -> 0 | AI88: ='Optional Adjustment 14'!G88*$AI$1 -> 0 | AJ88: ='Optional Adjustment 15'!G88*$AJ$1 -> 0 | AK88: ='Optional Adjustment 16'!G88*$AK$1 -> 0 | AL88: ='Optional Adjustment 17'!G88*$AL$1 -> 0 | AM88: ='Optional Adjustment 18'!G88*$AM$1 -> 0 | AN88: ='Optional Adjustment 19'!G88*$AN$1 -> 0 | AO88: ='Optional Adjustment 20'!G88*$AO$1 -> 0 | AP88: ='Optional Adjustment 21'!G88*$AP$1 -> 0 | AQ88: ='Optional Adjustment 22'!G88*$AQ$1 -> 0 | AR88: ='LNG O&M'!G88*$AR$1 -> 0 | AT88: =SUM(F88:AS88) -> 0 | AV88: =SUM(AT88:AT88) -> 0 | AW88: =+AV88-'ROR-Model'!G88 -> 0
AW89: =+AV89-'ROR-Model'!G89 -> 0
C90: Supplier Non-Gas Revenue | H90: =H1*Revenue!$S$89 -> 0 | S90: ='EDIT Amort Adj'!G90*$S$1 -> 0 | T90: ='Envision Tomorrow Savings'!G90*$T$1 -> 0 | U90: =Pension!G90*$U$1 -> 0 | V90: ='Optional Adjustment 1'!G90*$V$1 -> 0 | W90: ='Optional Adjustment 2'!G90*$W$1 -> 0 | X90: ='Optional Adjustment 3'!G90*$X$1 -> 0 | Y90: ='Optional Adjustment 4'!G90*$Y$1 -> 0 | Z90: ='Optional Adjustment 5'!G90*$Z$1 -> 0 | AA90: ='Optional Adjustment 6'!G90*$AA$1 -> 0 | AB90: ='Optional Adjustment 7'!G90*$AB$1 -> 0 | AC90: ='Optional Adjustment 8'!G90*$AC$1 -> 0 | AD90: ='Optional Adjustment 9'!G90*$AD$1 -> 0 | AE90: ='Optional Adjustment 10'!G90*$AE$1 -> 0 | AF90: ='Optional Adjustment 11'!G90*$AF$1 -> 0 | AG90: ='Optional Adjustment 12'!G90*$AG$1 -> 0 | AH90: ='Optional Adjustment 13'!G90*$AH$1 -> 0 | AI90: ='Optional Adjustment 14'!G90*$AI$1 -> 0 | AJ90: ='Optional Adjustment 15'!G90*$AJ$1 -> 0 | AK90: ='Optional Adjustment 16'!G90*$AK$1 -> 0 | AL90: ='Optional Adjustment 17'!G90*$AL$1 -> 0 | AM90: ='Optional Adjustment 18'!G90*$AM$1 -> 0 | AN90: ='Optional Adjustment 19'!G90*$AN$1 -> 0 | AO90: ='Optional Adjustment 20'!G90*$AO$1 -> 0 | AP90: ='Optional Adjustment 21'!G90*$AP$1 -> 0 | AQ90: ='Optional Adjustment 22'!G90*$AQ$1 -> 0 | AR90: ='LNG O&M'!G90*$AR$1 -> 0 | AT90: =SUM(F90:AS90) -> 0 | AV90: =SUM(AT90:AT90) -> 0 | AW90: =+AV90-'ROR-Model'!G90 -> 0
AW91: =+AV91-'ROR-Model'!G91 -> 0
C92: Commodity Revenue | H92: =H1*Revenue!$S$91 -> 0 | S92: ='EDIT Amort Adj'!G92*$S$1 -> 0 | T92: ='Envision Tomorrow Savings'!G92*$T$1 -> 0 | U92: =Pension!G92*$U$1 -> 0 | V92: ='Optional Adjustment 1'!G92*$V$1 -> 0 | W92: ='Optional Adjustment 2'!G92*$W$1 -> 0 | X92: ='Optional Adjustment 3'!G92*$X$1 -> 0 | Y92: ='Optional Adjustment 4'!G92*$Y$1 -> 0 | Z92: ='Optional Adjustment 5'!G92*$Z$1 -> 0 | AA92: ='Optional Adjustment 6'!G92*$AA$1 -> 0 | AB92: ='Optional Adjustment 7'!G92*$AB$1 -> 0 | AC92: ='Optional Adjustment 8'!G92*$AC$1 -> 0 | AD92: ='Optional Adjustment 9'!G92*$AD$1 -> 0 | AE92: ='Optional Adjustment 10'!G92*$AE$1 -> 0 | AF92: ='Optional Adjustment 11'!G92*$AF$1 -> 0 | AG92: ='Optional Adjustment 12'!G92*$AG$1 -> 0 | AH92: ='Optional Adjustment 13'!G92*$AH$1 -> 0 | AI92: ='Optional Adjustment 14'!G92*$AI$1 -> 0 | AJ92: ='Optional Adjustment 15'!G92*$AJ$1 -> 0 | AK92: ='Optional Adjustment 16'!G92*$AK$1 -> 0 | AL92: ='Optional Adjustment 17'!G92*$AL$1 -> 0 | AM92: ='Optional Adjustment 18'!G92*$AM$1 -> 0 | AN92: ='Optional Adjustment 19'!G92*$AN$1 -> 0 | AO92: ='Optional Adjustment 20'!G92*$AO$1 -> 0 | AP92: ='Optional Adjustment 21'!G92*$AP$1 -> 0 | AQ92: ='Optional Adjustment 22'!G92*$AQ$1 -> 0 | AR92: ='LNG O&M'!G92*$AR$1 -> 0 | AT92: =SUM(F92:AS92) -> 0 | AV92: =SUM(AT92:AT92) -> 0 | AW92: =+AV92-'ROR-Model'!G92 -> 0
C93: Total Revenue | F93: =SUM(F88:F92) -> 0 | H93: =H1*SUM(H88:H92) -> 0 | I93: =SUM(I88:I92) -> 0 | J93: =SUM(J88:J92) -> 0 | K93: 0 | L93: 0 | M93: 0 | N93: 0 | O93: 0 | P93: 0 | Q93: =SUM(Q88:Q92) -> 0 | R93: 0 | S93: =SUM(S88:S92) -> 0 | T93: 0 | U93: 0 | V93: =SUM(V88:V92) -> 0 | W93: 0 | X93: 0 | Y93: 0 | Z93: 0 | AA93: 0 | AB93: 0 | AC93: 0 | AD93: 0 | AE93: 0 | AF93: =SUM(AF88:AF92) -> 0 | AG93: 0 | AH93: 0 | AI93: 0 | AJ93: =SUM(AJ88:AJ92) -> 0 | AK93: 0 | AL93: 0 | AM93: 0 | AN93: 0 | AO93: =SUM(AO88:AO92) -> 0 | AP93: 0 | AQ93: 0 | AR93: =SUM(AR88:AR92) -> 0 | AT93: =SUM(AT88:AT92) -> 0 | AV93: =SUM(AV88:AV92) -> 0 | AW93: =+AV93-'ROR-Model'!G93 -> 0
AW94: =+AV94-'ROR-Model'!G94 -> 0
C95: Total Dth | H95: =H1*Revenue!$S$94 -> 0 | AT95: =SUM(F95:AS95) -> 0 | AV95: =SUM(AT95:AT95) -> 0 | AW95: =+AV95-'ROR-Model'!G95 -> 0
AW96: =+AV96-'ROR-Model'!G96 -> 0
B97: IS_IS-2 | C97: Distribution Non-Gas Rev | H97: =H1*Revenue!$S$96 -> -4697.82448 | S97: ='EDIT Amort Adj'!G97*$S$1 -> 0 | T97: ='Envision Tomorrow Savings'!G97*$T$1 -> 0 | U97: =Pension!G97*$U$1 -> 0 | V97: ='Optional Adjustment 1'!G97*$V$1 -> 0 | W97: ='Optional Adjustment 2'!G97*$W$1 -> 0 | X97: ='Optional Adjustment 3'!G97*$X$1 -> 0 | Y97: ='Optional Adjustment 4'!G97*$Y$1 -> 0 | Z97: ='Optional Adjustment 5'!G97*$Z$1 -> 0 | AA97: ='Optional Adjustment 6'!G97*$AA$1 -> 0 | AB97: ='Optional Adjustment 7'!G97*$AB$1 -> 0 | AC97: ='Optional Adjustment 8'!G97*$AC$1 -> 0 | AD97: ='Optional Adjustment 9'!G97*$AD$1 -> 0 | AE97: ='Optional Adjustment 10'!G97*$AE$1 -> 0 | AF97: ='Optional Adjustment 11'!G97*$AF$1 -> 0 | AG97: ='Optional Adjustment 12'!G97*$AG$1 -> 0 | AH97: ='Optional Adjustment 13'!G97*$AH$1 -> 0 | AI97: ='Optional Adjustment 14'!G97*$AI$1 -> 0 | AJ97: ='Optional Adjustment 15'!G97*$AJ$1 -> 0 | AK97: ='Optional Adjustment 16'!G97*$AK$1 -> 0 | AL97: ='Optional Adjustment 17'!G97*$AL$1 -> 0 | AM97: ='Optional Adjustment 18'!G97*$AM$1 -> 0 | AN97: ='Optional Adjustment 19'!G97*$AN$1 -> 0 | AO97: ='Optional Adjustment 20'!G97*$AO$1 -> 0 | AP97: ='Optional Adjustment 21'!G97*$AP$1 -> 0 | AQ97: ='Optional Adjustment 22'!G97*$AQ$1 -> 0 | AR97: ='LNG O&M'!G97*$AR$1 -> 0 | AT97: =SUM(F97:AS97) -> -4697.82448 | AV97: =SUM(AT97:AT97) -> -4697.82448 | AW97: =+AV97-'ROR-Model'!G97 -> 0
AW98: =+AV98-'ROR-Model'!G98 -> 0
C99: Supplier Non-Gas Revenue | H99: =H1*Revenue!$S$98 -> -4567.3938 | S99: ='EDIT Amort Adj'!G99*$S$1 -> 0 | T99: ='Envision Tomorrow Savings'!G99*$T$1 -> 0 | U99: =Pension!G99*$U$1 -> 0 | V99: ='Optional Adjustment 1'!G99*$V$1 -> 0 | W99: ='Optional Adjustment 2'!G99*$W$1 -> 0 | X99: ='Optional Adjustment 3'!G99*$X$1 -> 0 | Y99: ='Optional Adjustment 4'!G99*$Y$1 -> 0 | Z99: ='Optional Adjustment 5'!G99*$Z$1 -> 0 | AA99: ='Optional Adjustment 6'!G99*$AA$1 -> 0 | AB99: ='Optional Adjustment 7'!G99*$AB$1 -> 0 | AC99: ='Optional Adjustment 8'!G99*$AC$1 -> 0 | AD99: ='Optional Adjustment 9'!G99*$AD$1 -> 0 | AE99: ='Optional Adjustment 10'!G99*$AE$1 -> 0 | AF99: ='Optional Adjustment 11'!G99*$AF$1 -> 0 | AG99: ='Optional Adjustment 12'!G99*$AG$1 -> 0 | AH99: ='Optional Adjustment 13'!G99*$AH$1 -> 0 | AI99: ='Optional Adjustment 14'!G99*$AI$1 -> 0 | AJ99: ='Optional Adjustment 15'!G99*$AJ$1 -> 0 | AK99: ='Optional Adjustment 16'!G99*$AK$1 -> 0 | AL99: ='Optional Adjustment 17'!G99*$AL$1 -> 0 | AM99: ='Optional Adjustment 18'!G99*$AM$1 -> 0 | AN99: ='Optional Adjustment 19'!G99*$AN$1 -> 0 | AO99: ='Optional Adjustment 20'!G99*$AO$1 -> 0 | AP99: ='Optional Adjustment 21'!G99*$AP$1 -> 0 | AQ99: ='Optional Adjustment 22'!G99*$AQ$1 -> 0 | AR99: ='LNG O&M'!G99*$AR$1 -> 0 | AT99: =SUM(F99:AS99) -> -4567.3938 | AV99: =SUM(AT99:AT99) -> -4567.3938 | AW99: =+AV99-'ROR-Model'!G99 -> 0
AW100: =+AV100-'ROR-Model'!G100 -> 0
C101: Commodity Revenue | H101: =H1*Revenue!$S$100 -> 167232.9292 | S101: ='EDIT Amort Adj'!G101*$S$1 -> 0 | T101: ='Envision Tomorrow Savings'!G101*$T$1 -> 0 | U101: =Pension!G101*$U$1 -> 0 | V101: ='Optional Adjustment 1'!G101*$V$1 -> 0 | W101: ='Optional Adjustment 2'!G101*$W$1 -> 0 | X101: ='Optional Adjustment 3'!G101*$X$1 -> 0 | Y101: ='Optional Adjustment 4'!G101*$Y$1 -> 0 | Z101: ='Optional Adjustment 5'!G101*$Z$1 -> 0 | AA101: ='Optional Adjustment 6'!G101*$AA$1 -> 0 | AB101: ='Optional Adjustment 7'!G101*$AB$1 -> 0 | AC101: ='Optional Adjustment 8'!G101*$AC$1 -> 0 | AD101: ='Optional Adjustment 9'!G101*$AD$1 -> 0 | AE101: ='Optional Adjustment 10'!G101*$AE$1 -> 0 | AF101: ='Optional Adjustment 11'!G101*$AF$1 -> 0 | AG101: ='Optional Adjustment 12'!G101*$AG$1 -> 0 | AH101: ='Optional Adjustment 13'!G101*$AH$1 -> 0 | AI101: ='Optional Adjustment 14'!G101*$AI$1 -> 0 | AJ101: ='Optional Adjustment 15'!G101*$AJ$1 -> 0 | AK101: ='Optional Adjustment 16'!G101*$AK$1 -> 0 | AL101: ='Optional Adjustment 17'!G101*$AL$1 -> 0 | AM101: ='Optional Adjustment 18'!G101*$AM$1 -> 0 | AN101: ='Optional Adjustment 19'!G101*$AN$1 -> 0 | AO101: ='Optional Adjustment 20'!G101*$AO$1 -> 0 | AP101: ='Optional Adjustment 21'!G101*$AP$1 -> 0 | AQ101: ='Optional Adjustment 22'!G101*$AQ$1 -> 0 | AR101: ='LNG O&M'!G101*$AR$1 -> 0 | AT101: =SUM(F101:AS101) -> 167232.9292 | AV101: =SUM(AT101:AT101) -> 167232.9292 | AW101: =+AV101-'ROR-Model'!G101 -> 0
C102: Total Revenue | F102: =SUM(F97:F101) -> 0 | H102: =H1*SUM(H97:H101) -> 157967.7109 | I102: =SUM(I97:I101) -> 0 | J102: =SUM(J97:J101) -> 0 | K102: 0 | L102: 0 | M102: 0 | N102: 0 | O102: 0 | P102: 0 | Q102: =SUM(Q97:Q101) -> 0 | R102: 0 | S102: =SUM(S97:S101) -> 0 | T102: 0 | U102: 0 | V102: =SUM(V97:V101) -> 0 | W102: 0 | X102: 0 | Y102: 0 | Z102: 0 | AA102: 0 | AB102: 0 | AC102: 0 | AD102: 0 | AE102: 0 | AF102: =SUM(AF97:AF101) -> 0 | AG102: 0 | AH102: 0 | AI102: 0 | AJ102: =SUM(AJ97:AJ101) -> 0 | AK102: 0 | AL102: 0 | AM102: 0 | AN102: 0 | AO102: =SUM(AO97:AO101) -> 0 | AP102: 0 | AQ102: 0 | AR102: =SUM(AR97:AR101) -> 0 | AT102: =SUM(AT97:AT101) -> 157967.7109 | AV102: =SUM(AV97:AV101) -> 157967.7109 | AW102: =+AV102-'ROR-Model'!G102 -> 0
AW103: =+AV103-'ROR-Model'!G103 -> 0
C104: Total Dth | H104: =H1*Revenue!$S$103 -> -24632.033 | AT104: =SUM(F104:AS104) -> -24632.033 | AV104: =SUM(AT104:AT104) -> -24632.033 | AW104: =+AV104-'ROR-Model'!G104 -> 0
AW105: =+AV105-'ROR-Model'!G105 -> 0
B106: IS-4 | C106: Distribution Non-Gas Rev | H106: =H1*Revenue!$S$105 -> 0 | S106: ='EDIT Amort Adj'!G106*$S$1 -> 0 | T106: ='Envision Tomorrow Savings'!G106*$T$1 -> 0 | U106: =Pension!G106*$U$1 -> 0 | V106: ='Optional Adjustment 1'!G106*$V$1 -> 0 | W106: ='Optional Adjustment 2'!G106*$W$1 -> 0 | X106: ='Optional Adjustment 3'!G106*$X$1 -> 0 | Y106: ='Optional Adjustment 4'!G106*$Y$1 -> 0 | Z106: ='Optional Adjustment 5'!G106*$Z$1 -> 0 | AA106: ='Optional Adjustment 6'!G106*$AA$1 -> 0 | AB106: ='Optional Adjustment 7'!G106*$AB$1 -> 0 | AC106: ='Optional Adjustment 8'!G106*$AC$1 -> 0 | AD106: ='Optional Adjustment 9'!G106*$AD$1 -> 0 | AE106: ='Optional Adjustment 10'!G106*$AE$1 -> 0 | AF106: ='Optional Adjustment 11'!G106*$AF$1 -> 0 | AG106: ='Optional Adjustment 12'!G106*$AG$1 -> 0 | AH106: ='Optional Adjustment 13'!G106*$AH$1 -> 0 | AI106: ='Optional Adjustment 14'!G106*$AI$1 -> 0 | AJ106: ='Optional Adjustment 15'!G106*$AJ$1 -> 0 | AK106: ='Optional Adjustment 16'!G106*$AK$1 -> 0 | AL106: ='Optional Adjustment 17'!G106*$AL$1 -> 0 | AM106: ='Optional Adjustment 18'!G106*$AM$1 -> 0 | AN106: ='Optional Adjustment 19'!G106*$AN$1 -> 0 | AO106: ='Optional Adjustment 20'!G106*$AO$1 -> 0 | AP106: ='Optional Adjustment 21'!G106*$AP$1 -> 0 | AQ106: ='Optional Adjustment 22'!G106*$AQ$1 -> 0 | AR106: ='LNG O&M'!G106*$AR$1 -> 0 | AT106: =SUM(F106:AS106) -> 0 | AV106: =SUM(AT106:AT106) -> 0 | AW106: =+AV106-'ROR-Model'!G106 -> 0
AW107: =+AV107-'ROR-Model'!G107 -> 0
C108: Supplier Non-Gas Revenue | H108: =H1*Revenue!$S$107 -> 0 | S108: ='EDIT Amort Adj'!G108*$S$1 -> 0 | T108: ='Envision Tomorrow Savings'!G108*$T$1 -> 0 | U108: =Pension!G108*$U$1 -> 0 | V108: ='Optional Adjustment 1'!G108*$V$1 -> 0 | W108: ='Optional Adjustment 2'!G108*$W$1 -> 0 | X108: ='Optional Adjustment 3'!G108*$X$1 -> 0 | Y108: ='Optional Adjustment 4'!G108*$Y$1 -> 0 | Z108: ='Optional Adjustment 5'!G108*$Z$1 -> 0 | AA108: ='Optional Adjustment 6'!G108*$AA$1 -> 0 | AB108: ='Optional Adjustment 7'!G108*$AB$1 -> 0 | AC108: ='Optional Adjustment 8'!G108*$AC$1 -> 0 | AD108: ='Optional Adjustment 9'!G108*$AD$1 -> 0 | AE108: ='Optional Adjustment 10'!G108*$AE$1 -> 0 | AF108: ='Optional Adjustment 11'!G108*$AF$1 -> 0 | AG108: ='Optional Adjustment 12'!G108*$AG$1 -> 0 | AH108: ='Optional Adjustment 13'!G108*$AH$1 -> 0 | AI108: ='Optional Adjustment 14'!G108*$AI$1 -> 0 | AJ108: ='Optional Adjustment 15'!G108*$AJ$1 -> 0 | AK108: ='Optional Adjustment 16'!G108*$AK$1 -> 0 | AL108: ='Optional Adjustment 17'!G108*$AL$1 -> 0 | AM108: ='Optional Adjustment 18'!G108*$AM$1 -> 0 | AN108: ='Optional Adjustment 19'!G108*$AN$1 -> 0 | AO108: ='Optional Adjustment 20'!G108*$AO$1 -> 0 | AP108: ='Optional Adjustment 21'!G108*$AP$1 -> 0 | AQ108: ='Optional Adjustment 22'!G108*$AQ$1 -> 0 | AR108: ='LNG O&M'!G108*$AR$1 -> 0 | AT108: =SUM(F108:AS108) -> 0 | AV108: =SUM(AT108:AT108) -> 0 | AW108: =+AV108-'ROR-Model'!G108 -> 0
AW109: =+AV109-'ROR-Model'!G109 -> 0
C110: Commodity Revenue | H110: =H1*Revenue!$S$109 -> 0 | S110: ='EDIT Amort Adj'!G110*$S$1 -> 0 | T110: ='Envision Tomorrow Savings'!G110*$T$1 -> 0 | U110: =Pension!G110*$U$1 -> 0 | V110: ='Optional Adjustment 1'!G110*$V$1 -> 0 | W110: ='Optional Adjustment 2'!G110*$W$1 -> 0 | X110: ='Optional Adjustment 3'!G110*$X$1 -> 0 | Y110: ='Optional Adjustment 4'!G110*$Y$1 -> 0 | Z110: ='Optional Adjustment 5'!G110*$Z$1 -> 0 | AA110: ='Optional Adjustment 6'!G110*$AA$1 -> 0 | AB110: ='Optional Adjustment 7'!G110*$AB$1 -> 0 | AC110: ='Optional Adjustment 8'!G110*$AC$1 -> 0 | AD110: ='Optional Adjustment 9'!G110*$AD$1 -> 0 | AE110: ='Optional Adjustment 10'!G110*$AE$1 -> 0 | AF110: ='Optional Adjustment 11'!G110*$AF$1 -> 0 | AG110: ='Optional Adjustment 12'!G110*$AG$1 -> 0 | AH110: ='Optional Adjustment 13'!G110*$AH$1 -> 0 | AI110: ='Optional Adjustment 14'!G110*$AI$1 -> 0 | AJ110: ='Optional Adjustment 15'!G110*$AJ$1 -> 0 | AK110: ='Optional Adjustment 16'!G110*$AK$1 -> 0 | AL110: ='Optional Adjustment 17'!G110*$AL$1 -> 0 | AM110: ='Optional Adjustment 18'!G110*$AM$1 -> 0 | AN110: ='Optional Adjustment 19'!G110*$AN$1 -> 0 | AO110: ='Optional Adjustment 20'!G110*$AO$1 -> 0 | AP110: ='Optional Adjustment 21'!G110*$AP$1 -> 0 | AQ110: ='Optional Adjustment 22'!G110*$AQ$1 -> 0 | AR110: ='LNG O&M'!G110*$AR$1 -> 0 | AT110: =SUM(F110:AS110) -> 0 | AV110: =SUM(AT110:AT110) -> 0 | AW110: =+AV110-'ROR-Model'!G110 -> 0
C111: Total Revenue | F111: =SUM(F106:F110) -> 0 | H111: =H1*SUM(H106:H110) -> 0 | I111: =SUM(I106:I110) -> 0 | J111: =SUM(J106:J110) -> 0 | K111: 0 | L111: 0 | M111: 0 | N111: 0 | O111: 0 | P111: 0 | Q111: =SUM(Q106:Q110) -> 0 | R111: 0 | S111: =SUM(S106:S110) -> 0 | T111: 0 | U111: 0 | V111: =SUM(V106:V110) -> 0 | W111: 0 | X111: 0 | Y111: 0 | Z111: 0 | AA111: 0 | AB111: 0 | AC111: 0 | AD111: 0 | AE111: 0 | AF111: =SUM(AF106:AF110) -> 0 | AG111: 0 | AH111: 0 | AI111: 0 | AJ111: =SUM(AJ106:AJ110) -> 0 | AK111: 0 | AL111: 0 | AM111: 0 | AN111: 0 | AO111: =SUM(AO106:AO110) -> 0 | AP111: 0 | AQ111: 0 | AR111: =SUM(AR106:AR110) -> 0 | AT111: =SUM(AT106:AT110) -> 0 | AV111: =SUM(AV106:AV110) -> 0 | AW111: =+AV111-'ROR-Model'!G111 -> 0
AW112: =+AV112-'ROR-Model'!G112 -> 0
C113: Total Dth | H113: =H1*Revenue!$S$112 -> 0 | AT113: =SUM(F113:AS113) -> 0 | AV113: =SUM(AT113:AT113) -> 0 | AW113: =+AV113-'ROR-Model'!G113 -> 0
AW114: =+AV114-'ROR-Model'!G114 -> 0
B115: FT1-L | C115: Distribution Non-Gas Rev | H115: =H1*Revenue!$S$114 -> 2240124 | S115: ='EDIT Amort Adj'!G115*$S$1 -> 0 | T115: ='Envision Tomorrow Savings'!G115*$T$1 -> 0 | U115: =Pension!G115*$U$1 -> 0 | V115: ='Optional Adjustment 1'!G115*$V$1 -> 0 | W115: ='Optional Adjustment 2'!G115*$W$1 -> 0 | X115: ='Optional Adjustment 3'!G115*$X$1 -> 0 | Y115: ='Optional Adjustment 4'!G115*$Y$1 -> 0 | Z115: ='Optional Adjustment 5'!G115*$Z$1 -> 0 | AA115: ='Optional Adjustment 6'!G115*$AA$1 -> 0 | AB115: ='Optional Adjustment 7'!G115*$AB$1 -> 0 | AC115: ='Optional Adjustment 8'!G115*$AC$1 -> 0 | AD115: ='Optional Adjustment 9'!G115*$AD$1 -> 0 | AE115: ='Optional Adjustment 10'!G115*$AE$1 -> 0 | AF115: ='Optional Adjustment 11'!G115*$AF$1 -> 0 | AG115: ='Optional Adjustment 12'!G115*$AG$1 -> 0 | AH115: ='Optional Adjustment 13'!G115*$AH$1 -> 0 | AI115: ='Optional Adjustment 14'!G115*$AI$1 -> 0 | AJ115: ='Optional Adjustment 15'!G115*$AJ$1 -> 0 | AK115: ='Optional Adjustment 16'!G115*$AK$1 -> 0 | AL115: ='Optional Adjustment 17'!G115*$AL$1 -> 0 | AM115: ='Optional Adjustment 18'!G115*$AM$1 -> 0 | AN115: ='Optional Adjustment 19'!G115*$AN$1 -> 0 | AO115: ='Optional Adjustment 20'!G115*$AO$1 -> 0 | AP115: ='Optional Adjustment 21'!G115*$AP$1 -> 0 | AQ115: ='Optional Adjustment 22'!G115*$AQ$1 -> 0 | AR115: ='LNG O&M'!G115*$AR$1 -> 0 | AT115: =SUM(F115:AS115) -> 2240124 | AV115: =SUM(AT115:AT115) -> 2240124 | AW115: =+AV115-'ROR-Model'!G115 -> 0
AW116: =+AV116-'ROR-Model'!G116 -> 0
C117: Supplier Non-Gas Revenue | H117: =H1*Revenue!$S$116 -> 0 | S117: ='EDIT Amort Adj'!G117*$S$1 -> 0 | T117: ='Envision Tomorrow Savings'!G117*$T$1 -> 0 | U117: =Pension!G117*$U$1 -> 0 | V117: ='Optional Adjustment 1'!G117*$V$1 -> 0 | W117: ='Optional Adjustment 2'!G117*$W$1 -> 0 | X117: ='Optional Adjustment 3'!G117*$X$1 -> 0 | Y117: ='Optional Adjustment 4'!G117*$Y$1 -> 0 | Z117: ='Optional Adjustment 5'!G117*$Z$1 -> 0 | AA117: ='Optional Adjustment 6'!G117*$AA$1 -> 0 | AB117: ='Optional Adjustment 7'!G117*$AB$1 -> 0 | AC117: ='Optional Adjustment 8'!G117*$AC$1 -> 0 | AD117: ='Optional Adjustment 9'!G117*$AD$1 -> 0 | AE117: ='Optional Adjustment 10'!G117*$AE$1 -> 0 | AF117: ='Optional Adjustment 11'!G117*$AF$1 -> 0 | AG117: ='Optional Adjustment 12'!G117*$AG$1 -> 0 | AH117: ='Optional Adjustment 13'!G117*$AH$1 -> 0 | AI117: ='Optional Adjustment 14'!G117*$AI$1 -> 0 | AJ117: ='Optional Adjustment 15'!G117*$AJ$1 -> 0 | AK117: ='Optional Adjustment 16'!G117*$AK$1 -> 0 | AL117: ='Optional Adjustment 17'!G117*$AL$1 -> 0 | AM117: ='Optional Adjustment 18'!G117*$AM$1 -> 0 | AN117: ='Optional Adjustment 19'!G117*$AN$1 -> 0 | AO117: ='Optional Adjustment 20'!G117*$AO$1 -> 0 | AP117: ='Optional Adjustment 21'!G117*$AP$1 -> 0 | AQ117: ='Optional Adjustment 22'!G117*$AQ$1 -> 0 | AR117: ='LNG O&M'!G117*$AR$1 -> 0 | AT117: =SUM(F117:AS117) -> 0 | AV117: =SUM(AT117:AT117) -> 0 | AW117: =+AV117-'ROR-Model'!G117 -> 0
AW118: =+AV118-'ROR-Model'!G118 -> 0
C119: Commodity Revenue | H119: =H1*Revenue!$S$118 -> 0 | S119: ='EDIT Amort Adj'!G119*$S$1 -> 0 | T119: ='Envision Tomorrow Savings'!G119*$T$1 -> 0 | U119: =Pension!G119*$U$1 -> 0 | V119: ='Optional Adjustment 1'!G119*$V$1 -> 0 | W119: ='Optional Adjustment 2'!G119*$W$1 -> 0 | X119: ='Optional Adjustment 3'!G119*$X$1 -> 0 | Y119: ='Optional Adjustment 4'!G119*$Y$1 -> 0 | Z119: ='Optional Adjustment 5'!G119*$Z$1 -> 0 | AA119: ='Optional Adjustment 6'!G119*$AA$1 -> 0 | AB119: ='Optional Adjustment 7'!G119*$AB$1 -> 0 | AC119: ='Optional Adjustment 8'!G119*$AC$1 -> 0 | AD119: ='Optional Adjustment 9'!G119*$AD$1 -> 0 | AE119: ='Optional Adjustment 10'!G119*$AE$1 -> 0 | AF119: ='Optional Adjustment 11'!G119*$AF$1 -> 0 | AG119: ='Optional Adjustment 12'!G119*$AG$1 -> 0 | AH119: ='Optional Adjustment 13'!G119*$AH$1 -> 0 | AI119: ='Optional Adjustment 14'!G119*$AI$1 -> 0 | AJ119: ='Optional Adjustment 15'!G119*$AJ$1 -> 0 | AK119: ='Optional Adjustment 16'!G119*$AK$1 -> 0 | AL119: ='Optional Adjustment 17'!G119*$AL$1 -> 0 | AM119: ='Optional Adjustment 18'!G119*$AM$1 -> 0 | AN119: ='Optional Adjustment 19'!G119*$AN$1 -> 0 | AO119: ='Optional Adjustment 20'!G119*$AO$1 -> 0 | AP119: ='Optional Adjustment 21'!G119*$AP$1 -> 0 | AQ119: ='Optional Adjustment 22'!G119*$AQ$1 -> 0 | AR119: ='LNG O&M'!G119*$AR$1 -> 0 | AT119: =SUM(F119:AS119) -> 0 | AV119: =SUM(AT119:AT119) -> 0 | AW119: =+AV119-'ROR-Model'!G119 -> 0
C120: Total Revenue | F120: =SUM(F115:F119) -> 0 | H120: =H1*SUM(H115:H119) -> 2240124 | I120: =SUM(I115:I119) -> 0 | J120: =SUM(J115:J119) -> 0 | K120: 0 | L120: 0 | M120: 0 | N120: 0 | O120: 0 | P120: 0 | Q120: =SUM(Q115:Q119) -> 0 | R120: 0 | S120: =SUM(S115:S119) -> 0 | T120: 0 | U120: 0 | V120: =SUM(V115:V119) -> 0 | W120: 0 | X120: 0 | Y120: 0 | Z120: 0 | AA120: 0 | AB120: 0 | AC120: 0 | AD120: 0 | AE120: 0 | AF120: =SUM(AF115:AF119) -> 0 | AG120: 0 | AH120: 0 | AI120: 0 | AJ120: =SUM(AJ115:AJ119) -> 0 | AK120: 0 | AL120: 0 | AM120: 0 | AN120: 0 | AO120: =SUM(AO115:AO119) -> 0 | AP120: 0 | AQ120: 0 | AR120: =SUM(AR115:AR119) -> 0 | AT120: =SUM(AT115:AT119) -> 2240124 | AV120: =SUM(AV115:AV119) -> 2240124 | AW120: =+AV120-'ROR-Model'!G120 -> 0
AW121: =+AV121-'ROR-Model'!G121 -> 0
C122: Total Dth | H122: =H1*Revenue!$S$121 -> 43403526 | AT122: =SUM(F122:AS122) -> 43403526 | AV122: =SUM(AT122:AT122) -> 43403526 | AW122: =+AV122-'ROR-Model'!G122 -> 0
AW123: =+AV123-'ROR-Model'!G123 -> 0
B124: FT_TBF | C124: Distribution Non-Gas Rev | H124: =H1*Revenue!$S$123 -> -4609324.031 | S124: ='EDIT Amort Adj'!G124*$S$1 -> 0 | T124: ='Envision Tomorrow Savings'!G124*$T$1 -> 0 | U124: =Pension!G124*$U$1 -> 0 | V124: ='Optional Adjustment 1'!G124*$V$1 -> 0 | W124: ='Optional Adjustment 2'!G124*$W$1 -> 0 | X124: ='Optional Adjustment 3'!G124*$X$1 -> 0 | Y124: ='Optional Adjustment 4'!G124*$Y$1 -> 0 | Z124: ='Optional Adjustment 5'!G124*$Z$1 -> 0 | AA124: ='Optional Adjustment 6'!G124*$AA$1 -> 0 | AB124: ='Optional Adjustment 7'!G124*$AB$1 -> 0 | AC124: ='Optional Adjustment 8'!G124*$AC$1 -> 0 | AD124: ='Optional Adjustment 9'!G124*$AD$1 -> 0 | AE124: ='Optional Adjustment 10'!G124*$AE$1 -> 0 | AF124: ='Optional Adjustment 11'!G124*$AF$1 -> 0 | AG124: ='Optional Adjustment 12'!G124*$AG$1 -> 0 | AH124: ='Optional Adjustment 13'!G124*$AH$1 -> 0 | AI124: ='Optional Adjustment 14'!G124*$AI$1 -> 0 | AJ124: ='Optional Adjustment 15'!G124*$AJ$1 -> 0 | AK124: ='Optional Adjustment 16'!G124*$AK$1 -> 0 | AL124: ='Optional Adjustment 17'!G124*$AL$1 -> 0 | AM124: ='Optional Adjustment 18'!G124*$AM$1 -> 0 | AN124: ='Optional Adjustment 19'!G124*$AN$1 -> 0 | AO124: ='Optional Adjustment 20'!G124*$AO$1 -> 0 | AP124: ='Optional Adjustment 21'!G124*$AP$1 -> 0 | AQ124: ='Optional Adjustment 22'!G124*$AQ$1 -> 0 | AR124: ='LNG O&M'!G124*$AR$1 -> 0 | AT124: =SUM(F124:AS124) -> -4609324.031 | AV124: =SUM(AT124:AT124) -> -4609324.031 | AW124: =+AV124-'ROR-Model'!G124 -> 0
AW125: =+AV125-'ROR-Model'!G125 -> 0
C126: Supplier Non-Gas Revenue | H126: =H1*Revenue!$S$125 -> -233950.16 | S126: ='EDIT Amort Adj'!G126*$S$1 -> 0 | T126: ='Envision Tomorrow Savings'!G126*$T$1 -> 0 | U126: =Pension!G126*$U$1 -> 0 | V126: ='Optional Adjustment 1'!G126*$V$1 -> 0 | W126: ='Optional Adjustment 2'!G126*$W$1 -> 0 | X126: ='Optional Adjustment 3'!G126*$X$1 -> 0 | Y126: ='Optional Adjustment 4'!G126*$Y$1 -> 0 | Z126: ='Optional Adjustment 5'!G126*$Z$1 -> 0 | AA126: ='Optional Adjustment 6'!G126*$AA$1 -> 0 | AB126: ='Optional Adjustment 7'!G126*$AB$1 -> 0 | AC126: ='Optional Adjustment 8'!G126*$AC$1 -> 0 | AD126: ='Optional Adjustment 9'!G126*$AD$1 -> 0 | AE126: ='Optional Adjustment 10'!G126*$AE$1 -> 0 | AF126: ='Optional Adjustment 11'!G126*$AF$1 -> 0 | AG126: ='Optional Adjustment 12'!G126*$AG$1 -> 0 | AH126: ='Optional Adjustment 13'!G126*$AH$1 -> 0 | AI126: ='Optional Adjustment 14'!G126*$AI$1 -> 0 | AJ126: ='Optional Adjustment 15'!G126*$AJ$1 -> 0 | AK126: ='Optional Adjustment 16'!G126*$AK$1 -> 0 | AL126: ='Optional Adjustment 17'!G126*$AL$1 -> 0 | AM126: ='Optional Adjustment 18'!G126*$AM$1 -> 0 | AN126: ='Optional Adjustment 19'!G126*$AN$1 -> 0 | AO126: ='Optional Adjustment 20'!G126*$AO$1 -> 0 | AP126: ='Optional Adjustment 21'!G126*$AP$1 -> 0 | AQ126: ='Optional Adjustment 22'!G126*$AQ$1 -> 0 | AR126: ='LNG O&M'!G126*$AR$1 -> 0 | AT126: =SUM(F126:AS126) -> -233950.16 | AV126: =SUM(AT126:AT126) -> -233950.16 | AW126: =+AV126-'ROR-Model'!G126 -> 0
AW127: =+AV127-'ROR-Model'!G127 -> 0
C128: Commodity Revenue | H128: =H1*Revenue!$S$127 -> 0 | S128: ='EDIT Amort Adj'!G128*$S$1 -> 0 | T128: ='Envision Tomorrow Savings'!G128*$T$1 -> 0 | U128: =Pension!G128*$U$1 -> 0 | V128: ='Optional Adjustment 1'!G128*$V$1 -> 0 | W128: ='Optional Adjustment 2'!G128*$W$1 -> 0 | X128: ='Optional Adjustment 3'!G128*$X$1 -> 0 | Y128: ='Optional Adjustment 4'!G128*$Y$1 -> 0 | Z128: ='Optional Adjustment 5'!G128*$Z$1 -> 0 | AA128: ='Optional Adjustment 6'!G128*$AA$1 -> 0 | AB128: ='Optional Adjustment 7'!G128*$AB$1 -> 0 | AC128: ='Optional Adjustment 8'!G128*$AC$1 -> 0 | AD128: ='Optional Adjustment 9'!G128*$AD$1 -> 0 | AE128: ='Optional Adjustment 10'!G128*$AE$1 -> 0 | AF128: ='Optional Adjustment 11'!G128*$AF$1 -> 0 | AG128: ='Optional Adjustment 12'!G128*$AG$1 -> 0 | AH128: ='Optional Adjustment 13'!G128*$AH$1 -> 0 | AI128: ='Optional Adjustment 14'!G128*$AI$1 -> 0 | AJ128: ='Optional Adjustment 15'!G128*$AJ$1 -> 0 | AK128: ='Optional Adjustment 16'!G128*$AK$1 -> 0 | AL128: ='Optional Adjustment 17'!G128*$AL$1 -> 0 | AM128: ='Optional Adjustment 18'!G128*$AM$1 -> 0 | AN128: ='Optional Adjustment 19'!G128*$AN$1 -> 0 | AO128: ='Optional Adjustment 20'!G128*$AO$1 -> 0 | AP128: ='Optional Adjustment 21'!G128*$AP$1 -> 0 | AQ128: ='Optional Adjustment 22'!G128*$AQ$1 -> 0 | AR128: ='LNG O&M'!G128*$AR$1 -> 0 | AT128: =SUM(F128:AS128) -> 0 | AV128: =SUM(AT128:AT128) -> 0 | AW128: =+AV128-'ROR-Model'!G128 -> 0
C129: Total Revenue | F129: =SUM(F124:F128) -> 0 | H129: =H1*SUM(H124:H128) -> -4843274.191 | I129: =SUM(I124:I128) -> 0 | J129: =SUM(J124:J128) -> 0 | K129: 0 | L129: 0 | M129: 0 | N129: 0 | O129: 0 | P129: 0 | Q129: =SUM(Q124:Q128) -> 0 | R129: 0 | S129: =SUM(S124:S128) -> 0 | T129: 0 | U129: 0 | V129: =SUM(V124:V128) -> 0 | W129: 0 | X129: 0 | Y129: 0 | Z129: 0 | AA129: 0 | AB129: 0 | AC129: 0 | AD129: 0 | AE129: 0 | AF129: =SUM(AF124:AF128) -> 0 | AG129: 0 | AH129: 0 | AI129: 0 | AJ129: =SUM(AJ124:AJ128) -> 0 | AK129: 0 | AL129: 0 | AM129: 0 | AN129: 0 | AO129: =SUM(AO124:AO128) -> 0 | AP129: 0 | AQ129: 0 | AR129: =SUM(AR124:AR128) -> 0 | AT129: =SUM(AT124:AT128) -> -4843274.191 | AV129: =SUM(AV124:AV128) -> -4843274.191 | AW129: =+AV129-'ROR-Model'!G129 -> 0
AW130: =+AV130-'ROR-Model'!G130 -> 0
C131: Total Dth | H131: =H1*Revenue!$S$130 -> -45752495 | AT131: =SUM(F131:AS131) -> -45752495 | AV131: =SUM(AT131:AT131) -> -45752495 | AW131: =+AV131-'ROR-Model'!G131 -> 0
AW132: =+AV132-'ROR-Model'!G132 -> 0
B133: FT-2 | C133: Distribution Non-Gas Rev | H133: =H1*Revenue!$S$132 -> 0 | S133: ='EDIT Amort Adj'!G133*$S$1 -> 0 | T133: ='Envision Tomorrow Savings'!G133*$T$1 -> 0 | U133: =Pension!G133*$U$1 -> 0 | V133: ='Optional Adjustment 1'!G133*$V$1 -> 0 | W133: ='Optional Adjustment 2'!G133*$W$1 -> 0 | X133: ='Optional Adjustment 3'!G133*$X$1 -> 0 | Y133: ='Optional Adjustment 4'!G133*$Y$1 -> 0 | Z133: ='Optional Adjustment 5'!G133*$Z$1 -> 0 | AA133: ='Optional Adjustment 6'!G133*$AA$1 -> 0 | AB133: ='Optional Adjustment 7'!G133*$AB$1 -> 0 | AC133: ='Optional Adjustment 8'!G133*$AC$1 -> 0 | AD133: ='Optional Adjustment 9'!G133*$AD$1 -> 0 | AE133: ='Optional Adjustment 10'!G133*$AE$1 -> 0 | AF133: ='Optional Adjustment 11'!G133*$AF$1 -> 0 | AG133: ='Optional Adjustment 12'!G133*$AG$1 -> 0 | AH133: ='Optional Adjustment 13'!G133*$AH$1 -> 0 | AI133: ='Optional Adjustment 14'!G133*$AI$1 -> 0 | AJ133: ='Optional Adjustment 15'!G133*$AJ$1 -> 0 | AK133: ='Optional Adjustment 16'!G133*$AK$1 -> 0 | AL133: ='Optional Adjustment 17'!G133*$AL$1 -> 0 | AM133: ='Optional Adjustment 18'!G133*$AM$1 -> 0 | AN133: ='Optional Adjustment 19'!G133*$AN$1 -> 0 | AO133: ='Optional Adjustment 20'!G133*$AO$1 -> 0 | AP133: ='Optional Adjustment 21'!G133*$AP$1 -> 0 | AQ133: ='Optional Adjustment 22'!G133*$AQ$1 -> 0 | AR133: ='LNG O&M'!G133*$AR$1 -> 0 | AT133: =SUM(F133:AS133) -> 0 | AV133: =SUM(AT133:AT133) -> 0 | AW133: =+AV133-'ROR-Model'!G133 -> 0
AW134: =+AV134-'ROR-Model'!G134 -> 0
C135: Supplier Non-Gas Revenue | H135: =H1*Revenue!$S$134 -> 0 | S135: ='EDIT Amort Adj'!G135*$S$1 -> 0 | T135: ='Envision Tomorrow Savings'!G135*$T$1 -> 0 | U135: =Pension!G135*$U$1 -> 0 | V135: ='Optional Adjustment 1'!G135*$V$1 -> 0 | W135: ='Optional Adjustment 2'!G135*$W$1 -> 0 | X135: ='Optional Adjustment 3'!G135*$X$1 -> 0 | Y135: ='Optional Adjustment 4'!G135*$Y$1 -> 0 | Z135: ='Optional Adjustment 5'!G135*$Z$1 -> 0 | AA135: ='Optional Adjustment 6'!G135*$AA$1 -> 0 | AB135: ='Optional Adjustment 7'!G135*$AB$1 -> 0 | AC135: ='Optional Adjustment 8'!G135*$AC$1 -> 0 | AD135: ='Optional Adjustment 9'!G135*$AD$1 -> 0 | AE135: ='Optional Adjustment 10'!G135*$AE$1 -> 0 | AF135: ='Optional Adjustment 11'!G135*$AF$1 -> 0 | AG135: ='Optional Adjustment 12'!G135*$AG$1 -> 0 | AH135: ='Optional Adjustment 13'!G135*$AH$1 -> 0 | AI135: ='Optional Adjustment 14'!G135*$AI$1 -> 0 | AJ135: ='Optional Adjustment 15'!G135*$AJ$1 -> 0 | AK135: ='Optional Adjustment 16'!G135*$AK$1 -> 0 | AL135: ='Optional Adjustment 17'!G135*$AL$1 -> 0 | AM135: ='Optional Adjustment 18'!G135*$AM$1 -> 0 | AN135: ='Optional Adjustment 19'!G135*$AN$1 -> 0 | AO135: ='Optional Adjustment 20'!G135*$AO$1 -> 0 | AP135: ='Optional Adjustment 21'!G135*$AP$1 -> 0 | AQ135: ='Optional Adjustment 22'!G135*$AQ$1 -> 0 | AR135: ='LNG O&M'!G135*$AR$1 -> 0 | AT135: =SUM(F135:AS135) -> 0 | AV135: =SUM(AT135:AT135) -> 0 | AW135: =+AV135-'ROR-Model'!G135 -> 0
AW136: =+AV136-'ROR-Model'!G136 -> 0
C137: Commodity Revenue | H137: =H1*Revenue!$S$136 -> 0 | S137: ='EDIT Amort Adj'!G137*$S$1 -> 0 | T137: ='Envision Tomorrow Savings'!G137*$T$1 -> 0 | U137: =Pension!G137*$U$1 -> 0 | V137: ='Optional Adjustment 1'!G137*$V$1 -> 0 | W137: ='Optional Adjustment 2'!G137*$W$1 -> 0 | X137: ='Optional Adjustment 3'!G137*$X$1 -> 0 | Y137: ='Optional Adjustment 4'!G137*$Y$1 -> 0 | Z137: ='Optional Adjustment 5'!G137*$Z$1 -> 0 | AA137: ='Optional Adjustment 6'!G137*$AA$1 -> 0 | AB137: ='Optional Adjustment 7'!G137*$AB$1 -> 0 | AC137: ='Optional Adjustment 8'!G137*$AC$1 -> 0 | AD137: ='Optional Adjustment 9'!G137*$AD$1 -> 0 | AE137: ='Optional Adjustment 10'!G137*$AE$1 -> 0 | AF137: ='Optional Adjustment 11'!G137*$AF$1 -> 0 | AG137: ='Optional Adjustment 12'!G137*$AG$1 -> 0 | AH137: ='Optional Adjustment 13'!G137*$AH$1 -> 0 | AI137: ='Optional Adjustment 14'!G137*$AI$1 -> 0 | AJ137: ='Optional Adjustment 15'!G137*$AJ$1 -> 0 | AK137: ='Optional Adjustment 16'!G137*$AK$1 -> 0 | AL137: ='Optional Adjustment 17'!G137*$AL$1 -> 0 | AM137: ='Optional Adjustment 18'!G137*$AM$1 -> 0 | AN137: ='Optional Adjustment 19'!G137*$AN$1 -> 0 | AO137: ='Optional Adjustment 20'!G137*$AO$1 -> 0 | AP137: ='Optional Adjustment 21'!G137*$AP$1 -> 0 | AQ137: ='Optional Adjustment 22'!G137*$AQ$1 -> 0 | AR137: ='LNG O&M'!G137*$AR$1 -> 0 | AT137: =SUM(F137:AS137) -> 0 | AV137: =SUM(AT137:AT137) -> 0 | AW137: =+AV137-'ROR-Model'!G137 -> 0
C138: Total Revenue | F138: =SUM(F133:F137) -> 0 | H138: =H1*SUM(H133:H137) -> 0 | I138: =SUM(I133:I137) -> 0 | J138: =SUM(J133:J137) -> 0 | K138: 0 | L138: 0 | M138: 0 | N138: 0 | O138: 0 | P138: 0 | Q138: =SUM(Q133:Q137) -> 0 | R138: 0 | S138: =SUM(S133:S137) -> 0 | T138: 0 | U138: 0 | V138: =SUM(V133:V137) -> 0 | W138: 0 | X138: 0 | Y138: 0 | Z138: 0 | AA138: 0 | AB138: 0 | AC138: 0 | AD138: 0 | AE138: 0 | AF138: =SUM(AF133:AF137) -> 0 | AG138: 0 | AH138: 0 | AI138: 0 | AJ138: =SUM(AJ133:AJ137) -> 0 | AK138: 0 | AL138: 0 | AM138: 0 | AN138: 0 | AO138: =SUM(AO133:AO137) -> 0 | AP138: 0 | AQ138: 0 | AR138: =SUM(AR133:AR137) -> 0 | AT138: =SUM(AT133:AT137) -> 0 | AV138: =SUM(AV133:AV137) -> 0 | AW138: =+AV138-'ROR-Model'!G138 -> 0
AW139: =+AV139-'ROR-Model'!G139 -> 0
C140: Total Dth | H140: =H1*Revenue!$S$139 -> 0 | AT140: =SUM(F140:AS140) -> 0 | AV140: =SUM(AT140:AT140) -> 0 | AW140: =+AV140-'ROR-Model'!G140 -> 0
AW141: =+AV141-'ROR-Model'!G141 -> 0
B142: MT | C142: Distribution Non-Gas Rev | H142: =H1*Revenue!$S$141 -> 3713.27268 | S142: ='EDIT Amort Adj'!G142*$S$1 -> 0 | T142: ='Envision Tomorrow Savings'!G142*$T$1 -> 0 | U142: =Pension!G142*$U$1 -> 0 | V142: ='Optional Adjustment 1'!G142*$V$1 -> 0 | W142: ='Optional Adjustment 2'!G142*$W$1 -> 0 | X142: ='Optional Adjustment 3'!G142*$X$1 -> 0 | Y142: ='Optional Adjustment 4'!G142*$Y$1 -> 0 | Z142: ='Optional Adjustment 5'!G142*$Z$1 -> 0 | AA142: ='Optional Adjustment 6'!G142*$AA$1 -> 0 | AB142: ='Optional Adjustment 7'!G142*$AB$1 -> 0 | AC142: ='Optional Adjustment 8'!G142*$AC$1 -> 0 | AD142: ='Optional Adjustment 9'!G142*$AD$1 -> 0 | AE142: ='Optional Adjustment 10'!G142*$AE$1 -> 0 | AF142: ='Optional Adjustment 11'!G142*$AF$1 -> 0 | AG142: ='Optional Adjustment 12'!G142*$AG$1 -> 0 | AH142: ='Optional Adjustment 13'!G142*$AH$1 -> 0 | AI142: ='Optional Adjustment 14'!G142*$AI$1 -> 0 | AJ142: ='Optional Adjustment 15'!G142*$AJ$1 -> 0 | AK142: ='Optional Adjustment 16'!G142*$AK$1 -> 0 | AL142: ='Optional Adjustment 17'!G142*$AL$1 -> 0 | AM142: ='Optional Adjustment 18'!G142*$AM$1 -> 0 | AN142: ='Optional Adjustment 19'!G142*$AN$1 -> 0 | AO142: ='Optional Adjustment 20'!G142*$AO$1 -> 0 | AP142: ='Optional Adjustment 21'!G142*$AP$1 -> 0 | AQ142: ='Optional Adjustment 22'!G142*$AQ$1 -> 0 | AR142: ='LNG O&M'!G142*$AR$1 -> 0 | AT142: =SUM(F142:AS142) -> 3713.27268 | AV142: =SUM(AT142:AT142) -> 3713.27268 | AW142: =+AV142-'ROR-Model'!G142 -> 0
AW143: =+AV143-'ROR-Model'!G143 -> 0
C144: Supplier Non-Gas Revenue | H144: =H1*Revenue!$S$143 -> 5776.61 | S144: ='EDIT Amort Adj'!G144*$S$1 -> 0 | T144: ='Envision Tomorrow Savings'!G144*$T$1 -> 0 | U144: =Pension!G144*$U$1 -> 0 | V144: ='Optional Adjustment 1'!G144*$V$1 -> 0 | W144: ='Optional Adjustment 2'!G144*$W$1 -> 0 | X144: ='Optional Adjustment 3'!G144*$X$1 -> 0 | Y144: ='Optional Adjustment 4'!G144*$Y$1 -> 0 | Z144: ='Optional Adjustment 5'!G144*$Z$1 -> 0 | AA144: ='Optional Adjustment 6'!G144*$AA$1 -> 0 | AB144: ='Optional Adjustment 7'!G144*$AB$1 -> 0 | AC144: ='Optional Adjustment 8'!G144*$AC$1 -> 0 | AD144: ='Optional Adjustment 9'!G144*$AD$1 -> 0 | AE144: ='Optional Adjustment 10'!G144*$AE$1 -> 0 | AF144: ='Optional Adjustment 11'!G144*$AF$1 -> 0 | AG144: ='Optional Adjustment 12'!G144*$AG$1 -> 0 | AH144: ='Optional Adjustment 13'!G144*$AH$1 -> 0 | AI144: ='Optional Adjustment 14'!G144*$AI$1 -> 0 | AJ144: ='Optional Adjustment 15'!G144*$AJ$1 -> 0 | AK144: ='Optional Adjustment 16'!G144*$AK$1 -> 0 | AL144: ='Optional Adjustment 17'!G144*$AL$1 -> 0 | AM144: ='Optional Adjustment 18'!G144*$AM$1 -> 0 | AN144: ='Optional Adjustment 19'!G144*$AN$1 -> 0 | AO144: ='Optional Adjustment 20'!G144*$AO$1 -> 0 | AP144: ='Optional Adjustment 21'!G144*$AP$1 -> 0 | AQ144: ='Optional Adjustment 22'!G144*$AQ$1 -> 0 | AR144: ='LNG O&M'!G144*$AR$1 -> 0 | AT144: =SUM(F144:AS144) -> 5776.61 | AV144: =SUM(AT144:AT144) -> 5776.61 | AW144: =+AV144-'ROR-Model'!G144 -> 0
AW145: =+AV145-'ROR-Model'!G145 -> 0
C146: Commodity Revenue | H146: =H1*Revenue!$S$145 -> -929051.52 | S146: ='EDIT Amort Adj'!G146*$S$1 -> 0 | T146: ='Envision Tomorrow Savings'!G146*$T$1 -> 0 | U146: =Pension!G146*$U$1 -> 0 | V146: ='Optional Adjustment 1'!G146*$V$1 -> 0 | W146: ='Optional Adjustment 2'!G146*$W$1 -> 0 | X146: ='Optional Adjustment 3'!G146*$X$1 -> 0 | Y146: ='Optional Adjustment 4'!G146*$Y$1 -> 0 | Z146: ='Optional Adjustment 5'!G146*$Z$1 -> 0 | AA146: ='Optional Adjustment 6'!G146*$AA$1 -> 0 | AB146: ='Optional Adjustment 7'!G146*$AB$1 -> 0 | AC146: ='Optional Adjustment 8'!G146*$AC$1 -> 0 | AD146: ='Optional Adjustment 9'!G146*$AD$1 -> 0 | AE146: ='Optional Adjustment 10'!G146*$AE$1 -> 0 | AF146: ='Optional Adjustment 11'!G146*$AF$1 -> 0 | AG146: ='Optional Adjustment 12'!G146*$AG$1 -> 0 | AH146: ='Optional Adjustment 13'!G146*$AH$1 -> 0 | AI146: ='Optional Adjustment 14'!G146*$AI$1 -> 0 | AJ146: ='Optional Adjustment 15'!G146*$AJ$1 -> 0 | AK146: ='Optional Adjustment 16'!G146*$AK$1 -> 0 | AL146: ='Optional Adjustment 17'!G146*$AL$1 -> 0 | AM146: ='Optional Adjustment 18'!G146*$AM$1 -> 0 | AN146: ='Optional Adjustment 19'!G146*$AN$1 -> 0 | AO146: ='Optional Adjustment 20'!G146*$AO$1 -> 0 | AP146: ='Optional Adjustment 21'!G146*$AP$1 -> 0 | AQ146: ='Optional Adjustment 22'!G146*$AQ$1 -> 0 | AR146: ='LNG O&M'!G146*$AR$1 -> 0 | AT146: =SUM(F146:AS146) -> -929051.52 | AV146: =SUM(AT146:AT146) -> -929051.52 | AW146: =+AV146-'ROR-Model'!G146 -> 0
C147: Total Revenue | F147: =SUM(F142:F146) -> 0 | H147: =H1*SUM(H142:H146) -> -919561.6373 | I147: =SUM(I142:I146) -> 0 | J147: =SUM(J142:J146) -> 0 | K147: 0 | L147: 0 | M147: 0 | N147: 0 | O147: 0 | P147: 0 | Q147: =SUM(Q142:Q146) -> 0 | R147: 0 | S147: =SUM(S142:S146) -> 0 | T147: 0 | U147: 0 | V147: =SUM(V142:V146) -> 0 | W147: 0 | X147: 0 | Y147: 0 | Z147: 0 | AA147: 0 | AB147: 0 | AC147: 0 | AD147: 0 | AE147: 0 | AF147: =SUM(AF142:AF146) -> 0 | AG147: 0 | AH147: 0 | AI147: 0 | AJ147: =SUM(AJ142:AJ146) -> 0 | AK147: 0 | AL147: 0 | AM147: 0 | AN147: 0 | AO147: =SUM(AO142:AO146) -> 0 | AP147: 0 | AQ147: 0 | AR147: =SUM(AR142:AR146) -> 0 | AT147: =SUM(AT142:AT146) -> -919561.6373 | AV147: =SUM(AV142:AV146) -> -919561.6373 | AW147: =+AV147-'ROR-Model'!G147 -> 0
AW148: =+AV148-'ROR-Model'!G148 -> 0
C149: Total Dth | H149: =H1*Revenue!$S$148 -> -467 | AT149: =SUM(F149:AS149) -> -467 | AV149: =SUM(AT149:AT149) -> -467 | AW149: =+AV149-'ROR-Model'!G149 -> 0
AW150: =+AV150-'ROR-Model'!G150 -> 0
B151: FT-E | C151: Distribution Non-Gas Rev | H151: =H1*Revenue!$S$150 -> 0 | S151: ='EDIT Amort Adj'!G151*$S$1 -> 0 | T151: ='Envision Tomorrow Savings'!G151*$T$1 -> 0 | U151: =Pension!G151*$U$1 -> 0 | V151: ='Optional Adjustment 1'!G151*$V$1 -> 0 | W151: ='Optional Adjustment 2'!G151*$W$1 -> 0 | X151: ='Optional Adjustment 3'!G151*$X$1 -> 0 | Y151: ='Optional Adjustment 4'!G151*$Y$1 -> 0 | Z151: ='Optional Adjustment 5'!G151*$Z$1 -> 0 | AA151: ='Optional Adjustment 6'!G151*$AA$1 -> 0 | AB151: ='Optional Adjustment 7'!G151*$AB$1 -> 0 | AC151: ='Optional Adjustment 8'!G151*$AC$1 -> 0 | AD151: ='Optional Adjustment 9'!G151*$AD$1 -> 0 | AE151: ='Optional Adjustment 10'!G151*$AE$1 -> 0 | AF151: ='Optional Adjustment 11'!G151*$AF$1 -> 0 | AG151: ='Optional Adjustment 12'!G151*$AG$1 -> 0 | AH151: ='Optional Adjustment 13'!G151*$AH$1 -> 0 | AI151: ='Optional Adjustment 14'!G151*$AI$1 -> 0 | AJ151: ='Optional Adjustment 15'!G151*$AJ$1 -> 0 | AK151: ='Optional Adjustment 16'!G151*$AK$1 -> 0 | AL151: ='Optional Adjustment 17'!G151*$AL$1 -> 0 | AM151: ='Optional Adjustment 18'!G151*$AM$1 -> 0 | AN151: ='Optional Adjustment 19'!G151*$AN$1 -> 0 | AO151: ='Optional Adjustment 20'!G151*$AO$1 -> 0 | AP151: ='Optional Adjustment 21'!G151*$AP$1 -> 0 | AQ151: ='Optional Adjustment 22'!G151*$AQ$1 -> 0 | AR151: ='LNG O&M'!G151*$AR$1 -> 0 | AT151: =SUM(F151:AS151) -> 0 | AV151: =SUM(AT151:AT151) -> 0 | AW151: =+AV151-'ROR-Model'!G151 -> 0
AW152: =+AV152-'ROR-Model'!G152 -> 0
C153: Supplier Non-Gas Revenue | H153: =H1*Revenue!$S$152 -> 0 | S153: ='EDIT Amort Adj'!G153*$S$1 -> 0 | T153: ='Envision Tomorrow Savings'!G153*$T$1 -> 0 | U153: =Pension!G153*$U$1 -> 0 | V153: ='Optional Adjustment 1'!G153*$V$1 -> 0 | W153: ='Optional Adjustment 2'!G153*$W$1 -> 0 | X153: ='Optional Adjustment 3'!G153*$X$1 -> 0 | Y153: ='Optional Adjustment 4'!G153*$Y$1 -> 0 | Z153: ='Optional Adjustment 5'!G153*$Z$1 -> 0 | AA153: ='Optional Adjustment 6'!G153*$AA$1 -> 0 | AB153: ='Optional Adjustment 7'!G153*$AB$1 -> 0 | AC153: ='Optional Adjustment 8'!G153*$AC$1 -> 0 | AD153: ='Optional Adjustment 9'!G153*$AD$1 -> 0 | AE153: ='Optional Adjustment 10'!G153*$AE$1 -> 0 | AF153: ='Optional Adjustment 11'!G153*$AF$1 -> 0 | AG153: ='Optional Adjustment 12'!G153*$AG$1 -> 0 | AH153: ='Optional Adjustment 13'!G153*$AH$1 -> 0 | AI153: ='Optional Adjustment 14'!G153*$AI$1 -> 0 | AJ153: ='Optional Adjustment 15'!G153*$AJ$1 -> 0 | AK153: ='Optional Adjustment 16'!G153*$AK$1 -> 0 | AL153: ='Optional Adjustment 17'!G153*$AL$1 -> 0 | AM153: ='Optional Adjustment 18'!G153*$AM$1 -> 0 | AN153: ='Optional Adjustment 19'!G153*$AN$1 -> 0 | AO153: ='Optional Adjustment 20'!G153*$AO$1 -> 0 | AP153: ='Optional Adjustment 21'!G153*$AP$1 -> 0 | AQ153: ='Optional Adjustment 22'!G153*$AQ$1 -> 0 | AR153: ='LNG O&M'!G153*$AR$1 -> 0 | AT153: =SUM(F153:AS153) -> 0 | AV153: =SUM(AT153:AT153) -> 0 | AW153: =+AV153-'ROR-Model'!G153 -> 0
AW154: =+AV154-'ROR-Model'!G154 -> 0
C155: Commodity Revenue | H155: =H1*Revenue!$S$154 -> 0 | S155: ='EDIT Amort Adj'!G155*$S$1 -> 0 | T155: ='Envision Tomorrow Savings'!G155*$T$1 -> 0 | U155: =Pension!G155*$U$1 -> 0 | V155: ='Optional Adjustment 1'!G155*$V$1 -> 0 | W155: ='Optional Adjustment 2'!G155*$W$1 -> 0 | X155: ='Optional Adjustment 3'!G155*$X$1 -> 0 | Y155: ='Optional Adjustment 4'!G155*$Y$1 -> 0 | Z155: ='Optional Adjustment 5'!G155*$Z$1 -> 0 | AA155: ='Optional Adjustment 6'!G155*$AA$1 -> 0 | AB155: ='Optional Adjustment 7'!G155*$AB$1 -> 0 | AC155: ='Optional Adjustment 8'!G155*$AC$1 -> 0 | AD155: ='Optional Adjustment 9'!G155*$AD$1 -> 0 | AE155: ='Optional Adjustment 10'!G155*$AE$1 -> 0 | AF155: ='Optional Adjustment 11'!G155*$AF$1 -> 0 | AG155: ='Optional Adjustment 12'!G155*$AG$1 -> 0 | AH155: ='Optional Adjustment 13'!G155*$AH$1 -> 0 | AI155: ='Optional Adjustment 14'!G155*$AI$1 -> 0 | AJ155: ='Optional Adjustment 15'!G155*$AJ$1 -> 0 | AK155: ='Optional Adjustment 16'!G155*$AK$1 -> 0 | AL155: ='Optional Adjustment 17'!G155*$AL$1 -> 0 | AM155: ='Optional Adjustment 18'!G155*$AM$1 -> 0 | AN155: ='Optional Adjustment 19'!G155*$AN$1 -> 0 | AO155: ='Optional Adjustment 20'!G155*$AO$1 -> 0 | AP155: ='Optional Adjustment 21'!G155*$AP$1 -> 0 | AQ155: ='Optional Adjustment 22'!G155*$AQ$1 -> 0 | AR155: ='LNG O&M'!G155*$AR$1 -> 0 | AT155: =SUM(F155:AS155) -> 0 | AV155: =SUM(AT155:AT155) -> 0 | AW155: =+AV155-'ROR-Model'!G155 -> 0
C156: Total Revenue | F156: =SUM(F151:F155) -> 0 | H156: =H1*SUM(H151:H155) -> 0 | I156: =SUM(I151:I155) -> 0 | J156: =SUM(J151:J155) -> 0 | K156: 0 | L156: 0 | M156: 0 | N156: 0 | O156: 0 | P156: 0 | Q156: =SUM(Q151:Q155) -> 0 | R156: 0 | S156: =SUM(S151:S155) -> 0 | T156: 0 | U156: 0 | V156: =SUM(V151:V155) -> 0 | W156: 0 | X156: 0 | Y156: 0 | Z156: 0 | AA156: 0 | AB156: 0 | AC156: 0 | AD156: 0 | AE156: 0 | AF156: =SUM(AF151:AF155) -> 0 | AG156: 0 | AH156: 0 | AI156: 0 | AJ156: =SUM(AJ151:AJ155) -> 0 | AK156: 0 | AL156: 0 | AM156: 0 | AN156: 0 | AO156: =SUM(AO151:AO155) -> 0 | AP156: 0 | AQ156: 0 | AR156: =SUM(AR151:AR155) -> 0 | AT156: =SUM(AT151:AT155) -> 0 | AV156: =SUM(AV151:AV155) -> 0 | AW156: =+AV156-'ROR-Model'!G156 -> 0
AW157: =+AV157-'ROR-Model'!G157 -> 0
C158: Total Dth | H158: =H1*Revenue!$S$157 -> 0 | AT158: =SUM(F158:AS158) -> 0 | AV158: =SUM(AT158:AT158) -> 0 | AW158: =+AV158-'ROR-Model'!G158 -> 0
AW159: =+AV159-'ROR-Model'!G159 -> 0
B160: IT_TS_ITA_ITB | C160: Distribution Non-Gas Rev | H160: =H1*Revenue!$S$159 -> 5317280.265 | S160: ='EDIT Amort Adj'!G160*$S$1 -> 0 | T160: ='Envision Tomorrow Savings'!G160*$T$1 -> 0 | U160: =Pension!G160*$U$1 -> 0 | V160: ='Optional Adjustment 1'!G160*$V$1 -> 0 | W160: ='Optional Adjustment 2'!G160*$W$1 -> 0 | X160: ='Optional Adjustment 3'!G160*$X$1 -> 0 | Y160: ='Optional Adjustment 4'!G160*$Y$1 -> 0 | Z160: ='Optional Adjustment 5'!G160*$Z$1 -> 0 | AA160: ='Optional Adjustment 6'!G160*$AA$1 -> 0 | AB160: ='Optional Adjustment 7'!G160*$AB$1 -> 0 | AC160: ='Optional Adjustment 8'!G160*$AC$1 -> 0 | AD160: ='Optional Adjustment 9'!G160*$AD$1 -> 0 | AE160: ='Optional Adjustment 10'!G160*$AE$1 -> 0 | AF160: ='Optional Adjustment 11'!G160*$AF$1 -> 0 | AG160: ='Optional Adjustment 12'!G160*$AG$1 -> 0 | AH160: ='Optional Adjustment 13'!G160*$AH$1 -> 0 | AI160: ='Optional Adjustment 14'!G160*$AI$1 -> 0 | AJ160: ='Optional Adjustment 15'!G160*$AJ$1 -> 0 | AK160: ='Optional Adjustment 16'!G160*$AK$1 -> 0 | AL160: ='Optional Adjustment 17'!G160*$AL$1 -> 0 | AM160: ='Optional Adjustment 18'!G160*$AM$1 -> 0 | AN160: ='Optional Adjustment 19'!G160*$AN$1 -> 0 | AO160: ='Optional Adjustment 20'!G160*$AO$1 -> 0 | AP160: ='Optional Adjustment 21'!G160*$AP$1 -> 0 | AQ160: ='Optional Adjustment 22'!G160*$AQ$1 -> 0 | AR160: ='LNG O&M'!G160*$AR$1 -> 0 | AT160: =SUM(F160:AS160) -> 5317280.265 | AV160: =SUM(AT160:AT160) -> 5317280.265 | AW160: =+AV160-'ROR-Model'!G160 -> 0
AW161: =+AV161-'ROR-Model'!G161 -> 0
C162: Supplier Non-Gas Revenue | H162: =H1*Revenue!$S$161 -> -902569.1 | S162: ='EDIT Amort Adj'!G162*$S$1 -> 0 | T162: ='Envision Tomorrow Savings'!G162*$T$1 -> 0 | U162: =Pension!G162*$U$1 -> 0 | V162: ='Optional Adjustment 1'!G162*$V$1 -> 0 | W162: ='Optional Adjustment 2'!G162*$W$1 -> 0 | X162: ='Optional Adjustment 3'!G162*$X$1 -> 0 | Y162: ='Optional Adjustment 4'!G162*$Y$1 -> 0 | Z162: ='Optional Adjustment 5'!G162*$Z$1 -> 0 | AA162: ='Optional Adjustment 6'!G162*$AA$1 -> 0 | AB162: ='Optional Adjustment 7'!G162*$AB$1 -> 0 | AC162: ='Optional Adjustment 8'!G162*$AC$1 -> 0 | AD162: ='Optional Adjustment 9'!G162*$AD$1 -> 0 | AE162: ='Optional Adjustment 10'!G162*$AE$1 -> 0 | AF162: ='Optional Adjustment 11'!G162*$AF$1 -> 0 | AG162: ='Optional Adjustment 12'!G162*$AG$1 -> 0 | AH162: ='Optional Adjustment 13'!G162*$AH$1 -> 0 | AI162: ='Optional Adjustment 14'!G162*$AI$1 -> 0 | AJ162: ='Optional Adjustment 15'!G162*$AJ$1 -> 0 | AK162: ='Optional Adjustment 16'!G162*$AK$1 -> 0 | AL162: ='Optional Adjustment 17'!G162*$AL$1 -> 0 | AM162: ='Optional Adjustment 18'!G162*$AM$1 -> 0 | AN162: ='Optional Adjustment 19'!G162*$AN$1 -> 0 | AO162: ='Optional Adjustment 20'!G162*$AO$1 -> 0 | AP162: ='Optional Adjustment 21'!G162*$AP$1 -> 0 | AQ162: ='Optional Adjustment 22'!G162*$AQ$1 -> 0 | AR162: ='LNG O&M'!G162*$AR$1 -> 0 | AT162: =SUM(F162:AS162) -> -902569.1 | AV162: =SUM(AT162:AT162) -> -902569.1 | AW162: =+AV162-'ROR-Model'!G162 -> 0
AW163: =+AV163-'ROR-Model'!G163 -> 0
C164: Commodity Revenue | H164: =H1*Revenue!$S$163 -> 0 | S164: ='EDIT Amort Adj'!G164*$S$1 -> 0 | T164: ='Envision Tomorrow Savings'!G164*$T$1 -> 0 | U164: =Pension!G164*$U$1 -> 0 | V164: ='Optional Adjustment 1'!G164*$V$1 -> 0 | W164: ='Optional Adjustment 2'!G164*$W$1 -> 0 | X164: ='Optional Adjustment 3'!G164*$X$1 -> 0 | Y164: ='Optional Adjustment 4'!G164*$Y$1 -> 0 | Z164: ='Optional Adjustment 5'!G164*$Z$1 -> 0 | AA164: ='Optional Adjustment 6'!G164*$AA$1 -> 0 | AB164: ='Optional Adjustment 7'!G164*$AB$1 -> 0 | AC164: ='Optional Adjustment 8'!G164*$AC$1 -> 0 | AD164: ='Optional Adjustment 9'!G164*$AD$1 -> 0 | AE164: ='Optional Adjustment 10'!G164*$AE$1 -> 0 | AF164: ='Optional Adjustment 11'!G164*$AF$1 -> 0 | AG164: ='Optional Adjustment 12'!G164*$AG$1 -> 0 | AH164: ='Optional Adjustment 13'!G164*$AH$1 -> 0 | AI164: ='Optional Adjustment 14'!G164*$AI$1 -> 0 | AJ164: ='Optional Adjustment 15'!G164*$AJ$1 -> 0 | AK164: ='Optional Adjustment 16'!G164*$AK$1 -> 0 | AL164: ='Optional Adjustment 17'!G164*$AL$1 -> 0 | AM164: ='Optional Adjustment 18'!G164*$AM$1 -> 0 | AN164: ='Optional Adjustment 19'!G164*$AN$1 -> 0 | AO164: ='Optional Adjustment 20'!G164*$AO$1 -> 0 | AP164: ='Optional Adjustment 21'!G164*$AP$1 -> 0 | AQ164: ='Optional Adjustment 22'!G164*$AQ$1 -> 0 | AR164: ='LNG O&M'!G164*$AR$1 -> 0 | AT164: =SUM(F164:AS164) -> 0 | AV164: =SUM(AT164:AT164) -> 0 | AW164: =+AV164-'ROR-Model'!G164 -> 0
C165: Total Revenue | F165: =SUM(F160:F164) -> 0 | H165: =H1*SUM(H160:H164) -> 4414711.165 | I165: =SUM(I160:I164) -> 0 | J165: =SUM(J160:J164) -> 0 | K165: 0 | L165: 0 | M165: 0 | N165: 0 | O165: 0 | P165: 0 | Q165: =SUM(Q160:Q164) -> 0 | R165: 0 | S165: =SUM(S160:S164) -> 0 | T165: 0 | U165: 0 | V165: =SUM(V160:V164) -> 0 | W165: 0 | X165: 0 | Y165: 0 | Z165: 0 | AA165: 0 | AB165: 0 | AC165: 0 | AD165: 0 | AE165: 0 | AF165: =SUM(AF160:AF164) -> 0 | AG165: 0 | AH165: 0 | AI165: 0 | AJ165: =SUM(AJ160:AJ164) -> 0 | AK165: 0 | AL165: 0 | AM165: 0 | AN165: 0 | AO165: =SUM(AO160:AO164) -> 0 | AP165: 0 | AQ165: 0 | AR165: =SUM(AR160:AR164) -> 0 | AT165: =SUM(AT160:AT164) -> 4414711.165 | AV165: =SUM(AV160:AV164) -> 4414711.165 | AW165: =+AV165-'ROR-Model'!G165 -> 0
AW166: =+AV166-'ROR-Model'!G166 -> 0
C167: Total Dth | H167: =H1*Revenue!$S$166 -> 773084.4 | AT167: =SUM(F167:AS167) -> 773084.4 | AV167: =SUM(AT167:AT167) -> 773084.4 | AW167: =+AV167-'ROR-Model'!G167 -> 0
AW168: =+AV168-'ROR-Model'!G168 -> 0
B169: IT-S | C169: Distribution Non-Gas Rev | H169: =H1*Revenue!$S$168 -> 0 | S169: ='EDIT Amort Adj'!G169*$S$1 -> 0 | T169: ='Envision Tomorrow Savings'!G169*$T$1 -> 0 | U169: =Pension!G169*$U$1 -> 0 | V169: ='Optional Adjustment 1'!G169*$V$1 -> 0 | W169: ='Optional Adjustment 2'!G169*$W$1 -> 0 | X169: ='Optional Adjustment 3'!G169*$X$1 -> 0 | Y169: ='Optional Adjustment 4'!G169*$Y$1 -> 0 | Z169: ='Optional Adjustment 5'!G169*$Z$1 -> 0 | AA169: ='Optional Adjustment 6'!G169*$AA$1 -> 0 | AB169: ='Optional Adjustment 7'!G169*$AB$1 -> 0 | AC169: ='Optional Adjustment 8'!G169*$AC$1 -> 0 | AD169: ='Optional Adjustment 9'!G169*$AD$1 -> 0 | AE169: ='Optional Adjustment 10'!G169*$AE$1 -> 0 | AF169: ='Optional Adjustment 11'!G169*$AF$1 -> 0 | AG169: ='Optional Adjustment 12'!G169*$AG$1 -> 0 | AH169: ='Optional Adjustment 13'!G169*$AH$1 -> 0 | AI169: ='Optional Adjustment 14'!G169*$AI$1 -> 0 | AJ169: ='Optional Adjustment 15'!G169*$AJ$1 -> 0 | AK169: ='Optional Adjustment 16'!G169*$AK$1 -> 0 | AL169: ='Optional Adjustment 17'!G169*$AL$1 -> 0 | AM169: ='Optional Adjustment 18'!G169*$AM$1 -> 0 | AN169: ='Optional Adjustment 19'!G169*$AN$1 -> 0 | AO169: ='Optional Adjustment 20'!G169*$AO$1 -> 0 | AP169: ='Optional Adjustment 21'!G169*$AP$1 -> 0 | AQ169: ='Optional Adjustment 22'!G169*$AQ$1 -> 0 | AR169: ='LNG O&M'!G169*$AR$1 -> 0 | AT169: =SUM(F169:AS169) -> 0 | AV169: =SUM(AT169:AT169) -> 0 | AW169: =+AV169-'ROR-Model'!G169 -> 0
AW170: =+AV170-'ROR-Model'!G170 -> 0
C171: Supplier Non-Gas Revenue | H171: =H1*Revenue!$S$170 -> 0 | S171: ='EDIT Amort Adj'!G171*$S$1 -> 0 | T171: ='Envision Tomorrow Savings'!G171*$T$1 -> 0 | U171: =Pension!G171*$U$1 -> 0 | V171: ='Optional Adjustment 1'!G171*$V$1 -> 0 | W171: ='Optional Adjustment 2'!G171*$W$1 -> 0 | X171: ='Optional Adjustment 3'!G171*$X$1 -> 0 | Y171: ='Optional Adjustment 4'!G171*$Y$1 -> 0 | Z171: ='Optional Adjustment 5'!G171*$Z$1 -> 0 | AA171: ='Optional Adjustment 6'!G171*$AA$1 -> 0 | AB171: ='Optional Adjustment 7'!G171*$AB$1 -> 0 | AC171: ='Optional Adjustment 8'!G171*$AC$1 -> 0 | AD171: ='Optional Adjustment 9'!G171*$AD$1 -> 0 | AE171: ='Optional Adjustment 10'!G171*$AE$1 -> 0 | AF171: ='Optional Adjustment 11'!G171*$AF$1 -> 0 | AG171: ='Optional Adjustment 12'!G171*$AG$1 -> 0 | AH171: ='Optional Adjustment 13'!G171*$AH$1 -> 0 | AI171: ='Optional Adjustment 14'!G171*$AI$1 -> 0 | AJ171: ='Optional Adjustment 15'!G171*$AJ$1 -> 0 | AK171: ='Optional Adjustment 16'!G171*$AK$1 -> 0 | AL171: ='Optional Adjustment 17'!G171*$AL$1 -> 0 | AM171: ='Optional Adjustment 18'!G171*$AM$1 -> 0 | AN171: ='Optional Adjustment 19'!G171*$AN$1 -> 0 | AO171: ='Optional Adjustment 20'!G171*$AO$1 -> 0 | AP171: ='Optional Adjustment 21'!G171*$AP$1 -> 0 | AQ171: ='Optional Adjustment 22'!G171*$AQ$1 -> 0 | AR171: ='LNG O&M'!G171*$AR$1 -> 0 | AT171: =SUM(F171:AS171) -> 0 | AV171: =SUM(AT171:AT171) -> 0 | AW171: =+AV171-'ROR-Model'!G171 -> 0
AW172: =+AV172-'ROR-Model'!G172 -> 0
C173: Commodity Revenue | H173: =H1*Revenue!$S$172 -> 0 | S173: ='EDIT Amort Adj'!G173*$S$1 -> 0 | T173: ='Envision Tomorrow Savings'!G173*$T$1 -> 0 | U173: =Pension!G173*$U$1 -> 0 | V173: ='Optional Adjustment 1'!G173*$V$1 -> 0 | W173: ='Optional Adjustment 2'!G173*$W$1 -> 0 | X173: ='Optional Adjustment 3'!G173*$X$1 -> 0 | Y173: ='Optional Adjustment 4'!G173*$Y$1 -> 0 | Z173: ='Optional Adjustment 5'!G173*$Z$1 -> 0 | AA173: ='Optional Adjustment 6'!G173*$AA$1 -> 0 | AB173: ='Optional Adjustment 7'!G173*$AB$1 -> 0 | AC173: ='Optional Adjustment 8'!G173*$AC$1 -> 0 | AD173: ='Optional Adjustment 9'!G173*$AD$1 -> 0 | AE173: ='Optional Adjustment 10'!G173*$AE$1 -> 0 | AF173: ='Optional Adjustment 11'!G173*$AF$1 -> 0 | AG173: ='Optional Adjustment 12'!G173*$AG$1 -> 0 | AH173: ='Optional Adjustment 13'!G173*$AH$1 -> 0 | AI173: ='Optional Adjustment 14'!G173*$AI$1 -> 0 | AJ173: ='Optional Adjustment 15'!G173*$AJ$1 -> 0 | AK173: ='Optional Adjustment 16'!G173*$AK$1 -> 0 | AL173: ='Optional Adjustment 17'!G173*$AL$1 -> 0 | AM173: ='Optional Adjustment 18'!G173*$AM$1 -> 0 | AN173: ='Optional Adjustment 19'!G173*$AN$1 -> 0 | AO173: ='Optional Adjustment 20'!G173*$AO$1 -> 0 | AP173: ='Optional Adjustment 21'!G173*$AP$1 -> 0 | AQ173: ='Optional Adjustment 22'!G173*$AQ$1 -> 0 | AR173: ='LNG O&M'!G173*$AR$1 -> 0 | AT173: =SUM(F173:AS173) -> 0 | AV173: =SUM(AT173:AT173) -> 0 | AW173: =+AV173-'ROR-Model'!G173 -> 0
C174: Total Revenue | F174: =SUM(F169:F173) -> 0 | H174: =H1*SUM(H169:H173) -> 0 | I174: =SUM(I169:I173) -> 0 | J174: =SUM(J169:J173) -> 0 | K174: 0 | L174: 0 | M174: 0 | N174: 0 | O174: 0 | P174: 0 | Q174: =SUM(Q169:Q173) -> 0 | R174: 0 | S174: =SUM(S169:S173) -> 0 | T174: 0 | U174: 0 | V174: =SUM(V169:V173) -> 0 | W174: 0 | X174: 0 | Y174: 0 | Z174: 0 | AA174: 0 | AB174: 0 | AC174: 0 | AD174: 0 | AE174: 0 | AF174: =SUM(AF169:AF173) -> 0 | AG174: 0 | AH174: 0 | AI174: 0 | AJ174: =SUM(AJ169:AJ173) -> 0 | AK174: 0 | AL174: 0 | AM174: 0 | AN174: 0 | AO174: =SUM(AO169:AO173) -> 0 | AP174: 0 | AQ174: 0 | AR174: =SUM(AR169:AR173) -> 0 | AT174: =SUM(AT169:AT173) -> 0 | AV174: =SUM(AV169:AV173) -> 0 | AW174: =+AV174-'ROR-Model'!G174 -> 0
AW175: =+AV175-'ROR-Model'!G175 -> 0
C176: Total Dth | H176: =H1*Revenue!$S$175 -> 0 | AT176: =SUM(F176:AS176) -> 0 | AV176: =SUM(AT176:AT176) -> 0 | AW176: =+AV176-'ROR-Model'!G176 -> 0
AW177: =+AV177-'ROR-Model'!G177 -> 0
B178: FT-2C | C178: Distribution Non-Gas Rev | H178: =H1*Revenue!$S$177 -> 0 | S178: ='EDIT Amort Adj'!G178*$S$1 -> 0 | T178: ='Envision Tomorrow Savings'!G178*$T$1 -> 0 | U178: =Pension!G178*$U$1 -> 0 | V178: ='Optional Adjustment 1'!G178*$V$1 -> 0 | W178: ='Optional Adjustment 2'!G178*$W$1 -> 0 | X178: ='Optional Adjustment 3'!G178*$X$1 -> 0 | Y178: ='Optional Adjustment 4'!G178*$Y$1 -> 0 | Z178: ='Optional Adjustment 5'!G178*$Z$1 -> 0 | AA178: ='Optional Adjustment 6'!G178*$AA$1 -> 0 | AB178: ='Optional Adjustment 7'!G178*$AB$1 -> 0 | AC178: ='Optional Adjustment 8'!G178*$AC$1 -> 0 | AD178: ='Optional Adjustment 9'!G178*$AD$1 -> 0 | AE178: ='Optional Adjustment 10'!G178*$AE$1 -> 0 | AF178: ='Optional Adjustment 11'!G178*$AF$1 -> 0 | AG178: ='Optional Adjustment 12'!G178*$AG$1 -> 0 | AH178: ='Optional Adjustment 13'!G178*$AH$1 -> 0 | AI178: ='Optional Adjustment 14'!G178*$AI$1 -> 0 | AJ178: ='Optional Adjustment 15'!G178*$AJ$1 -> 0 | AK178: ='Optional Adjustment 16'!G178*$AK$1 -> 0 | AL178: ='Optional Adjustment 17'!G178*$AL$1 -> 0 | AM178: ='Optional Adjustment 18'!G178*$AM$1 -> 0 | AN178: ='Optional Adjustment 19'!G178*$AN$1 -> 0 | AO178: ='Optional Adjustment 20'!G178*$AO$1 -> 0 | AP178: ='Optional Adjustment 21'!G178*$AP$1 -> 0 | AQ178: ='Optional Adjustment 22'!G178*$AQ$1 -> 0 | AR178: ='LNG O&M'!G178*$AR$1 -> 0 | AT178: =SUM(F178:AS178) -> 0 | AV178: =SUM(AT178:AT178) -> 0 | AW178: =+AV178-'ROR-Model'!G178 -> 0
AW179: =+AV179-'ROR-Model'!G179 -> 0
C180: Supplier Non-Gas Revenue | H180: =H1*Revenue!$S$179 -> 0 | S180: ='EDIT Amort Adj'!G180*$S$1 -> 0 | T180: ='Envision Tomorrow Savings'!G180*$T$1 -> 0 | U180: =Pension!G180*$U$1 -> 0 | V180: ='Optional Adjustment 1'!G180*$V$1 -> 0 | W180: ='Optional Adjustment 2'!G180*$W$1 -> 0 | X180: ='Optional Adjustment 3'!G180*$X$1 -> 0 | Y180: ='Optional Adjustment 4'!G180*$Y$1 -> 0 | Z180: ='Optional Adjustment 5'!G180*$Z$1 -> 0 | AA180: ='Optional Adjustment 6'!G180*$AA$1 -> 0 | AB180: ='Optional Adjustment 7'!G180*$AB$1 -> 0 | AC180: ='Optional Adjustment 8'!G180*$AC$1 -> 0 | AD180: ='Optional Adjustment 9'!G180*$AD$1 -> 0 | AE180: ='Optional Adjustment 10'!G180*$AE$1 -> 0 | AF180: ='Optional Adjustment 11'!G180*$AF$1 -> 0 | AG180: ='Optional Adjustment 12'!G180*$AG$1 -> 0 | AH180: ='Optional Adjustment 13'!G180*$AH$1 -> 0 | AI180: ='Optional Adjustment 14'!G180*$AI$1 -> 0 | AJ180: ='Optional Adjustment 15'!G180*$AJ$1 -> 0 | AK180: ='Optional Adjustment 16'!G180*$AK$1 -> 0 | AL180: ='Optional Adjustment 17'!G180*$AL$1 -> 0 | AM180: ='Optional Adjustment 18'!G180*$AM$1 -> 0 | AN180: ='Optional Adjustment 19'!G180*$AN$1 -> 0 | AO180: ='Optional Adjustment 20'!G180*$AO$1 -> 0 | AP180: ='Optional Adjustment 21'!G180*$AP$1 -> 0 | AQ180: ='Optional Adjustment 22'!G180*$AQ$1 -> 0 | AR180: ='LNG O&M'!G180*$AR$1 -> 0 | AT180: =SUM(F180:AS180) -> 0 | AV180: =SUM(AT180:AT180) -> 0 | AW180: =+AV180-'ROR-Model'!G180 -> 0
AW181: =+AV181-'ROR-Model'!G181 -> 0
C182: Commodity Revenue | H182: =H1*Revenue!$S$181 -> 0 | S182: ='EDIT Amort Adj'!G182*$S$1 -> 0 | T182: ='Envision Tomorrow Savings'!G182*$T$1 -> 0 | U182: =Pension!G182*$U$1 -> 0 | V182: ='Optional Adjustment 1'!G182*$V$1 -> 0 | W182: ='Optional Adjustment 2'!G182*$W$1 -> 0 | X182: ='Optional Adjustment 3'!G182*$X$1 -> 0 | Y182: ='Optional Adjustment 4'!G182*$Y$1 -> 0 | Z182: ='Optional Adjustment 5'!G182*$Z$1 -> 0 | AA182: ='Optional Adjustment 6'!G182*$AA$1 -> 0 | AB182: ='Optional Adjustment 7'!G182*$AB$1 -> 0 | AC182: ='Optional Adjustment 8'!G182*$AC$1 -> 0 | AD182: ='Optional Adjustment 9'!G182*$AD$1 -> 0 | AE182: ='Optional Adjustment 10'!G182*$AE$1 -> 0 | AF182: ='Optional Adjustment 11'!G182*$AF$1 -> 0 | AG182: ='Optional Adjustment 12'!G182*$AG$1 -> 0 | AH182: ='Optional Adjustment 13'!G182*$AH$1 -> 0 | AI182: ='Optional Adjustment 14'!G182*$AI$1 -> 0 | AJ182: ='Optional Adjustment 15'!G182*$AJ$1 -> 0 | AK182: ='Optional Adjustment 16'!G182*$AK$1 -> 0 | AL182: ='Optional Adjustment 17'!G182*$AL$1 -> 0 | AM182: ='Optional Adjustment 18'!G182*$AM$1 -> 0 | AN182: ='Optional Adjustment 19'!G182*$AN$1 -> 0 | AO182: ='Optional Adjustment 20'!G182*$AO$1 -> 0 | AP182: ='Optional Adjustment 21'!G182*$AP$1 -> 0 | AQ182: ='Optional Adjustment 22'!G182*$AQ$1 -> 0 | AR182: ='LNG O&M'!G182*$AR$1 -> 0 | AT182: =SUM(F182:AS182) -> 0 | AV182: =SUM(AT182:AT182) -> 0 | AW182: =+AV182-'ROR-Model'!G182 -> 0
C183: Total Revenue | F183: =SUM(F178:F182) -> 0 | H183: =H1*SUM(H178:H182) -> 0 | I183: =SUM(I178:I182) -> 0 | J183: =SUM(J178:J182) -> 0 | K183: 0 | L183: 0 | M183: 0 | N183: 0 | O183: 0 | P183: 0 | Q183: =SUM(Q178:Q182) -> 0 | R183: 0 | S183: =SUM(S178:S182) -> 0 | T183: 0 | U183: 0 | V183: =SUM(V178:V182) -> 0 | W183: 0 | X183: 0 | Y183: 0 | Z183: 0 | AA183: 0 | AB183: 0 | AC183: 0 | AD183: 0 | AE183: 0 | AF183: =SUM(AF178:AF182) -> 0 | AG183: 0 | AH183: 0 | AI183: 0 | AJ183: =SUM(AJ178:AJ182) -> 0 | AK183: 0 | AL183: 0 | AM183: 0 | AN183: 0 | AO183: =SUM(AO178:AO182) -> 0 | AP183: 0 | AQ183: 0 | AR183: =SUM(AR178:AR182) -> 0 | AT183: =SUM(AT178:AT182) -> 0 | AV183: =SUM(AV178:AV182) -> 0 | AW183: =+AV183-'ROR-Model'!G183 -> 0
AW184: =+AV184-'ROR-Model'!G184 -> 0
C185: Total Dth | H185: =H1*Revenue!$S$184 -> 0 | AT185: =SUM(F185:AS185) -> 0 | AV185: =SUM(AT185:AT185) -> 0 | AW185: =+AV185-'ROR-Model'!G185 -> 0
AW186: =+AV186-'ROR-Model'!G186 -> 0
B187: E-1 | C187: Distribution Non-Gas Rev | H187: =H1*Revenue!$S$186 -> 0 | S187: ='EDIT Amort Adj'!G187*$S$1 -> 0 | T187: ='Envision Tomorrow Savings'!G187*$T$1 -> 0 | U187: =Pension!G187*$U$1 -> 0 | V187: ='Optional Adjustment 1'!G187*$V$1 -> 0 | W187: ='Optional Adjustment 2'!G187*$W$1 -> 0 | X187: ='Optional Adjustment 3'!G187*$X$1 -> 0 | Y187: ='Optional Adjustment 4'!G187*$Y$1 -> 0 | Z187: ='Optional Adjustment 5'!G187*$Z$1 -> 0 | AA187: ='Optional Adjustment 6'!G187*$AA$1 -> 0 | AB187: ='Optional Adjustment 7'!G187*$AB$1 -> 0 | AC187: ='Optional Adjustment 8'!G187*$AC$1 -> 0 | AD187: ='Optional Adjustment 9'!G187*$AD$1 -> 0 | AE187: ='Optional Adjustment 10'!G187*$AE$1 -> 0 | AF187: ='Optional Adjustment 11'!G187*$AF$1 -> 0 | AG187: ='Optional Adjustment 12'!G187*$AG$1 -> 0 | AH187: ='Optional Adjustment 13'!G187*$AH$1 -> 0 | AI187: ='Optional Adjustment 14'!G187*$AI$1 -> 0 | AJ187: ='Optional Adjustment 15'!G187*$AJ$1 -> 0 | AK187: ='Optional Adjustment 16'!G187*$AK$1 -> 0 | AL187: ='Optional Adjustment 17'!G187*$AL$1 -> 0 | AM187: ='Optional Adjustment 18'!G187*$AM$1 -> 0 | AN187: ='Optional Adjustment 19'!G187*$AN$1 -> 0 | AO187: ='Optional Adjustment 20'!G187*$AO$1 -> 0 | AP187: ='Optional Adjustment 21'!G187*$AP$1 -> 0 | AQ187: ='Optional Adjustment 22'!G187*$AQ$1 -> 0 | AR187: ='LNG O&M'!G187*$AR$1 -> 0 | AT187: =SUM(F187:AS187) -> 0 | AV187: =SUM(AT187:AT187) -> 0 | AW187: =+AV187-'ROR-Model'!G187 -> 0
AW188: =+AV188-'ROR-Model'!G188 -> 0
C189: Supplier Non-Gas Revenue | H189: =H1*Revenue!$S$188 -> 0 | S189: ='EDIT Amort Adj'!G189*$S$1 -> 0 | T189: ='Envision Tomorrow Savings'!G189*$T$1 -> 0 | U189: =Pension!G189*$U$1 -> 0 | V189: ='Optional Adjustment 1'!G189*$V$1 -> 0 | W189: ='Optional Adjustment 2'!G189*$W$1 -> 0 | X189: ='Optional Adjustment 3'!G189*$X$1 -> 0 | Y189: ='Optional Adjustment 4'!G189*$Y$1 -> 0 | Z189: ='Optional Adjustment 5'!G189*$Z$1 -> 0 | AA189: ='Optional Adjustment 6'!G189*$AA$1 -> 0 | AB189: ='Optional Adjustment 7'!G189*$AB$1 -> 0 | AC189: ='Optional Adjustment 8'!G189*$AC$1 -> 0 | AD189: ='Optional Adjustment 9'!G189*$AD$1 -> 0 | AE189: ='Optional Adjustment 10'!G189*$AE$1 -> 0 | AF189: ='Optional Adjustment 11'!G189*$AF$1 -> 0 | AG189: ='Optional Adjustment 12'!G189*$AG$1 -> 0 | AH189: ='Optional Adjustment 13'!G189*$AH$1 -> 0 | AI189: ='Optional Adjustment 14'!G189*$AI$1 -> 0 | AJ189: ='Optional Adjustment 15'!G189*$AJ$1 -> 0 | AK189: ='Optional Adjustment 16'!G189*$AK$1 -> 0 | AL189: ='Optional Adjustment 17'!G189*$AL$1 -> 0 | AM189: ='Optional Adjustment 18'!G189*$AM$1 -> 0 | AN189: ='Optional Adjustment 19'!G189*$AN$1 -> 0 | AO189: ='Optional Adjustment 20'!G189*$AO$1 -> 0 | AP189: ='Optional Adjustment 21'!G189*$AP$1 -> 0 | AQ189: ='Optional Adjustment 22'!G189*$AQ$1 -> 0 | AR189: ='LNG O&M'!G189*$AR$1 -> 0 | AT189: =SUM(F189:AS189) -> 0 | AV189: =SUM(AT189:AT189) -> 0 | AW189: =+AV189-'ROR-Model'!G189 -> 0
AW190: =+AV190-'ROR-Model'!G190 -> 0
C191: Commodity Revenue | H191: =H1*Revenue!$S$190 -> 0 | S191: ='EDIT Amort Adj'!G191*$S$1 -> 0 | T191: ='Envision Tomorrow Savings'!G191*$T$1 -> 0 | U191: =Pension!G191*$U$1 -> 0 | V191: ='Optional Adjustment 1'!G191*$V$1 -> 0 | W191: ='Optional Adjustment 2'!G191*$W$1 -> 0 | X191: ='Optional Adjustment 3'!G191*$X$1 -> 0 | Y191: ='Optional Adjustment 4'!G191*$Y$1 -> 0 | Z191: ='Optional Adjustment 5'!G191*$Z$1 -> 0 | AA191: ='Optional Adjustment 6'!G191*$AA$1 -> 0 | AB191: ='Optional Adjustment 7'!G191*$AB$1 -> 0 | AC191: ='Optional Adjustment 8'!G191*$AC$1 -> 0 | AD191: ='Optional Adjustment 9'!G191*$AD$1 -> 0 | AE191: ='Optional Adjustment 10'!G191*$AE$1 -> 0 | AF191: ='Optional Adjustment 11'!G191*$AF$1 -> 0 | AG191: ='Optional Adjustment 12'!G191*$AG$1 -> 0 | AH191: ='Optional Adjustment 13'!G191*$AH$1 -> 0 | AI191: ='Optional Adjustment 14'!G191*$AI$1 -> 0 | AJ191: ='Optional Adjustment 15'!G191*$AJ$1 -> 0 | AK191: ='Optional Adjustment 16'!G191*$AK$1 -> 0 | AL191: ='Optional Adjustment 17'!G191*$AL$1 -> 0 | AM191: ='Optional Adjustment 18'!G191*$AM$1 -> 0 | AN191: ='Optional Adjustment 19'!G191*$AN$1 -> 0 | AO191: ='Optional Adjustment 20'!G191*$AO$1 -> 0 | AP191: ='Optional Adjustment 21'!G191*$AP$1 -> 0 | AQ191: ='Optional Adjustment 22'!G191*$AQ$1 -> 0 | AR191: ='LNG O&M'!G191*$AR$1 -> 0 | AT191: =SUM(F191:AS191) -> 0 | AV191: =SUM(AT191:AT191) -> 0 | AW191: =+AV191-'ROR-Model'!G191 -> 0
C192: Total Revenue | F192: =SUM(F187:F191) -> 0 | H192: =H1*SUM(H187:H191) -> 0 | I192: =SUM(I187:I191) -> 0 | J192: =SUM(J187:J191) -> 0 | K192: 0 | L192: 0 | M192: 0 | N192: 0 | O192: 0 | P192: 0 | Q192: =SUM(Q187:Q191) -> 0 | R192: 0 | S192: =SUM(S187:S191) -> 0 | T192: 0 | U192: 0 | V192: =SUM(V187:V191) -> 0 | W192: 0 | X192: 0 | Y192: 0 | Z192: 0 | AA192: 0 | AB192: 0 | AC192: 0 | AD192: 0 | AE192: 0 | AF192: =SUM(AF187:AF191) -> 0 | AG192: 0 | AH192: 0 | AI192: 0 | AJ192: =SUM(AJ187:AJ191) -> 0 | AK192: 0 | AL192: 0 | AM192: 0 | AN192: 0 | AO192: =SUM(AO187:AO191) -> 0 | AP192: 0 | AQ192: 0 | AR192: =SUM(AR187:AR191) -> 0 | AT192: =SUM(AT187:AT191) -> 0 | AV192: =SUM(AV187:AV191) -> 0 | AW192: =+AV192-'ROR-Model'!G192 -> 0
AW193: =+AV193-'ROR-Model'!G193 -> 0
C194: Total Dth | H194: =H1*Revenue!$S$193 -> 0 | AT194: =SUM(F194:AS194) -> 0 | AV194: =SUM(AT194:AT194) -> 0 | AW194: =+AV194-'ROR-Model'!G194 -> 0
AW195: =+AV195-'ROR-Model'!G195 -> 0
B196: CET | C196: Distribution Non-Gas Revenue | F196: 0 | H196: =H1*Revenue!$S$195 -> -4176075.61 | I196: 0 | J196: 0 | K196: 0 | L196: 0 | M196: 0 | N196: 0 | O196: 0 | P196: 0 | Q196: 0 | R196: 0 | S196: ='EDIT Amort Adj'!G196*$S$1 -> 0 | T196: ='Envision Tomorrow Savings'!G196*$T$1 -> 0 | U196: =Pension!G196*$U$1 -> 0 | V196: ='Optional Adjustment 1'!G196*$V$1 -> 0 | W196: ='Optional Adjustment 2'!G196*$W$1 -> 0 | X196: ='Optional Adjustment 3'!G196*$X$1 -> 0 | Y196: ='Optional Adjustment 4'!G196*$Y$1 -> 0 | Z196: ='Optional Adjustment 5'!G196*$Z$1 -> 0 | AA196: ='Optional Adjustment 6'!G196*$AA$1 -> 0 | AB196: ='Optional Adjustment 7'!G196*$AB$1 -> 0 | AC196: ='Optional Adjustment 8'!G196*$AC$1 -> 0 | AD196: ='Optional Adjustment 9'!G196*$AD$1 -> 0 | AE196: ='Optional Adjustment 10'!G196*$AE$1 -> 0 | AF196: ='Optional Adjustment 11'!G196*$AF$1 -> 0 | AG196: ='Optional Adjustment 12'!G196*$AG$1 -> 0 | AH196: ='Optional Adjustment 13'!G196*$AH$1 -> 0 | AI196: ='Optional Adjustment 14'!G196*$AI$1 -> 0 | AJ196: ='Optional Adjustment 15'!G196*$AJ$1 -> 0 | AK196: ='Optional Adjustment 16'!G196*$AK$1 -> 0 | AL196: ='Optional Adjustment 17'!G196*$AL$1 -> 0 | AM196: ='Optional Adjustment 18'!G196*$AM$1 -> 0 | AN196: ='Optional Adjustment 19'!G196*$AN$1 -> 0 | AO196: ='Optional Adjustment 20'!G196*$AO$1 -> 0 | AP196: ='Optional Adjustment 21'!G196*$AP$1 -> 0 | AQ196: ='Optional Adjustment 22'!G196*$AQ$1 -> 0 | AR196: ='LNG O&M'!G196*$AR$1 -> 0 | AT196: =SUM(F196:AS196) -> -4176075.61 | AV196: =SUM(AT196:AT196) -> -4176075.61 | AW196: =+AV196-'ROR-Model'!G196 -> 0
B197: DSM | C197: Distribution Non-Gas Revenue | F197: 0 | H197: =H1*Revenue!$S$196 -> -24500334.77 | I197: 0 | J197: 0 | K197: =K1*'ENERGY EFFICIENCY & STEP ADJ'!H12 -> 0 | L197: 0 | M197: 0 | N197: 0 | O197: 0 | P197: 0 | Q197: 0 | R197: 0 | S197: ='EDIT Amort Adj'!G197*$S$1 -> 0 | T197: ='Envision Tomorrow Savings'!G197*$T$1 -> 0 | U197: =Pension!G197*$U$1 -> 0 | V197: ='Optional Adjustment 1'!G197*$V$1 -> 0 | W197: ='Optional Adjustment 2'!G197*$W$1 -> 0 | X197: ='Optional Adjustment 3'!G197*$X$1 -> 0 | Y197: ='Optional Adjustment 4'!G197*$Y$1 -> 0 | Z197: ='Optional Adjustment 5'!G197*$Z$1 -> 0 | AA197: ='Optional Adjustment 6'!G197*$AA$1 -> 0 | AB197: ='Optional Adjustment 7'!G197*$AB$1 -> 0 | AC197: ='Optional Adjustment 8'!G197*$AC$1 -> 0 | AD197: ='Optional Adjustment 9'!G197*$AD$1 -> 0 | AE197: ='Optional Adjustment 10'!G197*$AE$1 -> 0 | AF197: ='Optional Adjustment 11'!G197*$AF$1 -> 0 | AG197: ='Optional Adjustment 12'!G197*$AG$1 -> 0 | AH197: ='Optional Adjustment 13'!G197*$AH$1 -> 0 | AI197: ='Optional Adjustment 14'!G197*$AI$1 -> 0 | AJ197: ='Optional Adjustment 15'!G197*$AJ$1 -> 0 | AK197: ='Optional Adjustment 16'!G197*$AK$1 -> 0 | AL197: ='Optional Adjustment 17'!G197*$AL$1 -> 0 | AM197: ='Optional Adjustment 18'!G197*$AM$1 -> 0 | AN197: ='Optional Adjustment 19'!G197*$AN$1 -> 0 | AO197: ='Optional Adjustment 20'!G197*$AO$1 -> 0 | AP197: ='Optional Adjustment 21'!G197*$AP$1 -> 0 | AQ197: ='Optional Adjustment 22'!G197*$AQ$1 -> 0 | AR197: ='LNG O&M'!G197*$AR$1 -> 0 | AT197: =SUM(F197:AS197) -> -24500334.77 | AV197: =SUM(AT197:AT197) -> -24500334.77 | AW197: =+AV197-'ROR-Model'!G197 -> 0
B198: Utah Totals | AW198: =+AV198-'ROR-Model'!G198 -> 0
AW199: =+AV199-'ROR-Model'!G199 -> 0
C200: Distribution Non-Gas Rev | F200: =+F16+F34+F43+F52+F61+F70+F79+F88+F97+F106+F115+F124+F133+F142+F151+F160+F169+F178+F187+F25+F196+F197 -> 0 | H200: =+H16+H34+H43+H52+H61+H70+H79+H88+H97+H106+H115+H124+H133+H142+H151+H160+H169+H178+H187+H25+H196+H197 -> 12781066.28 | I200: =+I16+I34+I43+I52+I61+I70+I79+I88+I97+I106+I115+I124+I133+I142+I151+I160+I169+I178+I187+I25+I196+I197 -> 0 | J200: 0 | K200: =+K16+K34+K43+K52+K61+K70+K79+K88+K97+K106+K115+K124+K133+K142+K151+K160+K169+K178+K187+K25+K196+K197 -> 0 | L200: 0 | M200: 0 | N200: 0 | O200: 0 | P200: 0 | Q200: 0 | R200: =+R16+R34+R43+R52+R61+R70+R79+R88+R97+R106+R115+R124+R133+R142+R151+R160+R169+R178+R187+R25+R196+R197 -> 0 | S200: ='EDIT Amort Adj'!G200*$S$1 -> 0 | T200: ='Envision Tomorrow Savings'!G200*$T$1 -> 0 | U200: =Pension!G200*$U$1 -> 0 | V200: ='Optional Adjustment 1'!G200*$V$1 -> 0 | W200: ='Optional Adjustment 2'!G200*$W$1 -> 0 | X200: ='Optional Adjustment 3'!G200*$X$1 -> 0 | Y200: ='Optional Adjustment 4'!G200*$Y$1 -> 0 | Z200: ='Optional Adjustment 5'!G200*$Z$1 -> 0 | AA200: ='Optional Adjustment 6'!G200*$AA$1 -> 0 | AB200: ='Optional Adjustment 7'!G200*$AB$1 -> 0 | AC200: ='Optional Adjustment 8'!G200*$AC$1 -> 0 | AD200: ='Optional Adjustment 9'!G200*$AD$1 -> 0 | AE200: ='Optional Adjustment 10'!G200*$AE$1 -> 0 | AF200: ='Optional Adjustment 11'!G200*$AF$1 -> 0 | AG200: ='Optional Adjustment 12'!G200*$AG$1 -> 0 | AH200: ='Optional Adjustment 13'!G200*$AH$1 -> 0 | AI200: ='Optional Adjustment 14'!G200*$AI$1 -> 0 | AJ200: ='Optional Adjustment 15'!G200*$AJ$1 -> 0 | AK200: ='Optional Adjustment 16'!G200*$AK$1 -> 0 | AL200: ='Optional Adjustment 17'!G200*$AL$1 -> 0 | AM200: ='Optional Adjustment 18'!G200*$AM$1 -> 0 | AN200: ='Optional Adjustment 19'!G200*$AN$1 -> 0 | AO200: ='Optional Adjustment 20'!G200*$AO$1 -> 0 | AP200: ='Optional Adjustment 21'!G200*$AP$1 -> 0 | AQ200: ='Optional Adjustment 22'!G200*$AQ$1 -> 0 | AR200: ='LNG O&M'!G200*$AR$1 -> 0 | AT200: =+AT16+AT34+AT43+AT52+AT61+AT70+AT79+AT88+AT97+AT106+AT115+AT124+AT133+AT142+AT151+AT160+AT169+AT178+AT187+AT25+AT196+AT197 -> 12781066.28 | AV200: =+AV16+AV34+AV43+AV52+AV61+AV70+AV79+AV88+AV97+AV106+AV115+AV124+AV133+AV142+AV151+AV160+AV169+AV178+AV187+AV25+AV196+AV197 -> 12781066.28 | AW200: =+AV200-'ROR-Model'!G200 -> 0
C201: Supplier Non-Gas Revenue | F201: =F1*+F18+F36+F45+F54+F62+F63+F72+F81+F90+F99+F108+F117+F126+F135+F144+F153+F162+F171+F180+F189+F27 -> 0 | H201: =H1*+H18+H36+H45+H54+H62+H63+H72+H81+H90+H99+H108+H117+H126+H135+H144+H153+H162+H171+H180+H189+H27 -> 10493803.48 | I201: =I1*+I18+I36+I45+I54+I62+I63+I72+I81+I90+I99+I108+I117+I126+I135+I144+I153+I162+I171+I180+I189+I27 -> 0 | J201: =J1*+J18+J36+J45+J54+J62+J63+J72+J81+J90+J99+J108+J117+J126+J135+J144+J153+J162+J171+J180+J189+J27 -> 0 | K201: 0 | L201: 0 | M201: 0 | N201: 0 | O201: 0 | P201: 0 | Q201: 0 | R201: =R1*+R18+R36+R45+R54+R62+R63+R72+R81+R90+R99+R108+R117+R126+R135+R144+R153+R162+R171+R180+R189+R27 -> 0 | S201: ='EDIT Amort Adj'!G201*$S$1 -> 0 | T201: ='Envision Tomorrow Savings'!G201*$T$1 -> 0 | U201: =Pension!G201*$U$1 -> 0 | V201: ='Optional Adjustment 1'!G201*$V$1 -> 0 | W201: ='Optional Adjustment 2'!G201*$W$1 -> 0 | X201: ='Optional Adjustment 3'!G201*$X$1 -> 0 | Y201: ='Optional Adjustment 4'!G201*$Y$1 -> 0 | Z201: ='Optional Adjustment 5'!G201*$Z$1 -> 0 | AA201: ='Optional Adjustment 6'!G201*$AA$1 -> 0 | AB201: ='Optional Adjustment 7'!G201*$AB$1 -> 0 | AC201: ='Optional Adjustment 8'!G201*$AC$1 -> 0 | AD201: ='Optional Adjustment 9'!G201*$AD$1 -> 0 | AE201: ='Optional Adjustment 10'!G201*$AE$1 -> 0 | AF201: ='Optional Adjustment 11'!G201*$AF$1 -> 0 | AG201: ='Optional Adjustment 12'!G201*$AG$1 -> 0 | AH201: ='Optional Adjustment 13'!G201*$AH$1 -> 0 | AI201: ='Optional Adjustment 14'!G201*$AI$1 -> 0 | AJ201: ='Optional Adjustment 15'!G201*$AJ$1 -> 0 | AK201: ='Optional Adjustment 16'!G201*$AK$1 -> 0 | AL201: ='Optional Adjustment 17'!G201*$AL$1 -> 0 | AM201: ='Optional Adjustment 18'!G201*$AM$1 -> 0 | AN201: ='Optional Adjustment 19'!G201*$AN$1 -> 0 | AO201: ='Optional Adjustment 20'!G201*$AO$1 -> 0 | AP201: ='Optional Adjustment 21'!G201*$AP$1 -> 0 | AQ201: ='Optional Adjustment 22'!G201*$AQ$1 -> 0 | AR201: ='LNG O&M'!G201*$AR$1 -> 0 | AT201: =+AT18+AT36+AT45+AT54+AT62+AT63+AT72+AT81+AT90+AT99+AT108+AT117+AT126+AT135+AT144+AT153+AT162+AT171+AT180+AT189+AT27 -> 10493803.48 | AV201: =+AV18+AV36+AV45+AV54+AV62+AV63+AV72+AV81+AV90+AV99+AV108+AV117+AV126+AV135+AV144+AV153+AV162+AV171+AV180+AV189+AV27 -> 10493803.48 | AW201: =+AV201-'ROR-Model'!G201 -> 0
C202: Commodity Revenue | F202: =F1*+F20+F38+F47+F56+F64+F65+F74+F83+F92+F101+F110+F119+F128+F137+F146+F155+F164+F173+F182+F191+F29 -> 0 | H202: =H1*+H20+H38+H47+H56+H64+H65+H74+H83+H92+H101+H110+H119+H128+H137+H146+H155+H164+H173+H182+H191+H29 -> 156647748.9 | I202: =I1*+I20+I38+I47+I56+I64+I65+I74+I83+I92+I101+I110+I119+I128+I137+I146+I155+I164+I173+I182+I191+I29 -> 0 | J202: =J1*+J20+J38+J47+J56+J64+J65+J74+J83+J92+J101+J110+J119+J128+J137+J146+J155+J164+J173+J182+J191+J29 -> 0 | K202: 0 | L202: 0 | M202: 0 | N202: 0 | O202: 0 | P202: 0 | Q202: 0 | R202: =R1*+R20+R38+R47+R56+R64+R65+R74+R83+R92+R101+R110+R119+R128+R137+R146+R155+R164+R173+R182+R191+R29 -> 0 | S202: ='EDIT Amort Adj'!G202*$S$1 -> 0 | T202: ='Envision Tomorrow Savings'!G202*$T$1 -> 0 | U202: =Pension!G202*$U$1 -> 0 | V202: ='Optional Adjustment 1'!G202*$V$1 -> 0 | W202: ='Optional Adjustment 2'!G202*$W$1 -> 0 | X202: ='Optional Adjustment 3'!G202*$X$1 -> 0 | Y202: ='Optional Adjustment 4'!G202*$Y$1 -> 0 | Z202: ='Optional Adjustment 5'!G202*$Z$1 -> 0 | AA202: ='Optional Adjustment 6'!G202*$AA$1 -> 0 | AB202: ='Optional Adjustment 7'!G202*$AB$1 -> 0 | AC202: ='Optional Adjustment 8'!G202*$AC$1 -> 0 | AD202: ='Optional Adjustment 9'!G202*$AD$1 -> 0 | AE202: ='Optional Adjustment 10'!G202*$AE$1 -> 0 | AF202: ='Optional Adjustment 11'!G202*$AF$1 -> 0 | AG202: ='Optional Adjustment 12'!G202*$AG$1 -> 0 | AH202: ='Optional Adjustment 13'!G202*$AH$1 -> 0 | AI202: ='Optional Adjustment 14'!G202*$AI$1 -> 0 | AJ202: ='Optional Adjustment 15'!G202*$AJ$1 -> 0 | AK202: ='Optional Adjustment 16'!G202*$AK$1 -> 0 | AL202: ='Optional Adjustment 17'!G202*$AL$1 -> 0 | AM202: ='Optional Adjustment 18'!G202*$AM$1 -> 0 | AN202: ='Optional Adjustment 19'!G202*$AN$1 -> 0 | AO202: ='Optional Adjustment 20'!G202*$AO$1 -> 0 | AP202: ='Optional Adjustment 21'!G202*$AP$1 -> 0 | AQ202: ='Optional Adjustment 22'!G202*$AQ$1 -> 0 | AR202: ='LNG O&M'!G202*$AR$1 -> 0 | AT202: =+AT20+AT38+AT47+AT56+AT64+AT65+AT74+AT83+AT92+AT101+AT110+AT119+AT128+AT137+AT146+AT155+AT164+AT173+AT182+AT191+AT29 -> 156647748.9 | AV202: =+AV20+AV38+AV47+AV56+AV64+AV65+AV74+AV83+AV92+AV101+AV110+AV119+AV128+AV137+AV146+AV155+AV164+AV173+AV182+AV191+AV29 -> 156647748.9 | AW202: =+AV202-'ROR-Model'!G202 -> 0
C203: Total Utah Revenue | F203: =+F21+F39+F48+F57+F66+F75+F84+F93+F102+F111+F120+F129+F138+F147+F156+F165+F174+F183+F192+F30+F196+F197 -> 0 | H203: =+H21+H39+H48+H57+H66+H75+H84+H93+H102+H111+H120+H129+H138+H147+H156+H165+H174+H183+H192+H30+H196+H197 -> 179922618.6 | I203: =+I21+I39+I48+I57+I66+I75+I84+I93+I102+I111+I120+I129+I138+I147+I156+I165+I174+I183+I192+I30+I196+I197 -> 0 | J203: 0 | K203: =+K21+K39+K48+K57+K66+K75+K84+K93+K102+K111+K120+K129+K138+K147+K156+K165+K174+K183+K192+K30+K196+K197 -> 0 | L203: 0 | M203: 0 | N203: 0 | O203: =+O21+O39+O48+O57+O66+O75+O84+O93+O102+O111+O120+O129+O138+O147+O156+O165+O174+O183+O192+O30+O196+O197 -> 0 | P203: =+P21+P39+P48+P57+P66+P75+P84+P93+P102+P111+P120+P129+P138+P147+P156+P165+P174+P183+P192+P30+P196+P197 -> 0 | Q203: 0 | R203: =+R21+R39+R48+R57+R66+R75+R84+R93+R102+R111+R120+R129+R138+R147+R156+R165+R174+R183+R192+R30+R196+R197 -> 0 | S203: =+S21+S39+S48+S57+S66+S75+S84+S93+S102+S111+S120+S129+S138+S147+S156+S165+S174+S183+S192+S30+S196+S197 -> 0 | T203: 0 | U203: 0 | V203: 0 | W203: 0 | X203: 0 | Y203: 0 | Z203: 0 | AA203: 0 | AB203: 0 | AC203: 0 | AD203: 0 | AE203: 0 | AF203: =+AF21+AF39+AF48+AF57+AF66+AF75+AF84+AF93+AF102+AF111+AF120+AF129+AF138+AF147+AF156+AF165+AF174+AF183+AF192+AF30+AF196+AF197 -> 0 | AG203: 0 | AH203: 0 | AI203: 0 | AJ203: =+AJ21+AJ39+AJ48+AJ57+AJ66+AJ75+AJ84+AJ93+AJ102+AJ111+AJ120+AJ129+AJ138+AJ147+AJ156+AJ165+AJ174+AJ183+AJ192+AJ30+AJ196+AJ197 -> 0 | AK203: 0 | AL203: 0 | AM203: 0 | AN203: 0 | AO203: =+AO21+AO39+AO48+AO57+AO66+AO75+AO84+AO93+AO102+AO111+AO120+AO129+AO138+AO147+AO156+AO165+AO174+AO183+AO192+AO30+AO196+AO197 -> 0 | AP203: 0 | AQ203: 0 | AR203: =+AR21+AR39+AR48+AR57+AR66+AR75+AR84+AR93+AR102+AR111+AR120+AR129+AR138+AR147+AR156+AR165+AR174+AR183+AR192+AR30+AR196+AR197 -> 0 | AT203: 179922618.6 | AV203: 179922618.6
AW204: =+AV204-'ROR-Model'!G204 -> 0
C205: Sales Dth | F205: =F1*F23+F41+F50+F59+F68+F77+F86+F95+F104+F113+F194+F32 -> 0 | H205: =H1*H23+H41+H50+H59+H68+H77+H86+H95+H104+H113+H194+H32 -> 10488820.25 | I205: =I1*I23+I41+I50+I59+I68+I77+I86+I95+I104+I113+I194+I32 -> 0 | J205: =J1*J23+J41+J50+J59+J68+J77+J86+J95+J104+J113+J194+J32 -> 0 | K205: 0 | L205: 0 | M205: 0 | N205: 0 | O205: 0 | P205: 0 | Q205: 0 | R205: =R1*R23+R41+R50+R59+R68+R77+R86+R95+R104+R113+R194+R32 -> 0 | S205: =S1*S23+S41+S50+S59+S68+S77+S86+S95+S104+S113+S194+S32 -> 0 | T205: =T1*T23+T41+T50+T59+T68+T77+T86+T95+T104+T113+T194+T32 -> 0 | U205: =V1*U23+U41+U50+U59+U68+U77+U86+U95+U104+U113+U194+U32 -> 0 | V205: 0 | W205: 0 | X205: 0 | Y205: 0 | Z205: 0 | AA205: 0 | AB205: 0 | AC205: 0 | AD205: 0 | AE205: 0 | AF205: 0 | AG205: 0 | AH205: 0 | AI205: 0 | AJ205: 0 | AK205: 0 | AL205: 0 | AM205: 0 | AN205: 0 | AO205: 0 | AP205: 0 | AQ205: 0 | AR205: =AS1*AR23+AR41+AR50+AR59+AR68+AR77+AR86+AR95+AR104+AR113+AR194+AR32 -> 0 | AT205: =AT23+AT32+AT41+AT50+AT59+AT68+AT77+AT86+AT95+AT104+AT113+AT194 -> 10488820.25 | AV205: =AV23+AV32+AV41+AV50+AV59+AV68+AV77+AV86+AV95+AV104+AV113+AV194 -> 10488820.25 | AW205: =+AV205-'ROR-Model'!G205 -> 0
... 1040 more rows

Sheet ROR-Model
A1: ='Control Panel'!$B$1 -> Dominion Energy | L1: Jurisdictional Allocation Base Summary
A2: ='Control Panel'!$B$2 -> Utah - DEC 2023 Adjusted Avg Results CET | K2: #1 | L2: Gross Plant | M2: ='Utah Allocation'!D18 -> 0.9676695649 | N2: ='Utah Allocation'!E18 -> 0.0323304351
A3: ='Control Panel'!$B$3 -> 12 Months Ended : Dec-2023 | K3: #2 | L3: Rate Base | M3: ='Utah Allocation'!D35 -> 0.968257213 | N3: ='Utah Allocation'!E35 -> 0.03174278698
K4: #3 | L4: Sales | M4: ='Utah Allocation'!D46 -> 0.9660011545 | N4: ='Utah Allocation'!E46 -> 0.03399884551
K5: #4 | L5: Utah | M5: 1 | N5: 0 | P5: PT = Pass Through Item
K6: #5 | L6: Wyoming | M6: 0 | N6: 1
F7: Historical | G7: CASE | H7: Imputed | I7: Adjusted | Q7: Utah | T7: Wyoming | W7: HOT
A8: FERC | F8: 12 Months | G8: Adjustments | H8: Tax | I8: System | P8: Utah Method & Allocations | S8: Wyoming Method & Allocations | W8: This Scenario
A9: Account | C9: Description | F9: 2021-12-01 | G9: Total | H9: Adjustment | I9: Total | L9: Alloc Base | M9: Utah | N9: Wyoming | Q9: General | R9: PT | T9: General | U9: PT | W9: =+'Control Panel'!F11 -> Utah
Q10: Utah | T10: Wyoming | Y10: 1
A11: UTILITY OPERATING REVENUE | Y11: =Y10+1 -> 2
Y12: =Y11+1 -> 3
A13: TARIFF DTH SALES AND REVENUE | Y13: 4
Y14: 5
A15: Utah | Y15: 6
B16: GSR | C16: Distribution Non-Gas Rev | F16: =Revenue!$F$15 -> 343574747 | G16: =+Adjustments!AV16 -> 38227886.61 | I16: =SUM($F$16:$H$16) -> 381802633.6 | L16: Utah | M16: =VLOOKUP($L16,$L$2:$N$7,2,FALSE)*I16 -> 381802633.6 | N16: =VLOOKUP($L16,$L$2:$N$7,3,FALSE)*I16 -> 0 | P16: G | Q16: =IF(P16="G",M16,IF(P16="PT",0,ERR)) -> 381802633.6 | R16: =IF(P16="PT",M16,IF(P16="G",0,ERR)) -> 0 | S16: G | T16: =IF(S16="G",N16,IF(S16="PT",0,ERR)) -> 0 | U16: =IF(S16="PT",N16,IF(S16="G",0,ERR)) -> 0 | W16: =HLOOKUP($W$9,'ROR-Model'!$Q$10:$U$1285,Y16) -> 381802633.6 | Y16: 7
Y17: 8
C18: Supplier Non-Gas Revenue | F18: =Revenue!$F$17 -> 77523468.91 | G18: =+Adjustments!AV18 -> 11442132.55 | I18: =SUM($F$18:$H$18) -> 88965601.46 | L18: Utah | M18: =VLOOKUP($L18,$L$2:$N$7,2,FALSE)*I18 -> 88965601.46 | N18: =VLOOKUP($L18,$L$2:$N$7,3,FALSE)*I18 -> 0 | P18: PT | Q18: =IF(P18="G",M18,IF(P18="PT",0,ERR)) -> 0 | R18: =IF(P18="PT",M18,IF(P18="G",0,ERR)) -> 88965601.46 | S18: PT | T18: =IF(S18="G",N18,IF(S18="PT",0,ERR)) -> 0 | U18: =IF(S18="PT",N18,IF(S18="G",0,ERR)) -> 0 | W18: =HLOOKUP($W$9,'ROR-Model'!$Q$10:$U$1285,Y18) -> 0 | Y18: 9
Y19: 10
C20: Commodity Revenue | F20: =Revenue!$F$19 -> 427130650 | G20: =+Adjustments!AV20 -> 154327042.7 | I20: =SUM($F$20:$H$20) -> 581457692.7 | L20: Utah | M20: =VLOOKUP($L20,$L$2:$N$7,2,FALSE)*I20 -> 581457692.7 | N20: =VLOOKUP($L20,$L$2:$N$7,3,FALSE)*I20 -> 0 | P20: PT | Q20: =IF(P20="G",M20,IF(P20="PT",0,ERR)) -> 0 | R20: =IF(P20="PT",M20,IF(P20="G",0,ERR)) -> 581457692.7 | S20: PT | T20: =IF(S20="G",N20,IF(S20="PT",0,ERR)) -> 0 | U20: =IF(S20="PT",N20,IF(S20="G",0,ERR)) -> 0 | W20: =HLOOKUP($W$9,'ROR-Model'!$Q$10:$U$1285,Y20) -> 0 | Y20: 11
C21: Total Revenue | F21: =SUM(F16:F20) -> 848228865.9 | G21: =SUM(G16:G20) -> 203997061.9 | H21: =SUM(H16:H20) -> 0 | I21: =SUM(I16:I20) -> 1052225928 | M21: =SUM(M16:M20) -> 1052225928 | N21: =SUM(N16:N20) -> 0 | Q21: =SUM(Q16:Q20) -> 381802633.6 | R21: =SUM(R16:R20) -> 670423294.2 | T21: =SUM(T16:T20) -> 0 | U21: =SUM(U16:U20) -> 0 | W21: =HLOOKUP($W$9,'ROR-Model'!$Q$10:$U$1285,Y21) -> 381802633.6 | Y21: 12
Y22: 13
C23: Total Dth | F23: =Revenue!$F$22 -> 101517350.7 | G23: =+Adjustments!AV23 -> 10521204.31 | I23: =SUM($F$23:$H$23) -> 112038555 | L23: Utah | M23: =VLOOKUP($L23,$L$2:$N$7,2,FALSE)*I23 -> 112038555 | N23: =VLOOKUP($L23,$L$2:$N$7,3,FALSE)*I23 -> 0 | P23: G | Q23: =IF(P23="G",M23,IF(P23="PT",0,ERR)) -> 112038555 | R23: =IF(P23="PT",M23,IF(P23="G",0,ERR)) -> 0 | S23: G | T23: =IF(S23="G",N23,IF(S23="PT",0,ERR)) -> 0 | U23: =IF(S23="PT",N23,IF(S23="G",0,ERR)) -> 0 | W23: =HLOOKUP($W$9,'ROR-Model'!$Q$10:$U$1285,Y23) -> 112038555 | Y23: 14
Y24: 15
B25: GSC | C25: Distribution Non-Gas Rev | F25: =Revenue!$F$24 -> 0 | G25: =+Adjustments!AV25 -> 0 | I25: =SUM($F$25:$H$25) -> 0 | L25: Utah | M25: =VLOOKUP($L25,$L$2:$N$7,2,FALSE)*I25 -> 0 | N25: =VLOOKUP($L25,$L$2:$N$7,3,FALSE)*I25 -> 0 | P25: G | Q25: =IF(P25="G",M25,IF(P25="PT",0,ERR)) -> 0 | R25: =IF(P25="PT",M25,IF(P25="G",0,ERR)) -> 0 | S25: G | T25: =IF(S25="G",N25,IF(S25="PT",0,ERR)) -> 0 | U25: =IF(S25="PT",N25,IF(S25="G",0,ERR)) -> 0 | W25: =HLOOKUP($W$9,'ROR-Model'!$Q$10:$U$1285,Y25) -> 0 | Y25: 16
Y26: 17
C27: Supplier Non-Gas Revenue | F27: =Revenue!$F$26 -> 0 | G27: =+Adjustments!AV27 -> 0 | I27: =SUM($F$27:$H$27) -> 0 | L27: Utah | M27: =VLOOKUP($L27,$L$2:$N$7,2,FALSE)*I27 -> 0 | N27: =VLOOKUP($L27,$L$2:$N$7,3,FALSE)*I27 -> 0 | P27: PT | Q27: =IF(P27="G",M27,IF(P27="PT",0,ERR)) -> 0 | R27: =IF(P27="PT",M27,IF(P27="G",0,ERR)) -> 0 | S27: PT | T27: =IF(S27="G",N27,IF(S27="PT",0,ERR)) -> 0 | U27: =IF(S27="PT",N27,IF(S27="G",0,ERR)) -> 0 | W27: =HLOOKUP($W$9,'ROR-Model'!$Q$10:$U$1285,Y27) -> 0 | Y27: 18
Y28: 19
C29: Commodity Revenue | F29: =Revenue!$F$28 -> 0 | G29: =+Adjustments!AV29 -> 0 | I29: =SUM($F$29:$H$29) -> 0 | L29: Utah | M29: =VLOOKUP($L29,$L$2:$N$7,2,FALSE)*I29 -> 0 | N29: =VLOOKUP($L29,$L$2:$N$7,3,FALSE)*I29 -> 0 | P29: PT | Q29: =IF(P29="G",M29,IF(P29="PT",0,ERR)) -> 0 | R29: =IF(P29="PT",M29,IF(P29="G",0,ERR)) -> 0 | S29: PT | T29: =IF(S29="G",N29,IF(S29="PT",0,ERR)) -> 0 | U29: =IF(S29="PT",N29,IF(S29="G",0,ERR)) -> 0 | W29: =HLOOKUP($W$9,'ROR-Model'!$Q$10:$U$1285,Y29) -> 0 | Y29: 20
C30: Total Revenue | F30: =SUM(F25:F29) -> 0 | G30: =SUM(G25:G29) -> 0 | H30: =SUM(H25:H29) -> 0 | I30: =SUM(I25:I29) -> 0 | M30: =SUM(M25:M29) -> 0 | N30: =SUM(N25:N29) -> 0 | Q30: =SUM(Q25:Q29) -> 0 | R30: =SUM(R25:R29) -> 0 | T30: =SUM(T25:T29) -> 0 | U30: =SUM(U25:U29) -> 0 | W30: =HLOOKUP($W$9,'ROR-Model'!$Q$10:$U$1285,Y30) -> 0 | Y30: 21
Y31: 22
C32: Total Dth | F32: =Revenue!$F$31 -> 0 | G32: =+Adjustments!AV32 -> 0 | I32: =SUM(F32:H32) -> 0 | L32: Utah | M32: =VLOOKUP($L32,$L$2:$N$7,2,FALSE)*I32 -> 0 | N32: =VLOOKUP($L32,$L$2:$N$7,3,FALSE)*I32 -> 0 | P32: G | Q32: =IF(P32="G",M32,IF(P32="PT",0,ERR)) -> 0 | R32: =IF(P32="PT",M32,IF(P32="G",0,ERR)) -> 0 | S32: G | T32: =IF(S32="G",N32,IF(S32="PT",0,ERR)) -> 0 | U32: =IF(S32="PT",N32,IF(S32="G",0,ERR)) -> 0 | W32: =HLOOKUP($W$9,'ROR-Model'!$Q$10:$U$1285,Y32) -> 0 | Y32: 23
Y33: 24
B34: GSS | C34: Distribution Non-Gas Rev | F34: =Revenue!$F$33 -> 0 | G34: =+Adjustments!AV34 -> 0 | I34: =SUM(F34:H34) -> 0 | L34: Utah | M34: =VLOOKUP($L34,$L$2:$N$7,2,FALSE)*I34 -> 0 | N34: =VLOOKUP($L34,$L$2:$N$7,3,FALSE)*I34 -> 0 | P34: G | Q34: =IF(P34="G",M34,IF(P34="PT",0,ERR)) -> 0 | R34: =IF(P34="PT",M34,IF(P34="G",0,ERR)) -> 0 | S34: G | T34: =IF(S34="G",N34,IF(S34="PT",0,ERR)) -> 0 | U34: =IF(S34="PT",N34,IF(S34="G",0,ERR)) -> 0 | W34: =HLOOKUP($W$9,'ROR-Model'!$Q$10:$U$1285,Y34) -> 0 | Y34: 25
Y35: 26
C36: Supplier Non-Gas Revenue | F36: =Revenue!$F$35 -> 0 | G36: =+Adjustments!AV36 -> 0 | I36: =SUM($F$36:$H$36) -> 0 | L36: Utah | M36: =VLOOKUP($L36,$L$2:$N$7,2,FALSE)*I36 -> 0 | N36: =VLOOKUP($L36,$L$2:$N$7,3,FALSE)*I36 -> 0 | P36: PT | Q36: =IF(P36="G",M36,IF(P36="PT",0,ERR)) -> 0 | R36: =IF(P36="PT",M36,IF(P36="G",0,ERR)) -> 0 | S36: PT | T36: =IF(S36="G",N36,IF(S36="PT",0,ERR)) -> 0 | U36: =IF(S36="PT",N36,IF(S36="G",0,ERR)) -> 0 | W36: =HLOOKUP($W$9,'ROR-Model'!$Q$10:$U$1285,Y36) -> 0 | Y36: 27
Y37: 28
C38: Commodity Revenue | F38: =Revenue!$F$37 -> 0 | G38: =+Adjustments!AV38 -> 0 | I38: =SUM($F$38:$H$38) -> 0 | L38: Utah | M38: =VLOOKUP($L38,$L$2:$N$7,2,FALSE)*I38 -> 0 | N38: =VLOOKUP($L38,$L$2:$N$7,3,FALSE)*I38 -> 0 | P38: PT | Q38: =IF(P38="G",M38,IF(P38="PT",0,ERR)) -> 0 | R38: =IF(P38="PT",M38,IF(P38="G",0,ERR)) -> 0 | S38: PT | T38: =IF(S38="G",N38,IF(S38="PT",0,ERR)) -> 0 | U38: =IF(S38="PT",N38,IF(S38="G",0,ERR)) -> 0 | W38: =HLOOKUP($W$9,'ROR-Model'!$Q$10:$U$1285,Y38) -> 0 | Y38: 29
C39: Total Revenue | F39: =SUM(F34:F38) -> 0 | G39: =SUM(G34:G38) -> 0 | H39: =SUM(H34:H38) -> 0 | I39: =SUM(I34:I38) -> 0 | M39: =SUM(M34:M38) -> 0 | N39: =SUM(N34:N38) -> 0 | Q39: =SUM(Q34:Q38) -> 0 | R39: =SUM(R34:R38) -> 0 | T39: =SUM(T34:T38) -> 0 | U39: =SUM(U34:U38) -> 0 | W39: =HLOOKUP($W$9,'ROR-Model'!$Q$10:$U$1285,Y39) -> 0 | Y39: 30
Y40: 31
C41: Total Dth | F41: =Revenue!$F$40 -> 0 | G41: =+Adjustments!AV41 -> 0 | I41: =SUM($F$41:$H$41) -> 0 | L41: Utah | M41: =VLOOKUP($L41,$L$2:$N$7,2,FALSE)*I41 -> 0 | N41: =VLOOKUP($L41,$L$2:$N$7,3,FALSE)*I41 -> 0 | P41: G | Q41: =IF(P41="G",M41,IF(P41="PT",0,ERR)) -> 0 | R41: =IF(P41="PT",M41,IF(P41="G",0,ERR)) -> 0 | S41: G | T41: =IF(S41="G",N41,IF(S41="PT",0,ERR)) -> 0 | U41: =IF(S41="PT",N41,IF(S41="G",0,ERR)) -> 0 | W41: =HLOOKUP($W$9,'ROR-Model'!$Q$10:$U$1285,Y41) -> 0 | Y41: 32
Y42: 33
B43: F-1 | C43: Distribution Non-Gas Rev | F43: =Revenue!$F$42 -> 2840759.92 | G43: =+Adjustments!AV43 -> -45020.74209 | I43: =SUM($F$43:$H$43) -> 2795739.178 | L43: Utah | M43: =VLOOKUP($L43,$L$2:$N$7,2,FALSE)*I43 -> 2795739.178 | N43: =VLOOKUP($L43,$L$2:$N$7,3,FALSE)*I43 -> 0 | P43: G | Q43: =IF(P43="G",M43,IF(P43="PT",0,ERR)) -> 2795739.178 | R43: =IF(P43="PT",M43,IF(P43="G",0,ERR)) -> 0 | S43: G | T43: =IF(S43="G",N43,IF(S43="PT",0,ERR)) -> 0 | U43: =IF(S43="PT",N43,IF(S43="G",0,ERR)) -> 0 | W43: =HLOOKUP($W$9,'ROR-Model'!$Q$10:$U$1285,Y43) -> 2795739.178 | Y43: 34
Y44: 35
C45: Supplier Non-Gas Revenue | F45: =Revenue!$F$44 -> 2074548.91 | G45: =+Adjustments!AV45 -> 98994.60555 | I45: =SUM($F$45:$H$45) -> 2173543.516 | L45: Utah | M45: =VLOOKUP($L45,$L$2:$N$7,2,FALSE)*I45 -> 2173543.516 | N45: =VLOOKUP($L45,$L$2:$N$7,3,FALSE)*I45 -> 0 | P45: PT | Q45: =IF(P45="G",M45,IF(P45="PT",0,ERR)) -> 0 | R45: =IF(P45="PT",M45,IF(P45="G",0,ERR)) -> 2173543.516 | S45: PT | T45: =IF(S45="G",N45,IF(S45="PT",0,ERR)) -> 0 | U45: =IF(S45="PT",N45,IF(S45="G",0,ERR)) -> 0 | W45: =HLOOKUP($W$9,'ROR-Model'!$Q$10:$U$1285,Y45) -> 0 | Y45: 36
Y46: 37
C47: Commodity Revenue | F47: =Revenue!$F$46 -> 10902657.5 | G47: =+Adjustments!AV47 -> 2534725.952 | I47: =SUM($F$47:$H$47) -> 13437383.45 | L47: Utah | M47: =VLOOKUP($L47,$L$2:$N$7,2,FALSE)*I47 -> 13437383.45 | N47: =VLOOKUP($L47,$L$2:$N$7,3,FALSE)*I47 -> 0 | P47: PT | Q47: =IF(P47="G",M47,IF(P47="PT",0,ERR)) -> 0 | R47: =IF(P47="PT",M47,IF(P47="G",0,ERR)) -> 13437383.45 | S47: PT | T47: =IF(S47="G",N47,IF(S47="PT",0,ERR)) -> 0 | U47: =IF(S47="PT",N47,IF(S47="G",0,ERR)) -> 0 | W47: =HLOOKUP($W$9,'ROR-Model'!$Q$10:$U$1285,Y47) -> 0 | Y47: 38
C48: Total Revenue | F48: =SUM(F43:F47) -> 15817966.33 | G48: =SUM(G43:G47) -> 2588699.815 | H48: =SUM(H43:H47) -> 0 | I48: =SUM(I43:I47) -> 18406666.15 | M48: =SUM(M43:M47) -> 18406666.15 | N48: =SUM(N43:N47) -> 0 | Q48: =SUM(Q43:Q47) -> 2795739.178 | R48: =SUM(R43:R47) -> 15610926.97 | T48: =SUM(T43:T47) -> 0 | U48: =SUM(U43:U47) -> 0 | W48: =HLOOKUP($W$9,'ROR-Model'!$Q$10:$U$1285,Y48) -> 2795739.178 | Y48: 39
Y49: 40
C50: Total Dth | F50: =Revenue!$F$49 -> 2595058.115 | G50: =+Adjustments!AV50 -> -5866.115 | I50: =SUM($F$50:$H$50) -> 2589192 | L50: Utah | M50: =VLOOKUP($L50,$L$2:$N$7,2,FALSE)*I50 -> 2589192 | N50: =VLOOKUP($L50,$L$2:$N$7,3,FALSE)*I50 -> 0 | P50: G | Q50: =IF(P50="G",M50,IF(P50="PT",0,ERR)) -> 2589192 | R50: =IF(P50="PT",M50,IF(P50="G",0,ERR)) -> 0 | S50: G | T50: =IF(S50="G",N50,IF(S50="PT",0,ERR)) -> 0 | U50: =IF(S50="PT",N50,IF(S50="G",0,ERR)) -> 0 | W50: =HLOOKUP($W$9,'ROR-Model'!$Q$10:$U$1285,Y50) -> 2589192 | Y50: 41
Y51: 42
B52: F-3 | C52: Distribution Non-Gas Rev | F52: =Revenue!$F$51 -> 0 | G52: =+Adjustments!AV52 -> 0 | I52: =SUM($F$52:$H$52) -> 0 | L52: Utah | M52: =VLOOKUP($L52,$L$2:$N$7,2,FALSE)*I52 -> 0 | N52: =VLOOKUP($L52,$L$2:$N$7,3,FALSE)*I52 -> 0 | P52: G | Q52: =IF(P52="G",M52,IF(P52="PT",0,ERR)) -> 0 | R52: =IF(P52="PT",M52,IF(P52="G",0,ERR)) -> 0 | S52: G | T52: =IF(S52="G",N52,IF(S52="PT",0,ERR)) -> 0 | U52: =IF(S52="PT",N52,IF(S52="G",0,ERR)) -> 0 | W52: =HLOOKUP($W$9,'ROR-Model'!$Q$10:$U$1285,Y52) -> 0 | Y52: 43
C53: Supplier Non-Gas Revenue | I53: =SUM($F$53:$H$53) -> 0 | L53: Utah | M53: =VLOOKUP($L53,$L$2:$N$7,2,FALSE)*I53 -> 0 | N53: =VLOOKUP($L53,$L$2:$N$7,3,FALSE)*I53 -> 0 | P53: PT | Q53: =IF(P53="G",M53,IF(P53="PT",0,ERR)) -> 0 | R53: =IF(P53="PT",M53,IF(P53="G",0,ERR)) -> 0 | S53: PT | T53: =IF(S53="G",N53,IF(S53="PT",0,ERR)) -> 0 | U53: =IF(S53="PT",N53,IF(S53="G",0,ERR)) -> 0 | W53: =HLOOKUP($W$9,'ROR-Model'!$Q$10:$U$1285,Y53) -> 0 | Y53: 44
C54: Supplier Non-Gas Demand Revenue | F54: =Revenue!$F$53 -> 0 | G54: =+Adjustments!AV54 -> 0 | I54: =SUM($F$54:$H$54) -> 0 | L54: Utah | M54: =VLOOKUP($L54,$L$2:$N$7,2,FALSE)*I54 -> 0 | N54: =VLOOKUP($L54,$L$2:$N$7,3,FALSE)*I54 -> 0 | P54: PT | Q54: =IF(P54="G",M54,IF(P54="PT",0,ERR)) -> 0 | R54: =IF(P54="PT",M54,IF(P54="G",0,ERR)) -> 0 | S54: PT | T54: =IF(S54="G",N54,IF(S54="PT",0,ERR)) -> 0 | U54: =IF(S54="PT",N54,IF(S54="G",0,ERR)) -> 0 | W54: =HLOOKUP($W$9,'ROR-Model'!$Q$10:$U$1285,Y54) -> 0 | Y54: 45
C55: Commodity Tariff Revenue | I55: =SUM($F$55:$H$55) -> 0 | L55: Utah | M55: =VLOOKUP($L55,$L$2:$N$7,2,FALSE)*I55 -> 0 | N55: =VLOOKUP($L55,$L$2:$N$7,3,FALSE)*I55 -> 0 | P55: PT | Q55: =IF(P55="G",M55,IF(P55="PT",0,ERR)) -> 0 | R55: =IF(P55="PT",M55,IF(P55="G",0,ERR)) -> 0 | S55: PT | T55: =IF(S55="G",N55,IF(S55="PT",0,ERR)) -> 0 | U55: =IF(S55="PT",N55,IF(S55="G",0,ERR)) -> 0 | W55: =HLOOKUP($W$9,'ROR-Model'!$Q$10:$U$1285,Y55) -> 0 | Y55: 46
C56: Commodity Demand Revenue | F56: =Revenue!$F$55 -> 0 | G56: =+Adjustments!AV56 -> 0 | I56: =SUM($F$56:$H$56) -> 0 | L56: Utah | M56: =VLOOKUP($L56,$L$2:$N$7,2,FALSE)*I56 -> 0 | N56: =VLOOKUP($L56,$L$2:$N$7,3,FALSE)*I56 -> 0 | P56: PT | Q56: =IF(P56="G",M56,IF(P56="PT",0,ERR)) -> 0 | R56: =IF(P56="PT",M56,IF(P56="G",0,ERR)) -> 0 | S56: PT | T56: =IF(S56="G",N56,IF(S56="PT",0,ERR)) -> 0 | U56: =IF(S56="PT",N56,IF(S56="G",0,ERR)) -> 0 | W56: =HLOOKUP($W$9,'ROR-Model'!$Q$10:$U$1285,Y56) -> 0 | Y56: 47
C57: Total Revenue | F57: =SUM(F52:F56) -> 0 | G57: =SUM(G52:G56) -> 0 | H57: =SUM(H52:H56) -> 0 | I57: =SUM(I52:I56) -> 0 | M57: =SUM(M52:M56) -> 0 | N57: =SUM(N52:N56) -> 0 | Q57: =SUM(Q52:Q56) -> 0 | R57: =SUM(R52:R56) -> 0 | T57: =SUM(T52:T56) -> 0 | U57: =SUM(U52:U56) -> 0 | W57: =HLOOKUP($W$9,'ROR-Model'!$Q$10:$U$1285,Y57) -> 0 | Y57: 48
Y58: 49
C59: Total Sales Dth | F59: =Revenue!$F$58 -> 0 | G59: =+Adjustments!AV59 -> 0 | I59: =SUM($F$59:$H$59) -> 0 | L59: Utah | M59: =VLOOKUP($L59,$L$2:$N$7,2,FALSE)*I59 -> 0 | N59: =VLOOKUP($L59,$L$2:$N$7,3,FALSE)*I59 -> 0 | P59: G | Q59: =IF(P59="G",M59,IF(P59="PT",0,ERR)) -> 0 | R59: =IF(P59="PT",M59,IF(P59="G",0,ERR)) -> 0 | S59: G | T59: =IF(S59="G",N59,IF(S59="PT",0,ERR)) -> 0 | U59: =IF(S59="PT",N59,IF(S59="G",0,ERR)) -> 0 | W59: =HLOOKUP($W$9,'ROR-Model'!$Q$10:$U$1285,Y59) -> 0 | Y59: 50
W60: =HLOOKUP($W$9,'ROR-Model'!$Q$10:$U$1285,Y60) -> 0 | Y60: 51
B61: NGV | C61: Distribution Non-Gas Rev | F61: =Revenue!$F$60 -> 2275823.682 | G61: =+Adjustments!AV61 -> 327515.112 | I61: =SUM($F$61:$H$61) -> 2603338.794 | L61: Utah | M61: =VLOOKUP($L61,$L$2:$N$7,2,FALSE)*I61 -> 2603338.794 | N61: =VLOOKUP($L61,$L$2:$N$7,3,FALSE)*I61 -> 0 | P61: G | Q61: =IF(P61="G",M61,IF(P61="PT",0,ERR)) -> 2603338.794 | R61: =IF(P61="PT",M61,IF(P61="G",0,ERR)) -> 0 | S61: G | T61: =IF(S61="G",N61,IF(S61="PT",0,ERR)) -> 0 | U61: =IF(S61="PT",N61,IF(S61="G",0,ERR)) -> 0 | W61: =HLOOKUP($W$9,'ROR-Model'!$Q$10:$U$1285,Y61) -> 2603338.794 | Y61: 52
F62: =Revenue!$F$61 -> 0 | W62: =HLOOKUP($W$9,'ROR-Model'!$Q$10:$U$1285,Y62) -> 0 | Y62: 53
C63: Supplier Non-Gas Revenue | F63: =Revenue!$F$62 -> 212373.9027 | G63: =+Adjustments!AV63 -> 87986.36619 | I63: =SUM($F$63:$H$63) -> 300360.2689 | L63: Utah | M63: =VLOOKUP($L63,$L$2:$N$7,2,FALSE)*I63 -> 300360.2689 | N63: =VLOOKUP($L63,$L$2:$N$7,3,FALSE)*I63 -> 0 | P63: PT | Q63: =IF(P63="G",M63,IF(P63="PT",0,ERR)) -> 0 | R63: =IF(P63="PT",M63,IF(P63="G",0,ERR)) -> 300360.2689 | S63: PT | T63: =IF(S63="G",N63,IF(S63="PT",0,ERR)) -> 0 | U63: =IF(S63="PT",N63,IF(S63="G",0,ERR)) -> 0 | W63: =HLOOKUP($W$9,'ROR-Model'!$Q$10:$U$1285,Y63) -> 0 | Y63: 54
F64: =Revenue!$F$63 -> 0 | W64: =HLOOKUP($W$9,'ROR-Model'!$Q$10:$U$1285,Y64) -> 0 | Y64: 55
C65: Commodity Revenue | F65: =Revenue!$F$64 -> 846413.0956 | G65: =+Adjustments!AV65 -> 547798.8029 | I65: =SUM($F$65:$H$65) -> 1394211.899 | L65: Utah | M65: =VLOOKUP($L65,$L$2:$N$7,2,FALSE)*I65 -> 1394211.899 | N65: =VLOOKUP($L65,$L$2:$N$7,3,FALSE)*I65 -> 0 | P65: PT | Q65: =IF(P65="G",M65,IF(P65="PT",0,ERR)) -> 0 | R65: =IF(P65="PT",M65,IF(P65="G",0,ERR)) -> 1394211.899 | S65: PT | T65: =IF(S65="G",N65,IF(S65="PT",0,ERR)) -> 0 | U65: =IF(S65="PT",N65,IF(S65="G",0,ERR)) -> 0 | W65: =HLOOKUP($W$9,'ROR-Model'!$Q$10:$U$1285,Y65) -> 0 | Y65: 56
C66: Total Revenue | F66: =SUM(F61:F65) -> 3334610.68 | G66: =SUM(G61:G65) -> 963300.2811 | H66: =SUM(H61:H65) -> 0 | I66: =SUM(I61:I65) -> 4297910.961 | M66: =SUM(M61:M65) -> 4297910.961 | N66: =SUM(N61:N65) -> 0 | Q66: =SUM(Q61:Q65) -> 2603338.794 | R66: =SUM(R61:R65) -> 1694572.167 | T66: =SUM(T61:T65) -> 0 | U66: =SUM(U61:U65) -> 0 | W66: =HLOOKUP($W$9,'ROR-Model'!$Q$10:$U$1285,Y66) -> 2603338.794 | Y66: 57
Y67: 58
C68: Total Dth | F68: =Revenue!$F$67 -> 291657.909 | G68: =+Adjustments!AV68 -> -1885.909 | I68: =SUM($F$68:$H$68) -> 289772 | L68: Utah | M68: =VLOOKUP($L68,$L$2:$N$7,2,FALSE)*I68 -> 289772 | N68: =VLOOKUP($L68,$L$2:$N$7,3,FALSE)*I68 -> 0 | P68: G | Q68: =IF(P68="G",M68,IF(P68="PT",0,ERR)) -> 289772 | R68: =IF(P68="PT",M68,IF(P68="G",0,ERR)) -> 0 | S68: G | T68: =IF(S68="G",N68,IF(S68="PT",0,ERR)) -> 0 | U68: =IF(S68="PT",N68,IF(S68="G",0,ERR)) -> 0 | W68: =HLOOKUP($W$9,'ROR-Model'!$Q$10:$U$1285,Y68) -> 289772 | Y68: 59
Y69: 60
B70: F-4 | C70: Distribution Non-Gas Rev | F70: =Revenue!$F$69 -> 0 | G70: =+Adjustments!AV70 -> 0 | I70: =SUM($F$70:$H$70) -> 0 | L70: Utah | M70: =VLOOKUP($L70,$L$2:$N$7,2,FALSE)*I70 -> 0 | N70: =VLOOKUP($L70,$L$2:$N$7,3,FALSE)*I70 -> 0 | P70: G | Q70: =IF(P70="G",M70,IF(P70="PT",0,ERR)) -> 0 | R70: =IF(P70="PT",M70,IF(P70="G",0,ERR)) -> 0 | S70: G | T70: =IF(S70="G",N70,IF(S70="PT",0,ERR)) -> 0 | U70: =IF(S70="PT",N70,IF(S70="G",0,ERR)) -> 0 | W70: =HLOOKUP($W$9,'ROR-Model'!$Q$10:$U$1285,Y70) -> 0 | Y70: 61
Y71: 62
C72: Supplier Non-Gas Revenue | F72: =Revenue!$F$71 -> 0 | G72: =+Adjustments!AV72 -> 0 | I72: =SUM($F$72:$H$72) -> 0 | L72: Utah | M72: =VLOOKUP($L72,$L$2:$N$7,2,FALSE)*I72 -> 0 | N72: =VLOOKUP($L72,$L$2:$N$7,3,FALSE)*I72 -> 0 | P72: PT | Q72: =IF(P72="G",M72,IF(P72="PT",0,ERR)) -> 0 | R72: =IF(P72="PT",M72,IF(P72="G",0,ERR)) -> 0 | S72: PT | T72: =IF(S72="G",N72,IF(S72="PT",0,ERR)) -> 0 | U72: =IF(S72="PT",N72,IF(S72="G",0,ERR)) -> 0 | W72: =HLOOKUP($W$9,'ROR-Model'!$Q$10:$U$1285,Y72) -> 0 | Y72: 63
Y73: 64
C74: Commodity Revenue | F74: =Revenue!$F$73 -> 0 | G74: =+Adjustments!AV74 -> 0 | I74: =SUM($F$74:$H$74) -> 0 | L74: Utah | M74: =VLOOKUP($L74,$L$2:$N$7,2,FALSE)*I74 -> 0 | N74: =VLOOKUP($L74,$L$2:$N$7,3,FALSE)*I74 -> 0 | P74: PT | Q74: =IF(P74="G",M74,IF(P74="PT",0,ERR)) -> 0 | R74: =IF(P74="PT",M74,IF(P74="G",0,ERR)) -> 0 | S74: PT | T74: =IF(S74="G",N74,IF(S74="PT",0,ERR)) -> 0 | U74: =IF(S74="PT",N74,IF(S74="G",0,ERR)) -> 0 | W74: =HLOOKUP($W$9,'ROR-Model'!$Q$10:$U$1285,Y74) -> 0 | Y74: 65
C75: Total Revenue | F75: =SUM(F70:F74) -> 0 | G75: =SUM(G70:G74) -> 0 | H75: =SUM(H70:H74) -> 0 | I75: =SUM(I70:I74) -> 0 | M75: =SUM(M70:M74) -> 0 | N75: =SUM(N70:N74) -> 0 | Q75: =SUM(Q70:Q74) -> 0 | R75: =SUM(R70:R74) -> 0 | T75: =SUM(T70:T74) -> 0 | U75: =SUM(U70:U74) -> 0 | W75: =HLOOKUP($W$9,'ROR-Model'!$Q$10:$U$1285,Y75) -> 0 | Y75: 66
Y76: =Y75+1 -> 67
C77: Total Dth | F77: =Revenue!$F$76 -> 0 | G77: =+Adjustments!AV77 -> 0 | I77: =SUM($F$77:$H$77) -> 0 | L77: Utah | M77: =VLOOKUP($L77,$L$2:$N$7,2,FALSE)*I77 -> 0 | N77: =VLOOKUP($L77,$L$2:$N$7,3,FALSE)*I77 -> 0 | P77: G | Q77: =IF(P77="G",M77,IF(P77="PT",0,ERR)) -> 0 | R77: =IF(P77="PT",M77,IF(P77="G",0,ERR)) -> 0 | S77: G | T77: =IF(S77="G",N77,IF(S77="PT",0,ERR)) -> 0 | U77: =IF(S77="PT",N77,IF(S77="G",0,ERR)) -> 0 | W77: =HLOOKUP($W$9,'ROR-Model'!$Q$10:$U$1285,Y77) -> 0 | Y77: 68
Y78: 69
B79: Blank | C79: Distribution Non-Gas Rev | F79: =Revenue!$F$78 -> 0 | G79: =+Adjustments!AV79 -> 0 | I79: =SUM($F$79:$H$79) -> 0 | L79: Utah | M79: =VLOOKUP($L79,$L$2:$N$7,2,FALSE)*I79 -> 0 | N79: =VLOOKUP($L79,$L$2:$N$7,3,FALSE)*I79 -> 0 | P79: G | Q79: =IF(P79="G",M79,IF(P79="PT",0,ERR)) -> 0 | R79: =IF(P79="PT",M79,IF(P79="G",0,ERR)) -> 0 | S79: G | T79: =IF(S79="G",N79,IF(S79="PT",0,ERR)) -> 0 | U79: =IF(S79="PT",N79,IF(S79="G",0,ERR)) -> 0 | W79: =HLOOKUP($W$9,'ROR-Model'!$Q$10:$U$1285,Y79) -> 0 | Y79: 70
Y80: 71
C81: Supplier Non-Gas Revenue | F81: =Revenue!$F$80 -> 0 | G81: =+Adjustments!AV81 -> 0 | I81: =SUM($F$81:$H$81) -> 0 | L81: Utah | M81: =VLOOKUP($L81,$L$2:$N$7,2,FALSE)*I81 -> 0 | N81: =VLOOKUP($L81,$L$2:$N$7,3,FALSE)*I81 -> 0 | P81: PT | Q81: =IF(P81="G",M81,IF(P81="PT",0,ERR)) -> 0 | R81: =IF(P81="PT",M81,IF(P81="G",0,ERR)) -> 0 | S81: PT | T81: =IF(S81="G",N81,IF(S81="PT",0,ERR)) -> 0 | U81: =IF(S81="PT",N81,IF(S81="G",0,ERR)) -> 0 | W81: =HLOOKUP($W$9,'ROR-Model'!$Q$10:$U$1285,Y81) -> 0 | Y81: 72
Y82: 73
C83: Commodity Revenue | F83: =Revenue!$F$82 -> 0 | G83: =+Adjustments!AV83 -> 0 | I83: =SUM($F$83:$H$83) -> 0 | L83: Utah | M83: =VLOOKUP($L83,$L$2:$N$7,2,FALSE)*I83 -> 0 | N83: =VLOOKUP($L83,$L$2:$N$7,3,FALSE)*I83 -> 0 | P83: PT | Q83: =IF(P83="G",M83,IF(P83="PT",0,ERR)) -> 0 | R83: =IF(P83="PT",M83,IF(P83="G",0,ERR)) -> 0 | S83: PT | T83: =IF(S83="G",N83,IF(S83="PT",0,ERR)) -> 0 | U83: =IF(S83="PT",N83,IF(S83="G",0,ERR)) -> 0 | W83: =HLOOKUP($W$9,'ROR-Model'!$Q$10:$U$1285,Y83) -> 0 | Y83: 74
C84: Total Revenue | F84: =SUM(F79:F83) -> 0 | G84: =SUM(G79:G83) -> 0 | H84: =SUM(H79:H83) -> 0 | I84: =SUM(I79:I83) -> 0 | M84: =SUM(M79:M83) -> 0 | N84: =SUM(N79:N83) -> 0 | Q84: =SUM(Q79:Q83) -> 0 | R84: =SUM(R79:R83) -> 0 | T84: =SUM(T79:T83) -> 0 | U84: =SUM(U79:U83) -> 0 | W84: =HLOOKUP($W$9,'ROR-Model'!$Q$10:$U$1285,Y84) -> 0 | Y84: 75
Y85: 76
C86: Total Dth | F86: =Revenue!$F$85 -> 0 | G86: =+Adjustments!AV86 -> 0 | I86: =SUM($F$86:$H$86) -> 0 | L86: Utah | M86: =VLOOKUP($L86,$L$2:$N$7,2,FALSE)*I86 -> 0 | N86: =VLOOKUP($L86,$L$2:$N$7,3,FALSE)*I86 -> 0 | P86: G | Q86: =IF(P86="G",M86,IF(P86="PT",0,ERR)) -> 0 | R86: =IF(P86="PT",M86,IF(P86="G",0,ERR)) -> 0 | S86: G | T86: =IF(S86="G",N86,IF(S86="PT",0,ERR)) -> 0 | U86: =IF(S86="PT",N86,IF(S86="G",0,ERR)) -> 0 | W86: =HLOOKUP($W$9,'ROR-Model'!$Q$10:$U$1285,Y86) -> 0 | Y86: 77
Y87: 78
B88: I-4 | C88: Distribution Non-Gas Rev | F88: =Revenue!$F$87 -> 0 | G88: =+Adjustments!AV88 -> 0 | I88: =SUM($F$88:$H$88) -> 0 | L88: Utah | M88: =VLOOKUP($L88,$L$2:$N$7,2,FALSE)*I88 -> 0 | N88: =VLOOKUP($L88,$L$2:$N$7,3,FALSE)*I88 -> 0 | P88: G | Q88: =IF(P88="G",M88,IF(P88="PT",0,ERR)) -> 0 | R88: =IF(P88="PT",M88,IF(P88="G",0,ERR)) -> 0 | S88: G | T88: =IF(S88="G",N88,IF(S88="PT",0,ERR)) -> 0 | U88: =IF(S88="PT",N88,IF(S88="G",0,ERR)) -> 0 | W88: =HLOOKUP($W$9,'ROR-Model'!$Q$10:$U$1285,Y88) -> 0 | Y88: 79
Y89: 80
C90: Supplier Non-Gas Revenue | F90: =Revenue!$F$89 -> 0 | G90: =+Adjustments!AV90 -> 0 | I90: =SUM($F$90:$H$90) -> 0 | L90: Utah | M90: =VLOOKUP($L90,$L$2:$N$7,2,FALSE)*I90 -> 0 | N90: =VLOOKUP($L90,$L$2:$N$7,3,FALSE)*I90 -> 0 | P90: PT | Q90: =IF(P90="G",M90,IF(P90="PT",0,ERR)) -> 0 | R90: =IF(P90="PT",M90,IF(P90="G",0,ERR)) -> 0 | S90: PT | T90: =IF(S90="G",N90,IF(S90="PT",0,ERR)) -> 0 | U90: =IF(S90="PT",N90,IF(S90="G",0,ERR)) -> 0 | W90: =HLOOKUP($W$9,'ROR-Model'!$Q$10:$U$1285,Y90) -> 0 | Y90: 81
Y91: 82
C92: Commodity Revenue | F92: =Revenue!$F$91 -> 0 | G92: =+Adjustments!AV92 -> 0 | I92: =SUM($F$92:$H$92) -> 0 | L92: Utah | M92: =VLOOKUP($L92,$L$2:$N$7,2,FALSE)*I92 -> 0 | N92: =VLOOKUP($L92,$L$2:$N$7,3,FALSE)*I92 -> 0 | P92: PT | Q92: =IF(P92="G",M92,IF(P92="PT",0,ERR)) -> 0 | R92: =IF(P92="PT",M92,IF(P92="G",0,ERR)) -> 0 | S92: PT | T92: =IF(S92="G",N92,IF(S92="PT",0,ERR)) -> 0 | U92: =IF(S92="PT",N92,IF(S92="G",0,ERR)) -> 0 | W92: =HLOOKUP($W$9,'ROR-Model'!$Q$10:$U$1285,Y92) -> 0 | Y92: 83
C93: Total Revenue | F93: =SUM(F88:F92) -> 0 | G93: =SUM(G88:G92) -> 0 | H93: =SUM(H88:H92) -> 0 | I93: =SUM(I88:I92) -> 0 | M93: =SUM(M88:M92) -> 0 | N93: =SUM(N88:N92) -> 0 | Q93: =SUM(Q88:Q92) -> 0 | R93: =SUM(R88:R92) -> 0 | T93: =SUM(T88:T92) -> 0 | U93: =SUM(U88:U92) -> 0 | W93: =HLOOKUP($W$9,'ROR-Model'!$Q$10:$U$1285,Y93) -> 0 | Y93: 84
Y94: 85
C95: Total Dth | F95: =Revenue!$F$94 -> 0 | G95: =+Adjustments!AV95 -> 0 | I95: =SUM($F$95:$H$95) -> 0 | L95: Utah | M95: =VLOOKUP($L95,$L$2:$N$7,2,FALSE)*I95 -> 0 | N95: =VLOOKUP($L95,$L$2:$N$7,3,FALSE)*I95 -> 0 | P95: G | Q95: =IF(P95="G",M95,IF(P95="PT",0,ERR)) -> 0 | R95: =IF(P95="PT",M95,IF(P95="G",0,ERR)) -> 0 | S95: G | T95: =IF(S95="G",N95,IF(S95="PT",0,ERR)) -> 0 | U95: =IF(S95="PT",N95,IF(S95="G",0,ERR)) -> 0 | W95: =HLOOKUP($W$9,'ROR-Model'!$Q$10:$U$1285,Y95) -> 0 | Y95: 86
Y96: 87
B97: IS | C97: Distribution Non-Gas Rev | F97: =Revenue!$F$96 -> 268124.57 | G97: =+Adjustments!AV97 -> -4697.82448 | I97: =SUM($F$97:$H$97) -> 263426.7455 | L97: Utah | M97: =VLOOKUP($L97,$L$2:$N$7,2,FALSE)*I97 -> 263426.7455 | N97: =VLOOKUP($L97,$L$2:$N$7,3,FALSE)*I97 -> 0 | P97: G | Q97: =IF(P97="G",M97,IF(P97="PT",0,ERR)) -> 263426.7455 | R97: =IF(P97="PT",M97,IF(P97="G",0,ERR)) -> 0 | S97: G | T97: =IF(S97="G",N97,IF(S97="PT",0,ERR)) -> 0 | U97: =IF(S97="PT",N97,IF(S97="G",0,ERR)) -> 0 | W97: =HLOOKUP($W$9,'ROR-Model'!$Q$10:$U$1285,Y97) -> 263426.7455 | Y97: 88
Y98: 89
C99: Supplier Non-Gas Revenue | F99: =Revenue!$F$98 -> 53090.66 | G99: =+Adjustments!AV99 -> -4567.3938 | I99: =SUM($F$99:$H$99) -> 48523.2662 | L99: Utah | M99: =VLOOKUP($L99,$L$2:$N$7,2,FALSE)*I99 -> 48523.2662 | N99: =VLOOKUP($L99,$L$2:$N$7,3,FALSE)*I99 -> 0 | P99: PT | Q99: =IF(P99="G",M99,IF(P99="PT",0,ERR)) -> 0 | R99: =IF(P99="PT",M99,IF(P99="G",0,ERR)) -> 48523.2662 | S99: PT | T99: =IF(S99="G",N99,IF(S99="PT",0,ERR)) -> 0 | U99: =IF(S99="PT",N99,IF(S99="G",0,ERR)) -> 0 | W99: =HLOOKUP($W$9,'ROR-Model'!$Q$10:$U$1285,Y99) -> 0 | Y99: 90
Y100: 91
C101: Commodity Revenue | F101: =Revenue!$F$100 -> 1239223.63 | G101: =+Adjustments!AV101 -> 167232.9292 | I101: =SUM($F$101:$H$101) -> 1406456.559 | L101: Utah | M101: =VLOOKUP($L101,$L$2:$N$7,2,FALSE)*I101 -> 1406456.559 | N101: =VLOOKUP($L101,$L$2:$N$7,3,FALSE)*I101 -> 0 | P101: PT | Q101: =IF(P101="G",M101,IF(P101="PT",0,ERR)) -> 0 | R101: =IF(P101="PT",M101,IF(P101="G",0,ERR)) -> 1406456.559 | S101: PT | T101: =IF(S101="G",N101,IF(S101="PT",0,ERR)) -> 0 | U101: =IF(S101="PT",N101,IF(S101="G",0,ERR)) -> 0 | W101: =HLOOKUP($W$9,'ROR-Model'!$Q$10:$U$1285,Y101) -> 0 | Y101: 92
C102: Total Revenue | F102: =SUM(F97:F101) -> 1560438.86 | G102: =SUM(G97:G101) -> 157967.7109 | H102: =SUM(H97:H101) -> 0 | I102: =SUM(I97:I101) -> 1718406.571 | M102: =SUM(M97:M101) -> 1718406.571 | N102: =SUM(N97:N101) -> 0 | Q102: =SUM(Q97:Q101) -> 263426.7455 | R102: =SUM(R97:R101) -> 1454979.825 | T102: =SUM(T97:T101) -> 0 | U102: =SUM(U97:U101) -> 0 | W102: =HLOOKUP($W$9,'ROR-Model'!$Q$10:$U$1285,Y102) -> 263426.7455 | Y102: 93
Y103: 94
C104: Total Dth | F104: =Revenue!$F$103 -> 295636.033 | G104: =+Adjustments!AV104 -> -24632.033 | I104: =SUM($F$104:$H$104) -> 271004 | L104: Utah | M104: =VLOOKUP($L104,$L$2:$N$7,2,FALSE)*I104 -> 271004 | N104: =VLOOKUP($L104,$L$2:$N$7,3,FALSE)*I104 -> 0 | P104: G | Q104: =IF(P104="G",M104,IF(P104="PT",0,ERR)) -> 271004 | R104: =IF(P104="PT",M104,IF(P104="G",0,ERR)) -> 0 | S104: G | T104: =IF(S104="G",N104,IF(S104="PT",0,ERR)) -> 0 | U104: =IF(S104="PT",N104,IF(S104="G",0,ERR)) -> 0 | W104: =HLOOKUP($W$9,'ROR-Model'!$Q$10:$U$1285,Y104) -> 271004 | Y104: 95
Y105: 96
B106: IS-4 | C106: Distribution Non-Gas Rev | F106: =Revenue!$F$105 -> 0 | G106: =+Adjustments!AV106 -> 0 | I106: =SUM($F$106:$H$106) -> 0 | L106: Utah | M106: =VLOOKUP($L106,$L$2:$N$7,2,FALSE)*I106 -> 0 | N106: =VLOOKUP($L106,$L$2:$N$7,3,FALSE)*I106 -> 0 | P106: G | Q106: =IF(P106="G",M106,IF(P106="PT",0,ERR)) -> 0 | R106: =IF(P106="PT",M106,IF(P106="G",0,ERR)) -> 0 | S106: G | T106: =IF(S106="G",N106,IF(S106="PT",0,ERR)) -> 0 | U106: =IF(S106="PT",N106,IF(S106="G",0,ERR)) -> 0 | W106: =HLOOKUP($W$9,'ROR-Model'!$Q$10:$U$1285,Y106) -> 0 | Y106: 97
Y107: 98
C108: Supplier Non-Gas Revenue | F108: =Revenue!$F$107 -> 0 | G108: =+Adjustments!AV108 -> 0 | I108: =SUM($F$108:$H$108) -> 0 | L108: Utah | M108: =VLOOKUP($L108,$L$2:$N$7,2,FALSE)*I108 -> 0 | N108: =VLOOKUP($L108,$L$2:$N$7,3,FALSE)*I108 -> 0 | P108: PT | Q108: =IF(P108="G",M108,IF(P108="PT",0,ERR)) -> 0 | R108: =IF(P108="PT",M108,IF(P108="G",0,ERR)) -> 0 | S108: PT | T108: =IF(S108="G",N108,IF(S108="PT",0,ERR)) -> 0 | U108: =IF(S108="PT",N108,IF(S108="G",0,ERR)) -> 0 | W108: =HLOOKUP($W$9,'ROR-Model'!$Q$10:$U$1285,Y108) -> 0 | Y108: 99
Y109: 100
C110: Commodity Revenue | F110: =Revenue!$F$109 -> 0 | G110: =+Adjustments!AV110 -> 0 | I110: =SUM($F$110:$H$110) -> 0 | L110: Utah | M110: =VLOOKUP($L110,$L$2:$N$7,2,FALSE)*I110 -> 0 | N110: =VLOOKUP($L110,$L$2:$N$7,3,FALSE)*I110 -> 0 | P110: PT | Q110: =IF(P110="G",M110,IF(P110="PT",0,ERR)) -> 0 | R110: =IF(P110="PT",M110,IF(P110="G",0,ERR)) -> 0 | S110: PT | T110: =IF(S110="G",N110,IF(S110="PT",0,ERR)) -> 0 | U110: =IF(S110="PT",N110,IF(S110="G",0,ERR)) -> 0 | W110: =HLOOKUP($W$9,'ROR-Model'!$Q$10:$U$1285,Y110) -> 0 | Y110: 101
C111: Total Revenue | F111: =SUM(F106:F110) -> 0 | G111: =SUM(G106:G110) -> 0 | H111: =SUM(H106:H110) -> 0 | I111: =SUM(I106:I110) -> 0 | M111: =SUM(M106:M110) -> 0 | N111: =SUM(N106:N110) -> 0 | Q111: =SUM(Q106:Q110) -> 0 | R111: =SUM(R106:R110) -> 0 | T111: =SUM(T106:T110) -> 0 | U111: =SUM(U106:U110) -> 0 | W111: =HLOOKUP($W$9,'ROR-Model'!$Q$10:$U$1285,Y111) -> 0 | Y111: 102
Y112: 103
C113: Total Dth | F113: =Revenue!$F$112 -> 0 | G113: =+Adjustments!AV113 -> 0 | I113: =SUM($F$113:$H$113) -> 0 | L113: Utah | M113: =VLOOKUP($L113,$L$2:$N$7,2,FALSE)*I113 -> 0 | N113: =VLOOKUP($L113,$L$2:$N$7,3,FALSE)*I113 -> 0 | P113: G | Q113: =IF(P113="G",M113,IF(P113="PT",0,ERR)) -> 0 | R113: =IF(P113="PT",M113,IF(P113="G",0,ERR)) -> 0 | S113: G | T113: =IF(S113="G",N113,IF(S113="PT",0,ERR)) -> 0 | U113: =IF(S113="PT",N113,IF(S113="G",0,ERR)) -> 0 | W113: =HLOOKUP($W$9,'ROR-Model'!$Q$10:$U$1285,Y113) -> 0 | Y113: 104
Y114: 105
B115: FT1-L | C115: Distribution Non-Gas Rev | F115: =Revenue!$F$114 -> 0 | G115: =+Adjustments!AV115 -> 2240124 | I115: =SUM($F$115:$H$115) -> 2240124 | L115: Utah | M115: =VLOOKUP($L115,$L$2:$N$7,2,FALSE)*I115 -> 2240124 | N115: =VLOOKUP($L115,$L$2:$N$7,3,FALSE)*I115 -> 0 | P115: G | Q115: =IF(P115="G",M115,IF(P115="PT",0,ERR)) -> 2240124 | R115: =IF(P115="PT",M115,IF(P115="G",0,ERR)) -> 0 | S115: G | T115: =IF(S115="G",N115,IF(S115="PT",0,ERR)) -> 0 | U115: =IF(S115="PT",N115,IF(S115="G",0,ERR)) -> 0 | W115: =HLOOKUP($W$9,'ROR-Model'!$Q$10:$U$1285,Y115) -> 2240124 | Y115: 106
Y116: 107
C117: Supplier Non-Gas Revenue | F117: =Revenue!$F$116 -> 0 | G117: =+Adjustments!AV117 -> 0 | I117: =SUM($F$117:$H$117) -> 0 | L117: Utah | M117: =VLOOKUP($L117,$L$2:$N$7,2,FALSE)*I117 -> 0 | N117: =VLOOKUP($L117,$L$2:$N$7,3,FALSE)*I117 -> 0 | P117: PT | Q117: =IF(P117="G",M117,IF(P117="PT",0,ERR)) -> 0 | R117: =IF(P117="PT",M117,IF(P117="G",0,ERR)) -> 0 | S117: PT | T117: =IF(S117="G",N117,IF(S117="PT",0,ERR)) -> 0 | U117: =IF(S117="PT",N117,IF(S117="G",0,ERR)) -> 0 | W117: =HLOOKUP($W$9,'ROR-Model'!$Q$10:$U$1285,Y117) -> 0 | Y117: 108
Y118: 109
C119: Commodity Revenue | F119: =Revenue!$F$118 -> 0 | G119: =+Adjustments!AV119 -> 0 | I119: =SUM($F$119:$H$119) -> 0 | L119: Utah | M119: =VLOOKUP($L119,$L$2:$N$7,2,FALSE)*I119 -> 0 | N119: =VLOOKUP($L119,$L$2:$N$7,3,FALSE)*I119 -> 0 | P119: PT | Q119: =IF(P119="G",M119,IF(P119="PT",0,ERR)) -> 0 | R119: =IF(P119="PT",M119,IF(P119="G",0,ERR)) -> 0 | S119: PT | T119: =IF(S119="G",N119,IF(S119="PT",0,ERR)) -> 0 | U119: =IF(S119="PT",N119,IF(S119="G",0,ERR)) -> 0 | W119: =HLOOKUP($W$9,'ROR-Model'!$Q$10:$U$1285,Y119) -> 0 | Y119: 110
C120: Total Revenue | F120: =SUM(F115:F119) -> 0 | G120: =SUM(G115:G119) -> 2240124 | H120: =SUM(H115:H119) -> 0 | I120: =SUM(I115:I119) -> 2240124 | M120: =SUM(M115:M119) -> 2240124 | N120: =SUM(N115:N119) -> 0 | Q120: =SUM(Q115:Q119) -> 2240124 | R120: =SUM(R115:R119) -> 0 | T120: =SUM(T115:T119) -> 0 | U120: =SUM(U115:U119) -> 0 | W120: =HLOOKUP($W$9,'ROR-Model'!$Q$10:$U$1285,Y120) -> 2240124 | Y120: 111
Y121: 112
C122: Total Dth | F122: =Revenue!$F$121 -> 0 | G122: =+Adjustments!AV122 -> 43403526 | I122: =SUM($F$122:$H$122) -> 43403526 | L122: Utah | M122: =VLOOKUP($L122,$L$2:$N$7,2,FALSE)*I122 -> 43403526 | N122: =VLOOKUP($L122,$L$2:$N$7,3,FALSE)*I122 -> 0 | P122: G | Q122: =IF(P122="G",M122,IF(P122="PT",0,ERR)) -> 43403526 | R122: =IF(P122="PT",M122,IF(P122="G",0,ERR)) -> 0 | S122: G | T122: =IF(S122="G",N122,IF(S122="PT",0,ERR)) -> 0 | U122: =IF(S122="PT",N122,IF(S122="G",0,ERR)) -> 0 | W122: =HLOOKUP($W$9,'ROR-Model'!$Q$10:$U$1285,Y122) -> 43403526 | Y122: 113
Y123: 114
B124: TBF | C124: Distribution Non-Gas Rev | F124: =Revenue!$F$123 -> 7346212.21 | G124: =+Adjustments!AV124 -> -4609324.031 | I124: =SUM($F$124:$H$124) -> 2736888.179 | L124: Utah | M124: =VLOOKUP($L124,$L$2:$N$7,2,FALSE)*I124 -> 2736888.179 | N124: =VLOOKUP($L124,$L$2:$N$7,3,FALSE)*I124 -> 0 | P124: G | Q124: =IF(P124="G",M124,IF(P124="PT",0,ERR)) -> 2736888.179 | R124: =IF(P124="PT",M124,IF(P124="G",0,ERR)) -> 0 | S124: G | T124: =IF(S124="G",N124,IF(S124="PT",0,ERR)) -> 0 | U124: =IF(S124="PT",N124,IF(S124="G",0,ERR)) -> 0 | W124: =HLOOKUP($W$9,'ROR-Model'!$Q$10:$U$1285,Y124) -> 2736888.179 | Y124: 115
Y125: 116
C126: Supplier Non-Gas Revenue | F126: =Revenue!$F$125 -> 233950.16 | G126: =+Adjustments!AV126 -> -233950.16 | I126: =SUM($F$126:$H$126) -> 0 | L126: Utah | M126: =VLOOKUP($L126,$L$2:$N$7,2,FALSE)*I126 -> 0 | N126: =VLOOKUP($L126,$L$2:$N$7,3,FALSE)*I126 -> 0 | P126: PT | Q126: =IF(P126="G",M126,IF(P126="PT",0,ERR)) -> 0 | R126: =IF(P126="PT",M126,IF(P126="G",0,ERR)) -> 0 | S126: PT | T126: =IF(S126="G",N126,IF(S126="PT",0,ERR)) -> 0 | U126: =IF(S126="PT",N126,IF(S126="G",0,ERR)) -> 0 | W126: =HLOOKUP($W$9,'ROR-Model'!$Q$10:$U$1285,Y126) -> 0 | Y126: 117
Y127: 118
C128: Commodity Revenue | F128: =Revenue!$F$127 -> 0 | G128: =+Adjustments!AV128 -> 0 | I128: =SUM($F$128:$H$128) -> 0 | L128: Utah | M128: =VLOOKUP($L128,$L$2:$N$7,2,FALSE)*I128 -> 0 | N128: =VLOOKUP($L128,$L$2:$N$7,3,FALSE)*I128 -> 0 | P128: PT | Q128: =IF(P128="G",M128,IF(P128="PT",0,ERR)) -> 0 | R128: =IF(P128="PT",M128,IF(P128="G",0,ERR)) -> 0 | S128: PT | T128: =IF(S128="G",N128,IF(S128="PT",0,ERR)) -> 0 | U128: =IF(S128="PT",N128,IF(S128="G",0,ERR)) -> 0 | W128: =HLOOKUP($W$9,'ROR-Model'!$Q$10:$U$1285,Y128) -> 0 | Y128: 119
C129: Total Revenue | F129: =SUM(F124:F128) -> 7580162.37 | G129: =SUM(G124:G128) -> -4843274.191 | H129: =SUM(H124:H128) -> 0 | I129: =SUM(I124:I128) -> 2736888.179 | M129: =SUM(M124:M128) -> 2736888.179 | N129: =SUM(N124:N128) -> 0 | Q129: =SUM(Q124:Q128) -> 2736888.179 | R129: =SUM(R124:R128) -> 0 | T129: =SUM(T124:T128) -> 0 | U129: =SUM(U124:U128) -> 0 | W129: =HLOOKUP($W$9,'ROR-Model'!$Q$10:$U$1285,Y129) -> 2736888.179 | Y129: 120
Y130: 121
C131: Total Dth | F131: =Revenue!$F$130 -> 48859100 | G131: =+Adjustments!AV131 -> -45752495 | I131: =SUM($F$131:$H$131) -> 3106605 | L131: Utah | M131: =VLOOKUP($L131,$L$2:$N$7,2,FALSE)*I131 -> 3106605 | N131: =VLOOKUP($L131,$L$2:$N$7,3,FALSE)*I131 -> 0 | P131: G | Q131: =IF(P131="G",M131,IF(P131="PT",0,ERR)) -> 3106605 | R131: =IF(P131="PT",M131,IF(P131="G",0,ERR)) -> 0 | S131: G | T131: =IF(S131="G",N131,IF(S131="PT",0,ERR)) -> 0 | U131: =IF(S131="PT",N131,IF(S131="G",0,ERR)) -> 0 | W131: =HLOOKUP($W$9,'ROR-Model'!$Q$10:$U$1285,Y131) -> 3106605 | Y131: 122
Y132: 123
B133: FT-2 | C133: Distribution Non-Gas Rev | F133: =Revenue!$F$132 -> 0 | G133: =+Adjustments!AV133 -> 0 | I133: =SUM($F$133:$H$133) -> 0 | L133: Utah | M133: =VLOOKUP($L133,$L$2:$N$7,2,FALSE)*I133 -> 0 | N133: =VLOOKUP($L133,$L$2:$N$7,3,FALSE)*I133 -> 0 | P133: G | Q133: =IF(P133="G",M133,IF(P133="PT",0,ERR)) -> 0 | R133: =IF(P133="PT",M133,IF(P133="G",0,ERR)) -> 0 | S133: G | T133: =IF(S133="G",N133,IF(S133="PT",0,ERR)) -> 0 | U133: =IF(S133="PT",N133,IF(S133="G",0,ERR)) -> 0 | W133: =HLOOKUP($W$9,'ROR-Model'!$Q$10:$U$1285,Y133) -> 0 | Y133: 124
Y134: 125
C135: Supplier Non-Gas Revenue | F135: =Revenue!$F$134 -> 0 | G135: =+Adjustments!AV135 -> 0 | I135: =SUM($F$135:$H$135) -> 0 | L135: Utah | M135: =VLOOKUP($L135,$L$2:$N$7,2,FALSE)*I135 -> 0 | N135: =VLOOKUP($L135,$L$2:$N$7,3,FALSE)*I135 -> 0 | P135: PT | Q135: =IF(P135="G",M135,IF(P135="PT",0,ERR)) -> 0 | R135: =IF(P135="PT",M135,IF(P135="G",0,ERR)) -> 0 | S135: PT | T135: =IF(S135="G",N135,IF(S135="PT",0,ERR)) -> 0 | U135: =IF(S135="PT",N135,IF(S135="G",0,ERR)) -> 0 | W135: =HLOOKUP($W$9,'ROR-Model'!$Q$10:$U$1285,Y135) -> 0 | Y135: 126
Y136: 127
C137: Commodity Revenue | F137: =Revenue!$F$136 -> 0 | G137: =+Adjustments!AV137 -> 0 | I137: =SUM($F$137:$H$137) -> 0 | L137: Utah | M137: =VLOOKUP($L137,$L$2:$N$7,2,FALSE)*I137 -> 0 | N137: =VLOOKUP($L137,$L$2:$N$7,3,FALSE)*I137 -> 0 | P137: PT | Q137: =IF(P137="G",M137,IF(P137="PT",0,ERR)) -> 0 | R137: =IF(P137="PT",M137,IF(P137="G",0,ERR)) -> 0 | S137: PT | T137: =IF(S137="G",N137,IF(S137="PT",0,ERR)) -> 0 | U137: =IF(S137="PT",N137,IF(S137="G",0,ERR)) -> 0 | W137: =HLOOKUP($W$9,'ROR-Model'!$Q$10:$U$1285,Y137) -> 0 | Y137: 128
C138: Total Revenue | F138: =SUM(F133:F137) -> 0 | G138: =SUM(G133:G137) -> 0 | H138: =SUM(H133:H137) -> 0 | I138: =SUM(I133:I137) -> 0 | M138: =SUM(M133:M137) -> 0 | N138: =SUM(N133:N137) -> 0 | Q138: =SUM(Q133:Q137) -> 0 | R138: =SUM(R133:R137) -> 0 | T138: =SUM(T133:T137) -> 0 | U138: =SUM(U133:U137) -> 0 | W138: =HLOOKUP($W$9,'ROR-Model'!$Q$10:$U$1285,Y138) -> 0 | Y138: 129
Y139: 130
C140: Total Dth | F140: =Revenue!$F$139 -> 0 | G140: =+Adjustments!AV140 -> 0 | I140: =SUM($F$140:$H$140) -> 0 | L140: Utah | M140: =VLOOKUP($L140,$L$2:$N$7,2,FALSE)*I140 -> 0 | N140: =VLOOKUP($L140,$L$2:$N$7,3,FALSE)*I140 -> 0 | P140: G | Q140: =IF(P140="G",M140,IF(P140="PT",0,ERR)) -> 0 | R140: =IF(P140="PT",M140,IF(P140="G",0,ERR)) -> 0 | S140: G | T140: =IF(S140="G",N140,IF(S140="PT",0,ERR)) -> 0 | U140: =IF(S140="PT",N140,IF(S140="G",0,ERR)) -> 0 | W140: =HLOOKUP($W$9,'ROR-Model'!$Q$10:$U$1285,Y140) -> 0 | Y140: =Y139+1 -> 131
Y141: 132
B142: MT | C142: Distribution Non-Gas Rev | F142: =Revenue!$F$141 -> 25111.87 | G142: =+Adjustments!AV142 -> 3713.27268 | I142: =SUM($F$142:$H$142) -> 28825.14268 | L142: Utah | M142: =VLOOKUP($L142,$L$2:$N$7,2,FALSE)*I142 -> 28825.14268 | N142: =VLOOKUP($L142,$L$2:$N$7,3,FALSE)*I142 -> 0 | P142: G | Q142: =IF(P142="G",M142,IF(P142="PT",0,ERR)) -> 28825.14268 | R142: =IF(P142="PT",M142,IF(P142="G",0,ERR)) -> 0 | S142: G | T142: =IF(S142="G",N142,IF(S142="PT",0,ERR)) -> 0 | U142: =IF(S142="PT",N142,IF(S142="G",0,ERR)) -> 0 | W142: =HLOOKUP($W$9,'ROR-Model'!$Q$10:$U$1285,Y142) -> 28825.14268 | Y142: 133
Y143: 134
C144: Supplier Non-Gas Revenue | F144: =Revenue!$F$143 -> -5776.61 | G144: =+Adjustments!AV144 -> 5776.61 | I144: =SUM($F$144:$H$144) -> 0 | L144: Utah | M144: =VLOOKUP($L144,$L$2:$N$7,2,FALSE)*I144 -> 0 | N144: =VLOOKUP($L144,$L$2:$N$7,3,FALSE)*I144 -> 0 | P144: PT | Q144: =IF(P144="G",M144,IF(P144="PT",0,ERR)) -> 0 | R144: =IF(P144="PT",M144,IF(P144="G",0,ERR)) -> 0 | S144: PT | T144: =IF(S144="G",N144,IF(S144="PT",0,ERR)) -> 0 | U144: =IF(S144="PT",N144,IF(S144="G",0,ERR)) -> 0 | W144: =HLOOKUP($W$9,'ROR-Model'!$Q$10:$U$1285,Y144) -> 0 | Y144: 135
Y145: 136
C146: Commodity Revenue | F146: =Revenue!$F$145 -> 929051.52 | G146: =+Adjustments!AV146 -> -929051.52 | I146: =SUM($F$146:$H$146) -> 0 | L146: Utah | M146: =VLOOKUP($L146,$L$2:$N$7,2,FALSE)*I146 -> 0 | N146: =VLOOKUP($L146,$L$2:$N$7,3,FALSE)*I146 -> 0 | P146: PT | Q146: =IF(P146="G",M146,IF(P146="PT",0,ERR)) -> 0 | R146: =IF(P146="PT",M146,IF(P146="G",0,ERR)) -> 0 | S146: PT | T146: =IF(S146="G",N146,IF(S146="PT",0,ERR)) -> 0 | U146: =IF(S146="PT",N146,IF(S146="G",0,ERR)) -> 0 | W146: =HLOOKUP($W$9,'ROR-Model'!$Q$10:$U$1285,Y146) -> 0 | Y146: 137
C147: Total Revenue | F147: =SUM(F142:F146) -> 948386.78 | G147: =SUM(G142:G146) -> -919561.6373 | H147: =SUM(H142:H146) -> 0 | I147: =SUM(I142:I146) -> 28825.14268 | M147: =SUM(M142:M146) -> 28825.14268 | N147: =SUM(N142:N146) -> 0 | Q147: =SUM(Q142:Q146) -> 28825.14268 | R147: =SUM(R142:R146) -> 0 | T147: =SUM(T142:T146) -> 0 | U147: =SUM(U142:U146) -> 0 | W147: =HLOOKUP($W$9,'ROR-Model'!$Q$10:$U$1285,Y147) -> 28825.14268 | Y147: 138
Y148: 139
C149: Total Dth | F149: =Revenue!$F$148 -> 25935 | G149: =+Adjustments!AV149 -> -467 | I149: =SUM($F$149:$H$149) -> 25468 | L149: Utah | M149: =VLOOKUP($L149,$L$2:$N$7,2,FALSE)*I149 -> 25468 | N149: =VLOOKUP($L149,$L$2:$N$7,3,FALSE)*I149 -> 0 | P149: G | Q149: =IF(P149="G",M149,IF(P149="PT",0,ERR)) -> 25468 | R149: =IF(P149="PT",M149,IF(P149="G",0,ERR)) -> 0 | S149: G | T149: =IF(S149="G",N149,IF(S149="PT",0,ERR)) -> 0 | U149: =IF(S149="PT",N149,IF(S149="G",0,ERR)) -> 0 | W149: =HLOOKUP($W$9,'ROR-Model'!$Q$10:$U$1285,Y149) -> 25468 | Y149: 140
Y150: 141
B151: Blank | C151: Distribution Non-Gas Rev | F151: =Revenue!$F$150 -> 0 | G151: =+Adjustments!AV151 -> 0 | I151: =SUM($F$151:$H$151) -> 0 | L151: Utah | M151: =VLOOKUP($L151,$L$2:$N$7,2,FALSE)*I151 -> 0 | N151: =VLOOKUP($L151,$L$2:$N$7,3,FALSE)*I151 -> 0 | P151: G | Q151: =IF(P151="G",M151,IF(P151="PT",0,ERR)) -> 0 | R151: =IF(P151="PT",M151,IF(P151="G",0,ERR)) -> 0 | S151: G | T151: =IF(S151="G",N151,IF(S151="PT",0,ERR)) -> 0 | U151: =IF(S151="PT",N151,IF(S151="G",0,ERR)) -> 0 | W151: =HLOOKUP($W$9,'ROR-Model'!$Q$10:$U$1285,Y151) -> 0 | Y151: 142
Y152: 143
C153: Supplier Non-Gas Revenue | F153: =Revenue!$F$152 -> 0 | G153: =+Adjustments!AV153 -> 0 | I153: =SUM($F$153:$H$153) -> 0 | L153: Utah | M153: =VLOOKUP($L153,$L$2:$N$7,2,FALSE)*I153 -> 0 | N153: =VLOOKUP($L153,$L$2:$N$7,3,FALSE)*I153 -> 0 | P153: PT | Q153: =IF(P153="G",M153,IF(P153="PT",0,ERR)) -> 0 | R153: =IF(P153="PT",M153,IF(P153="G",0,ERR)) -> 0 | S153: PT | T153: =IF(S153="G",N153,IF(S153="PT",0,ERR)) -> 0 | U153: =IF(S153="PT",N153,IF(S153="G",0,ERR)) -> 0 | W153: =HLOOKUP($W$9,'ROR-Model'!$Q$10:$U$1285,Y153) -> 0 | Y153: 144
Y154: 145
C155: Commodity Revenue | F155: =Revenue!$F$154 -> 0 | G155: =+Adjustments!AV155 -> 0 | I155: =SUM($F$155:$H$155) -> 0 | L155: Utah | M155: =VLOOKUP($L155,$L$2:$N$7,2,FALSE)*I155 -> 0 | N155: =VLOOKUP($L155,$L$2:$N$7,3,FALSE)*I155 -> 0 | P155: PT | Q155: =IF(P155="G",M155,IF(P155="PT",0,ERR)) -> 0 | R155: =IF(P155="PT",M155,IF(P155="G",0,ERR)) -> 0 | S155: PT | T155: =IF(S155="G",N155,IF(S155="PT",0,ERR)) -> 0 | U155: =IF(S155="PT",N155,IF(S155="G",0,ERR)) -> 0 | W155: =HLOOKUP($W$9,'ROR-Model'!$Q$10:$U$1285,Y155) -> 0 | Y155: 146
C156: Total Revenue | F156: =SUM(F151:F155) -> 0 | G156: =SUM(G151:G155) -> 0 | H156: =SUM(H151:H155) -> 0 | I156: =SUM(I151:I155) -> 0 | M156: =SUM(M151:M155) -> 0 | N156: =SUM(N151:N155) -> 0 | Q156: =SUM(Q151:Q155) -> 0 | R156: =SUM(R151:R155) -> 0 | T156: =SUM(T151:T155) -> 0 | U156: =SUM(U151:U155) -> 0 | W156: =HLOOKUP($W$9,'ROR-Model'!$Q$10:$U$1285,Y156) -> 0 | Y156: 147
Y157: 148
C158: Total Dth | F158: =Revenue!$F$157 -> 0 | G158: =+Adjustments!AV158 -> 0 | I158: =SUM($F$158:$H$158) -> 0 | L158: Utah | M158: =VLOOKUP($L158,$L$2:$N$7,2,FALSE)*I158 -> 0 | N158: =VLOOKUP($L158,$L$2:$N$7,3,FALSE)*I158 -> 0 | P158: G | Q158: =IF(P158="G",M158,IF(P158="PT",0,ERR)) -> 0 | R158: =IF(P158="PT",M158,IF(P158="G",0,ERR)) -> 0 | S158: G | T158: =IF(S158="G",N158,IF(S158="PT",0,ERR)) -> 0 | U158: =IF(S158="PT",N158,IF(S158="G",0,ERR)) -> 0 | W158: =HLOOKUP($W$9,'ROR-Model'!$Q$10:$U$1285,Y158) -> 0 | Y158: 149
Y159: 150
B160: IT | C160: Distribution Non-Gas Rev | F160: =Revenue!$F$159 -> 35614247.9 | G160: =+Adjustments!AV160 -> 5317280.265 | I160: =SUM($F$160:$H$160) -> 40931528.16 | L160: Utah | M160: =VLOOKUP($L160,$L$2:$N$7,2,FALSE)*I160 -> 40931528.16 | N160: =VLOOKUP($L160,$L$2:$N$7,3,FALSE)*I160 -> 0 | P160: G | Q160: =IF(P160="G",M160,IF(P160="PT",0,ERR)) -> 40931528.16 | R160: =IF(P160="PT",M160,IF(P160="G",0,ERR)) -> 0 | S160: G | T160: =IF(S160="G",N160,IF(S160="PT",0,ERR)) -> 0 | U160: =IF(S160="PT",N160,IF(S160="G",0,ERR)) -> 0 | W160: =HLOOKUP($W$9,'ROR-Model'!$Q$10:$U$1285,Y160) -> 40931528.16 | Y160: 151
Y161: 152
C162: Supplier Non-Gas Revenue | F162: =Revenue!$F$161 -> 902569.1 | G162: =+Adjustments!AV162 -> -902569.1 | I162: =SUM($F$162:$H$162) -> 0 | L162: Utah | M162: =VLOOKUP($L162,$L$2:$N$7,2,FALSE)*I162 -> 0 | N162: =VLOOKUP($L162,$L$2:$N$7,3,FALSE)*I162 -> 0 | P162: PT | Q162: =IF(P162="G",M162,IF(P162="PT",0,ERR)) -> 0 | R162: =IF(P162="PT",M162,IF(P162="G",0,ERR)) -> 0 | S162: PT | T162: =IF(S162="G",N162,IF(S162="PT",0,ERR)) -> 0 | U162: =IF(S162="PT",N162,IF(S162="G",0,ERR)) -> 0 | W162: =HLOOKUP($W$9,'ROR-Model'!$Q$10:$U$1285,Y162) -> 0 | Y162: 153
Y163: 154
C164: Commodity Revenue | F164: =Revenue!$F$163 -> 0 | G164: =+Adjustments!AV164 -> 0 | I164: =SUM($F$164:$H$164) -> 0 | L164: Utah | M164: =VLOOKUP($L164,$L$2:$N$7,2,FALSE)*I164 -> 0 | N164: =VLOOKUP($L164,$L$2:$N$7,3,FALSE)*I164 -> 0 | P164: PT | Q164: =IF(P164="G",M164,IF(P164="PT",0,ERR)) -> 0 | R164: =IF(P164="PT",M164,IF(P164="G",0,ERR)) -> 0 | S164: PT | T164: =IF(S164="G",N164,IF(S164="PT",0,ERR)) -> 0 | U164: =IF(S164="PT",N164,IF(S164="G",0,ERR)) -> 0 | W164: =HLOOKUP($W$9,'ROR-Model'!$Q$10:$U$1285,Y164) -> 0 | Y164: 155
C165: Total Revenue | F165: =SUM(F160:F164) -> 36516817 | G165: =SUM(G160:G164) -> 4414711.165 | H165: =SUM(H160:H164) -> 0 | I165: =SUM(I160:I164) -> 40931528.16 | M165: =SUM(M160:M164) -> 40931528.16 | N165: =SUM(N160:N164) -> 0 | Q165: =SUM(Q160:Q164) -> 40931528.16 | R165: =SUM(R160:R164) -> 0 | T165: =SUM(T160:T164) -> 0 | U165: =SUM(U160:U164) -> 0 | W165: =HLOOKUP($W$9,'ROR-Model'!$Q$10:$U$1285,Y165) -> 40931528.16 | Y165: 156
Y166: 157
C167: Total Dth | F167: =Revenue!$F$166 -> 53811941.6 | G167: =+Adjustments!AV167 -> 773084.4 | I167: =SUM($F$167:$H$167) -> 54585026 | L167: Utah | M167: =VLOOKUP($L167,$L$2:$N$7,2,FALSE)*I167 -> 54585026 | N167: =VLOOKUP($L167,$L$2:$N$7,3,FALSE)*I167 -> 0 | P167: G | Q167: =IF(P167="G",M167,IF(P167="PT",0,ERR)) -> 54585026 | R167: =IF(P167="PT",M167,IF(P167="G",0,ERR)) -> 0 | S167: G | T167: =IF(S167="G",N167,IF(S167="PT",0,ERR)) -> 0 | U167: =IF(S167="PT",N167,IF(S167="G",0,ERR)) -> 0 | W167: =HLOOKUP($W$9,'ROR-Model'!$Q$10:$U$1285,Y167) -> 54585026 | Y167: 158
Y168: 159
B169: IT-S | C169: Distribution Non-Gas Rev | F169: =Revenue!$F$168 -> 0 | G169: =+Adjustments!AV169 -> 0 | I169: =SUM($F$169:$H$169) -> 0 | L169: Utah | M169: =VLOOKUP($L169,$L$2:$N$7,2,FALSE)*I169 -> 0 | N169: =VLOOKUP($L169,$L$2:$N$7,3,FALSE)*I169 -> 0 | P169: G | Q169: =IF(P169="G",M169,IF(P169="PT",0,ERR)) -> 0 | R169: =IF(P169="PT",M169,IF(P169="G",0,ERR)) -> 0 | S169: G | T169: =IF(S169="G",N169,IF(S169="PT",0,ERR)) -> 0 | U169: =IF(S169="PT",N169,IF(S169="G",0,ERR)) -> 0 | W169: =HLOOKUP($W$9,'ROR-Model'!$Q$10:$U$1285,Y169) -> 0 | Y169: 160
Y170: 161
C171: Supplier Non-Gas Revenue | F171: =Revenue!$F$170 -> 0 | G171: =+Adjustments!AV171 -> 0 | I171: =SUM($F$171:$H$171) -> 0 | L171: Utah | M171: =VLOOKUP($L171,$L$2:$N$7,2,FALSE)*I171 -> 0 | N171: =VLOOKUP($L171,$L$2:$N$7,3,FALSE)*I171 -> 0 | P171: PT | Q171: =IF(P171="G",M171,IF(P171="PT",0,ERR)) -> 0 | R171: =IF(P171="PT",M171,IF(P171="G",0,ERR)) -> 0 | S171: PT | T171: =IF(S171="G",N171,IF(S171="PT",0,ERR)) -> 0 | U171: =IF(S171="PT",N171,IF(S171="G",0,ERR)) -> 0 | W171: =HLOOKUP($W$9,'ROR-Model'!$Q$10:$U$1285,Y171) -> 0 | Y171: 162
Y172: 163
C173: Commodity Revenue | F173: =Revenue!$F$172 -> 0 | G173: =+Adjustments!AV173 -> 0 | I173: =SUM($F$173:$H$173) -> 0 | L173: Utah | M173: =VLOOKUP($L173,$L$2:$N$7,2,FALSE)*I173 -> 0 | N173: =VLOOKUP($L173,$L$2:$N$7,3,FALSE)*I173 -> 0 | P173: PT | Q173: =IF(P173="G",M173,IF(P173="PT",0,ERR)) -> 0 | R173: =IF(P173="PT",M173,IF(P173="G",0,ERR)) -> 0 | S173: PT | T173: =IF(S173="G",N173,IF(S173="PT",0,ERR)) -> 0 | U173: =IF(S173="PT",N173,IF(S173="G",0,ERR)) -> 0 | W173: =HLOOKUP($W$9,'ROR-Model'!$Q$10:$U$1285,Y173) -> 0 | Y173: 164
C174: Total Revenue | F174: =SUM(F169:F173) -> 0 | G174: =SUM(G169:G173) -> 0 | H174: =SUM(H169:H173) -> 0 | I174: =SUM(I169:I173) -> 0 | M174: =SUM(M169:M173) -> 0 | N174: =SUM(N169:N173) -> 0 | Q174: =SUM(Q169:Q173) -> 0 | R174: =SUM(R169:R173) -> 0 | T174: =SUM(T169:T173) -> 0 | U174: =SUM(U169:U173) -> 0 | W174: =HLOOKUP($W$9,'ROR-Model'!$Q$10:$U$1285,Y174) -> 0 | Y174: 165
Y175: 166
C176: Total Dth | F176: =Revenue!$F$175 -> 0 | G176: =+Adjustments!AV176 -> 0 | I176: =SUM($F$176:$H$176) -> 0 | L176: Utah | M176: =VLOOKUP($L176,$L$2:$N$7,2,FALSE)*I176 -> 0 | N176: =VLOOKUP($L176,$L$2:$N$7,3,FALSE)*I176 -> 0 | P176: G | Q176: =IF(P176="G",M176,IF(P176="PT",0,ERR)) -> 0 | R176: =IF(P176="PT",M176,IF(P176="G",0,ERR)) -> 0 | S176: G | T176: =IF(S176="G",N176,IF(S176="PT",0,ERR)) -> 0 | U176: =IF(S176="PT",N176,IF(S176="G",0,ERR)) -> 0 | W176: =HLOOKUP($W$9,'ROR-Model'!$Q$10:$U$1285,Y176) -> 0 | Y176: 167
Y177: 168
B178: FT-2C | C178: Distribution Non-Gas Rev | F178: =Revenue!$F$177 -> 0 | G178: =+Adjustments!AV178 -> 0 | I178: =SUM($F$178:$H$178) -> 0 | L178: Utah | M178: =VLOOKUP($L178,$L$2:$N$7,2,FALSE)*I178 -> 0 | N178: =VLOOKUP($L178,$L$2:$N$7,3,FALSE)*I178 -> 0 | P178: G | Q178: =IF(P178="G",M178,IF(P178="PT",0,ERR)) -> 0 | R178: =IF(P178="PT",M178,IF(P178="G",0,ERR)) -> 0 | S178: G | T178: =IF(S178="G",N178,IF(S178="PT",0,ERR)) -> 0 | U178: =IF(S178="PT",N178,IF(S178="G",0,ERR)) -> 0 | W178: =HLOOKUP($W$9,'ROR-Model'!$Q$10:$U$1285,Y178) -> 0 | Y178: 169
Y179: 170
C180: Supplier Non-Gas Revenue | F180: =Revenue!$F$179 -> 0 | G180: =+Adjustments!AV180 -> 0 | I180: =SUM($F$180:$H$180) -> 0 | L180: Utah | M180: =VLOOKUP($L180,$L$2:$N$7,2,FALSE)*I180 -> 0 | N180: =VLOOKUP($L180,$L$2:$N$7,3,FALSE)*I180 -> 0 | P180: PT | Q180: =IF(P180="G",M180,IF(P180="PT",0,ERR)) -> 0 | R180: =IF(P180="PT",M180,IF(P180="G",0,ERR)) -> 0 | S180: PT | T180: =IF(S180="G",N180,IF(S180="PT",0,ERR)) -> 0 | U180: =IF(S180="PT",N180,IF(S180="G",0,ERR)) -> 0 | W180: =HLOOKUP($W$9,'ROR-Model'!$Q$10:$U$1285,Y180) -> 0 | Y180: 171
Y181: 172
C182: Commodity Revenue | F182: =Revenue!$F$181 -> 0 | G182: =+Adjustments!AV182 -> 0 | I182: =SUM($F$182:$H$182) -> 0 | L182: Utah | M182: =VLOOKUP($L182,$L$2:$N$7,2,FALSE)*I182 -> 0 | N182: =VLOOKUP($L182,$L$2:$N$7,3,FALSE)*I182 -> 0 | P182: PT | Q182: =IF(P182="G",M182,IF(P182="PT",0,ERR)) -> 0 | R182: =IF(P182="PT",M182,IF(P182="G",0,ERR)) -> 0 | S182: PT | T182: =IF(S182="G",N182,IF(S182="PT",0,ERR)) -> 0 | U182: =IF(S182="PT",N182,IF(S182="G",0,ERR)) -> 0 | W182: =HLOOKUP($W$9,'ROR-Model'!$Q$10:$U$1285,Y182) -> 0 | Y182: 173
C183: Total Revenue | F183: =SUM(F178:F182) -> 0 | G183: =SUM(G178:G182) -> 0 | H183: =SUM(H178:H182) -> 0 | I183: =SUM(I178:I182) -> 0 | M183: =SUM(M178:M182) -> 0 | N183: =SUM(N178:N182) -> 0 | Q183: =SUM(Q178:Q182) -> 0 | R183: =SUM(R178:R182) -> 0 | T183: =SUM(T178:T182) -> 0 | U183: =SUM(U178:U182) -> 0 | W183: =HLOOKUP($W$9,'ROR-Model'!$Q$10:$U$1285,Y183) -> 0 | Y183: 174
Y184: 175
C185: Total Dth | F185: =Revenue!$F$184 -> 0 | G185: =+Adjustments!AV185 -> 0 | I185: =SUM($F$185:$H$185) -> 0 | L185: Utah | M185: =VLOOKUP($L185,$L$2:$N$7,2,FALSE)*I185 -> 0 | N185: =VLOOKUP($L185,$L$2:$N$7,3,FALSE)*I185 -> 0 | P185: G | Q185: =IF(P185="G",M185,IF(P185="PT",0,ERR)) -> 0 | R185: =IF(P185="PT",M185,IF(P185="G",0,ERR)) -> 0 | S185: G | T185: =IF(S185="G",N185,IF(S185="PT",0,ERR)) -> 0 | U185: =IF(S185="PT",N185,IF(S185="G",0,ERR)) -> 0 | W185: =HLOOKUP($W$9,'ROR-Model'!$Q$10:$U$1285,Y185) -> 0 | Y185: 176
Y186: 177
B187: Blank | C187: Distribution Non-Gas Rev | F187: =Revenue!$F$186 -> 0 | G187: =+Adjustments!AV187 -> 0 | I187: =SUM($F$187:$H$187) -> 0 | L187: Utah | M187: =VLOOKUP($L187,$L$2:$N$7,2,FALSE)*I187 -> 0 | N187: =VLOOKUP($L187,$L$2:$N$7,3,FALSE)*I187 -> 0 | P187: G | Q187: =IF(P187="G",M187,IF(P187="PT",0,ERR)) -> 0 | R187: =IF(P187="PT",M187,IF(P187="G",0,ERR)) -> 0 | S187: G | T187: =IF(S187="G",N187,IF(S187="PT",0,ERR)) -> 0 | U187: =IF(S187="PT",N187,IF(S187="G",0,ERR)) -> 0 | W187: =HLOOKUP($W$9,'ROR-Model'!$Q$10:$U$1285,Y187) -> 0 | Y187: 178
Y188: 179
C189: Supplier Non-Gas Revenue | F189: =Revenue!$F$188 -> 0 | G189: =+Adjustments!AV189 -> 0 | I189: =SUM($F$189:$H$189) -> 0 | L189: Utah | M189: =VLOOKUP($L189,$L$2:$N$7,2,FALSE)*I189 -> 0 | N189: =VLOOKUP($L189,$L$2:$N$7,3,FALSE)*I189 -> 0 | P189: PT | Q189: =IF(P189="G",M189,IF(P189="PT",0,ERR)) -> 0 | R189: =IF(P189="PT",M189,IF(P189="G",0,ERR)) -> 0 | S189: PT | T189: =IF(S189="G",N189,IF(S189="PT",0,ERR)) -> 0 | U189: =IF(S189="PT",N189,IF(S189="G",0,ERR)) -> 0 | W189: =HLOOKUP($W$9,'ROR-Model'!$Q$10:$U$1285,Y189) -> 0 | Y189: 180
Y190: 181
C191: Commodity Revenue | F191: =Revenue!$F$190 -> 0 | G191: =+Adjustments!AV191 -> 0 | I191: =SUM($F$191:$H$191) -> 0 | L191: Utah | M191: =VLOOKUP($L191,$L$2:$N$7,2,FALSE)*I191 -> 0 | N191: =VLOOKUP($L191,$L$2:$N$7,3,FALSE)*I191 -> 0 | P191: PT | Q191: =IF(P191="G",M191,IF(P191="PT",0,ERR)) -> 0 | R191: =IF(P191="PT",M191,IF(P191="G",0,ERR)) -> 0 | S191: PT | T191: =IF(S191="G",N191,IF(S191="PT",0,ERR)) -> 0 | U191: =IF(S191="PT",N191,IF(S191="G",0,ERR)) -> 0 | W191: =HLOOKUP($W$9,'ROR-Model'!$Q$10:$U$1285,Y191) -> 0 | Y191: 182
C192: Total Revenue | F192: =SUM(F187:F191) -> 0 | G192: =SUM(G187:G191) -> 0 | H192: =SUM(H187:H191) -> 0 | I192: =SUM(I187:I191) -> 0 | M192: =SUM(M187:M191) -> 0 | N192: =SUM(N187:N191) -> 0 | Q192: =SUM(Q187:Q191) -> 0 | R192: =SUM(R187:R191) -> 0 | T192: =SUM(T187:T191) -> 0 | U192: =SUM(U187:U191) -> 0 | W192: =HLOOKUP($W$9,'ROR-Model'!$Q$10:$U$1285,Y192) -> 0 | Y192: 183
Y193: 184
C194: Total Dth | F194: =Revenue!$F$193 -> 0 | G194: =+Adjustments!AV194 -> 0 | I194: =SUM($F$194:$H$194) -> 0 | L194: Utah | M194: =VLOOKUP($L194,$L$2:$N$7,2,FALSE)*I194 -> 0 | N194: =VLOOKUP($L194,$L$2:$N$7,3,FALSE)*I194 -> 0 | P194: G | Q194: =IF(P194="G",M194,IF(P194="PT",0,ERR)) -> 0 | R194: =IF(P194="PT",M194,IF(P194="G",0,ERR)) -> 0 | S194: G | T194: =IF(S194="G",N194,IF(S194="PT",0,ERR)) -> 0 | U194: =IF(S194="PT",N194,IF(S194="G",0,ERR)) -> 0 | W194: =HLOOKUP($W$9,'ROR-Model'!$Q$10:$U$1285,Y194) -> 0 | Y194: 185
Y195: 186
B196: CET | C196: Distribution Non-Gas Revenue | F196: =Revenue!$F$195 -> 4176075.61 | G196: =+Adjustments!AV196 -> -4176075.61 | I196: =SUM($F$196:$H$196) -> 0 | L196: Utah | M196: =VLOOKUP($L196,$L$2:$N$7,2,FALSE)*I196 -> 0 | N196: =VLOOKUP($L196,$L$2:$N$7,3,FALSE)*I196 -> 0 | P196: G | Q196: =IF(P196="G",M196,IF(P196="PT",0,ERR)) -> 0 | R196: =IF(P196="PT",M196,IF(P196="G",0,ERR)) -> 0 | S196: G | T196: =IF(S196="G",N196,IF(S196="PT",0,ERR)) -> 0 | U196: =IF(S196="PT",N196,IF(S196="G",0,ERR)) -> 0 | W196: =HLOOKUP($W$9,'ROR-Model'!$Q$10:$U$1285,Y196) -> 0 | Y196: 187
B197: DSM | C197: Distribution Non-Gas Revenue | F197: =Revenue!$F$196 -> 24500334.77 | G197: =+Adjustments!AV197 -> -24500334.77 | I197: =SUM($F$197:$H$197) -> 0 | L197: Utah | M197: =VLOOKUP($L197,$L$2:$N$7,2,FALSE)*I197 -> 0 | N197: =VLOOKUP($L197,$L$2:$N$7,3,FALSE)*I197 -> 0 | P197: G | Q197: =IF(P197="G",M197,IF(P197="PT",0,ERR)) -> 0 | R197: =IF(P197="PT",M197,IF(P197="G",0,ERR)) -> 0 | S197: G | T197: =IF(S197="G",N197,IF(S197="PT",0,ERR)) -> 0 | U197: =IF(S197="PT",N197,IF(S197="G",0,ERR)) -> 0 | W197: =HLOOKUP($W$9,'ROR-Model'!$Q$10:$U$1285,Y197) -> 0 | Y197: 188
B198: Utah Totals | Y198: 189
Y199: 190
C200: Distribution Non-Gas Rev | F200: =+F16+F34+F43+F52+F61+F70+F79+F88+F97+F106+F115+F124+F133+F142+F151+F160+F169+F178+F187+F25+F196+F197 -> 420621437.5 | G200: =+G16+G34+G43+G52+G61+G70+G79+G88+G97+G106+G115+G124+G133+G142+G151+G160+G169+G178+G187+G25+G196+G197 -> 12781066.28 | H200: =+H16+H34+H43+H52+H61+H70+H79+H88+H97+H106+H115+H124+H133+H142+H151+H160+H169+H178+H187+H25+H196+H197 -> 0 | I200: =+I16+I34+I43+I52+I61+I70+I79+I88+I97+I106+I115+I124+I133+I142+I151+I160+I169+I178+I187+I25+I196+I197 -> 433402503.8 | M200: =+M16+M34+M43+M52+M61+M70+M79+M88+M97+M106+M115+M124+M133+M142+M151+M160+M169+M178+M187+M25+M196+M197 -> 433402503.8 | N200: =+N16+N34+N43+N52+N61+N70+N79+N88+N97+N106+N115+N124+N133+N142+N151+N160+N169+N178+N187+N25+N196+N197 -> 0 | Q200: =+Q16+Q34+Q43+Q52+Q61+Q70+Q79+Q88+Q97+Q106+Q115+Q124+Q133+Q142+Q151+Q160+Q169+Q178+Q187+Q25+Q196+Q197 -> 433402503.8 | R200: =+R16+R34+R43+R52+R61+R70+R79+R88+R97+R106+R115+R124+R133+R142+R151+R160+R169+R178+R187+R25+R196 -> 0 | T200: =+T16+T34+T43+T52+T61+T70+T79+T88+T97+T106+T115+T124+T133+T142+T151+T160+T169+T178+T187+T25+T196 -> 0 | U200: =+U16+U34+U43+U52+U61+U70+U79+U88+U97+U106+U115+U124+U133+U142+U151+U160+U169+U178+U187+U25+U196 -> 0 | W200: =HLOOKUP($W$9,'ROR-Model'!$Q$10:$U$1285,Y200) -> 433402503.8 | Y200: 191
... 1085 more rows

Sheet Summaries
A1: =+'Control Panel'!$B$1 -> Dominion Energy
A2: =+'Control Panel'!$B$2 -> Utah - DEC 2023 Adjusted Avg Results CET
A3: =+'Control Panel'!$B$3 -> 12 Months Ended : Dec-2023
G4: =+Adjustments!F6 -> 1 | H4: =+Adjustments!G6 -> 2 | I4: =+Adjustments!H6 -> 3 | J4: =+Adjustments!I6 -> 4 | K4: =+Adjustments!J6 -> 5 | L4: =+Adjustments!K6 -> 6 | M4: =+Adjustments!L6 -> 7 | N4: =+Adjustments!M6 -> 8 | O4: =+Adjustments!N6 -> 9 | P4: =+Adjustments!O6 -> 10 | Q4: =+Adjustments!P6 -> 11 | R4: =+Adjustments!Q6 -> 12 | S4: =+Adjustments!R6 -> 13 | T4: =+Adjustments!S6 -> 14 | U4: =+Adjustments!T6 -> 15 | V4: =+Adjustments!U6 -> 16 | W4: =+Adjustments!AR6 -> 39 | X4: =+Adjustments!AS6 -> 40 | Y4: =+Adjustments!X6 -> 19
G5: =+Adjustments!F8 -> Y | H5: =+Adjustments!G8 -> Y | I5: =+Adjustments!H8 -> Y | J5: =+Adjustments!I8 -> Y | K5: =+Adjustments!J8 -> Y | L5: =+Adjustments!K8 -> Y | M5: =+Adjustments!L8 -> Y | N5: =+Adjustments!M8 -> Y | O5: =+Adjustments!N8 -> Y | P5: =+Adjustments!O8 -> Y | Q5: =+Adjustments!P8 -> Y | R5: =+Adjustments!Q8 -> Y | S5: =+Adjustments!R8 -> Y | T5: =+Adjustments!S8 -> Y | U5: =+Adjustments!T8 -> Y | V5: =+Adjustments!U8 -> Y | W5: =+Adjustments!V8 -> Y | X5: =+Adjustments!AS8 -> N | Y5: =+Adjustments!X8 -> Y
G6: =Adjustments!F9 -> AVG RB DEC 2023 | H6: =Adjustments!G9 -> Expense Dec 2023 | I6: =Adjustments!H9 -> AVG Projected Rev 2023 with CET | J6: =Adjustments!I9 -> Underground Storage | K6: =Adjustments!J9 -> Wexpro | L6: =Adjustments!K9 -> Energy Efficiency & STEP 2023 | M6: =Adjustments!L9 -> Utah Bad Debt 2023 | N6: =Adjustments!M9 -> Incentives 2023 | O6: =Adjustments!N9 -> Sporting Events DEC 2023 | P6: =Adjustments!O9 -> Advertising DEC 2023 | Q6: =Adjustments!P9 -> Don & Membership DEC 2023 | R6: =Adjustments!Q9 -> Reserve Accrual Dec 2023 | S6: =Adjustments!R9 -> Pipeline Integrity 2023 | T6: =Adjustments!S9 -> 2023 EDIT Adjustment | U6: =Adjustments!T9 -> Envision Tomorrow - Savings | V6: =Adjustments!U9 -> Pension 2023 | W6: =Adjustments!AR9 -> LNG O&M 2023 | X6: =Adjustments!AS9 -> Labor Adjustment-ROO | Y6: =Adjustments!X9 -> Optional Adjustment 3 | Z6: =Adjustments!AT9 -> TOTAL QGC ADJUSTMENTS | AA6: =Adjustments!AV9 -> RESULTING TOTAL | AB6: =Adjustments!AW9 -> CHECKS MUST BE (0)
A8: 1 | B8: NET INCOME SUMMARY
A10: =+A8+1 -> 2 | B10: Utility Operating Revenue
A11: =+A10+1 -> 3 | D11: System Distribution Non-Gas Revenue | G11: =Adjustments!F363+Adjustments!F365 -> 0 | H11: =Adjustments!G363+Adjustments!G365 -> 0 | I11: =Adjustments!H363+Adjustments!H365 -> 12559759.94 | J11: =Adjustments!I363+Adjustments!I365 -> 0 | K11: =Adjustments!J363+Adjustments!J365 -> 0 | L11: =Adjustments!K363+Adjustments!K365 -> 0 | M11: =Adjustments!L363+Adjustments!L365 -> 0 | N11: =Adjustments!M363+Adjustments!M365 -> 0 | O11: =Adjustments!N363+Adjustments!N365 -> 0 | P11: =Adjustments!O363+Adjustments!O365 -> 0 | Q11: =Adjustments!P363+Adjustments!P365 -> 0 | R11: =Adjustments!Q363+Adjustments!Q365 -> 0 | S11: =Adjustments!R363+Adjustments!R365 -> 0 | T11: =Adjustments!S363+Adjustments!S365 -> 0 | U11: =Adjustments!T363+Adjustments!T365 -> 0 | V11: =Adjustments!U363+Adjustments!U365 -> 0 | W11: =Adjustments!AR363+Adjustments!AR365 -> 0 | X11: =Adjustments!AS363+Adjustments!AS365 -> 0 | Y11: =Adjustments!X363+Adjustments!X365 -> 0 | Z11: =Adjustments!AT363+Adjustments!AT365 -> 12559759.94 | AA11: =SUM(G11:Y11) -> 12559759.94 | AB11: =+Z11-AA11 -> 0
A12: 4 | D12: System Supplier Non-Gas Revenue | G12: =Adjustments!F364 -> 0 | H12: =Adjustments!G364 -> 0 | I12: =Adjustments!H364 -> 10520230.92 | J12: =Adjustments!I364 -> 0 | K12: =Adjustments!J364 -> 0 | L12: =Adjustments!K364 -> 0 | M12: =Adjustments!L364 -> 0 | N12: =Adjustments!M364 -> 0 | O12: =Adjustments!N364 -> 0 | P12: =Adjustments!O364 -> 0 | Q12: =Adjustments!P364 -> 0 | R12: =Adjustments!Q364 -> 0 | S12: =Adjustments!R364 -> 0 | T12: =Adjustments!S364 -> 0 | U12: =Adjustments!T364 -> 0 | V12: =Adjustments!U364 -> 0 | W12: =Adjustments!AR364 -> 0 | X12: =Adjustments!AS364 -> 0 | Y12: =Adjustments!X364 -> 0 | Z12: =Adjustments!AT364 -> 10520230.92 | AA12: =SUM(G12:Y12) -> 10520230.92 | AB12: =+Z12-AA12 -> 0
A13: 5 | D13: System Commodity Revenue | G13: =Adjustments!F366 -> 0 | H13: =Adjustments!G366 -> 0 | I13: =Adjustments!H366 -> 161470813.1 | J13: =Adjustments!I366 -> 0 | K13: =Adjustments!J366 -> 0 | L13: =Adjustments!K366 -> 0 | M13: =Adjustments!L366 -> 0 | N13: =Adjustments!M366 -> 0 | O13: =Adjustments!N366 -> 0 | P13: =Adjustments!O366 -> 0 | Q13: =Adjustments!P366 -> 0 | R13: =Adjustments!Q366 -> 0 | S13: =Adjustments!R366 -> 0 | T13: =Adjustments!S366 -> 0 | U13: =Adjustments!T366 -> 0 | V13: =Adjustments!U366 -> 0 | W13: =Adjustments!AR366 -> 0 | X13: =Adjustments!AS366 -> 0 | Y13: =Adjustments!X366 -> 0 | Z13: =Adjustments!AT366 -> 161470813.1 | AA13: 161470813.1 | AB13: 0
A14: 6 | D14: Pass-Through Related Other Revenue | G14: =Adjustments!F501+Adjustments!F505 -> 0 | H14: =Adjustments!G501+Adjustments!G505 -> 0 | I14: =Adjustments!H501+Adjustments!H505 -> 0 | J14: =Adjustments!I501+Adjustments!I505 -> 0 | K14: =Adjustments!J501+Adjustments!J505 -> 0 | L14: =Adjustments!K501+Adjustments!K505 -> 0 | M14: =Adjustments!L501+Adjustments!L505 -> 0 | N14: =Adjustments!M501+Adjustments!M505 -> 0 | O14: =Adjustments!N501+Adjustments!N505 -> 0 | P14: =Adjustments!O501+Adjustments!O505 -> 0 | Q14: =Adjustments!P501+Adjustments!P505 -> 0 | R14: =Adjustments!Q501+Adjustments!Q505 -> 0 | S14: =Adjustments!R501+Adjustments!R505 -> 0 | T14: =Adjustments!S501+Adjustments!S505 -> 0 | U14: =Adjustments!T501+Adjustments!T505 -> 0 | V14: =Adjustments!U501+Adjustments!U505 -> 0 | W14: =Adjustments!AR501+Adjustments!AR505 -> 0 | X14: =Adjustments!AS501+Adjustments!AS505 -> 0 | Y14: =Adjustments!X501+Adjustments!X505 -> 0 | Z14: =Adjustments!AT501+Adjustments!AT505 -> 0 | AA14: 0 | AB14: 0
A15: 7 | D15: General Related Other Revenue | G15: =Adjustments!F502+Adjustments!F506 -> 0 | H15: =Adjustments!G502+Adjustments!G506 -> 0 | I15: =Adjustments!H502+Adjustments!H506 -> 0 | J15: =Adjustments!I502+Adjustments!I506 -> 0 | K15: =Adjustments!J502+Adjustments!J506 -> 0 | L15: =Adjustments!K502+Adjustments!K506 -> 0 | M15: =Adjustments!L502+Adjustments!L506 -> 0 | N15: =Adjustments!M502+Adjustments!M506 -> 0 | O15: =Adjustments!N502+Adjustments!N506 -> 0 | P15: =Adjustments!O502+Adjustments!O506 -> 0 | Q15: =Adjustments!P502+Adjustments!P506 -> 0 | R15: =Adjustments!Q502+Adjustments!Q506 -> 0 | S15: =Adjustments!R502+Adjustments!R506 -> 0 | T15: =Adjustments!S502+Adjustments!S506 -> 4927225.62 | U15: =Adjustments!T502+Adjustments!T506 -> 0 | V15: =Adjustments!U502+Adjustments!U506 -> 0 | W15: =Adjustments!AR502+Adjustments!AR506 -> 0 | X15: =Adjustments!AS502+Adjustments!AS506 -> 0 | Y15: =Adjustments!X502+Adjustments!X506 -> 0 | Z15: =Adjustments!AT502+Adjustments!AT506 -> 4927225.62 | AA15: =SUM(G15:Y15) -> 4927225.62 | AB15: 0
A16: 8 | C16: Total Utility Operating Revenue | G16: =SUM(G11:G15) -> 0 | H16: =SUM(H11:H15) -> 0 | I16: 184550804 | J16: 0 | K16: 0 | L16: 0 | M16: 0 | N16: 0 | O16: 0 | P16: 0 | Q16: 0 | R16: =SUM(R11:R15) -> 0 | S16: =SUM(S11:S15) -> 0 | T16: 4927225.62 | U16: =SUM(U11:U15) -> 0 | V16: =SUM(V11:V15) -> 0 | W16: =SUM(W11:W15) -> 0 | X16: =SUM(X11:X15) -> 0 | Y16: =SUM(Y11:Y15) -> 0 | Z16: =SUM(Z11:Z15) -> 189478029.6 | AA16: 189478029.6 | AB16: 0
A18: =+A16+1 -> 9 | B18: Utility Operating Expenses
A19: =+A18+1 -> 10 | C19: Gas Purchase Expenses
A20: =+A19+1 -> 11 | D20: Utah Gas Purchase Exp | G20: =Adjustments!F632+Adjustments!F635 -> 0 | H20: =Adjustments!G632+Adjustments!G635 -> 0 | I20: =Adjustments!H632+Adjustments!H635 -> 167141552.4 | J20: =Adjustments!I632+Adjustments!I635 -> 0 | K20: =Adjustments!J632+Adjustments!J635 -> 0 | L20: =Adjustments!K632+Adjustments!K635 -> 0 | M20: =Adjustments!L632+Adjustments!L635 -> 0 | N20: =Adjustments!M632+Adjustments!M635 -> 0 | O20: =Adjustments!N632+Adjustments!N635 -> 0 | P20: =Adjustments!O632+Adjustments!O635 -> 0 | Q20: =Adjustments!P632+Adjustments!P635 -> 0 | R20: =Adjustments!Q632+Adjustments!Q635 -> 0 | S20: =Adjustments!R632+Adjustments!R635 -> 0 | T20: =Adjustments!S632+Adjustments!S635 -> 0 | U20: =Adjustments!T632+Adjustments!T635 -> 0 | V20: =Adjustments!U632+Adjustments!U635 -> 0 | W20: =Adjustments!AR632+Adjustments!AR635 -> 0 | X20: =Adjustments!AS632+Adjustments!AS635 -> 0 | Y20: =Adjustments!X632+Adjustments!X635 -> 0 | Z20: =Adjustments!AT632+Adjustments!AT635 -> 167141552.4 | AA20: =SUM(G20:Y20) -> 167141552.4 | AB20: =+Z20-AA20 -> 0
A21: =+A20+1 -> 12 | D21: Wyoming Gas Purchase Exp | G21: =Adjustments!F634+Adjustments!F636 -> 0 | H21: =Adjustments!G634+Adjustments!G636 -> 0 | I21: =Adjustments!H634+Adjustments!H636 -> 4849491.7 | J21: =Adjustments!I634+Adjustments!I636 -> 0 | K21: =Adjustments!J634+Adjustments!J636 -> 0 | L21: =Adjustments!K634+Adjustments!K636 -> 0 | M21: =Adjustments!L634+Adjustments!L636 -> 0 | N21: =Adjustments!M634+Adjustments!M636 -> 0 | O21: =Adjustments!N634+Adjustments!N636 -> 0 | P21: =Adjustments!O634+Adjustments!O636 -> 0 | Q21: =Adjustments!P634+Adjustments!P636 -> 0 | R21: =Adjustments!Q634+Adjustments!Q636 -> 0 | S21: =Adjustments!R634+Adjustments!R636 -> 0 | T21: =Adjustments!S634+Adjustments!S636 -> 0 | U21: =Adjustments!T634+Adjustments!T636 -> 0 | V21: =Adjustments!U634+Adjustments!U636 -> 0 | W21: =Adjustments!AR634+Adjustments!AR636 -> 0 | X21: =Adjustments!AS634+Adjustments!AS636 -> 0 | Y21: =Adjustments!X634+Adjustments!X636 -> 0 | Z21: =Adjustments!AT634+Adjustments!AT636 -> 4849491.7 | AA21: 4849491.7 | AB21: =+Z21-AA21 -> 0
A22: =+A21+1 -> 13 | D22: Total Gas Purchase Expenses | G22: =SUM(G20:G21) -> 0 | H22: =SUM(H20:H21) -> 0 | I22: 171991044.1 | J22: 0 | K22: 0 | L22: 0 | M22: 0 | N22: 0 | O22: 0 | P22: 0 | Q22: 0 | R22: =SUM(R20:R21) -> 0 | S22: =SUM(S20:S21) -> 0 | T22: 0 | U22: =SUM(U20:U21) -> 0 | V22: =SUM(V20:V21) -> 0 | W22: =SUM(W20:W21) -> 0 | X22: =SUM(X20:X21) -> 0 | Y22: =SUM(Y20:Y21) -> 0 | Z22: =SUM(Z20:Z21) -> 171991044.1 | AA22: 171991044.1 | AB22: 0
A24: =+A22+1 -> 14 | D24: Utah Gathering & CO2 | G24: =Adjustments!F631 -> 0 | H24: =Adjustments!G631 -> 0 | I24: =Adjustments!H631 -> 0 | J24: =Adjustments!I631 -> 0 | K24: =Adjustments!J631 -> 0 | L24: =Adjustments!K631 -> 0 | M24: =Adjustments!L631 -> 0 | N24: =Adjustments!M631 -> 0 | O24: =Adjustments!N631 -> 0 | P24: =Adjustments!O631 -> 0 | Q24: =Adjustments!P631 -> 0 | R24: =Adjustments!Q631 -> 0 | S24: =Adjustments!R631 -> 0 | T24: =Adjustments!S631 -> 0 | U24: =Adjustments!T631 -> 0 | V24: =Adjustments!U631 -> 0 | W24: =Adjustments!AR631 -> 0 | X24: =Adjustments!AS631 -> 0 | Y24: =Adjustments!X631 -> 0 | Z24: =Adjustments!AT631 -> 0 | AA24: =SUM(G24:Y24) -> 0 | AB24: =+Z24-AA24 -> 0
A25: =+A24+1 -> 15 | D25: Wyoming Gathering & CO2 | G25: =Adjustments!F633 -> 0 | H25: =Adjustments!G633 -> 0 | I25: =Adjustments!H633 -> 0 | J25: =Adjustments!I633 -> 0 | K25: =Adjustments!J633 -> 0 | L25: =Adjustments!K633 -> 0 | M25: =Adjustments!L633 -> 0 | N25: =Adjustments!M633 -> 0 | O25: =Adjustments!N633 -> 0 | P25: =Adjustments!O633 -> 0 | Q25: =Adjustments!P633 -> 0 | R25: =Adjustments!Q633 -> 0 | S25: =Adjustments!R633 -> 0 | T25: =Adjustments!S633 -> 0 | U25: =Adjustments!T633 -> 0 | V25: =Adjustments!U633 -> 0 | W25: =Adjustments!AR633 -> 0 | X25: =Adjustments!AS633 -> 0 | Y25: =Adjustments!X633 -> 0 | Z25: =Adjustments!AT633 -> 0 | AA25: 0 | AB25: 0
A26: =+A25+1 -> 16 | D26: Total Gathering & CO2 | G26: =SUM(G24:G25) -> 0 | H26: =SUM(H24:H25) -> 0 | I26: 0 | J26: 0 | K26: 0 | L26: 0 | M26: 0 | N26: 0 | O26: 0 | P26: 0 | Q26: 0 | R26: =SUM(R24:R25) -> 0 | S26: =SUM(S24:S25) -> 0 | T26: 0 | U26: =SUM(U24:U25) -> 0 | V26: =SUM(V24:V25) -> 0 | W26: =SUM(W24:W25) -> 0 | X26: =SUM(X24:X25) -> 0 | Y26: =SUM(Y24:Y25) -> 0 | Z26: =SUM(Z24:Z25) -> 0 | AA26: 0 | AB26: 0
A28: =+A26+1 -> 17 | C28: O&M Expenses
A29: =+A28+1 -> 18 | D29: Production | G29: =Adjustments!F649 -> 0 | H29: =Adjustments!G649 -> -2600.575988 | I29: =Adjustments!H649 -> 0 | J29: =Adjustments!I649 -> 0 | K29: =Adjustments!J649 -> 0 | L29: =Adjustments!K649 -> 0 | M29: =Adjustments!L649 -> 0 | N29: =Adjustments!M649 -> 0 | O29: =Adjustments!N649 -> 0 | P29: =Adjustments!O649 -> 0 | Q29: =Adjustments!P649 -> 0 | R29: =Adjustments!Q649 -> 0 | S29: =Adjustments!R649 -> 0 | T29: =Adjustments!S649 -> 0 | U29: =Adjustments!T649 -> 0 | V29: =Adjustments!U649 -> 0 | W29: =Adjustments!AR649 -> -269966.4 | X29: =Adjustments!AS649 -> 0 | Y29: =Adjustments!X649 -> 0 | Z29: =Adjustments!AT649 -> -272566.976 | AA29: =SUM(G29:Y29) -> -272566.976 | AB29: =+Z29-AA29 -> 0
A30: 19 | D30: Distribution | G30: =Adjustments!F752 -> 0 | H30: =Adjustments!G752 -> 3054291.587 | I30: =Adjustments!H752 -> 0 | J30: =Adjustments!I752 -> 0 | K30: =Adjustments!J752 -> 0 | L30: =Adjustments!K752 -> 0 | M30: =Adjustments!L752 -> 0 | N30: =Adjustments!M752 -> 0 | O30: =Adjustments!N752 -> 0 | P30: =Adjustments!O752 -> 0 | Q30: =Adjustments!P752 -> 0 | R30: =Adjustments!Q752 -> 0 | S30: =Adjustments!R752 -> 4014376.953 | T30: =Adjustments!S752 -> 0 | U30: =Adjustments!T752 -> 0 | V30: =Adjustments!U752 -> 0 | W30: =Adjustments!AR752 -> 4104329.9 | X30: =Adjustments!AS752 -> 0 | Y30: =Adjustments!X752 -> 0 | Z30: =Adjustments!AT752 -> 11172998.44 | AA30: 11172998.44 | AB30: 0
A31: 20 | D31: Customer Accounts | G31: =Adjustments!F805 -> 0 | H31: =Adjustments!G805 -> 856975.9999 | I31: =Adjustments!H805 -> 0 | J31: =Adjustments!I805 -> 0 | K31: =Adjustments!J805 -> 0 | L31: =Adjustments!K805 -> 0 | M31: =Adjustments!L805 -> 1116492.053 | N31: =Adjustments!M805 -> 0 | O31: =Adjustments!N805 -> 0 | P31: =Adjustments!O805 -> 0 | Q31: =Adjustments!P805 -> 0 | R31: =Adjustments!Q805 -> 0 | S31: =Adjustments!R805 -> 0 | T31: =Adjustments!S805 -> 0 | U31: =Adjustments!T805 -> 0 | V31: =Adjustments!U805 -> 0 | W31: =Adjustments!AR805 -> 0 | X31: =Adjustments!AS805 -> 0 | Y31: =Adjustments!X805 -> 0 | Z31: =Adjustments!AT805 -> 1973468.053 | AA31: 1973468.053 | AB31: 0
A32: 21 | D32: Customer Service & Information | G32: =Adjustments!F833 -> 0 | H32: =Adjustments!G833 -> 1788618.045 | I32: =Adjustments!H833 -> 0 | J32: =Adjustments!I833 -> 0 | K32: =Adjustments!J833 -> 0 | L32: =Adjustments!K833 -> -26696995.14 | M32: =Adjustments!L833 -> 0 | N32: =Adjustments!M833 -> 0 | O32: =Adjustments!N833 -> 0 | P32: =Adjustments!O833 -> 0 | Q32: =Adjustments!P833 -> 0 | R32: =Adjustments!Q833 -> 0 | S32: =Adjustments!R833 -> 0 | T32: =Adjustments!S833 -> 0 | U32: =Adjustments!T833 -> 0 | V32: =Adjustments!U833 -> 0 | W32: =Adjustments!AR833 -> 0 | X32: =Adjustments!AS833 -> 0 | Y32: =Adjustments!X833 -> 0 | Z32: =Adjustments!AT833 -> -24908377.09 | AA32: -24908377.09 | AB32: 0
A33: 22 | D33: Administrative & General | G33: =Adjustments!F889 -> 0 | H33: =Adjustments!G889 -> 3158589.081 | I33: =Adjustments!H889 -> 0 | J33: =Adjustments!I889 -> 0 | K33: =Adjustments!J889 -> 0 | L33: =Adjustments!K889 -> 0 | M33: =Adjustments!L889 -> 0 | N33: =Adjustments!M889 -> -3035235.547 | O33: =Adjustments!N889 -> 0 | P33: =Adjustments!O889 -> 0 | Q33: =Adjustments!P889 -> -185711.3855 | R33: =Adjustments!Q889 -> 338560.0488 | S33: =Adjustments!R889 -> 0 | T33: =Adjustments!S889 -> 0 | U33: =Adjustments!T889 -> -250000 | V33: =Adjustments!U889 -> 10044610.73 | W33: =Adjustments!AR889 -> 0 | X33: =Adjustments!AS889 -> 0 | Y33: =Adjustments!X889 -> 0 | Z33: =Adjustments!AT889 -> 10070812.93 | AA33: 10070812.93 | AB33: 0
A34: 23 | D34: Total O&M Expense | G34: =SUM(G29:G33) -> 0 | H34: =SUM(H29:H33) -> 8855874.137 | I34: 0 | J34: 0 | K34: 0 | L34: -26696995.14 | M34: 1116492.053 | N34: -3035235.547 | O34: 0 | P34: 0 | Q34: -185711.3855 | R34: =SUM(R29:R33) -> 338560.0488 | S34: =SUM(S29:S33) -> 4014376.953 | T34: 0 | U34: =SUM(U29:U33) -> -250000 | V34: =SUM(V29:V33) -> 10044610.73 | W34: =SUM(W29:W33) -> 3834363.5 | X34: =SUM(X29:X33) -> 0 | Y34: =SUM(Y29:Y33) -> 0 | Z34: =SUM(Z29:Z33) -> -1963664.648 | AA34: -1963664.648 | AB34: 0
A36: =+A34+1 -> 24 | C36: Other Operating Expenses
A37: =+A36+1 -> 25 | D37: Depreciation, Deplection, Amortization | G37: =Adjustments!F913 -> 0 | H37: =Adjustments!G913 -> 27836088.23 | I37: =Adjustments!H913 -> 0 | J37: =Adjustments!I913 -> 0 | K37: =Adjustments!J913 -> 0 | L37: =Adjustments!K913 -> 0 | M37: =Adjustments!L913 -> 0 | N37: =Adjustments!M913 -> 0 | O37: =Adjustments!N913 -> 0 | P37: =Adjustments!O913 -> 0 | Q37: =Adjustments!P913 -> 0 | R37: =Adjustments!Q913 -> 0 | S37: =Adjustments!R913 -> 0 | T37: =Adjustments!S913 -> 0 | U37: =Adjustments!T913 -> 0 | V37: =Adjustments!U913 -> 0 | W37: =Adjustments!AR913 -> 0 | X37: =Adjustments!AS913 -> 0 | Y37: =Adjustments!X913 -> 0 | Z37: =Adjustments!AT913 -> 27836088.23 | AA37: =SUM(G37:Y37) -> 27836088.23 | AB37: =+Z37-AA37 -> 0
A38: =+A37+1 -> 26 | D38: Taxes Other Than Income Taxes | G38: =Adjustments!F921 -> 0 | H38: =Adjustments!G921 -> 8002877.252 | I38: =Adjustments!H921 -> 0 | J38: =Adjustments!I921 -> 0 | K38: =Adjustments!J921 -> 0 | L38: =Adjustments!K921 -> 0 | M38: =Adjustments!L921 -> 0 | N38: =Adjustments!M921 -> 0 | O38: =Adjustments!N921 -> 0 | P38: =Adjustments!O921 -> 0 | Q38: =Adjustments!P921 -> 0 | R38: =Adjustments!Q921 -> 0 | S38: =Adjustments!R921 -> 0 | T38: =Adjustments!S921 -> 0 | U38: =Adjustments!T921 -> 0 | V38: =Adjustments!U921 -> 0 | W38: =Adjustments!AR921 -> 0 | X38: =Adjustments!AS921 -> 0 | Y38: =Adjustments!X921 -> 0 | Z38: =Adjustments!AT921 -> 8002877.252 | AA38: 8002877.252 | AB38: 0
A39: =+A38+1 -> 27 | D39: Income Taxes | G39: =Adjustments!F923+Adjustments!F925+Adjustments!F927+Adjustments!F929 -> 0 | H39: =Adjustments!G923+Adjustments!G925+Adjustments!G927+Adjustments!G929 -> -11018891.99 | I39: =Adjustments!H923+Adjustments!H925+Adjustments!H927+Adjustments!H929 -> 3096434.384 | J39: =Adjustments!I923+Adjustments!I925+Adjustments!I927+Adjustments!I929 -> 0 | K39: =Adjustments!J923+Adjustments!J925+Adjustments!J927+Adjustments!J929 -> 0 | L39: =Adjustments!K923+Adjustments!K925+Adjustments!K927+Adjustments!K929 -> 6581773.387 | M39: =Adjustments!L923+Adjustments!L925+Adjustments!L927+Adjustments!L929 -> -275255.61 | N39: =Adjustments!M923+Adjustments!M925+Adjustments!M927+Adjustments!M929 -> 748295.1711 | O39: =Adjustments!N923+Adjustments!N925+Adjustments!N927+Adjustments!N929 -> 0 | P39: =Adjustments!O923+Adjustments!O925+Adjustments!O927+Adjustments!O929 -> 0 | Q39: =Adjustments!P923+Adjustments!P925+Adjustments!P927+Adjustments!P929 -> 45784.56297 | R39: =Adjustments!Q923+Adjustments!Q925+Adjustments!Q927+Adjustments!Q929 -> -83467.27815 | S39: =Adjustments!R923+Adjustments!R925+Adjustments!R927+Adjustments!R929 -> -989688.8866 | T39: =Adjustments!S923+Adjustments!S927+Adjustments!S925+Adjustments!S929 -> 1214739.048 | U39: =Adjustments!T923+Adjustments!T925+Adjustments!T927+Adjustments!T929 -> 61634.02803 | V39: =Adjustments!U923+Adjustments!U925+Adjustments!U927+Adjustments!U929 -> -2476359.277 | W39: =Adjustments!AR923+Adjustments!AR925+Adjustments!AR927+Adjustments!AR929 -> -945309.0697 | X39: =Adjustments!AS923+Adjustments!AS925+Adjustments!AS927+Adjustments!AS929 -> 0 | Y39: =Adjustments!X923+Adjustments!X925+Adjustments!X927+Adjustments!X929 -> 0 | Z39: =Adjustments!AT923+Adjustments!AT925+Adjustments!AT927+Adjustments!AT929 -> -4040311.532 | AA39: -4040311.532 | AB39: 8.381903172e-09
A40: =+A39+1 -> 28 | D40: Total Other Operating Expenses | G40: =SUM(G37:G39) -> 0 | H40: =SUM(H37:H39) -> 24820073.49 | I40: 3096434.384 | J40: 0 | K40: 0 | L40: 6581773.387 | M40: -275255.61 | N40: 748295.1711 | O40: 0 | P40: 0 | Q40: 45784.56297 | R40: =SUM(R37:R39) -> -83467.27815 | S40: =SUM(S37:S39) -> -989688.8866 | T40: 1214739.048 | U40: =SUM(U37:U39) -> 61634.02803 | V40: =SUM(V37:V39) -> -2476359.277 | W40: =SUM(W37:W39) -> -945309.0697 | X40: =SUM(X37:X39) -> 0 | Y40: =SUM(Y37:Y39) -> 0 | Z40: =SUM(Z37:Z39) -> 31798653.95 | AA40: 31798653.95 | AB40: 8.381903172e-09
A43: =+A40+1 -> 29 | C43: Total Utility Operating Expenses | G43: =+G22+G26+G34+G40 -> 0 | H43: =+H22+H26+H34+H40 -> 33675947.63 | I43: 175087478.4 | J43: 0 | K43: 0 | L43: -20115221.75 | M43: 841236.4431 | N43: -2286940.376 | O43: 0 | P43: 0 | Q43: -139926.8226 | R43: =+R22+R26+R34+R40 -> 255092.7706 | S43: =+S22+S26+S34+S40 -> 3024688.067 | T43: =+T22+T26+T34+T40 -> 1214739.048 | U43: -188365.972 | V43: 7568251.453 | W43: 2889054.43 | X43: 0 | Y43: =+Y22+Y26+Y34+Y40 -> 0 | Z43: =+Z22+Z26+Z34+Z40 -> 201826033.4 | AA43: 201826033.4 | AB43: 8.381903172e-09
A46: =+A43+1 -> 30 | B46: NET OPERATING INCOME | G46: =+G16-G43 -> 0 | H46: =+H16-H43 -> -33675947.63 | I46: 9463325.553 | J46: 0 | K46: 0 | L46: 20115221.75 | M46: -841236.4431 | N46: 2286940.376 | O46: 0 | P46: 0 | Q46: 139926.8226 | R46: =+R16-R43 -> -255092.7706 | S46: =+S16-S43 -> -3024688.067 | T46: =+T16-T43 -> 3712486.572 | U46: 188365.972 | V46: -7568251.453 | W46: -2889054.43 | X46: 0 | Y46: =+Y16-Y43 -> 0 | Z46: =+Z16-Z43 -> -12348003.74 | AA46: -12348003.74 | AB46: -8.381903172e-09
A49: =+A46+1 -> 31 | B49: RATE BASE SUMMARY
A51: =+A49+1 -> 32 | B51: Net Utility Plant
A52: =+A51+1 -> 33 | C52: 101 | D52: Gas Plant In Service | G52: =Adjustments!F1105 -> 856534572.6 | H52: =Adjustments!G1105 -> 0 | I52: =Adjustments!H1105 -> 0 | J52: =Adjustments!I1105 -> 0 | K52: =Adjustments!J1105 -> -5037992.568 | L52: =Adjustments!K1105 -> 0 | M52: =Adjustments!L1105 -> 0 | N52: =Adjustments!M1105 -> 0 | O52: =Adjustments!N1105 -> 0 | P52: =Adjustments!O1105 -> 0 | Q52: =Adjustments!P1105 -> 0 | R52: =Adjustments!Q1105 -> 0 | S52: =Adjustments!R1105 -> 0 | T52: =Adjustments!S1105 -> 0 | U52: =Adjustments!T1105 -> 0 | V52: =Adjustments!U1105 -> 0 | W52: =Adjustments!AR1105 -> 0 | X52: =Adjustments!AS1105 -> 0 | Y52: =Adjustments!X1105 -> 0 | Z52: =Adjustments!AT1105 -> 851496580 | AA52: =SUM(G52:Y52) -> 851496580 | AB52: =+Z52-AA52 -> 0
A53: 34 | C53: 105 | D53: Gas Plant Held For Future Use | G53: =Adjustments!F1109 -> 5036.83 | H53: =Adjustments!G1109 -> 0 | I53: =Adjustments!H1109 -> 0 | J53: =Adjustments!I1109 -> 0 | K53: =Adjustments!J1109 -> 0 | L53: =Adjustments!K1109 -> 0 | M53: =Adjustments!L1109 -> 0 | N53: =Adjustments!M1109 -> 0 | O53: =Adjustments!N1109 -> 0 | P53: =Adjustments!O1109 -> 0 | Q53: =Adjustments!P1109 -> 0 | R53: =Adjustments!Q1109 -> 0 | S53: =Adjustments!R1109 -> 0 | T53: =Adjustments!S1109 -> 0 | U53: =Adjustments!T1109 -> 0 | V53: =Adjustments!U1109 -> 0 | W53: =Adjustments!AR1109 -> 0 | X53: =Adjustments!AS1109 -> 0 | Y53: =Adjustments!X1109 -> 0 | Z53: =Adjustments!AT1109 -> 5036.83 | AA53: 5036.83 | AB53: 0
A54: 35 | C54: 106 | D54: Completed Construction Not Classified | G54: =Adjustments!F1116 -> -228556799.5 | H54: =Adjustments!G1116 -> 0 | I54: =Adjustments!H1116 -> 0 | J54: =Adjustments!I1116 -> 0 | K54: =Adjustments!J1116 -> 0 | L54: =Adjustments!K1116 -> 0 | M54: =Adjustments!L1116 -> 0 | N54: =Adjustments!M1116 -> 0 | O54: =Adjustments!N1116 -> 0 | P54: =Adjustments!O1116 -> 0 | Q54: =Adjustments!P1116 -> 0 | R54: =Adjustments!Q1116 -> 0 | S54: =Adjustments!R1116 -> 0 | T54: =Adjustments!S1116 -> 0 | U54: =Adjustments!T1116 -> 0 | V54: =Adjustments!U1116 -> 0 | W54: =Adjustments!AR1116 -> 0 | X54: =Adjustments!AS1116 -> 0 | Y54: =Adjustments!X1116 -> 0 | Z54: =Adjustments!AT1116 -> -228556799.5 | AA54: -228556799.5 | AB54: 0
A55: 36 | C55: 108 | D55: Accumulated Depreciation | G55: =Adjustments!F1123 -> -113520408.8 | H55: =Adjustments!G1123 -> 0 | I55: =Adjustments!H1123 -> 0 | J55: =Adjustments!I1123 -> 0 | K55: =Adjustments!J1123 -> 4614046.555 | L55: =Adjustments!K1123 -> 0 | M55: =Adjustments!L1123 -> 0 | N55: =Adjustments!M1123 -> 0 | O55: =Adjustments!N1123 -> 0 | P55: =Adjustments!O1123 -> 0 | Q55: =Adjustments!P1123 -> 0 | R55: =Adjustments!Q1123 -> 0 | S55: =Adjustments!R1123 -> 0 | T55: =Adjustments!S1123 -> 0 | U55: =Adjustments!T1123 -> 0 | V55: =Adjustments!U1123 -> 0 | W55: =Adjustments!AR1123 -> 0 | X55: =Adjustments!AS1123 -> 0 | Y55: =Adjustments!X1123 -> 0 | Z55: =Adjustments!AT1123 -> -108906362.2 | AA55: -108906362.2 | AB55: 0
A56: 37 | C56: 111 | D56: Accumulated Amort & Depletion | G56: =Adjustments!F1130 -> 0 | H56: =Adjustments!G1130 -> 0 | I56: =Adjustments!H1130 -> 0 | J56: =Adjustments!I1130 -> 0 | K56: =Adjustments!J1130 -> 387467.4296 | L56: =Adjustments!K1130 -> 0 | M56: =Adjustments!L1130 -> 0 | N56: =Adjustments!M1130 -> 0 | O56: =Adjustments!N1130 -> 0 | P56: =Adjustments!O1130 -> 0 | Q56: =Adjustments!P1130 -> 0 | R56: =Adjustments!Q1130 -> 0 | S56: =Adjustments!R1130 -> 0 | T56: =Adjustments!S1130 -> 0 | U56: =Adjustments!T1130 -> 0 | V56: =Adjustments!U1130 -> 0 | W56: =Adjustments!AR1130 -> 0 | X56: =Adjustments!AS1130 -> 0 | Y56: =Adjustments!X1130 -> 0 | Z56: =Adjustments!AT1130 -> 387467.4296 | AA56: 387467.4296 | AB56: 0
A57: 38 | C57: 254 | D57: Other Regulatory Liabilities ARC | G57: =Adjustments!F1137 -> -14741899.85 | H57: =Adjustments!G1137 -> 0 | I57: =Adjustments!H1137 -> 0 | J57: =Adjustments!I1137 -> 0 | K57: =Adjustments!J1137 -> 0 | L57: =Adjustments!K1137 -> 0 | M57: =Adjustments!L1137 -> 0 | N57: =Adjustments!M1137 -> 0 | O57: =Adjustments!N1137 -> 0 | P57: =Adjustments!O1137 -> 0 | Q57: =Adjustments!P1137 -> 0 | R57: =Adjustments!Q1137 -> 0 | S57: =Adjustments!R1137 -> 0 | T57: =Adjustments!S1137 -> 5056624.027 | U57: =Adjustments!T1137 -> 0 | V57: =Adjustments!U1137 -> 0 | W57: =Adjustments!AR1137 -> 0 | X57: =Adjustments!AS1137 -> 0 | Y57: =Adjustments!X1137 -> 0 | Z57: =Adjustments!AT1137 -> -9685275.825 | AA57: =Adjustments!V1137 -> 0 | AB57: =Adjustments!W1137 -> 0
A58: 39 | C58: Total Net Utility Plant | G58: =SUM(G52:G57) -> 499720501.3 | H58: 0 | I58: 0 | J58: 0 | K58: -36478.58319 | L58: 0 | M58: 0 | N58: 0 | O58: 0 | P58: 0 | Q58: 0 | R58: 0 | S58: 0 | T58: =SUM(T52:T57) -> 5056624.027 | U58: 0 | V58: 0 | W58: 0 | X58: 0 | Y58: 0 | Z58: =SUM(Z52:Z57) -> 504740646.7 | AA58: =SUM(AA52:AA56) -> 514425922.5 | AB58: 0
A60: =+A58+1 -> 40 | B60: Other Rate Base Accounts
A61: =+A60+1 -> 41 | C61: 154 | D61: Materials & Supplies | G61: =Adjustments!F1155 -> 1239113.312 | H61: =Adjustments!G1155 -> 0 | I61: =Adjustments!H1155 -> 0 | J61: =Adjustments!I1155 -> 0 | K61: =Adjustments!J1155 -> 0 | L61: =Adjustments!K1155 -> 0 | M61: =Adjustments!L1155 -> 0 | N61: =Adjustments!M1155 -> 0 | O61: =Adjustments!N1155 -> 0 | P61: =Adjustments!O1155 -> 0 | Q61: =Adjustments!P1155 -> 0 | R61: =Adjustments!Q1155 -> 0 | S61: =Adjustments!R1155 -> 0 | T61: =Adjustments!S1155 -> 0 | U61: =Adjustments!T1155 -> 0 | V61: =Adjustments!U1155 -> 0 | W61: =Adjustments!AR1155 -> 0 | X61: =Adjustments!AS1155 -> 0 | Y61: =Adjustments!X1155 -> 0 | Z61: =Adjustments!AT1155 -> 1239113.312 | AA61: =SUM(G61:Y61) -> 1239113.312 | AB61: =+Z61-AA61 -> 0
A62: 42 | C62: 164-1 | D62: Gas Stored Underground | G62: =Adjustments!F1159 -> 0 | H62: =Adjustments!G1159 -> 0 | I62: =Adjustments!H1159 -> 0 | J62: =Adjustments!I1159 -> -44932895.7 | K62: =Adjustments!J1159 -> 0 | L62: =Adjustments!K1159 -> 0 | M62: =Adjustments!L1159 -> 0 | N62: =Adjustments!M1159 -> 0 | O62: =Adjustments!N1159 -> 0 | P62: =Adjustments!O1159 -> 0 | Q62: =Adjustments!P1159 -> 0 | R62: =Adjustments!Q1159 -> 0 | S62: =Adjustments!R1159 -> 0 | T62: =Adjustments!S1159 -> 0 | U62: =Adjustments!T1159 -> 0 | V62: =Adjustments!U1159 -> 0 | W62: =Adjustments!AR1159 -> 0 | X62: =Adjustments!AS1159 -> 0 | Y62: =Adjustments!X1159 -> 0 | Z62: =Adjustments!AT1159 -> -44932895.7 | AA62: -44932895.7 | AB62: 0
A63: 43 | C63: 165 | D63: Prepayments | G63: =Adjustments!F1164 -> 4478204.775 | H63: =Adjustments!G1164 -> 0 | I63: =Adjustments!H1164 -> 0 | J63: =Adjustments!I1164 -> 0 | K63: =Adjustments!J1164 -> 0 | L63: =Adjustments!K1164 -> 0 | M63: =Adjustments!L1164 -> 0 | N63: =Adjustments!M1164 -> 0 | O63: =Adjustments!N1164 -> 0 | P63: =Adjustments!O1164 -> 0 | Q63: =Adjustments!P1164 -> 0 | R63: =Adjustments!Q1164 -> 0 | S63: =Adjustments!R1164 -> 0 | T63: =Adjustments!S1164 -> 0 | U63: =Adjustments!T1164 -> 0 | V63: =Adjustments!U1164 -> 0 | W63: =Adjustments!AR1164 -> 0 | X63: =Adjustments!AS1164 -> 0 | Y63: =Adjustments!X1164 -> 0 | Z63: =Adjustments!AT1164 -> 4478204.775 | AA63: 4478204.775 | AB63: 0
A64: 44 | C64: 190 | D64: Accum Deferred Income Taxes | G64: =Adjustments!F1171+Adjustments!F1178 -> 0 | H64: =Adjustments!G1171+Adjustments!G1178 -> 0 | I64: =Adjustments!H1171+Adjustments!H1178 -> 0 | J64: =Adjustments!I1171+Adjustments!I1178 -> 0 | K64: =Adjustments!J1171+Adjustments!J1178 -> 0 | L64: =Adjustments!K1171+Adjustments!K1178 -> 0 | M64: =Adjustments!L1171+Adjustments!L1178 -> 0 | N64: =Adjustments!M1171+Adjustments!M1178 -> 0 | O64: =Adjustments!N1171+Adjustments!N1178 -> 0 | P64: =Adjustments!O1171+Adjustments!O1178 -> 0 | Q64: =Adjustments!P1171+Adjustments!P1178 -> 0 | R64: =Adjustments!Q1171+Adjustments!Q1178 -> 0 | S64: =Adjustments!R1171+Adjustments!R1178 -> 0 | T64: =Adjustments!S1171+Adjustments!S1178 -> 0 | U64: =Adjustments!T1171+Adjustments!T1178 -> 0 | V64: =Adjustments!U1171+Adjustments!U1178 -> 0 | W64: =Adjustments!AR1171+Adjustments!AR1178 -> 0 | X64: =Adjustments!AS1171+Adjustments!AS1178 -> 0 | Y64: =Adjustments!X1171+Adjustments!X1178 -> 0 | Z64: =Adjustments!AT1171+Adjustments!AT1178 -> 0 | AA64: 0 | AB64: 0
A65: 45 | C65: 235-1 | D65: Customer Deposits | G65: =Adjustments!F1183 -> -181566.0183 | H65: =Adjustments!G1183 -> 0 | I65: =Adjustments!H1183 -> 0 | J65: =Adjustments!I1183 -> 0 | K65: =Adjustments!J1183 -> 0 | L65: =Adjustments!K1183 -> 0 | M65: =Adjustments!L1183 -> 0 | N65: =Adjustments!M1183 -> 0 | O65: =Adjustments!N1183 -> 0 | P65: =Adjustments!O1183 -> 0 | Q65: =Adjustments!P1183 -> 0 | R65: =Adjustments!Q1183 -> 0 | S65: =Adjustments!R1183 -> 0 | T65: =Adjustments!S1183 -> 0 | U65: =Adjustments!T1183 -> 0 | V65: =Adjustments!U1183 -> 0 | W65: =Adjustments!AR1183 -> 0 | X65: =Adjustments!AS1183 -> 0 | Y65: =Adjustments!X1183 -> 0 | Z65: =Adjustments!AT1183 -> -181566.0183 | AA65: -181566.0183 | AB65: 0
A66: 46 | C66: 252 | D66: Misc Customer Credits | G66: =Adjustments!F1188 -> 0 | H66: =Adjustments!G1188 -> 0 | I66: =Adjustments!H1188 -> 0 | J66: =Adjustments!I1188 -> 0 | K66: =Adjustments!J1188 -> 0 | L66: =Adjustments!K1188 -> 0 | M66: =Adjustments!L1188 -> 0 | N66: =Adjustments!M1188 -> 0 | O66: =Adjustments!N1188 -> 0 | P66: =Adjustments!O1188 -> 0 | Q66: =Adjustments!P1188 -> 0 | R66: =Adjustments!Q1188 -> 0 | S66: =Adjustments!R1188 -> 0 | T66: =Adjustments!S1188 -> 0 | U66: =Adjustments!T1188 -> 0 | V66: =Adjustments!U1188 -> 0 | W66: =Adjustments!AR1188 -> 0 | X66: =Adjustments!AS1188 -> 0 | Y66: =Adjustments!X1188 -> 0 | Z66: =Adjustments!AT1188 -> 0 | AA66: 0 | AB66: 0
A67: 47 | C67: 253-1 | D67: Unclaimed Customer Deposits | G67: =Adjustments!F1192 -> -4203.269167 | H67: =Adjustments!G1192 -> 0 | I67: =Adjustments!H1192 -> 0 | J67: =Adjustments!I1192 -> 0 | K67: =Adjustments!J1192 -> 0 | L67: =Adjustments!K1192 -> 0 | M67: =Adjustments!L1192 -> 0 | N67: =Adjustments!M1192 -> 0 | O67: =Adjustments!N1192 -> 0 | P67: =Adjustments!O1192 -> 0 | Q67: =Adjustments!P1192 -> 0 | R67: =Adjustments!Q1192 -> 0 | S67: =Adjustments!R1192 -> 0 | T67: =Adjustments!S1192 -> 0 | U67: =Adjustments!T1192 -> 0 | V67: =Adjustments!U1192 -> 0 | W67: =Adjustments!AR1192 -> 0 | X67: =Adjustments!AS1192 -> 0 | Y67: =Adjustments!X1192 -> 0 | Z67: =Adjustments!AT1192 -> -4203.269167 | AA67: -4203.269167 | AB67: 0
A68: 48 | C68: 255 | D68: Deferred Investment Tax Credits | G68: =Adjustments!F1199 -> 0 | H68: =Adjustments!G1199 -> 0 | I68: =Adjustments!H1199 -> 0 | J68: =Adjustments!I1199 -> 0 | K68: =Adjustments!J1199 -> 0 | L68: =Adjustments!K1199 -> 0 | M68: =Adjustments!L1199 -> 0 | N68: =Adjustments!M1199 -> 0 | O68: =Adjustments!N1199 -> 0 | P68: =Adjustments!O1199 -> 0 | Q68: =Adjustments!P1199 -> 0 | R68: =Adjustments!Q1199 -> 0 | S68: =Adjustments!R1199 -> 0 | T68: =Adjustments!S1199 -> 0 | U68: =Adjustments!T1199 -> 0 | V68: =Adjustments!U1199 -> 0 | W68: =Adjustments!AR1199 -> 0 | X68: =Adjustments!AS1199 -> 0 | Y68: =Adjustments!X1199 -> 0 | Z68: =Adjustments!AT1199 -> 0 | AA68: 0 | AB68: 0
A69: 49 | C69: 282 | D69: Accum Deferred Income Taxes | G69: =(Adjustments!F1206+Adjustments!F1213) -> -17359094.1 | H69: =(Adjustments!G1206+Adjustments!G1213+Adjustments!G1217) -> 0 | I69: =(Adjustments!H1206+Adjustments!H1213+Adjustments!H1217) -> 0 | J69: =(Adjustments!I1206+Adjustments!I1213+Adjustments!I1217) -> 0 | K69: =(Adjustments!J1206+Adjustments!J1213+Adjustments!J1217) -> 0 | L69: =(Adjustments!K1206+Adjustments!K1213+Adjustments!K1217) -> 0 | M69: =(Adjustments!L1206+Adjustments!L1213+Adjustments!L1217) -> 0 | N69: =(Adjustments!M1206+Adjustments!M1213+Adjustments!M1217) -> 0 | O69: =(Adjustments!N1206+Adjustments!N1213+Adjustments!N1217) -> 0 | P69: =(Adjustments!O1206+Adjustments!O1213+Adjustments!O1217) -> 0 | Q69: =(Adjustments!P1206+Adjustments!P1213+Adjustments!P1217) -> 0 | R69: =(Adjustments!Q1206+Adjustments!Q1213+Adjustments!Q1217) -> 0 | S69: =(Adjustments!R1206+Adjustments!R1213+Adjustments!R1217) -> 0 | T69: =(Adjustments!S1206+Adjustments!S1213+Adjustments!S1217) -> 0 | U69: =(Adjustments!T1206+Adjustments!T1213+Adjustments!T1217) -> 0 | V69: =(Adjustments!U1206+Adjustments!U1213) -> 42576806.29 | W69: =(Adjustments!AR1206+Adjustments!AR1213+Adjustments!AR1217) -> 0 | X69: =(Adjustments!AS1206+Adjustments!AS1213+Adjustments!AS1217) -> 0 | Y69: =(Adjustments!X1206+Adjustments!X1213+Adjustments!X1217) -> 0 | Z69: =(Adjustments!AT1206+Adjustments!AT1213) -> 25217712.18 | AA69: 25217712.18 | AB69: 0
A70: 48 | C70: 186-7 | D70: Deferred Pension Asset | G70: =+Adjustments!F1217 -> 0 | H70: =+Adjustments!G1217 -> 0 | I70: =+Adjustments!H1217 -> 0 | J70: =+Adjustments!I1217 -> 0 | K70: =+Adjustments!J1217 -> 0 | L70: =+Adjustments!K1217 -> 0 | M70: =+Adjustments!L1217 -> 0 | N70: =+Adjustments!M1217 -> 0 | O70: =+Adjustments!N1217 -> 0 | P70: =+Adjustments!O1217 -> 0 | Q70: =+Adjustments!P1217 -> 0 | R70: =+Adjustments!Q1217 -> 0 | S70: =+Adjustments!R1217 -> 0 | T70: =+Adjustments!S1217 -> 0 | U70: =+Adjustments!T1217 -> 0 | V70: =+Adjustments!U1217 -> -135902646.7 | W70: =+Adjustments!V1217 -> 0 | X70: =+Adjustments!W1217 -> 0 | Z70: =+Adjustments!AT1217 -> -135902646.7
A71: =+A69+1 -> 50 | D71: Working Capital - Cash | G71: =Adjustments!F1255 -> 0 | H71: =Adjustments!G1255 -> 133596.7835 | I71: =Adjustments!H1255 -> 4005425.877 | J71: =Adjustments!I1255 -> 0 | K71: =Adjustments!J1255 -> 0 | L71: =Adjustments!K1255 -> -460170.1414 | M71: =Adjustments!L1255 -> 19244.72411 | N71: =Adjustments!M1255 -> -52317.67709 | O71: =Adjustments!N1255 -> 0 | P71: =Adjustments!O1255 -> 0 | Q71: =Adjustments!P1255 -> -3201.065667 | R71: =Adjustments!Q1255 -> 5835.683931 | S71: =Adjustments!R1255 -> 69194.91879 | T71: =Adjustments!S1255 -> 27789.23575 | U71: =Adjustments!T1255 -> -4309.194153 | V71: =Adjustments!U1255 -> 173136.7113 | W71: =Adjustments!AR1255 -> 66092.0671 | X71: =Adjustments!AS1255 -> 0 | Y71: =Adjustments!X1255 -> 0 | Z71: =Adjustments!AT1255 -> 3980317.923 | AA71: 3980317.923 | AB71: 0
A72: 51 | C72: Total Other Rate Base Accounts | G72: =SUM(G61:G71) -> -11827545.31 | H72: =SUM(H61:H71) -> 133596.7835 | I72: 4005425.877 | J72: -44932895.7 | K72: 0 | L72: -460170.1414 | M72: 19244.72411 | N72: -52317.67709 | O72: 0 | P72: 0 | Q72: -3201.065667 | R72: =SUM(R61:R71) -> 5835.683931 | S72: =SUM(S61:S71) -> 69194.91879 | T72: 27789.23575 | U72: =SUM(U61:U71) -> -4309.194153 | V72: =SUM(V61:V71) -> -93152703.68 | W72: =SUM(W61:W71) -> 66092.0671 | X72: =SUM(X61:X71) -> 0 | Y72: =SUM(Y61:Y71) -> 0 | Z72: =SUM(Z61:Z71) -> -146105963.5 | AA72: -10203316.79 | AB72: 0
A75: =+A72+1 -> 52 | B75: TOTAL RATE BASE | G75: =+G58+G72 -> 487892956 | H75: =+H58+H72 -> 133596.7835 | I75: 4005425.877 | J75: -44932895.7 | K75: -36478.58319 | L75: -460170.1414 | M75: 19244.72411 | N75: -52317.67709 | O75: 0 | P75: 0 | Q75: -3201.065667 | R75: =+R58+R72 -> 5835.683931 | S75: =+S58+S72 -> 69194.91879 | T75: =+T58+T72 -> 5084413.263 | U75: -4309.194153 | V75: -93152703.68 | W75: 66092.0671 | X75: 0 | Y75: =+Y58+Y72 -> 0 | Z75: =+Z58+Z72 -> 358634683.2 | AA75: =+AA58+AA72 -> 504222605.8 | AB75: 0

Sheet PROJECTED EXPENSES
G1: BOOKED | H1: BOOKED | I1: BOOKED | J1: BOOKED | K1: BOOKED | L1: BOOKED | M1: BOOKED | N1: BOOKED | O1: BOOKED | P1: BOOKED | Q1: BOOKED | R1: BOOKED | AT1: 12 Months Ended | AU1: 12 Months Ended | AV1: 12 Months Ended | AW1: 2022 | AX1: 2023
G2: 2021-01-01 | H2: 2021-02-01 | I2: 2021-03-01 | J2: 2021-04-01 | K2: 2021-05-01 | L2: 2021-06-01 | M2: 2021-07-01 | N2: 2021-08-01 | O2: 2021-09-01 | P2: 2021-10-01 | Q2: 2021-11-01 | R2: 2021-12-01 | T2: 2022-01-01 | U2: 2022-02-01 | V2: 2022-03-01 | W2: 2022-04-01 | X2: 2022-05-01 | Y2: 2022-06-01 | Z2: 2022-07-01 | AA2: 2022-08-01 | AB2: 2022-09-01 | AC2: 2022-10-01 | AD2: 2022-11-01 | AE2: 2022-12-01 | AF2: 2023-01-01 | AG2: 2023-02-01 | AH2: 2023-03-01 | AI2: 2023-04-01 | AJ2: 2023-05-01 | AK2: 2023-06-01 | AL2: 2023-07-01 | AM2: 2023-08-01 | AN2: 2023-09-01 | AO2: 2023-10-01 | AP2: 2023-11-01 | AQ2: 2023-12-01 | AT2: =R2 -> 2021-12-01 | AU2: =AE2 -> 2022-12-01 | AV2: =AQ2 -> 2023-12-01 | AW2: Inflation Rates | AX2: Inflation Rates
C3: FERC Acct | E3: Description | AT3: USED | AU3: USED | AV3: USED
C5: UTILITY OPERATING EXPENSES
B6: 615 | C6: OPERATION AND MAINTENANCE EXPENSES
B7: 616
B8: 617 | C8: Production Expenses
B9: 618
B10: 619 | C10: 810 | D10: Gas Used for Compressor Station Fuel | G10: 0 | H10: 0 | I10: -2425 | J10: 0 | K10: 0 | L10: -2218 | M10: -18.61 | N10: -14.35 | O10: -3070.56 | P10: -4.8 | Q10: -9.94 | R10: -3118.44 | T10: =T264+T518 -> 0 | U10: =U264+U518 -> 0 | V10: =V264+V518 -> -2497.75 | W10: =W264+W518 -> 0 | X10: 0 | Y10: -2284.54 | Z10: -19.1683 | AA10: -14.7805 | AB10: -3162.6768 | AC10: -4.944 | AD10: -10.2382 | AE10: =AE264+AE518 -> -3211.9932 | AF10: =AF264+AF518 -> 0 | AG10: 0 | AH10: -2447.795 | AI10: 0 | AJ10: 0 | AK10: -2238.8492 | AL10: -18.784934 | AM10: -14.48489 | AN10: -3099.423264 | AO10: -4.84512 | AP10: -10.033436 | AQ10: =AQ264+AQ518 -> -3147.753336 | AT10: =SUM(G10:R10) -> -10879.7 | AU10: =SUM(T10:AE10) -> -11206.091 | AV10: =SUM(AF10:AQ10) -> -10981.96918
B11: 620 | C11: 812 | D11: Gas Used for Other Utility Operations | G11: -44348.8 | H11: -36591.07 | I11: -34010.2 | J11: -28583.35 | K11: -19961.53 | L11: -10989.82 | M11: -6006.45 | N11: -7544.54 | O11: -6966.72 | P11: -11961.3 | Q11: -22356.16 | R11: -36457.38 | T11: =T265+T519 -> -45679.264 | U11: =U265+U519 -> -37688.8021 | V11: =V265+V519 -> -35030.506 | W11: -29440.8505 | X11: -20560.3759 | Y11: -11319.5146 | Z11: -6186.6435 | AA11: -7770.8762 | AB11: -7175.7216 | AC11: -12320.139 | AD11: -23026.8448 | AE11: -37551.1014 | AF11: =AF265+AF519 -> -44765.67872 | AG11: -36935.02606 | AH11: -34329.89588 | AI11: -28852.03349 | AJ11: -20149.16838 | AK11: -11093.12431 | AL11: -6062.91063 | AM11: -7615.458676 | AN11: -7032.207168 | AO11: -12073.73622 | AP11: -22566.3079 | AQ11: -36800.07937 | AT11: =SUM(G11:R11) -> -265777.32 | AU11: =SUM(T11:AE11) -> -273750.6396 | AV11: =SUM(AF11:AQ11) -> -268275.6268
B12: 621
B13: 622 | D13: Total Production Expenses | G13: =SUM(G10:G12) -> -44348.8 | H13: -36591.07 | I13: -36435.2 | J13: -28583.35 | K13: -19961.53 | L13: -13207.82 | M13: -6025.06 | N13: -7558.89 | O13: -10037.28 | P13: -11966.1 | Q13: -22366.1 | R13: -39575.82 | T13: =SUM(T10:T12) -> -45679.264 | U13: =SUM(U10:U12) -> -37688.8021 | V13: =SUM(V10:V12) -> -37528.256 | W13: -29440.8505 | X13: -20560.3759 | Y13: -13604.0546 | Z13: -6205.8118 | AA13: -7785.6567 | AB13: -10338.3984 | AC13: -12325.083 | AD13: -23037.083 | AE13: -40763.0946 | AF13: =SUM(AF10:AF12) -> -44765.67872 | AG13: -36935.02606 | AH13: -36777.69088 | AI13: -28852.03349 | AJ13: -20149.16838 | AK13: -13331.97351 | AL13: -6081.695564 | AM13: -7629.943566 | AN13: -10131.63043 | AO13: -12078.58134 | AP13: -22576.34134 | AQ13: -39947.83271 | AT13: =SUM(G13:R13) -> -276657.02 | AU13: =SUM(T13:AE13) -> -284956.7306 | AV13: =SUM(AF13:AQ13) -> -279257.596
B14: 623
B15: 624 | C15: Distribution Operations & Maintenance Expenses
B16: 625
B17: 626 | C17: 870 | D17: Operation Supervision & Engineering
B18: 627 | E18: Utah | G18: 537424.02 | H18: 591071.11 | I18: 642732.12 | J18: 589515 | K18: 585583.26 | L18: 654906.53 | M18: 585794.3 | N18: 559617.97 | O18: 590798.74 | P18: 355663.94 | Q18: 604810.39 | R18: 667782.52 | T18: =T272+T526 -> 578422.6623 | U18: =U272+U526 -> 636162.3454 | V18: =V272+V526 -> 691764.4358 | W18: =W272+W526 -> 634487.5239 | X18: 630255.842 | Y18: 704867.599 | Z18: 630482.9817 | AA18: 602309.7294 | AB18: 635869.197 | AC18: 382796.5915 | AD18: 650949.7583 | AE18: 718725.8638 | AF18: =AF272+AF526 -> 580644.6741 | AG18: 638606.1643 | AH18: 694421.8503 | AI18: 636924.909 | AJ18: 632676.9711 | AK18: 707575.3493 | AL18: 632904.9833 | AM18: 604623.5035 | AN18: 638311.8898 | AO18: 384267.1054 | AP18: 653450.3832 | AQ18: 721486.8507 | AT18: =SUM(G18:R18) -> 6965699.9 | AU18: =SUM(T18:AE18) -> 7497094.53 | AV18: =SUM(AF18:AQ18) -> 7525894.634
B19: 628 | E19: Wyoming | G19: 42819.54 | H19: 40320.75 | I19: 46677.53 | J19: 38483.67 | K19: 37727.55 | L19: 41090.71 | M19: 43432.24 | N19: 52988.19 | O19: 34479.8 | P19: 35332.94 | Q19: 36889.5 | R19: 47704.43 | T19: =T273+T527 -> 46086.12827 | U19: =U273+U527 -> 43396.71226 | V19: =V273+V527 -> 50238.43402 | W19: 41419.48634 | X19: 40605.68397 | Y19: 44225.41045 | Z19: 46745.56952 | AA19: 57030.51741 | AB19: 37110.1718 | AC19: 38028.39557 | AD19: 39703.70137 | AE19: 51343.67348 | AF19: =AF273+AF527 -> 46263.16823 | AG19: 43563.42082 | AH19: 50431.42507 | AI19: 41578.59938 | AJ19: 40761.67078 | AK19: 44395.30246 | AL19: 46925.14272 | AM19: 57249.60026 | AN19: 37252.7306 | AO19: 38174.48173 | AP19: 39856.22322 | AQ19: 51540.91031 | AT19: =SUM(G19:R19) -> 497946.85 | AU19: =SUM(T19:AE19) -> 535933.8845 | AV19: =SUM(AF19:AQ19) -> 537992.6756
B20: 629 | E20: Total | G20: =SUM(G18:G19) -> 580243.56 | H20: =SUM(H18:H19) -> 631391.86 | I20: 689409.65 | J20: 627998.67 | K20: 623310.81 | L20: 695997.24 | M20: 629226.54 | N20: 612606.16 | O20: 625278.54 | P20: 390996.88 | Q20: 641699.89 | R20: 715486.95 | T20: =SUM(T18:T19) -> 624508.7905 | U20: =SUM(U18:U19) -> 679559.0576 | V20: =SUM(V18:V19) -> 742002.8698 | W20: 675907.0103 | X20: 670861.5259 | Y20: 749093.0094 | Z20: 677228.5512 | AA20: 659340.2468 | AB20: 672979.3688 | AC20: 420824.9871 | AD20: 690653.4597 | AE20: 770069.5373 | AF20: =SUM(AF18:AF19) -> 626907.8423 | AG20: 682169.5852 | AH20: 744853.2753 | AI20: 678503.5084 | AJ20: 673438.6419 | AK20: 751970.6518 | AL20: 679830.126 | AM20: 661873.1037 | AN20: 675564.6204 | AO20: 422441.5871 | AP20: 693306.6064 | AQ20: 773027.761 | AT20: =SUM(G20:R20) -> 7463646.75 | AU20: =SUM(T20:AE20) -> 8033028.414 | AV20: =SUM(AF20:AQ20) -> 8063887.31
B21: 630
B22: 631 | C22: 871 | D22: Distribution Load Dispatching
B23: 632 | E23: Utah | G23: 119521.75 | H23: 96466.51 | I23: 116304.94 | J23: 116111.4 | K23: 131221.31 | L23: 123077.85 | M23: 119798.53 | N23: 133432.59 | O23: 121806.66 | P23: 133298.78 | Q23: 129435.4 | R23: 161174.83 | T23: =T277+T531 -> 130859.3302 | U23: =U277+U531 -> 105617.119 | V23: =V277+V531 -> 127337.3805 | W23: =W277+W531 -> 127125.4817 | X23: 143668.6857 | Y23: 134752.7544 | Z23: 131162.365 | AA23: 146089.7231 | AB23: 133360.982 | AC23: 145943.2202 | AD23: 141713.3681 | AE23: 176463.5333 | AF23: =AF277+AF531 -> 127335.0474 | AG23: 102772.6554 | AH23: 123907.9502 | AI23: 123701.7582 | AJ23: 139799.4233 | AK23: 131123.6144 | AL23: 127629.9209 | AM23: 142155.2577 | AN23: 129769.325 | AO23: 142012.7003 | AP23: 137896.766 | AQ23: 171711.0452 | AT23: =SUM(G23:R23) -> 1501650.55 | AU23: =SUM(T23:AE23) -> 1644093.943 | AV23: =SUM(AF23:AQ23) -> 1599815.464
B24: 633 | E24: Wyoming | G24: 3525.35 | H24: 2881.08 | I24: 3453.7 | J24: 3421.14 | K24: 3852.07 | L24: 3624.22 | M24: 3527.97 | N24: 3903.97 | O24: 3576.27 | P24: 3923.09 | Q24: 3796.72 | R24: 4759.1 | T24: =T278+T532 -> 3859.75724 | U24: =U278+U532 -> 3154.373151 | V24: =V278+V532 -> 3781.310672 | W24: 3745.6621 | X24: 4217.469208 | Y24: 3968.005839 | Z24: 3862.625767 | AA24: 4274.292332 | AB24: 3915.507403 | AC24: 4295.226014 | AD24: 4156.868824 | AE24: 5210.538154 | AF24: =AF278+AF532 -> 3755.806866 | AG24: 3069.42007 | AH24: 3679.473009 | AI24: 3644.784518 | AJ24: 4103.884991 | AK24: 3861.140131 | AL24: 3758.598139 | AM24: 4159.177764 | AN24: 3810.055575 | AO24: 4179.547664 | AP24: 4044.916687 | AQ24: 5070.208761 | AT24: =SUM(G24:R24) -> 44244.68 | AU24: =SUM(T24:AE24) -> 48441.6367 | AV24: =SUM(AF24:AQ24) -> 47137.01418
B25: 634 | E25: Total | G25: =SUM(G23:G24) -> 123047.1 | H25: 99347.59 | I25: 119758.64 | J25: 119532.54 | K25: 135073.38 | L25: 126702.07 | M25: 123326.5 | N25: 137336.56 | O25: 125382.93 | P25: 137221.87 | Q25: 133232.12 | R25: 165933.93 | T25: =SUM(T23:T24) -> 134719.0875 | U25: =SUM(U23:U24) -> 108771.4921 | V25: =SUM(V23:V24) -> 131118.6911 | W25: 130871.1438 | X25: 147886.155 | Y25: 138720.7602 | Z25: 135024.9908 | AA25: 150364.0154 | AB25: 137276.4894 | AC25: 150238.4462 | AD25: 145870.2369 | AE25: 181674.0714 | AF25: =SUM(AF23:AF24) -> 131090.8542 | AG25: 105842.0754 | AH25: 127587.4232 | AI25: 127346.5427 | AJ25: 143903.3083 | AK25: 134984.7545 | AL25: 131388.519 | AM25: 146314.4354 | AN25: 133579.3806 | AO25: 146192.248 | AP25: 141941.6827 | AQ25: 176781.2539 | AT25: =SUM(G25:R25) -> 1545895.23 | AU25: =SUM(T25:AE25) -> 1692535.58 | AV25: =SUM(AF25:AQ25) -> 1646952.478
B26: 635
B27: 636 | C27: 872 | D27: Compressor Station Labor & Expenses
B28: 637 | E28: Utah | G28: 0 | H28: 0 | I28: 0 | J28: 0 | K28: 0 | L28: 0 | M28: 0 | N28: 0 | O28: 0 | P28: 0 | Q28: 0 | R28: 0 | T28: =T282+T536 -> 0 | U28: =U282+U536 -> 0 | V28: =V282+V536 -> 0 | W28: =W282+W536 -> 0 | X28: 0 | Y28: 0 | Z28: 0 | AA28: 0 | AB28: 0 | AC28: 0 | AD28: 0 | AE28: 0 | AF28: =AF282+AF536 -> 0 | AG28: 0 | AH28: 0 | AI28: 0 | AJ28: 0 | AK28: 0 | AL28: 0 | AM28: 0 | AN28: 0 | AO28: 0 | AP28: 0 | AQ28: 0 | AT28: =SUM(G28:R28) -> 0 | AU28: =SUM(T28:AE28) -> 0 | AV28: =SUM(AF28:AQ28) -> 0
B29: 638 | E29: Wyoming | G29: 0 | H29: 0 | I29: 0 | J29: 0 | K29: 0 | L29: 0 | M29: 0 | N29: 0 | O29: 0 | P29: 0 | Q29: 0 | R29: 0 | T29: 0 | U29: 0 | V29: 0 | W29: 0 | X29: 0 | Y29: 0 | Z29: 0 | AA29: 0 | AB29: 0 | AC29: 0 | AD29: 0 | AE29: 0 | AF29: =AF283+AF537 -> -3 | AG29: -2 | AH29: -1 | AI29: 0 | AJ29: 0 | AK29: 0 | AL29: 0 | AM29: 0 | AN29: 0 | AO29: 0 | AP29: 0 | AQ29: 0 | AT29: =SUM(G29:R29) -> 0 | AU29: =SUM(T29:AE29) -> 0 | AV29: =SUM(AF29:AQ29) -> -6
B30: 639 | E30: Total | G30: =SUM(G28:G29) -> 0 | H30: 0 | I30: 0 | J30: 0 | K30: 0 | L30: 0 | M30: 0 | N30: 0 | O30: 0 | P30: 0 | Q30: 0 | R30: 0 | T30: =SUM(T28:T29) -> 0 | U30: =SUM(U28:U29) -> 0 | V30: =SUM(V28:V29) -> 0 | W30: =SUM(W28:W29) -> 0 | X30: 0 | Y30: 0 | Z30: 0 | AA30: 0 | AB30: 0 | AC30: 0 | AD30: 0 | AE30: 0 | AF30: =SUM(AF28:AF29) -> -3 | AG30: -2 | AH30: -1 | AI30: 0 | AJ30: 0 | AK30: 0 | AL30: 0 | AM30: 0 | AN30: 0 | AO30: 0 | AP30: 0 | AQ30: 0 | AT30: =SUM(G30:R30) -> 0 | AU30: =SUM(T30:AE30) -> 0 | AV30: =SUM(AF30:AQ30) -> -6
B31: 640
B32: 641 | C32: 873 | D32: Compressor Station Fuel & Power
B33: 642 | E33: Utah | G33: 0 | H33: 0 | I33: 0 | J33: 0 | K33: 0 | L33: 0 | M33: 0 | N33: 0 | O33: 0 | P33: 0 | Q33: 0 | R33: 0 | T33: =T287+T541 -> 0 | U33: =U287+U541 -> 0 | V33: =V287+V541 -> 0 | W33: =W287+W541 -> 0 | X33: 0 | Y33: 0 | Z33: 0 | AA33: 0 | AB33: 0 | AC33: 0 | AD33: 0 | AE33: 0 | AF33: =AF287+AF541 -> 0 | AG33: 0 | AH33: 0 | AI33: 0 | AJ33: 0 | AK33: 0 | AL33: 0 | AM33: 0 | AN33: 0 | AO33: 0 | AP33: 0 | AQ33: 0 | AT33: =SUM(G33:R33) -> 0 | AU33: =SUM(T33:AE33) -> 0 | AV33: =SUM(AF33:AQ33) -> 0
B34: 643 | E34: Wyoming | G34: 0 | H34: 0 | I34: 0 | J34: 0 | K34: 0 | L34: 0 | M34: 0 | N34: 0 | O34: 0 | P34: 0 | Q34: 0 | R34: 0 | T34: =T288+T542 -> 0 | U34: =U288+U542 -> 0 | V34: =V288+V542 -> 0 | W34: 0 | X34: 0 | Y34: 0 | Z34: 0 | AA34: 0 | AB34: 0 | AC34: 0 | AD34: 0 | AE34: 0 | AF34: =AF288+AF542 -> 0 | AG34: 0 | AH34: 0 | AI34: 0 | AJ34: 0 | AK34: 0 | AL34: 0 | AM34: 0 | AN34: 0 | AO34: 0 | AP34: 0 | AQ34: 0 | AT34: =SUM(G34:R34) -> 0 | AU34: =SUM(T34:AE34) -> 0 | AV34: =SUM(AF34:AQ34) -> 0
B35: 644 | E35: Total | G35: =SUM(G33:G34) -> 0 | H35: 0 | I35: 0 | J35: 0 | K35: 0 | L35: 0 | M35: 0 | N35: 0 | O35: 0 | P35: 0 | Q35: 0 | R35: 0 | T35: =SUM(T33:T34) -> 0 | U35: =SUM(U33:U34) -> 0 | V35: =SUM(V33:V34) -> 0 | W35: =SUM(W33:W34) -> 0 | X35: 0 | Y35: 0 | Z35: 0 | AA35: 0 | AB35: 0 | AC35: 0 | AD35: 0 | AE35: 0 | AF35: =SUM(AF33:AF34) -> 0 | AG35: 0 | AH35: 0 | AI35: 0 | AJ35: 0 | AK35: 0 | AL35: 0 | AM35: 0 | AN35: 0 | AO35: 0 | AP35: 0 | AQ35: 0 | AT35: =SUM(G35:R35) -> 0 | AU35: =SUM(T35:AE35) -> 0 | AV35: =SUM(AF35:AQ35) -> 0
B36: 645
B37: 646 | C37: 874 | D37: Mains & Service Expenses
B38: 647 | E38: Utah | G38: 1141026.07 | H38: 923217.13 | I38: 1432149 | J38: 1674402.97 | K38: 1943896.15 | L38: 1269980.83 | M38: 1649219.99 | N38: 1634758.59 | O38: 1538105.74 | P38: 1739028.54 | Q38: 1313172.99 | R38: 1554407.32 | T38: =T292+T546 -> 1191425.321 | U38: =U292+U546 -> 963995.7351 | V38: =V292+V546 -> 1495407.183 | W38: =W292+W546 -> 1748361.539 | X38: 2029758.263 | Y38: 1326076.027 | Z38: 1722066.224 | AA38: 1706966.062 | AB38: 1606044.045 | AC38: 1815841.627 | AD38: 1371175.99 | AE38: 1623065.667 | AF38: =AF292+AF546 -> 1173776.382 | AG38: 949715.7789 | AH38: 1473255.271 | AI38: 1722462.538 | AJ38: 1999690.849 | AK38: 1306432.467 | AL38: 1696556.743 | AM38: 1681680.265 | AN38: 1582253.235 | AO38: 1788943.024 | AP38: 1350864.351 | AQ38: 1599022.712 | AT38: =SUM(G38:R38) -> 17813365.32 | AU38: =SUM(T38:AE38) -> 18600183.68 | AV38: =SUM(AF38:AQ38) -> 18324653.62
B39: 648 | E39: Wyoming | G39: 34954.03 | H39: 26173.74 | I39: 40654.82 | J39: 47792.56 | K39: 55117.91 | L39: 54935.77 | M39: 44289.21 | N39: 56182.66 | O39: 55463.51 | P39: 39908.45 | Q39: 42490.01 | R39: 35441.07 | T39: =T293+T547 -> 36497.95346 | U39: =U293+U547 -> 27329.83706 | V39: =V293+V547 -> 42450.548 | W39: 49903.56278 | X39: 57552.47432 | Y39: 57362.28918 | Z39: 46245.46942 | AA39: 58664.25445 | AB39: 57913.33951 | AC39: 41671.21075 | AD39: 44366.79855 | AE39: 37006.50607 | AF39: =AF293+AF547 -> 35957.2984 | AG39: 26924.99203 | AH39: 41821.71538 | AI39: 49164.32643 | AJ39: 56699.93236 | AK39: 56512.56449 | AL39: 45560.42149 | AM39: 57795.24336 | AN39: 57055.45195 | AO39: 41053.92269 | AP39: 43709.57994 | AQ39: 36458.31767 | AT39: =SUM(G39:R39) -> 533403.74 | AU39: =SUM(T39:AE39) -> 556964.2435 | AV39: =SUM(AF39:AQ39) -> 548713.7662
B40: 649 | E40: Total | G40: =SUM(G38:G39) -> 1175980.1 | H40: 949390.87 | I40: 1472803.82 | J40: 1722195.53 | K40: 1999014.06 | L40: 1324916.6 | M40: 1693509.2 | N40: 1690941.25 | O40: 1593569.25 | P40: 1778936.99 | Q40: 1355663 | R40: 1589848.39 | T40: =SUM(T38:T39) -> 1227923.274 | U40: =SUM(U38:U39) -> 991325.5721 | V40: =SUM(V38:V39) -> 1537857.731 | W40: 1798265.101 | X40: 2087310.737 | Y40: 1383438.316 | Z40: 1768311.693 | AA40: 1765630.316 | AB40: 1663957.384 | AC40: 1857512.838 | AD40: 1415542.788 | AE40: 1660072.173 | AF40: =SUM(AF38:AF39) -> 1209733.681 | AG40: 976640.7709 | AH40: 1515076.986 | AI40: 1771626.864 | AJ40: 2056390.781 | AK40: 1362945.032 | AL40: 1742117.165 | AM40: 1739475.508 | AN40: 1639308.687 | AO40: 1829996.947 | AP40: 1394573.931 | AQ40: 1635481.029 | AT40: =SUM(G40:R40) -> 18346769.06 | AU40: =SUM(T40:AE40) -> 19157147.92 | AV40: =SUM(AF40:AQ40) -> 18873367.38
B41: 650
B42: 651 | C42: 875 | D42: Measuring & Regulating Station Expenses
B43: 652 | E43: Utah | G43: 302839.53 | H43: 308538.77 | I43: 233162.72 | J43: 245887.27 | K43: 253605.9 | L43: 190192.13 | M43: 435707.19 | N43: 264948.28 | O43: 374061.11 | P43: 491132.33 | Q43: 121519.94 | R43: 255514.4 | T43: =T297+T551 -> 326671.864 | U43: =U297+U551 -> 332819.6128 | V43: =V297+V551 -> 251511.7507 | W43: =W297+W551 -> 265237.675 | X43: 273563.7322 | Y43: 205159.5366 | Z43: 469995.71 | AA43: 285798.7149 | AB43: 403498.315 | AC43: 529782.6005 | AD43: 131083.103 | AE43: 275622.424 | AF43: =AF297+AF551 -> 322851.7718 | AG43: 328927.629 | AH43: 248570.5789 | AI43: 262135.9926 | AJ43: 270364.6851 | AK43: 202760.4064 | AL43: 464499.5926 | AM43: 282456.5923 | AN43: 398779.8163 | AO43: 523587.3367 | AP43: 129550.2207 | AQ43: 272399.3026 | AT43: =SUM(G43:R43) -> 3477109.57 | AU43: =SUM(T43:AE43) -> 3750745.039 | AV43: =SUM(AF43:AQ43) -> 3706883.925
B44: 653 | E44: Wyoming | G44: 9126.51 | H44: 9197.21 | I44: 7022.64 | J44: 7417.07 | K44: 7505.13 | L44: 5767.26 | M44: 13176.91 | N44: 8075.83 | O44: 11008.12 | P44: 14199.22 | Q44: 4035.78 | R44: 7944.62 | T44: =T298+T552 -> 9844.732073 | U44: =U298+U552 -> 9920.995897 | V44: =V298+V552 -> 7575.295402 | W44: 8000.765563 | X44: 8095.755554 | Y44: 6221.12171 | Z44: 14213.88335 | AA44: 8711.367501 | AB44: 11874.41772 | AC44: 15316.6453 | AD44: 4353.380734 | AE44: 8569.831767 | AF44: =AF298+AF552 -> 9729.608035 | AG44: 9804.980032 | AH44: 7486.710097 | AI44: 7907.20482 | AJ44: 8001.084001 | AK44: 6148.372076 | AL44: 14047.66657 | AM44: 8609.496999 | AN44: 11735.55859 | AO44: 15137.53286 | AP44: 4302.472414 | AQ44: 8469.616379 | AT44: =SUM(G44:R44) -> 104476.3 | AU44: =SUM(T44:AE44) -> 112698.1926 | AV44: =SUM(AF44:AQ44) -> 111380.3029
B45: 654 | E45: Total | G45: =SUM(G43:G44) -> 311966.04 | H45: 317735.98 | I45: 240185.36 | J45: 253304.34 | K45: 261111.03 | L45: 195959.39 | M45: 448884.1 | N45: 273024.11 | O45: 385069.23 | P45: 505331.55 | Q45: 125555.72 | R45: 263459.02 | T45: =SUM(T43:T44) -> 336516.5961 | U45: =SUM(U43:U44) -> 342740.6087 | V45: =SUM(V43:V44) -> 259087.0461 | W45: 273238.4406 | X45: 281659.4878 | Y45: 211380.6583 | Z45: 484209.5934 | AA45: 294510.0824 | AB45: 415372.7327 | AC45: 545099.2458 | AD45: 135436.4838 | AE45: 284192.2558 | AF45: =SUM(AF43:AF44) -> 332581.3799 | AG45: 338732.6091 | AH45: 256057.289 | AI45: 270043.1974 | AJ45: 278365.7691 | AK45: 208908.7784 | AL45: 478547.2591 | AM45: 291066.0893 | AN45: 410515.3749 | AO45: 538724.8695 | AP45: 133852.6931 | AQ45: 280868.919 | AT45: =SUM(G45:R45) -> 3581585.87 | AU45: =SUM(T45:AE45) -> 3863443.231 | AV45: =SUM(AF45:AQ45) -> 3818264.228
B46: 655
B47: 656 | C47: 878 | D47: Meter & House Regulator Expenses
B48: 657 | E48: Utah | G48: 205158.17 | H48: 197103.58 | I48: 205995.2 | J48: 206782.59 | K48: 214169.16 | L48: 223146.36 | M48: 227431.22 | N48: 217653.31 | O48: 198871.8 | P48: 239206.16 | Q48: 211767.6 | R48: 228352.76 | T48: =T302+T556 -> 224700.509 | U48: =U302+U556 -> 215878.6792 | V48: =V302+V556 -> 225617.2703 | W48: =W302+W556 -> 226479.6631 | X48: 234569.8408 | Y48: 244402.1639 | Z48: 249095.1781 | AA48: 238385.8734 | AB48: 217815.3309 | AC48: 261991.7399 | AD48: 231939.5202 | AE48: 250104.4994 | AF48: =AF302+AF556 -> 218736.855 | AG48: 210149.1605 | AH48: 219629.285 | AI48: 220468.7895 | AJ48: 228344.2501 | AK48: 237915.6189 | AL48: 242484.0784 | AM48: 232059.0036 | AN48: 212034.4126 | AO48: 255038.3596 | AP48: 225783.7395 | AQ48: 243466.6119 | AT48: =SUM(G48:R48) -> 2575637.91 | AU48: =SUM(T48:AE48) -> 2820980.268 | AV48: =SUM(AF48:AQ48) -> 2746110.164
B49: 658 | E49: Wyoming | G49: 10832.28 | H49: 11833.79 | I49: 13604.13 | J49: 18719.47 | K49: 11304.87 | L49: 18612.03 | M49: 15491.13 | N49: 12113.81 | O49: 16481.62 | P49: 22761.6 | Q49: 29666.66 | R49: 20640.59 | T49: =T303+T557 -> 11864.1087 | U49: =U303+U557 -> 12961.01752 | V49: =V303+V557 -> 14899.99124 | W49: 20502.59289 | X49: 12381.71526 | Y49: 20384.9187 | Z49: 16966.7374 | AA49: 13267.71083 | AB49: 18051.57652 | AC49: 24929.75594 | AD49: 32492.55734 | AE49: 22606.70915 | AF49: =AF303+AF557 -> 11549.22984 | AG49: 12617.0262 | AH49: 14504.53867 | AI49: 19958.44472 | AJ49: 12053.09888 | AK49: 19843.89365 | AL49: 16516.43245 | AM49: 12915.57973 | AN49: 17572.47944 | AO49: 24268.10884 | AP49: 31630.19004 | AQ49: 22006.71677 | AT49: =SUM(G49:R49) -> 202061.98 | AU49: =SUM(T49:AE49) -> 221309.3915 | AV49: =SUM(AF49:AQ49) -> 215435.7392
B50: 659 | E50: Total | G50: =SUM(G48:G49) -> 215990.45 | H50: 208937.37 | I50: 219599.33 | J50: 225502.06 | K50: 225474.03 | L50: 241758.39 | M50: 242922.35 | N50: 229767.12 | O50: 215353.42 | P50: 261967.76 | Q50: 241434.26 | R50: 248993.35 | T50: =SUM(T48:T49) -> 236564.6177 | U50: =SUM(U48:U49) -> 228839.6967 | V50: =SUM(V48:V49) -> 240517.2616 | W50: 246982.256 | X50: 246951.556 | Y50: 264787.0825 | Z50: 266061.9155 | AA50: 251653.5843 | AB50: 235866.9074 | AC50: 286921.4958 | AD50: 264432.0775 | AE50: 272711.2086 | AF50: =SUM(AF48:AF49) -> 230286.0848 | AG50: 222766.1867 | AH50: 234133.8237 | AI50: 240427.2342 | AJ50: 240397.349 | AK50: 257759.5125 | AL50: 259000.5109 | AM50: 244974.5833 | AN50: 229606.8921 | AO50: 279306.4684 | AP50: 257413.9295 | AQ50: 265473.3286 | AT50: =SUM(G50:R50) -> 2777699.89 | AU50: =SUM(T50:AE50) -> 3042289.66 | AV50: =SUM(AF50:AQ50) -> 2961545.904
B51: 660
B52: 661 | C52: 879 | D52: Customer Installations Expenses
B53: 662 | E53: Utah | G53: 171209.73 | H53: 131628.36 | I53: 146355.55 | J53: 130084.42 | K53: 114590.44 | L53: 127397.39 | M53: 139295.71 | N53: 141691.38 | O53: 117434.2 | P53: 146900.7 | Q53: 162202.05 | R53: 204412.51 | T53: =T307+T561 -> 189712.7674 | U53: =U307+U561 -> 145853.7459 | V53: =V307+V561 -> 162172.5378 | W53: =W307+W561 -> 144142.9486 | X53: 126974.4978 | Y53: 141165.525 | Z53: 154349.7244 | AA53: 157004.3 | AB53: 130125.5897 | AC53: 162776.6035 | AD53: 179731.6063 | AE53: 226503.8498 | AF53: =AF307+AF561 -> 183209.6774 | AG53: 140854.0822 | AH53: 156613.4887 | AI53: 139201.9287 | AJ53: 122621.9885 | AK53: 136326.567 | AL53: 149058.8304 | AM53: 151622.4109 | AN53: 125665.0653 | AO53: 157196.8478 | AP53: 173570.6567 | AQ53: 218739.6127 | AT53: =SUM(G53:R53) -> 1733202.44 | AU53: =SUM(T53:AE53) -> 1920513.696 | AV53: =SUM(AF53:AQ53) -> 1854681.156
B54: 663 | E54: Wyoming | G54: 3163.61 | H54: 4006.3 | I54: 5319.96 | J54: 27079.9 | K54: 197.09 | L54: 1623.87 | M54: 3696.28 | N54: 2111.65 | O54: 2151.09 | P54: 3179.37 | Q54: 6495.67 | R54: 3279.05 | T54: =T308+T562 -> 3505.508759 | U54: =U308+U562 -> 4439.270245 | V54: =V308+V562 -> 5894.900565 | W54: 30006.48836 | X54: 218.389979 | Y54: 1799.365443 | Z54: 4095.745656 | AA54: 2339.860972 | AB54: 2383.563346 | AC54: 3522.971979 | AD54: 7197.672305 | AE54: 3633.424631 | AF54: =AF308+AF562 -> 3385.344791 | AG54: 4287.098232 | AH54: 5692.831568 | AI54: 28977.90765 | AJ54: 210.903874 | AK54: 1737.685696 | AL54: 3955.349188 | AM54: 2259.653791 | AN54: 2301.858107 | AO54: 3402.209397 | AP54: 6950.946103 | AQ54: 3508.875885 | AT54: =SUM(G54:R54) -> 62303.84 | AU54: =SUM(T54:AE54) -> 69037.16224 | AV54: =SUM(AF54:AQ54) -> 66670.66428
B55: 664 | E55: Total | G55: =SUM(G53:G54) -> 174373.34 | H55: 135634.66 | I55: 151675.51 | J55: 157164.32 | K55: 114787.53 | L55: 129021.26 | M55: 142991.99 | N55: 143803.03 | O55: 119585.29 | P55: 150080.07 | Q55: 168697.72 | R55: 207691.56 | T55: =SUM(T53:T54) -> 193218.2762 | U55: =SUM(U53:U54) -> 150293.0161 | V55: =SUM(V53:V54) -> 168067.4384 | W55: 174149.437 | X55: 127192.8878 | Y55: 142964.8904 | Z55: 158445.47 | AA55: 159344.161 | AB55: 132509.153 | AC55: 166299.5755 | AD55: 186929.2786 | AE55: 230137.2744 | AF55: =SUM(AF53:AF54) -> 186595.0222 | AG55: 145141.1804 | AH55: 162306.3202 | AI55: 168179.8364 | AJ55: 122832.8924 | AK55: 138064.2527 | AL55: 153014.1795 | AM55: 153882.0647 | AN55: 127966.9234 | AO55: 160599.0572 | AP55: 180521.6028 | AQ55: 222248.4885 | AT55: =SUM(G55:R55) -> 1795506.28 | AU55: =SUM(T55:AE55) -> 1989550.858 | AV55: =SUM(AF55:AQ55) -> 1921351.82
B56: 665
B57: 666 | C57: 880 | D57: Other Expenses
B58: 667 | E58: Utah | G58: 1305379.28 | H58: 1529842.81 | I58: 1095903.9 | J58: 1878489.64 | K58: 1215081.48 | L58: 1031951.43 | M58: 972940.74 | N58: 1407099.84 | O58: 1493622.11 | P58: 1221234.86 | Q58: 1589012.31 | R58: 2181900.5 | T58: =T312+T566 -> 1381467.27 | U58: =U312+U566 -> 1619014.338 | V58: =V312+V566 -> 1159781.982 | W58: =W312+W566 -> 1987983.106 | X58: 1285906.189 | Y58: 1092101.849 | Z58: 1029651.542 | AA58: 1489116.922 | AB58: 1580682.404 | AC58: 1292418.238 | AD58: 1681632.712 | AE58: 2309079.188 | AF58: =AF312+AF566 -> 1373652.232 | AG58: 1609855.482 | AH58: 1153221.03 | AI58: 1976736.973 | AJ58: 1278631.745 | AK58: 1085923.767 | AL58: 1023826.745 | AM58: 1480692.903 | AN58: 1571740.395 | AO58: 1285106.954 | AP58: 1672119.62 | AQ58: 2296016.596 | AT58: =SUM(G58:R58) -> 16922458.9 | AU58: =SUM(T58:AE58) -> 17908835.74 | AV58: =SUM(AF58:AQ58) -> 17807524.44
B59: 668 | E59: Wyoming | G59: 100109.92 | H59: 102340.35 | I59: 113065.29 | J59: 113944.93 | K59: 64304.48 | L59: 72741.3 | M59: 47760.16 | N59: 61516.23 | O59: 96217.76 | P59: 81546.41 | Q59: 88007.85 | R59: 141029.7 | T59: =T313+T567 -> 105945.1303 | U59: =U313+U567 -> 108305.5677 | V59: =V313+V567 -> 119655.6433 | W59: 120586.5558 | X59: 68052.66164 | Y59: 76981.24728 | Z59: 50544.00577 | AA59: 65101.89003 | AB59: 101826.1039 | AC59: 86299.58982 | AD59: 93137.65444 | AE59: 149250.0438 | AF59: =AF313+AF567 -> 105345.7927 | AG59: 107692.8769 | AH59: 118978.7446 | AI59: 119904.3908 | AJ59: 67667.68387 | AK59: 76545.76 | AL59: 50258.07547 | AM59: 64733.60495 | AN59: 101250.0679 | AO59: 85811.38815 | AP59: 92610.76945 | AQ59: 148405.7278 | AT59: =SUM(G59:R59) -> 1082584.38 | AU59: =SUM(T59:AE59) -> 1145686.094 | AV59: =SUM(AF59:AQ59) -> 1139204.883
B60: 669 | E60: Total | G60: =SUM(G58:G59) -> 1405489.2 | H60: 1632183.16 | I60: 1208969.19 | J60: 1992434.57 | K60: 1279385.96 | L60: 1104692.73 | M60: 1020700.9 | N60: 1468616.07 | O60: 1589839.87 | P60: 1302781.27 | Q60: 1677020.16 | R60: 2322930.2 | T60: =SUM(T58:T59) -> 1487412.401 | U60: =SUM(U58:U59) -> 1727319.906 | V60: =SUM(V58:V59) -> 1279437.626 | W60: 2108569.661 | X60: 1353958.851 | Y60: 1169083.096 | Z60: 1080195.548 | AA60: 1554218.812 | AB60: 1682508.508 | AC60: 1378717.827 | AD60: 1774770.366 | AE60: 2458329.232 | AF60: =SUM(AF58:AF59) -> 1478998.024 | AG60: 1717548.359 | AH60: 1272199.775 | AI60: 2096641.363 | AJ60: 1346299.429 | AK60: 1162469.527 | AL60: 1074084.82 | AM60: 1545426.508 | AN60: 1672990.462 | AO60: 1370918.342 | AP60: 1764730.389 | AQ60: 2444422.324 | AT60: =SUM(G60:R60) -> 18005043.28 | AU60: =SUM(T60:AE60) -> 19054521.83 | AV60: =SUM(AF60:AQ60) -> 18946729.32
B61: 670
B62: 671 | C62: 881 | D62: Rents
B63: 672 | E63: Utah | G63: 3485.26 | H63: -902.65 | I63: -90.44 | J63: 1679.53 | K63: -377.94 | L63: 680.9 | M63: -641.82 | N63: 1516.6 | O63: 1447.62 | P63: 1389.3 | Q63: 2912.14 | R63: -1213.4 | T63: =T317+T571 -> 3815.533987 | U63: =U317+U571 -> -988.187898 | V63: =V317+V571 -> -99.01037334 | W63: =W317+W571 -> 1838.687443 | X63: -413.7547601 | Y63: 745.4241841 | Z63: -702.6408428 | AA63: 1660.317694 | AB63: 1584.800936 | AC63: 1520.954353 | AD63: 3188.103368 | AE63: -1328.385526 | AF63: =AF317+AF571 -> 3709.002339 | AG63: -960.5971898 | AH63: -96.24595341 | AI63: 1787.350355 | AJ63: -402.2025169 | AK63: 724.6115621 | AL63: -683.0227534 | AM63: 1613.96078 | AN63: 1540.552489 | AO63: 1478.488535 | AP63: 3099.089902 | AQ63: -1291.296328 | AT63: =SUM(G63:R63) -> 9885.1 | AU63: =SUM(T63:AE63) -> 10821.84256 | AV63: =SUM(AF63:AQ63) -> 10519.69122
B64: 673 | E64: Wyoming | G64: 115.2 | H64: -29.83 | I64: -2.99 | J64: 55.52 | K64: -12.5 | L64: 22.51 | M64: -21.23 | N64: 50.15 | O64: 47.85 | P64: 45.92 | Q64: 96.28 | R64: -40.1 | T64: =T318+T572 -> 126.1167073 | U64: =U318+U572 -> -32.6567828 | V64: =V318+V572 -> -3.273341622 | W64: 60.78124644 | X64: -13.68453855 | Y64: 24.64311703 | Z64: -23.24182028 | AA64: 54.90236868 | AB64: 52.38441358 | AC64: 50.27152083 | AD64: 105.4037898 | AE64: -43.89999968 | AF64: =AF318+AF572 -> 122.5954648 | AG64: -31.74498883 | AH64: -3.181948261 | AI64: 59.08420315 | AJ64: -13.30245928 | AK64: 23.95506868 | AL64: -22.59289685 | AM64: 53.36946664 | AN64: 50.92181414 | AO64: 48.86791442 | AP64: 102.4608624 | AQ64: -42.67428938 | AT64: =SUM(G64:R64) -> 326.78 | AU64: =SUM(T64:AE64) -> 357.7466807 | AV64: =SUM(AF64:AQ64) -> 347.7582116
B65: 674 | E65: Total | G65: =SUM(G63:G64) -> 3600.46 | H65: -932.48 | I65: -93.43 | J65: 1735.05 | K65: -390.44 | L65: 703.41 | M65: -663.05 | N65: 1566.75 | O65: 1495.47 | P65: 1435.22 | Q65: 3008.42 | R65: -1253.5 | T65: =SUM(T63:T64) -> 3941.650694 | U65: =SUM(U63:U64) -> -1020.844681 | V65: =SUM(V63:V64) -> -102.283715 | W65: 1899.468689 | X65: -427.4392986 | Y65: 770.0673011 | Z65: -725.882663 | AA65: 1715.220062 | AB65: 1637.18535 | AC65: 1571.225874 | AD65: 3293.507158 | AE65: -1372.285526 | AF65: =SUM(AF63:AF64) -> 3831.597804 | AG65: -992.3421786 | AH65: -99.42790167 | AI65: 1846.434558 | AJ65: -415.5049762 | AK65: 748.5666308 | AL65: -705.6156502 | AM65: 1667.330247 | AN65: 1591.474303 | AO65: 1527.356449 | AP65: 3201.550765 | AQ65: -1333.970617 | AT65: =SUM(G65:R65) -> 10211.88 | AU65: =SUM(T65:AE65) -> 11179.58925 | AV65: =SUM(AF65:AQ65) -> 10867.44943
B66: 675
B67: 676 | C67: 885 | D67: Maintenance Supervision & Engineering
B68: 677 | E68: Utah | G68: -0.01 | H68: 0 | I68: 0 | J68: 0 | K68: 0 | L68: 0 | M68: 0 | N68: 0 | O68: 0 | P68: 0 | Q68: 0 | R68: 0 | T68: =T322+T576 -> -0.01062 | U68: =U322+U576 -> 0 | V68: =V322+V576 -> 0 | W68: =W322+W576 -> 0 | X68: 0 | Y68: 0 | Z68: 0 | AA68: 0 | AB68: 0 | AC68: 0 | AD68: 0 | AE68: 0 | AF68: =AF322+AF576 -> -0.01085364 | AG68: 0 | AH68: 0 | AI68: 0 | AJ68: 0 | AK68: 0 | AL68: 0 | AM68: 0 | AN68: 0 | AO68: 0 | AP68: 0 | AQ68: 0 | AT68: =SUM(G68:R68) -> -0.01 | AU68: =SUM(T68:AE68) -> -0.01062 | AV68: =SUM(AF68:AQ68) -> -0.01085364
B69: 678 | E69: Wyoming | G69: 0 | H69: 0 | I69: 0 | J69: 0 | K69: 0 | L69: 0 | M69: 0 | N69: 0 | O69: 0 | P69: 0 | Q69: 0 | R69: 0 | T69: =T323+T577 -> 0 | U69: =U323+U577 -> 0 | V69: =V323+V577 -> 0 | W69: 0 | X69: 0 | Y69: 0 | Z69: 0 | AA69: 0 | AB69: 0 | AC69: 0 | AD69: 0 | AE69: 0 | AF69: =AF323+AF577 -> 0 | AG69: 0 | AH69: 0 | AI69: 0 | AJ69: 0 | AK69: 0 | AL69: 0 | AM69: 0 | AN69: 0 | AO69: 0 | AP69: 0 | AQ69: 0 | AT69: =SUM(G69:R69) -> 0 | AU69: =SUM(T69:AE69) -> 0 | AV69: =SUM(AF69:AQ69) -> 0
B70: 679 | E70: Total | G70: =SUM(G68:G69) -> -0.01 | H70: 0 | I70: 0 | J70: 0 | K70: 0 | L70: 0 | M70: 0 | N70: 0 | O70: 0 | P70: 0 | Q70: 0 | R70: 0 | T70: =SUM(T68:T69) -> -0.01062 | U70: =SUM(U68:U69) -> 0 | V70: =SUM(V68:V69) -> 0 | W70: 0 | X70: 0 | Y70: 0 | Z70: 0 | AA70: 0 | AB70: 0 | AC70: 0 | AD70: 0 | AE70: 0 | AF70: =SUM(AF68:AF69) -> -0.01085364 | AG70: 0 | AH70: 0 | AI70: 0 | AJ70: 0 | AK70: 0 | AL70: 0 | AM70: 0 | AN70: 0 | AO70: 0 | AP70: 0 | AQ70: 0 | AT70: =SUM(G70:R70) -> -0.01 | AU70: =SUM(T70:AE70) -> -0.01062 | AV70: =SUM(AF70:AQ70) -> -0.01085364
B71: 680
B72: 681 | C72: 886 | D72: Maintenance of Structures & Improvements
B73: 682 | E73: Utah | G73: 0 | H73: 0 | I73: 0 | J73: 0 | K73: 0 | L73: 0 | M73: 0 | N73: 0 | O73: 0 | P73: 0 | Q73: 0 | R73: 0 | T73: =T327+T581 -> 0 | U73: =U327+U581 -> 0 | V73: =V327+V581 -> 0 | W73: =W327+W581 -> 0 | X73: 0 | Y73: 0 | Z73: 0 | AA73: 0 | AB73: 0 | AC73: 0 | AD73: 0 | AE73: 0 | AF73: =AF327+AF581 -> 0 | AG73: 0 | AH73: 0 | AI73: 0 | AJ73: 0 | AK73: 0 | AL73: 0 | AM73: 0 | AN73: 0 | AO73: 0 | AP73: 0 | AQ73: 0 | AT73: =SUM(G73:R73) -> 0 | AU73: =SUM(T73:AE73) -> 0 | AV73: =SUM(AF73:AQ73) -> 0
B74: 683 | E74: Wyoming | G74: 0 | H74: 0 | I74: 0 | J74: 0 | K74: 0 | L74: 0 | M74: 0 | N74: 0 | O74: 0 | P74: 0 | Q74: 0 | R74: 0 | T74: =T328+T582 -> 0 | U74: =U328+U582 -> 0 | V74: =V328+V582 -> 0 | W74: 0 | X74: 0 | Y74: 0 | Z74: 0 | AA74: 0 | AB74: 0 | AC74: 0 | AD74: 0 | AE74: 0 | AF74: =AF328+AF582 -> 0 | AG74: 0 | AH74: 0 | AI74: 0 | AJ74: 0 | AK74: 0 | AL74: 0 | AM74: 0 | AN74: 0 | AO74: 0 | AP74: 0 | AQ74: 0 | AT74: =SUM(G74:R74) -> 0 | AU74: =SUM(T74:AE74) -> 0 | AV74: =SUM(AF74:AQ74) -> 0
B75: 684 | E75: Total | G75: =SUM(G73:G74) -> 0 | H75: 0 | I75: 0 | J75: 0 | K75: 0 | L75: 0 | M75: 0 | N75: 0 | O75: 0 | P75: 0 | Q75: 0 | R75: 0 | T75: =SUM(T73:T74) -> 0 | U75: =SUM(U73:U74) -> 0 | V75: =SUM(V73:V74) -> 0 | W75: 0 | X75: 0 | Y75: 0 | Z75: 0 | AA75: 0 | AB75: 0 | AC75: 0 | AD75: 0 | AE75: 0 | AF75: =SUM(AF73:AF74) -> 0 | AG75: 0 | AH75: 0 | AI75: 0 | AJ75: 0 | AK75: 0 | AL75: 0 | AM75: 0 | AN75: 0 | AO75: 0 | AP75: 0 | AQ75: 0 | AT75: =SUM(G75:R75) -> 0 | AU75: =SUM(T75:AE75) -> 0 | AV75: =SUM(AF75:AQ75) -> 0
B76: 685
B77: 686 | C77: 887 | D77: Maintenance of Mains
B78: 687 | E78: Utah | G78: 152434.49 | H78: 1477529.82 | I78: 793083.64 | J78: 772675.66 | K78: 804900.68 | L78: 781575.15 | M78: 745545.15 | N78: 764334.99 | O78: 747360.16 | P78: 750732.65 | Q78: 749812.16 | R78: 727158.23 | T78: =T332+T586 -> 160815.1526 | U78: =U332+U586 -> 1558762.61 | V78: =V332+V586 -> 836686.4124 | W78: =W332+W586 -> 815156.4265 | X78: 849153.1389 | Y78: 824545.1996 | Z78: 786534.3141 | AA78: 806357.1966 | AB78: 788449.1112 | AC78: 792007.0166 | AD78: 791035.9191 | AE78: 767136.5037 | AF78: =AF332+AF586 -> 152633.9872 | AG78: 1479463.523 | AH78: 794121.5807 | AI78: 773686.892 | AJ78: 805954.0862 | AK78: 782598.0291 | AL78: 746520.8752 | AM78: 765335.3062 | AN78: 748338.2605 | AO78: 751715.1643 | AP78: 750793.4696 | AQ78: 728109.8915 | AT78: =SUM(G78:R78) -> 9267142.78 | AU78: =SUM(T78:AE78) -> 9776639.001 | AV78: =SUM(AF78:AQ78) -> 9279271.066
B79: 688 | E79: Wyoming | G79: 107.37 | H79: 124.83 | I79: 1076.42 | J79: 341.82 | K79: 7330.24 | L79: 242.04 | M79: 1596.58 | N79: 3278.01 | O79: 1246.64 | P79: 390.05 | Q79: 957.05 | R79: 1061.17 | T79: =T333+T587 -> 113.2730718 | U79: =U333+U587 -> 131.6930013 | V79: =V333+V587 -> 1135.60026 | W79: 360.6128472 | X79: 7733.247666 | Y79: 255.3470643 | Z79: 1684.358023 | AA79: 3458.230997 | AB79: 1315.178749 | AC79: 411.4944738 | AD79: 1009.667443 | AE79: 1119.511834 | AF79: =AF333+AF587 -> 107.5105195 | AG79: 124.9933701 | AH79: 1077.828755 | AI79: 342.2673537 | AJ79: 7339.833382 | AK79: 242.3567676 | AL79: 1598.669509 | AM79: 3282.300065 | AN79: 1248.271528 | AO79: 390.5604743 | AP79: 958.3025301 | AQ79: 1062.558796 | AT79: =SUM(G79:R79) -> 17752.22 | AU79: =SUM(T79:AE79) -> 18728.21543 | AV79: =SUM(AF79:AQ79) -> 17775.45305
B80: 689 | E80: Total | G80: =SUM(G78:G79) -> 152541.86 | H80: 1477654.65 | I80: 794160.06 | J80: 773017.48 | K80: 812230.92 | L80: 781817.19 | M80: 747141.73 | N80: 767613 | O80: 748606.8 | P80: 751122.7 | Q80: 750769.21 | R80: 728219.4 | T80: =SUM(T78:T79) -> 160928.4256 | U80: =SUM(U78:U79) -> 1558894.303 | V80: =SUM(V78:V79) -> 837822.0127 | W80: 815517.0394 | X80: 856886.3865 | Y80: 824800.5467 | Z80: 788218.6722 | AA80: 809815.4276 | AB80: 789764.2899 | AC80: 792418.511 | AD80: 792045.5866 | AE80: 768256.0155 | AF80: =SUM(AF78:AF79) -> 152741.4977 | AG80: 1479588.517 | AH80: 795199.4095 | AI80: 774029.1593 | AJ80: 813293.9195 | AK80: 782840.3859 | AL80: 748119.5447 | AM80: 768617.6063 | AN80: 749586.5321 | AO80: 752105.7247 | AP80: 751751.7721 | AQ80: 729172.4503 | AT80: =SUM(G80:R80) -> 9284895 | AU80: =SUM(T80:AE80) -> 9795367.216 | AV80: =SUM(AF80:AQ80) -> 9297046.519
B81: 690
B82: 691 | C82: 888 | D82: Maint of Compressor Station Equipment
B83: 692 | E83: Utah | G83: 232356.39 | H83: 244106.84 | I83: 273936.64 | J83: 244902.28 | K83: 226711.14 | L83: 338416.53 | M83: 422438.13 | N83: 223348.52 | O83: 302404.15 | P83: 294792.13 | Q83: 292273.52 | R83: 386821.79 | T83: =T337+T591 -> 250721.354 | U83: =U337+U591 -> 263400.5351 | V83: =V337+V591 -> 295588.0202 | W83: =W337+W591 -> 264258.845 | X83: 244629.9153 | Y83: 365164.2661 | Z83: 455826.758 | AA83: 241001.5208 | AB83: 326305.5428 | AC83: 318091.8846 | AD83: 315374.2089 | AE83: 417395.3768 | AF83: =AF337+AF591 -> 246568.3614 | AG83: 259037.5222 | AH83: 290691.8482 | AI83: 259881.6149 | AJ83: 240577.8223 | AK83: 359115.6209 | AL83: 448276.3633 | AM83: 237009.5292 | AN83: 320900.5603 | AO83: 312822.9546 | AP83: 310150.295 | AQ83: 410481.5663 | AT83: =SUM(G83:R83) -> 3482508.06 | AU83: =SUM(T83:AE83) -> 3757758.228 | AV83: =SUM(AF83:AQ83) -> 3695514.058
B84: 693 | E84: Wyoming | G84: 4079.61 | H84: 3852.61 | I84: 2376.23 | J84: 3483.28 | K84: 3376.53 | L84: 3329.9 | M84: 3050.18 | N84: 2307.82 | O84: 2815.64 | P84: 3825.23 | Q84: 3099.57 | R84: 4004 | T84: =T338+T592 -> 4402.053858 | U84: =U338+U592 -> 4157.112252 | V84: =V338+V592 -> 2564.042259 | W84: 3758.59118 | X84: 3643.403883 | Y84: 3593.088345 | Z84: 3291.25986 | AA84: 2490.225275 | AB84: 3038.182308 | AC84: 4127.568194 | AD84: 3344.553543 | AE84: 4320.467802 | AF84: =AF338+AF592 -> 4329.137463 | AG84: 4088.253113 | AH84: 2521.571011 | AI84: 3696.333214 | AJ84: 3583.053899 | AK84: 3533.571797 | AL84: 3236.742852 | AM84: 2448.976745 | AN84: 2987.857321 | AO84: 4059.198428 | AP84: 3289.153769 | AQ84: 4248.902812 | AT84: =SUM(G84:R84) -> 39600.6 | AU84: =SUM(T84:AE84) -> 42730.54876 | AV84: =SUM(AF84:AQ84) -> 42022.75242
B85: 694 | E85: Total | G85: =SUM(G83:G84) -> 236436 | H85: 247959.45 | I85: 276312.87 | J85: 248385.56 | K85: 230087.67 | L85: 341746.43 | M85: 425488.31 | N85: 225656.34 | O85: 305219.79 | P85: 298617.36 | Q85: 295373.09 | R85: 390825.79 | T85: =SUM(T83:T84) -> 255123.4079 | U85: =SUM(U83:U84) -> 267557.6473 | V85: =SUM(V83:V84) -> 298152.0625 | W85: 268017.4362 | X85: 248273.3191 | Y85: 368757.3545 | Z85: 459118.0178 | AA85: 243491.7461 | AB85: 329343.7251 | AC85: 322219.4528 | AD85: 318718.7625 | AE85: 421715.8446 | AF85: =SUM(AF83:AF84) -> 250897.4988 | AG85: 263125.7753 | AH85: 293213.4192 | AI85: 263577.9482 | AJ85: 244160.8762 | AK85: 362649.1927 | AL85: 451513.1061 | AM85: 239458.5059 | AN85: 323888.4176 | AO85: 316882.153 | AP85: 313439.4487 | AQ85: 414730.4691 | AT85: =SUM(G85:R85) -> 3522108.66 | AU85: =SUM(T85:AE85) -> 3800488.776 | AV85: =SUM(AF85:AQ85) -> 3737536.811
B86: 695
B87: 696 | C87: 889 | D87: Maint of Meas. & Reg. Station Equipment
B88: 697 | E88: Utah | G88: 1866.49 | H88: 2384.5 | I88: 1963.01 | J88: 1649.5 | K88: 1893.07 | L88: 12995.79 | M88: 32408.12 | N88: 1769.23 | O88: 1577.95 | P88: 6055.22 | Q88: 1738.09 | R88: 2156.49 | T88: =T342+T596 -> 2019.158284 | U88: =U342+U596 -> 2579.538561 | V88: =V342+V596 -> 2123.573072 | W88: =W342+W596 -> 1784.419734 | X88: 2047.912377 | Y88: 14058.77183 | Z88: 35058.92021 | AA88: 1913.942968 | AB88: 1707.017351 | AC88: 6550.502615 | AD88: 1880.255893 | AE88: 2332.878638 | AF88: =AF342+AF596 -> 1960.809714 | AG88: 2504.996417 | AH88: 2062.207178 | AI88: 1732.854514 | AJ88: 1988.732886 | AK88: 13652.50886 | AL88: 34045.80603 | AM88: 1858.634855 | AN88: 1657.688864 | AO88: 6361.209647 | AP88: 1825.921251 | AQ88: 2265.464342 | AT88: =SUM(G88:R88) -> 68457.46 | AU88: =SUM(T88:AE88) -> 74056.89153 | AV88: =SUM(AF88:AQ88) -> 71916.83456
B89: 698 | E89: Wyoming | G89: 57.93 | H89: 74.85 | I89: 60.7 | J89: 51.01 | K89: 58.55 | L89: 416.51 | M89: 1041.05 | N89: 54.74 | O89: 48.79 | P89: 192.97 | Q89: 53.72 | R89: 66.72 | T89: =T343+T597 -> 62.66834508 | U89: =U343+U597 -> 80.97230501 | V89: =V343+V597 -> 65.66491535 | W89: 55.18232837 | X89: 63.33905756 | Y89: 450.5781531 | Z89: 1126.201979 | AA89: 59.21742119 | AB89: 52.78074497 | AC89: 208.7538503 | AD89: 58.11399098 | AE89: 72.17731717 | AF89: =AF343+AF597 -> 60.85738831 | AG89: 78.63241007 | AH89: 63.76736528 | AI89: 53.58769856 | AJ89: 61.5087189 | AK89: 437.5575834 | AL89: 1093.657589 | AM89: 57.5061874 | AN89: 51.25551486 | AO89: 202.7213917 | AP89: 56.43464354 | AQ89: 70.09157515 | AT89: =SUM(G89:R89) -> 2177.54 | AU89: =SUM(T89:AE89) -> 2355.650408 | AV89: =SUM(AF89:AQ89) -> 2287.578066
B90: 699 | E90: Total | G90: =SUM(G88:G89) -> 1924.42 | H90: 2459.35 | I90: 2023.71 | J90: 1700.51 | K90: 1951.62 | L90: 13412.3 | M90: 33449.17 | N90: 1823.97 | O90: 1626.74 | P90: 6248.19 | Q90: 1791.81 | R90: 2223.21 | T90: =SUM(T88:T89) -> 2081.826629 | U90: =SUM(U88:U89) -> 2660.510866 | V90: =SUM(V88:V89) -> 2189.237988 | W90: 1839.602063 | X90: 2111.251435 | Y90: 14509.34999 | Z90: 36185.12218 | AA90: 1973.16039 | AB90: 1759.798096 | AC90: 6759.256465 | AD90: 1938.369884 | AE90: 2405.055955 | AF90: =SUM(AF88:AF89) -> 2021.667102 | AG90: 2583.628827 | AH90: 2125.974543 | AI90: 1786.442213 | AJ90: 2050.241605 | AK90: 14090.06645 | AL90: 35139.46362 | AM90: 1916.141042 | AN90: 1708.944379 | AO90: 6563.931039 | AP90: 1882.355894 | AQ90: 2335.555917 | AT90: =SUM(G90:R90) -> 70635 | AU90: =SUM(T90:AE90) -> 76412.54194 | AV90: =SUM(AF90:AQ90) -> 74204.41263
B91: 700
B92: 701 | C92: 892 | D92: Maintenance of Services
B93: 702 | E93: Utah | G93: 80725.58 | H93: 74791.59 | I93: 88236.34 | J93: 58904.74 | K93: 71747.35 | L93: 76920.55 | M93: 95976.85 | N93: 75236.87 | O93: 73216.61 | P93: 71662.33 | Q93: 65935.99 | R93: 83420.74 | T93: =T347+T601 -> 88924.04515 | U93: =U347+U601 -> 82387.40094 | V93: =V347+V601 -> 97197.59563 | W93: =W347+W601 -> 64887.08733 | X93: 79033.98886 | Y93: 84732.57747 | Z93: 105724.2294 | AA93: 82877.90344 | AB93: 80652.46646 | AC93: 78940.33426 | AD93: 72632.42892 | AE93: 91892.92477 | AF93: =AF347+AF601 -> 85881.57266 | AG93: 79568.57505 | AH93: 93872.04954 | AI93: 62667.02213 | AJ93: 76329.89756 | AK93: 81833.51304 | AL93: 102106.9507 | AM93: 80042.29536 | AN93: 77893.00011 | AO93: 76239.44728 | AP93: 70147.36241 | AQ93: 88748.87419 | AT93: =SUM(G93:R93) -> 916775.54 | AU93: =SUM(T93:AE93) -> 1009882.983 | AV93: =SUM(AF93:AQ93) -> 975330.56
B94: 703 | E94: Wyoming | G94: 892.62 | H94: 3543.58 | I94: 3251.39 | J94: 465.99 | K94: 2879.77 | L94: 9605.37 | M94: 2680.33 | N94: 3433.2 | O94: 1716.6 | P94: 2778.92 | Q94: 4289.88 | R94: 8474.89 | T94: =T348+T602 -> 983.2742134 | U94: =U348+U602 -> 3903.464898 | V94: =V348+V602 -> 3581.600171 | W94: 513.3158015 | X94: 3172.238558 | Y94: 10580.88843 | Z94: 2952.543493 | AA94: 3781.874739 | AB94: 1890.93737 | AC94: 3061.146263 | AD94: 4725.558897 | AE94: 9335.597229 | AF94: =AF348+AF602 -> 949.6321908 | AG94: 3769.910643 | AH94: 3459.058288 | AI94: 495.7530691 | AJ94: 3063.702689 | AK94: 10218.87092 | AL94: 2851.524333 | AM94: 3652.480605 | AN94: 1826.240302 | AO94: 2956.411337 | AP94: 4563.877285 | AQ94: 9016.186459 | AT94: =SUM(G94:R94) -> 44012.54 | AU94: =SUM(T94:AE94) -> 48482.44006 | AV94: =SUM(AF94:AQ94) -> 46823.64812
B95: 704 | E95: Total | G95: =SUM(G93:G94) -> 81618.2 | H95: 78335.17 | I95: 91487.73 | J95: 59370.73 | K95: 74627.12 | L95: 86525.92 | M95: 98657.18 | N95: 78670.07 | O95: 74933.21 | P95: 74441.25 | Q95: 70225.87 | R95: 91895.63 | T95: =SUM(T93:T94) -> 89907.31936 | U95: =SUM(U93:U94) -> 86290.86584 | V95: =SUM(V93:V94) -> 100779.1958 | W95: 65400.40313 | X95: 82206.22742 | Y95: 95313.4659 | Z95: 108676.7729 | AA95: 86659.77818 | AB95: 82543.40383 | AC95: 82001.48052 | AD95: 77357.98782 | AE95: 101228.522 | AF95: =SUM(AF93:AF94) -> 86831.20485 | AG95: 83338.4857 | AH95: 97331.10783 | AI95: 63162.7752 | AJ95: 79393.60025 | AK95: 92052.38396 | AL95: 104958.475 | AM95: 83694.77597 | AN95: 79719.24041 | AO95: 79195.85862 | AP95: 74711.2397 | AQ95: 97765.06065 | AT95: =SUM(G95:R95) -> 960788.08 | AU95: =SUM(T95:AE95) -> 1058365.423 | AV95: =SUM(AF95:AQ95) -> 1022154.208
B96: 705
B97: 706 | C97: 893 | D97: Maintenance of Meters & House Regulators
B98: 707 | E98: Utah | G98: 58390.19 | H98: 35368.65 | I98: 38151.37 | J98: 36940.69 | K98: 36739.33 | L98: 42461.58 | M98: 61291.69 | N98: 85441.07 | O98: 47691.04 | P98: 50070.7 | Q98: 56687.89 | R98: 47208.81 | T98: =T352+T606 -> 64045.04306 | U98: =U352+U606 -> 38793.96029 | V98: =V352+V606 -> 41846.17543 | W98: =W352+W606 -> 40518.24599 | X98: 40297.38509 | Y98: 46573.81179 | Z98: 67227.54156 | AA98: 93715.69106 | AB98: 52309.72378 | AC98: 54919.8442 | AD98: 62177.88221 | AE98: 51780.79176 | AF98: =AF352+AF606 -> 61941.82925 | AG98: 37519.98202 | AH98: 40471.96363 | AI98: 39187.64286 | AJ98: 38974.03495 | AK98: 45044.34629 | AL98: 65019.81577 | AM98: 90638.10495 | AN98: 50591.8932 | AO98: 53116.2983 | AP98: 60135.98522 | AQ98: 50080.3311 | AT98: =SUM(G98:R98) -> 596443.01 | AU98: =SUM(T98:AE98) -> 654206.0962 | AV98: =SUM(AF98:AQ98) -> 632722.2276
B99: 708 | E99: Wyoming | G99: 3838.75 | H99: 4494.73 | I99: 7044.44 | J99: 7715.56 | K99: 4810.13 | L99: 3775.41 | M99: 4604.08 | N99: 9392.63 | O99: 5377.04 | P99: 21008.72 | Q99: 45596.31 | R99: 28587.42 | T99: =T353+T607 -> 4210.517367 | U99: =U353+U607 -> 4930.026369 | V99: =V353+V607 -> 7726.66544 | W99: 8462.78069 | X99: 5275.97158 | Y99: 4141.043145 | Z99: 5049.966473 | AA99: 10302.26812 | AB99: 5897.784513 | AC99: 23043.32932 | AD99: 50012.12767 | AE99: 31355.99567 | AF99: =AF353+AF607 -> 4072.245647 | AG99: 4768.126259 | AH99: 7472.924812 | AI99: 8184.86633 | AJ99: 5102.710766 | AK99: 4005.052931 | AL99: 4884.127577 | AM99: 9963.945719 | AN99: 5704.10361 | AO99: 22286.59552 | AP99: 48369.74924 | AQ99: 30326.27721 | AT99: =SUM(G99:R99) -> 146245.22 | AU99: =SUM(T99:AE99) -> 160408.4764 | AV99: =SUM(AF99:AQ99) -> 155140.7256
B100: 709 | E100: Total | G100: =SUM(G98:G99) -> 62228.94 | H100: 39863.38 | I100: 45195.81 | J100: 44656.25 | K100: 41549.46 | L100: 46236.99 | M100: 65895.77 | N100: 94833.7 | O100: 53068.08 | P100: 71079.42 | Q100: 102284.2 | R100: 75796.23 | T100: =SUM(T98:T99) -> 68255.56042 | U100: =SUM(U98:U99) -> 43723.98666 | V100: =SUM(V98:V99) -> 49572.84087 | W100: 48981.02668 | X100: 45573.35667 | Y100: 50714.85493 | Z100: 72277.50804 | AA100: 104017.9592 | AB100: 58207.50829 | AC100: 77963.17351 | AD100: 112190.0099 | AE100: 83136.78743 | AF100: =SUM(AF98:AF99) -> 66014.0749 | AG100: 42288.10828 | AH100: 47944.88845 | AI100: 47372.50919 | AJ100: 44076.74571 | AK100: 49049.39922 | AL100: 69903.94335 | AM100: 100602.0507 | AN100: 56295.99681 | AO100: 75402.89382 | AP100: 108505.7345 | AQ100: 80406.60831 | AT100: =SUM(G100:R100) -> 742688.23 | AU100: =SUM(T100:AE100) -> 814614.5726 | AV100: =SUM(AF100:AQ100) -> 787862.9532
B101: 710
B102: 711 | C102: 8941 | D102: Maintenance of Communication Equipment
B103: 712 | E103: Utah | G103: 0 | H103: 0 | I103: 0 | J103: 0 | K103: 0 | L103: 0 | M103: 0 | N103: 0 | O103: 0 | P103: 0 | Q103: 0 | R103: 0 | T103: =T357+T611 -> 0 | U103: =U357+U611 -> 0 | V103: =V357+V611 -> 0 | W103: =W357+W611 -> 0 | X103: 0 | Y103: 0 | Z103: 0 | AA103: 0 | AB103: 0 | AC103: 0 | AD103: 0 | AE103: 0 | AF103: =AF357+AF611 -> 0 | AG103: 0 | AH103: 0 | AI103: 0 | AJ103: 0 | AK103: 0 | AL103: 0 | AM103: 0 | AN103: 0 | AO103: 0 | AP103: 0 | AQ103: 0 | AT103: =SUM(G103:R103) -> 0 | AU103: =SUM(T103:AE103) -> 0 | AV103: =SUM(AF103:AQ103) -> 0
B104: 713 | E104: Wyoming | G104: 0 | H104: 0 | I104: 0 | J104: 0 | K104: 0 | L104: 0 | M104: 0 | N104: 0 | O104: 0 | P104: 0 | Q104: 0 | R104: 0 | T104: =T358+T612 -> 0 | U104: =U358+U612 -> 0 | V104: =V358+V612 -> 0 | W104: 0 | X104: 0 | Y104: 0 | Z104: 0 | AA104: 0 | AB104: 0 | AC104: 0 | AD104: 0 | AE104: 0 | AF104: =AF358+AF612 -> 0 | AG104: 0 | AH104: 0 | AI104: 0 | AJ104: 0 | AK104: 0 | AL104: 0 | AM104: 0 | AN104: 0 | AO104: 0 | AP104: 0 | AQ104: 0 | AT104: =SUM(G104:R104) -> 0 | AU104: =SUM(T104:AE104) -> 0 | AV104: =SUM(AF104:AQ104) -> 0
B105: 714 | E105: Total | G105: =SUM(G103:G104) -> 0 | H105: 0 | I105: 0 | J105: 0 | K105: 0 | L105: 0 | M105: 0 | N105: 0 | O105: 0 | P105: 0 | Q105: 0 | R105: 0 | T105: =SUM(T103:T104) -> 0 | U105: =SUM(U103:U104) -> 0 | V105: =SUM(V103:V104) -> 0 | W105: 0 | X105: 0 | Y105: 0 | Z105: 0 | AA105: 0 | AB105: 0 | AC105: 0 | AD105: 0 | AE105: 0 | AF105: =SUM(AF103:AF104) -> 0 | AG105: 0 | AH105: 0 | AI105: 0 | AJ105: 0 | AK105: 0 | AL105: 0 | AM105: 0 | AN105: 0 | AO105: 0 | AP105: 0 | AQ105: 0 | AT105: =SUM(G105:R105) -> 0 | AU105: =SUM(T105:AE105) -> 0 | AV105: =SUM(AF105:AQ105) -> 0
B106: 715
B107: 716 | C107: 8942 | D107: Maintenance of Other Equipment
B108: 717 | E108: Utah | G108: 0 | H108: 0 | I108: 0 | J108: 0 | K108: 0 | L108: 0 | M108: 0 | N108: 0 | O108: 0 | P108: 0 | Q108: 0 | R108: 0 | T108: =T362+T616 -> 0 | U108: =U362+U616 -> 0 | V108: =V362+V616 -> 0 | W108: =W362+W616 -> 0 | X108: 0 | Y108: 0 | Z108: 0 | AA108: 0 | AB108: 0 | AC108: 0 | AD108: 0 | AE108: 0 | AF108: =AF362+AF616 -> 0 | AG108: 0 | AH108: 0 | AI108: 0 | AJ108: 0 | AK108: 0 | AL108: 0 | AM108: 0 | AN108: 0 | AO108: 0 | AP108: 0 | AQ108: 0 | AT108: =SUM(G108:R108) -> 0 | AU108: =SUM(T108:AE108) -> 0 | AV108: =SUM(AF108:AQ108) -> 0
B109: 718 | E109: Wyoming | G109: 0 | H109: 0 | I109: 0 | J109: 0 | K109: 0 | L109: 0 | M109: 0 | N109: 0 | O109: 0 | P109: 0 | Q109: 0 | R109: 0 | T109: =T363+T617 -> 0 | U109: =U363+U617 -> 0 | V109: =V363+V617 -> 0 | W109: 0 | X109: 0 | Y109: 0 | Z109: 0 | AA109: 0 | AB109: 0 | AC109: 0 | AD109: 0 | AE109: 0 | AF109: =AF363+AF617 -> 0 | AG109: 0 | AH109: 0 | AI109: 0 | AJ109: 0 | AK109: 0 | AL109: 0 | AM109: 0 | AN109: 0 | AO109: 0 | AP109: 0 | AQ109: 0 | AT109: =SUM(G109:R109) -> 0 | AU109: =SUM(T109:AE109) -> 0 | AV109: =SUM(AF109:AQ109) -> 0
B110: 719 | E110: Total | G110: =SUM(G108:G109) -> 0 | H110: 0 | I110: 0 | J110: 0 | K110: 0 | L110: 0 | M110: 0 | N110: 0 | O110: 0 | P110: 0 | Q110: 0 | R110: 0 | T110: =SUM(T108:T109) -> 0 | U110: =SUM(U108:U109) -> 0 | V110: =SUM(V108:V109) -> 0 | W110: 0 | X110: 0 | Y110: 0 | Z110: 0 | AA110: 0 | AB110: 0 | AC110: 0 | AD110: 0 | AE110: 0 | AF110: =SUM(AF108:AF109) -> 0 | AG110: 0 | AH110: 0 | AI110: 0 | AJ110: 0 | AK110: 0 | AL110: 0 | AM110: 0 | AN110: 0 | AO110: 0 | AP110: 0 | AQ110: 0 | AT110: =SUM(G110:R110) -> 0 | AU110: =SUM(T110:AE110) -> 0 | AV110: =SUM(AF110:AQ110) -> 0
B111: 720
B112: 721 | C112: System Total Distribution O&M Expenses
B113: 722 | D113: Utah Distribution O&M Expenses | G113: =G18+G23+G28+G33+G38+G43+G48+G53+G58+G63+G68+G73+G78+G83+G88+G93+G98+G103+G108 -> 4311816.94 | H113: 5611147.02 | I113: 5067883.99 | J113: 5958025.69 | K113: 5599761.33 | L113: 4873703.02 | M113: 5487205.8 | N113: 5510849.24 | O113: 5608397.89 | P113: 5501167.64 | Q113: 5301280.47 | R113: 6499097.5 | T113: =T18+T23+T28+T33+T38+T43+T48+T53+T58+T63+T68+T73+T78+T83+T88+T93+T98+T103+T108 -> 4593600 | U113: =U18+U23+U28+U33+U38+U43+U48+U53+U58+U63+U68+U73+U78+U83+U88+U93+U98+U103+U108 -> 5964277.432 | V113: =V18+V23+V28+V33+V38+V43+V48+V53+V58+V63+V68+V73+V78+V83+V88+V93+V98+V103+V108 -> 5386935.307 | W113: 6322261.649 | X113: 5939445.636 | Y113: 5184345.505 | Z113: 5836472.847 | AA113: 5853197.897 | AB113: 5958404.526 | AC113: 5843581.157 | AD113: 5634514.856 | AE113: 6908775.115 | AF113: =AF18+AF23+AF28+AF33+AF38+AF43+AF48+AF53+AF58+AF63+AF68+AF73+AF78+AF83+AF88+AF93+AF98+AF103+AF108 -> 4532902.191 | AG113: 5838014.954 | AH113: 5290742.857 | AI113: 6220576.265 | AJ113: 5835552.283 | AK113: 5091026.42 | AL113: 5732247.682 | AM113: 5751787.767 | AN113: 5859476.095 | AO113: 5737885.891 | AP113: 5539387.86 | AQ113: 6801237.562 | AT113: =SUM(G113:R113) -> 65330336.53 | AU113: =SUM(T113:AE113) -> 69425811.93 | AV113: =SUM(AF113:AQ113) -> 68230837.83
